Workbook

Sheet Hoja1
BG1: SUMAR.SI($AD$4:$AD$8763;AG19;$AF$4:$AF$8763)/AI4
L2: probabilidades | AE2: Perfil semanal | BG2: SUMA($AF$4:$AF$8763)/1000 | BO2: Enero | BP2: Febrero | BQ2: Marzo | BR2: Abril | BS2: Mayo | BT2: Junio | BU2: Julio | BV2: Agosto | BW2: Septiembre | BX2: Octubre | BY2: Noviembre | BZ2: Diciembre
H3: Fecha | I3: Mes | J3: Grupo | K3: aleatorio | L3: 0 | M3: 10 | N3: 20 | O3: 30 | P3: 40 | Q3: 50 | R3: 60 | S3: 70 | T3: 80 | U3: 90 | V3: OMIE | W3: dia | X3: OMIE simulado 2017 | AA3: Horas | AB3: dia | AC3: Inicio semana | AD3: Aleatorio | AE3: perfil 1 | AF3: perfil 2 | AG3: perfil 3 | AH3: perfil 4 | AI3: perfil 5 | AJ3: perfil 6 | AK3: perfil 7 | AL3: perfil 8 | AM3: perfil 9 | AN3: perfil 10 | AO3: perfil escollit | AP3: Omie horario 2017 | AQ3: periodos | AR3: Curva consumo | AS3: coste | AV3: P1 | AW3: P2 | AX3: P3 | AY3: P4 | AZ3: P5 | BA3: P6 | BB3: Total | BM3: Perfiles de años | BN3: Perfil/mes | BO3: 1 | BP3: 2 | BQ3: 3 | BR3: 4 | BS3: 5 | BT3: 6 | BU3: 7 | BV3: 8 | BW3: 9 | BX3: 10 | BY3: 11 | BZ3: 12
H4: 2017-01-01 | I4: 1 | J4: Domingo | K4: =RAND() -> 0.8511242003 | L4: 0.05 | M4: 0.06666666667 | N4: 0.1666666667 | O4: 0.35 | P4: 0.7 | Q4: 0.8666666667 | R4: 0.9666666667 | S4: 1 | T4: 1 | U4: 1 | V4: =IF(K4<L4,$L$3,IF(K4<M4,$M$3,IF(K4<N4,$N$3,IF(K4<O4,$O$3,IF(K4<P4,$P$3,IF(K4<Q4,$Q$3,IF(K4<R4,$R$3,IF(K4<S4,$S$3,IF(K4<T4,$T$3,$U$3)))))))))+RANDBETWEEN(0,9)+RAND() -> 56.07385844 | W4: 1 | X4: =MAX(V4-VLOOKUP(I4,$A$11:$F$22,6,FALSE),0) -> 46.55596707 | AA4: 2017-01-01 | AB4: 1 | AC4: 1 | AD4: =IF(AC4=1,RANDBETWEEN(1,10),"") -> 9 | AE4: 0.9122481014 | AF4: 1.381861575 | AG4: 1.255243709 | AH4: 1.197785978 | AI4: 1.257733625 | AJ4: 0.8263540209 | AK4: 0.9079493198 | AL4: 1.03509917 | AM4: 1.033466952 | AN4: 1.314182723 | AO4: =IF(AD4=1,AE4,IF(AD4=2,AF4,IF(AD4=3,AG4,IF(AD4=4,AH4,IF(AD4=5,AI4,IF(AD4=6,AJ4,IF(AD4=7,AK4,IF(AD4=8,AL4,IF(AD4=9,AM4,IF(AD4=10,AN4)))))))))) -> 1.033466952 | AP4: =VLOOKUP(AB4,$W$4:$X$368,2,FALSE)*AO4 -> 48.1140534 | AQ4: P6 | AR4: 11 | AS4: =AP4*AR4 -> 529.2545874 | AU4: Consumo | AV4: =SUMIF($AQ$4:$AQ$8763,AV3,$AR$4:$AR$8763) -> 140340 | AW4: =SUMIF($AQ$4:$AQ$8763,AW3,$AR$4:$AR$8763) -> 155320 | AX4: 88440 | AY4: 154189 | AZ4: 183367 | BA4: 1012698 | BB4: =SUM(AV4:BA4) -> 1734354 | BL4: 2015 | BM4: Perfil 1 | BN4: 1 | BO4: 1.024164178 | BP4: 0.8461285676 | BQ4: 0.8572981391 | BR4: 0.89885644 | BS4: 0.8968928884 | BT4: 1.087853639 | BU4: 1.183614765 | BV4: 1.104891209 | BW4: 1.031190865 | BX4: 0.9917750139 | BY4: 1.017672766 | BZ4: 1.045737535
B5: OMIP | C5: =VLOOKUP(Hoja3!$M$11,Hoja3!$P$4:$R$384,3,FALSE) -> 36.80980573 | H5: 2017-01-02 | I5: 1 | J5: Viernes | K5: =RAND() -> 0.6020973701 | L5: 0 | M5: 0.0243902439 | N5: 0.07317073171 | O5: 0.2195121951 | P5: 0.487804878 | Q5: 0.756097561 | R5: 0.8780487805 | S5: 0.9756097561 | T5: 1 | U5: 1 | V5: =IF(K5<L5,$L$3,IF(K5<M5,$M$3,IF(K5<N5,$N$3,IF(K5<O5,$O$3,IF(K5<P5,$P$3,IF(K5<Q5,$Q$3,IF(K5<R5,$R$3,IF(K5<S5,$S$3,IF(K5<T5,$T$3,$U$3)))))))))+RANDBETWEEN(0,9)+RAND() -> 59.78892174 | W5: 2 | X5: =MAX(V5-VLOOKUP(I5,$A$11:$F$22,6,FALSE),0) -> 50.27103038 | AA5: =AA4+1/24 -> 2017-01-01T01:00:00 | AB5: 1 | AD5: =AD4 -> 9 | AE5: 0.7948963171 | AF5: 0.9066679435 | AG5: 1.003684321 | AH5: 1.106919531 | AI5: 0.9294352024 | AJ5: 0.3995086511 | AK5: 0.8474515245 | AL5: 0.9465218115 | AM5: 0.8586140047 | AN5: 1.025667117 | AO5: =IF(AD5=1,AE5,IF(AD5=2,AF5,IF(AD5=3,AG5,IF(AD5=4,AH5,IF(AD5=5,AI5,IF(AD5=6,AJ5,IF(AD5=7,AK5,IF(AD5=8,AL5,IF(AD5=9,AM5,IF(AD5=10,AN5)))))))))) -> 0.8586140047 | AP5: 39.97360533 | AQ5: P6 | AR5: 12 | AS5: =AP5*AR5 -> 479.683264 | BL5: 2014 | BM5: Perfil 2 | BN5: 2 | BO5: 0.7979356405 | BP5: 0.4062407837 | BQ5: 0.6329676537 | BR5: 0.6276150168 | BS5: 1.006524293 | BT5: 1.209297552 | BU5: 1.144255445 | BV5: 1.184614878 | BW5: 1.397729575 | BX5: 1.308104484 | BY5: 1.110762164 | BZ5: 1.126726577
B6: PROMEDIO VALORES OMIE | C6: 46.19095288 | H6: 2017-01-03 | I6: 1 | J6: Sábado | K6: 0.4974343522 | L6: 0.02380952381 | M6: 0.04761904762 | N6: 0.1904761905 | O6: 0.2857142857 | P6: 0.5476190476 | Q6: 0.8095238095 | R6: 0.9523809524 | S6: 1 | T6: 1 | U6: 1 | V6: 40.70129886 | W6: 3 | X6: 31.18340749 | AA6: =AA5+1/24 -> 2017-01-01T02:00:00 | AB6: 1 | AD6: =AD5 -> 9 | AE6: 0.7241757571 | AF6: 0.7462599849 | AG6: 0.6677218545 | AH6: 0.9523180119 | AI6: 0.8099241434 | AJ6: 0.2241127584 | AK6: 0.7461767125 | AL6: 0.9015964935 | AM6: 0.6905835618 | AN6: 0.9066906638 | AO6: 0.6905835618 | AP6: =VLOOKUP(AB6,$W$4:$X$368,2,FALSE)*AO6 -> 32.15078557 | AQ6: P6 | AR6: 12 | AS6: =AP6*AR6 -> 385.8094268 | BL6: 2013 | BM6: Perfil 3 | BN6: 3 | BO6: 1.141059865 | BP6: 1.017659895 | BQ6: 0.5855843221 | BR6: 0.4104157856 | BS6: 0.981681376 | BT6: 0.9233478902 | BU6: 1.155946216 | BV6: 1.086554217 | BW6: 1.134207394 | BX6: 1.16313684 | BY6: 0.9445676743 | BZ6: 1.437820902
B7: Perfil | C7: =ROUNDUP(RAND()*10,0) -> 8 | H7: 2017-01-04 | I7: 1 | J7: Domingo | K7: 0.7172441493 | L7: 0.05 | M7: 0.06666666667 | N7: 0.1666666667 | O7: 0.35 | P7: 0.7 | Q7: 0.8666666667 | R7: 0.9666666667 | S7: 1 | T7: 1 | U7: 1 | V7: 52.53341382 | W7: 4 | X7: 43.01552246 | AA7: 2017-01-01T03:00:00 | AB7: 1 | AD7: 9 | AE7: 0.7451055267 | AF7: 0.6044270081 | AG7: 0.5284980358 | AH7: 0.8286534703 | AI7: 0.7410095954 | AJ7: 0.1408014515 | AK7: 0.694649153 | AL7: 0.8416728495 | AM7: 0.6173057865 | AN7: 0.845247571 | AO7: 0.6173057865 | AP7: =VLOOKUP(AB7,$W$4:$X$368,2,FALSE)*AO7 -> 28.73926787 | AQ7: P6 | AR7: 10 | AS7: =AP7*AR7 -> 287.3926787 | BL7: 2012 | BM7: Perfil 4 | BN7: 4 | BO7: 1.079745685 | BP7: 1.130491274 | BQ7: 1.00960298 | BR7: 0.8776782432 | BS7: 0.9144584977 | BT7: 1.130815249 | BU7: 1.063420347 | BV7: 1.047480115 | BW7: 1.006181244 | BX7: 0.9611638027 | BY7: 0.8911877176 | BZ7: 0.8974314442
H8: 2017-01-05 | I8: 1 | J8: Laborable | K8: 0.4365732444 | L8: 0.005988023952 | M8: 0.0119760479 | N8: 0.06586826347 | O8: 0.1916167665 | P8: 0.4610778443 | Q8: 0.7245508982 | R8: 0.8622754491 | S8: 0.9281437126 | T8: 0.994011976 | U8: 1 | V8: 44.65956265 | W8: 5 | X8: 35.14167129 | AA8: 2017-01-01T04:00:00 | AB8: 1 | AD8: 9 | AE8: 0.7026158542 | AF8: 0.5818914044 | AG8: 0.4462057245 | AH8: 0.7230661154 | AI8: 0.7000709129 | AJ8: 0.1407331143 | AK8: 0.6210408842 | AL8: 0.7562614819 | AM8: 0.5678204695 | AN8: 0.7808996715 | AO8: 0.5678204695 | AP8: =VLOOKUP(AB8,$W$4:$X$368,2,FALSE)*AO8 -> 26.43543108 | AQ8: P6 | AR8: 12 | AS8: 317.225173 | AV8: P1 | AW8: P2 | AX8: P3 | AY8: P4 | AZ8: P5 | BA8: P6 | BL8: 2011 | BM8: Perfil 5 | BN8: 5 | BO8: 0.8250171688 | BP8: 0.9621105251 | BQ8: 0.9353426988 | BR8: 0.9103572218 | BS8: 0.9794734988 | BT8: 1.001444716 | BU8: 1.017833236 | BV8: 1.072263223 | BW8: 1.171143283 | BX8: 1.150889082 | BY8: 0.9690004034 | BZ8: 1.002844172
H9: 2017-01-06 | I9: 1 | J9: Domingo | K9: 0.6246525301 | L9: 0.05 | M9: 0.06666666667 | N9: 0.1666666667 | O9: 0.35 | P9: 0.7 | Q9: 0.8666666667 | R9: 0.9666666667 | S9: 1 | T9: 1 | U9: 1 | V9: 46.20183819 | W9: 6 | X9: 36.68394683 | AA9: 2017-01-01T05:00:00 | AB9: 1 | AD9: 9 | AE9: 0.7247876807 | AF9: 0.5661390675 | AG9: 0.4131007602 | AH9: 0.7334326036 | AI9: 0.648806951 | AJ9: 0.1956845124 | AK9: 0.6800355612 | AL9: 0.7161626134 | AM9: 0.566236117 | AN9: 0.7512895734 | AO9: 0.566236117 | AP9: =VLOOKUP(AB9,$W$4:$X$368,2,FALSE)*AO9 -> 26.36167002 | AQ9: P6 | AR9: 14 | AS9: 369.0633803 | AU9: precio | AV9: =SUMIF($AQ$4:$AQ$8763,AV3,$AS$4:$AS$8763)/AV4 -> 42.52647298 | AW9: 38.54484419 | AX9: 39.63120764 | AY9: 37.35344734 | AZ9: 39.31023691 | BA9: 36.56507888 | BL9: 2010 | BM9: Perfil 6 | BN9: 6 | BO9: 0.7851531768 | BP9: 0.748016809 | BQ9: 0.5301601232 | BR9: 0.7409219356 | BS9: 1.007454915 | BT9: 1.084094502 | BU9: 1.159523705 | BV9: 1.160310354 | BW9: 1.254903191 | BX9: 1.151903794 | BY9: 1.106069408 | BZ9: 1.252266585
C10: Perfil Mensual | D10: Omie simulado | E10: datos históricos | F10: Diferencia | H10: 2017-01-07 | I10: 1 | J10: Laborable | K10: 0.7513042275 | L10: 0.005988023952 | M10: 0.0119760479 | N10: 0.06586826347 | O10: 0.1916167665 | P10: 0.4610778443 | Q10: 0.7245508982 | R10: 0.8622754491 | S10: 0.9281437126 | T10: 0.994011976 | U10: 1 | V10: 66.39214675 | W10: 7 | X10: 56.87425538 | AA10: 2017-01-01T06:00:00 | AB10: 1 | AD10: 9 | AE10: 0.7480023754 | AF10: 0.5901786077 | AG10: 0.4346373457 | AH10: 0.746071901 | AI10: 0.648806951 | AJ10: 0.3590423773 | AK10: 0.8074819673 | AL10: 0.7920116534 | AM10: 0.6399245241 | AN10: 0.7351679384 | AO10: 0.6399245241 | AP10: 29.79230508 | AQ10: P6 | AR10: 14 | AS10: 417.0922711 | BL10: 2009 | BM10: Perfil 7 | BN10: 7 | BO10: 1.350742437 | BP10: 1.101549493 | BQ10: 1.036505541 | BR10: 1.0064637 | BS10: 1.000366999 | BT10: 0.9963021634 | BU10: 0.9366200251 | BV10: 0.9381727982 | BW10: 0.9705533666 | BX10: 0.9680914312 | BY10: 0.876303068 | BZ10: 0.8233974085
A11: 1 | B11: enero | C11: =VLOOKUP($C$7,$BN$4:$BZ$13,A11+1,FALSE) -> 1.089188862 | D11: =C11*$C$5 -> 40.09283041 | E11: 49.61072177 | F11: =E11-D11 -> 9.517891364 | H11: 2017-01-08 | I11: 1 | J11: Laborable | K11: 0.2089140933 | L11: 0.005988023952 | M11: 0.0119760479 | N11: 0.06586826347 | O11: 0.1916167665 | P11: 0.4610778443 | Q11: 0.7245508982 | R11: 0.8622754491 | S11: 0.9281437126 | T11: 0.994011976 | U11: 1 | V11: 42.48252726 | W11: 8 | X11: 32.9646359 | AA11: 2017-01-01T07:00:00 | AB11: 1 | AD11: 9 | AE11: 0.7856301676 | AF11: 0.7031165898 | AG11: 0.534671563 | AH11: 0.8386717531 | AI11: 0.7147842559 | AJ11: 0.7156831096 | AK11: 0.9194997 | AL11: 0.9348024705 | AM11: 0.8974825255 | AN11: 0.5477949234 | AO11: 0.8974825255 | AP11: 41.78316691 | AQ11: P6 | AR11: 14 | AS11: 584.9643367 | BL11: 2008 | BM11: Perfil 8 | BN11: 8 | BO11: 1.089188862 | BP11: 1.065204805 | BQ11: 0.9193377702 | BR11: 0.8728567418 | BS11: 0.8707908767 | BT11: 0.8989068585 | BU11: 1.056960357 | BV11: 1.086065913 | BW11: 1.133467344 | BX11: 1.082113516 | BY11: 1.036312311 | BZ11: 0.8930003006
A12: 2 | B12: febrero | C12: 1.065204805 | D12: =C12*$C$5 -> 39.20998195 | E12: 45.18751786 | F12: =E12-D12 -> 5.977535908 | H12: 2017-01-09 | I12: 1 | J12: Viernes | K12: 0.834292499 | L12: 0 | M12: 0.0243902439 | N12: 0.07317073171 | O12: 0.2195121951 | P12: 0.487804878 | Q12: 0.756097561 | R12: 0.8780487805 | S12: 0.9756097561 | T12: 1 | U12: 1 | V12: 66.94159039 | W12: 9 | X12: =MAX(V12-VLOOKUP(I12,$A$11:$F$22,6,FALSE),0) -> 57.42369902 | AA12: 2017-01-01T08:00:00 | AB12: 1 | AD12: 9 | AE12: 0.8226112934 | AF12: 0.5847104998 | AG12: 0.5112877623 | AH12: 0.7853474822 | AI12: 0.5959135131 | AJ12: 0.8444960147 | AK12: 1.001122138 | AL12: 1.091968783 | AM12: 1.043121693 | AN12: 0.532053494 | AO12: 1.043121693 | AP12: 48.56353921 | AQ12: P6 | AR12: 13 | AS12: 631.3260097 | BL12: 2007 | BM12: Perfil 9 | BN12: 9 | BO12: 1.165516103 | BP12: 0.913812724 | BQ12: 0.7543692274 | BR12: 0.9316887717 | BS12: 0.8419535551 | BT12: 0.9504216813 | BU12: 0.9780977348 | BV12: 0.8908911676 | BW12: 0.9099766133 | BX12: 0.9754144676 | BY12: 1.202174915 | BZ12: 1.476860133
A13: 3 | B13: marzo | C13: 0.9193377702 | D13: 33.84064472 | E13: 38.73162853 | F13: 4.890983813 | H13: 2017-01-10 | I13: 1 | J13: Sábado | K13: 0.4329018702 | L13: 0.02380952381 | M13: 0.04761904762 | N13: 0.1904761905 | O13: 0.2857142857 | P13: 0.5476190476 | Q13: 0.8095238095 | R13: 0.9523809524 | S13: 1 | T13: 1 | U13: 1 | V13: 41.31483723 | W13: 10 | X13: 31.79694587 | AA13: 2017-01-01T09:00:00 | AB13: 1 | AD13: 9 | AE13: 0.9203487152 | AF13: 0.7739160242 | AG13: 0.7724174607 | AH13: 0.8191873198 | AI13: 0.6939251252 | AJ13: 0.9515502535 | AK13: 0.9926403483 | AL13: 1.093066771 | AM13: 1.027989702 | AN13: 0.6265561819 | AO13: 1.027989702 | AP13: 47.85905473 | AQ13: P6 | AR13: 10 | AS13: 478.5905473 | BL13: 2006 | BM13: Perfil 10 | BN13: 10 | BO13: 1.447456414 | BP13: 1.4371683 | BQ13: 0.9948473164 | BR13: 0.996188667 | BS13: 0.970953285 | BT13: 0.9279189152 | BU13: 0.9998534448 | BV13: 0.9057475853 | BW13: 1.038323048 | BX13: 0.8774018336 | BY13: 0.7230203321 | BZ13: 0.7134385827
A14: 4 | B14: abril | C14: 0.8728567418 | D14: 32.12968709 | E14: 38.46795556 | F14: 6.338268463 | H14: 2017-01-11 | I14: 1 | J14: Domingo | K14: 0.63034074 | L14: 0.05 | M14: 0.06666666667 | N14: 0.1666666667 | O14: 0.35 | P14: 0.7 | Q14: 0.8666666667 | R14: 0.9666666667 | S14: 1 | T14: 1 | U14: 1 | V14: 42.39648082 | W14: 11 | X14: 32.87858946 | AA14: 2017-01-01T10:00:00 | AB14: 1 | AD14: 9 | AE14: 1.001766784 | AF14: 1.003156334 | AG14: 1.053168565 | AH14: 0.9765681487 | AI14: 0.7914439907 | AJ14: 0.9412443307 | AK14: 1.023973824 | AL14: 1.099341435 | AM14: 1.156117128 | AN14: 0.7349104493 | AO14: 1.156117128 | AP14: =VLOOKUP(AB14,$W$4:$X$368,2,FALSE)*AO14 -> 53.82415094 | AQ14: P6 | AR14: 8 | AS14: 430.5932076
A15: 5 | B15: mayo | C15: 0.8707908767 | D15: 32.053643 | E15: 43.57195833 | F15: 11.51831533 | H15: 2017-01-12 | I15: 1 | J15: Laborable | K15: 0.1787533766 | L15: 0.005988023952 | M15: 0.0119760479 | N15: 0.06586826347 | O15: 0.1916167665 | P15: 0.4610778443 | Q15: 0.7245508982 | R15: 0.8622754491 | S15: 0.9281437126 | T15: 0.994011976 | U15: 1 | V15: 37.54014515 | W15: 12 | X15: 28.02225378 | AA15: 2017-01-01T11:00:00 | AB15: 1 | AD15: 9 | AE15: 1.065399623 | AF15: 1.115381654 | AG15: 1.092746101 | AH15: 0.9866884266 | AI15: 0.8524864279 | AJ15: 0.9541519294 | AK15: 1.033465502 | AL15: 1.096180036 | AM15: 1.180796899 | AN15: 0.8058739973 | AO15: 1.180796899 | AP15: 54.97314155 | AQ15: P6 | AR15: 8 | AS15: 439.7851324
A16: 6 | B16: junio | C16: 0.8989068585 | D16: 33.08858683 | E16: 46.92089444 | F16: 13.83230762 | H16: 2017-01-13 | I16: 1 | J16: Laborable | K16: 0.7163466469 | L16: 0.005988023952 | M16: 0.0119760479 | N16: 0.06586826347 | O16: 0.1916167665 | P16: 0.4610778443 | Q16: 0.7245508982 | R16: 0.8622754491 | S16: 0.9281437126 | T16: 0.994011976 | U16: 1 | V16: 54.81212839 | W16: 13 | X16: 45.29423703 | AA16: 2017-01-01T12:00:00 | AB16: 1 | AD16: 9 | AE16: 1.009300704 | AF16: 1.285135532 | AG16: 1.148591536 | AH16: 1.050998427 | AI16: 0.8697542003 | AJ16: 1.022944924 | AK16: 1.018458894 | AL16: 1.091505515 | AM16: 1.119513183 | AN16: 0.9209729217 | AO16: 1.119513183 | AP16: 52.12001891 | AQ16: P6 | AR16: 9 | AS16: 469.0801702
A17: 7 | B17: julio | C17: 1.056960357 | D17: 38.90650542 | E17: 49.47118414 | F17: 10.56467872 | H17: 2017-01-14 | I17: 1 | J17: Laborable | K17: 0.2146734476 | L17: 0.005988023952 | M17: 0.0119760479 | N17: 0.06586826347 | O17: 0.1916167665 | P17: 0.4610778443 | Q17: 0.7245508982 | R17: 0.8622754491 | S17: 0.9281437126 | T17: 0.994011976 | U17: 1 | V17: 46.36495344 | W17: 14 | X17: 36.84706208 | AA17: 2017-01-01T13:00:00 | AB17: 1 | AD17: 9 | AE17: 1.053153612 | AF17: 1.053296423 | AG17: 1.095742587 | AH17: 1.030917743 | AI17: 0.8797666117 | AJ17: 0.9455153451 | AK17: 1.001847613 | AL17: 1.060395732 | AM17: 1.089177873 | AN17: 0.9489642072 | AO17: 1.089177873 | AP17: 50.7077292 | AQ17: P6 | AR17: 8 | AS17: 405.6618336
A18: 8 | B18: agosto | C18: 1.086065913 | D18: 39.97787525 | E18: 48.51204301 | F18: 8.534167762 | H18: 2017-01-15 | I18: 1 | J18: Laborable | K18: 0.009419114865 | L18: 0.005988023952 | M18: 0.0119760479 | N18: 0.06586826347 | O18: 0.1916167665 | P18: 0.4610778443 | Q18: 0.7245508982 | R18: 0.8622754491 | S18: 0.9281437126 | T18: 0.994011976 | U18: 1 | V18: 15.77370941 | W18: 15 | X18: 6.25581805 | AA18: 2017-01-01T14:00:00 | AB18: 1 | AD18: 9 | AE18: 1.024587326 | AF18: 0.9698162318 | AG18: 1.034566235 | AH18: 1.012568027 | AI18: 0.9296634407 | AJ18: 0.907625505 | AK18: 0.9629542069 | AL18: 0.9689680305 | AM18: 0.9587515343 | AN18: 0.9682843781 | AO18: 0.9587515343 | AP18: 44.63560486 | AQ18: P6 | AR18: 9 | AS18: 401.7204438
A19: 9 | B19: septiembre | C19: 1.133467344 | D19: 41.72271273 | E19: 51.06882639 | F19: 9.346113657 | H19: 2017-01-16 | I19: 1 | J19: Viernes | K19: 0.6134563881 | L19: 0 | M19: 0.0243902439 | N19: 0.07317073171 | O19: 0.2195121951 | P19: 0.487804878 | Q19: 0.756097561 | R19: 0.8780487805 | S19: 0.9756097561 | T19: 1 | U19: 1 | V19: 51.39655229 | W19: 16 | X19: 41.87866093 | AA19: 2017-01-01T15:00:00 | AB19: 1 | AD19: 9 | AE19: 0.8904426587 | AF19: 0.7062336688 | AG19: 0.9688941569 | AH19: 0.9394474927 | AI19: 0.7960830078 | AJ19: 0.8104731758 | AK19: 0.957104987 | AL19: 0.9352788238 | AM19: 0.9434181415 | AN19: 0.8904541406 | AO19: 0.9434181415 | AP19: 43.92174393 | AQ19: P6 | AR19: 8 | AS19: 351.3739514
A20: 10 | B20: octubre | C20: 1.082113516 | D20: 39.83238831 | E20: 49.02987651 | F20: 9.197488199 | H20: 2017-01-17 | I20: 1 | J20: Sábado | K20: 0.005144140292 | L20: 0.02380952381 | M20: 0.04761904762 | N20: 0.1904761905 | O20: 0.2857142857 | P20: 0.5476190476 | Q20: 0.8095238095 | R20: 0.9523809524 | S20: 1 | T20: 1 | U20: 1 | V20: 5.469004476 | W20: 17 | X20: 0 | AA20: 2017-01-01T16:00:00 | AB20: 1 | AD20: 9 | AE20: 0.894724163 | AF20: 0.5480037506 | AG20: 0.8241872691 | AH20: 0.9040642724 | AI20: 0.8066202352 | AJ20: 0.8167657819 | AK20: 0.9875852982 | AL20: 0.9400818075 | AM20: 0.9286439428 | AN20: 0.8574091301 | AO20: 0.9286439428 | AP20: 43.23391682 | AQ20: P6 | AR20: 9 | AS20: 389.1052514
A21: 11 | B21: noviembre | C21: 1.036312311 | D21: 38.14645484 | E21: 45.43020972 | F21: 7.283754885 | H21: 2017-01-18 | I21: 1 | J21: Domingo | K21: 0.720551566 | L21: 0.05 | M21: 0.06666666667 | N21: 0.1666666667 | O21: 0.35 | P21: 0.7 | Q21: 0.8666666667 | R21: 0.9666666667 | S21: 1 | T21: 1 | U21: 1 | V21: 57.89389699 | W21: 18 | X21: 48.37600563 | AA21: 2017-01-01T17:00:00 | AB21: 1 | AD21: 9 | AE21: 0.9908552715 | AF21: 0.6403270605 | AG21: 0.9786001977 | AH21: 1.01722884 | AI21: 0.9791659619 | AJ21: 0.9505709464 | AK21: 1.062490406 | AL21: 1.033338099 | AM21: 1.091860101 | AN21: 0.8878607496 | AO21: 1.091860101 | AP21: 50.83260291 | AQ21: P6 | AR21: 13 | AS21: 660.8238378
A22: 12 | B22: diciembre | C22: 0.8930003006 | D22: 32.87116758 | E22: 48.47425269 | F22: 15.60308511 | H22: 2017-01-19 | I22: 1 | J22: Laborable | K22: 0.6747309527 | L22: 0.005988023952 | M22: 0.0119760479 | N22: 0.06586826347 | O22: 0.1916167665 | P22: 0.4610778443 | Q22: 0.7245508982 | R22: 0.8622754491 | S22: 0.9281437126 | T22: 0.994011976 | U22: 1 | V22: 59.09768704 | W22: 19 | X22: 49.57979568 | AA22: 2017-01-01T18:00:00 | AB22: 1 | AD22: 9 | AE22: 1.320962092 | AF22: 1.180369489 | AG22: 1.235486933 | AH22: 1.127108518 | AI22: 1.416169705 | AJ22: 1.518162717 | AK22: 1.230738451 | AL22: 1.174645355 | AM22: 1.348200029 | AN22: 1.220271702 | AO22: 1.348200029 | AP22: 62.76675615 | AQ22: P6 | AR22: 14 | AS22: 878.7345861
H23: 2017-01-20 | I23: 1 | J23: Laborable | K23: 0.2918270065 | L23: 0.005988023952 | M23: 0.0119760479 | N23: 0.06586826347 | O23: 0.1916167665 | P23: 0.4610778443 | Q23: 0.7245508982 | R23: 0.8622754491 | S23: 0.9281437126 | T23: 0.994011976 | U23: 1 | V23: 44.86639916 | W23: 20 | X23: 35.3485078 | AA23: 2017-01-01T19:00:00 | AB23: 1 | AD23: 9 | AE23: 1.430798738 | AF23: 1.431397292 | AG23: 1.524807083 | AH23: 1.194226313 | AI23: 1.859385429 | AJ23: 1.743445092 | AK23: 1.45403652 | AL23: 1.207376779 | AM23: 1.410595923 | AN23: 1.426264176 | AO23: 1.410595923 | AP23: 65.67165732 | AQ23: P6 | AR23: 14 | AS23: 919.4032025
H24: 2017-01-21 | I24: 1 | J24: Laborable | K24: 0.7537189893 | L24: 0.005988023952 | M24: 0.0119760479 | N24: 0.06586826347 | O24: 0.1916167665 | P24: 0.4610778443 | Q24: 0.7245508982 | R24: 0.8622754491 | S24: 0.9281437126 | T24: 0.994011976 | U24: 1 | V24: 66.97882395 | W24: 21 | X24: 57.46093258 | AA24: 2017-01-01T20:00:00 | AB24: 1 | AD24: 9 | AE24: 1.447957679 | AF24: 1.802150664 | AG24: 1.633918423 | AH24: 1.257393768 | AI24: 1.705360154 | AJ24: 1.743445092 | AK24: 1.483413856 | AL24: 1.166531864 | AM24: 1.353305847 | AN24: 1.566121549 | AO24: 1.353305847 | AP24: 63.00446245 | AQ24: P6 | AR24: 14 | AS24: 882.0624743
H25: 2017-01-22 | I25: 1 | J25: Laborable | K25: 0.2511512169 | L25: 0.005988023952 | M25: 0.0119760479 | N25: 0.06586826347 | O25: 0.1916167665 | P25: 0.4610778443 | Q25: 0.7245508982 | R25: 0.8622754491 | S25: 0.9281437126 | T25: 0.994011976 | U25: 1 | V25: 48.36499632 | W25: 22 | X25: 38.84710496 | AA25: 2017-01-01T21:00:00 | AB25: 1 | AD25: 9 | AE25: 1.42449969 | AF25: 1.71466061 | AG25: 1.753416346 | AH25: 1.333060533 | AI25: 1.617381569 | AJ25: 1.743445092 | AK25: 1.309134333 | AL25: 1.130664047 | AM25: 1.26829599 | AN25: 1.626408791 | AO25: 1.26829599 | AP25: 59.04674637 | AQ25: P6 | AR25: 14 | AS25: 826.6544491
H26: 2017-01-23 | I26: 1 | J26: Viernes | K26: 0.01496159597 | L26: 0 | M26: 0.0243902439 | N26: 0.07317073171 | O26: 0.2195121951 | P26: 0.487804878 | Q26: 0.756097561 | R26: 0.8780487805 | S26: 0.9756097561 | T26: 1 | U26: 1 | V26: 11.6942419 | W26: 23 | X26: 2.17635054 | AA26: 2017-01-01T22:00:00 | AB26: 1 | AD26: 9 | AE26: 1.354686941 | AF26: 1.60649054 | AG26: 1.661355983 | AH26: 1.259393246 | AI26: 1.38397952 | AJ26: 1.743445092 | AK26: 1.194543909 | AL26: 1.000818675 | AM26: 1.118759931 | AN26: 1.512424128 | AO26: 1.118759931 | AP26: 52.08495051 | AQ26: P6 | AR26: 11 | AS26: 572.9344556
H27: 2017-01-24 | I27: 1 | J27: Sábado | K27: 0.7146780493 | L27: 0.02380952381 | M27: 0.04761904762 | N27: 0.1904761905 | O27: 0.2857142857 | P27: 0.5476190476 | Q27: 0.8095238095 | R27: 0.9523809524 | S27: 1 | T27: 1 | U27: 1 | V27: 50.67238107 | W27: 24 | X27: 41.15448971 | AA27: 2017-01-01T23:00:00 | AB27: 1 | AD27: 9 | AE27: 1.210442931 | AF27: 1.239208044 | AG27: 1.427050049 | AH27: 1.178882079 | AI27: 1.372329472 | AJ27: 1.897579631 | AK27: 1.062204891 | AL27: 0.9857097018 | AM27: 1.090018141 | AN27: 1.568229822 | AO27: 1.090018141 | AP27: 50.74684866 | AQ27: P6 | AR27: 11 | AS27: 558.2153353
H28: 2017-01-25 | I28: 1 | J28: Domingo | K28: 0.0009129812609 | L28: 0.05 | M28: 0.06666666667 | N28: 0.1666666667 | O28: 0.35 | P28: 0.7 | Q28: 0.8666666667 | R28: 0.9666666667 | S28: 1 | T28: 1 | U28: 1 | V28: 0.7650132207 | W28: 25 | X28: 0 | AA28: 2017-01-02 | AB28: 2 | AD28: 9 | AE28: 0.805318348 | AF28: 0.9665165329 | AG28: 0.8035235986 | AH28: 1.022306021 | AI28: 1.192480246 | AJ28: 1.310844932 | AK28: 0.8916608343 | AL28: 0.9012719675 | AM28: 0.8576862969 | AN28: 0.9269735146 | AO28: 0.8576862969 | AP28: 43.11677388 | AQ28: P6 | AR28: 11 | AS28: 474.2845127
H29: 2017-01-26 | I29: 1 | J29: Laborable | K29: 0.4534452439 | L29: 0.005988023952 | M29: 0.0119760479 | N29: 0.06586826347 | O29: 0.1916167665 | P29: 0.4610778443 | Q29: 0.7245508982 | R29: 0.8622754491 | S29: 0.9281437126 | T29: 0.994011976 | U29: 1 | V29: 47.09778884 | W29: 26 | X29: 37.57989748 | AA29: 2017-01-02T01:00:00 | AB29: 2 | AD29: 9 | AE29: 0.7280170893 | AF29: 0.4275970439 | AG29: 0.5450067355 | AH29: 0.7430217823 | AI29: 1.082714262 | AJ29: 0.9088814455 | AK29: 0.8039636666 | AL29: 0.8025557113 | AM29: 0.7014403621 | AN29: 0.7123296383 | AO29: 0.7014403621 | AP29: 35.26212975 | AQ29: P6 | AR29: 11 | AS29: 387.8834273
H30: 2017-01-27 | I30: 1 | J30: Laborable | K30: 0.3231073088 | L30: 0.005988023952 | M30: 0.0119760479 | N30: 0.06586826347 | O30: 0.1916167665 | P30: 0.4610778443 | Q30: 0.7245508982 | R30: 0.8622754491 | S30: 0.9281437126 | T30: 0.994011976 | U30: 1 | V30: 43.45227601 | W30: 27 | X30: 33.93438465 | AA30: 2017-01-02T02:00:00 | AB30: 2 | AD30: 9 | AE30: 0.6718018639 | AF30: 0.2052012413 | AG30: 0.3023569727 | AH30: 0.5248393205 | AI30: 0.9054158817 | AJ30: 0.5723145875 | AK30: 0.7429290494 | AL30: 0.7598500065 | AM30: 0.6245032301 | AN30: 0.6746423569 | AO30: 0.6245032301 | AP30: 31.39442085 | AQ30: P6 | AR30: 11 | AS30: 345.3386293
H31: 2017-01-28 | I31: 1 | J31: Laborable | K31: 0.642931368 | L31: 0.005988023952 | M31: 0.0119760479 | N31: 0.06586826347 | O31: 0.1916167665 | P31: 0.4610778443 | Q31: 0.7245508982 | R31: 0.8622754491 | S31: 0.9281437126 | T31: 0.994011976 | U31: 1 | V31: 57.85889905 | W31: 28 | X31: 48.34100769 | AA31: 2017-01-02T03:00:00 | AB31: 2 | AD31: 9 | AE31: 0.6605791897 | AF31: 0.1803713385 | AG31: 0.2977284046 | AH31: 0.4856329334 | AI31: 0.7583409846 | AJ31: 0.3410356689 | AK31: 0.7088587053 | AL31: 0.6973856306 | AM31: 0.5942021894 | AN31: 0.6143750745 | AO31: 0.5942021894 | AP31: 29.87115631 | AQ31: P6 | AR31: 11 | AS31: 328.5827195
H32: 2017-01-29 | I32: 1 | J32: Laborable | K32: 0.5676809357 | L32: 0.005988023952 | M32: 0.0119760479 | N32: 0.06586826347 | O32: 0.1916167665 | P32: 0.4610778443 | Q32: 0.7245508982 | R32: 0.8622754491 | S32: 0.9281437126 | T32: 0.994011976 | U32: 1 | V32: 53.88247881 | W32: 29 | X32: 44.36458744 | AA32: 2017-01-02T04:00:00 | AB32: 2 | AD32: 9 | AE32: 0.6564442341 | AF32: 0.1805645296 | AG32: 0.2996035592 | AH32: 0.4701842834 | AI32: 0.676073845 | AJ32: 0.2136534548 | AK32: 0.6699496571 | AL32: 0.6409030933 | AM32: 0.5510505474 | AN32: 0.5805980102 | AO32: 0.5510505474 | AP32: 27.70187881 | AQ32: P6 | AR32: 11 | AS32: 304.7206669
H33: 2017-01-30 | I33: 1 | J33: Viernes | K33: 0.191506119 | L33: 0 | M33: 0.0243902439 | N33: 0.07317073171 | O33: 0.2195121951 | P33: 0.487804878 | Q33: 0.756097561 | R33: 0.8780487805 | S33: 0.9756097561 | T33: 1 | U33: 1 | V33: 30.63340005 | W33: 30 | X33: 21.11550869 | AA33: 2017-01-02T05:00:00 | AB33: 2 | AD33: 9 | AE33: 0.6934950781 | AF33: 0.2086673897 | AG33: 0.3287305807 | AH33: 0.5315535878 | AI33: 0.6513601765 | AJ33: 0.1471598898 | AK33: 0.709863441 | AL33: 0.673375532 | AM33: 0.5729579536 | AN33: 0.564524464 | AO33: 0.5729579536 | AP33: 28.80318669 | AQ33: P6 | AR33: 14 | AS33: 403.2446136
H34: 2017-01-31 | I34: 1 | J34: Sábado | K34: 0.5522143821 | L34: 0.02380952381 | M34: 0.04761904762 | N34: 0.1904761905 | O34: 0.2857142857 | P34: 0.5476190476 | Q34: 0.8095238095 | R34: 0.9523809524 | S34: 1 | T34: 1 | U34: 1 | V34: 59.47523842 | W34: 31 | X34: 49.95734706 | AA34: 2017-01-02T06:00:00 | AB34: 2 | AD34: 9 | AE34: 0.835508765 | AF34: 0.3703090249 | AG34: 0.4418429534 | AH34: 0.65058895 | AI34: 0.6957167247 | AJ34: 0.2062258523 | AK34: 0.8248233927 | AL34: 0.8105730835 | AM34: 0.6481848422 | AN34: 0.6256304362 | AO34: 0.6481848422 | AP34: 32.58491989 | AQ34: P6 | AR34: 15 | AS34: 488.7737984
H35: 2017-02-01 | I35: 2 | J35: Domingo | K35: 0.6895257233 | L35: 0.075 | M35: 0.125 | N35: 0.35 | O35: 0.5 | P35: 0.75 | Q35: 0.875 | R35: 0.975 | S35: 1 | T35: 1 | U35: 1 | V35: 47.00149538 | W35: 32 | X35: 41.02395947 | AA35: 2017-01-02T07:00:00 | AB35: 2 | AD35: 9 | AE35: 1.043153567 | AF35: 0.8168405168 | AG35: 1.039663576 | AH35: 1.025664994 | AI35: 0.7874008096 | AJ35: 0.277567293 | AK35: 0.9796322241 | AL35: 0.9750523546 | AM35: 0.8516378486 | AN35: 0.8163673345 | AO35: 0.8516378486 | AP35: 42.81271216 | AQ35: P2 | AR35: 16 | AS35: 685.0033945
H36: 2017-02-02 | I36: 2 | J36: Laborable | K36: 0.08586890042 | L36: 0.01863354037 | M36: 0.06832298137 | N36: 0.149068323 | O36: 0.3229813665 | P36: 0.5838509317 | Q36: 0.7763975155 | R36: 0.8819875776 | S36: 0.9440993789 | T36: 0.9875776398 | U36: 1 | V36: 23.57701785 | W36: 33 | X36: 17.59948195 | AA36: 2017-01-02T08:00:00 | AB36: 2 | AD36: 9 | AE36: 1.099685364 | AF36: 0.9932070702 | AG36: 1.207795596 | AH36: 1.088251972 | AI36: 0.7817440608 | AJ36: 0.3794052383 | AK36: 1.146596126 | AL36: 1.108245519 | AM36: 1.119304118 | AN36: 1.057658604 | AO36: 1.119304118 | AP36: 56.26857131 | AQ36: P2 | AR36: 14 | AS36: 787.7599983
H37: 2017-02-03 | I37: 2 | J37: Laborable | K37: 0.7003034518 | L37: 0.01863354037 | M37: 0.06832298137 | N37: 0.149068323 | O37: 0.3229813665 | P37: 0.5838509317 | Q37: 0.7763975155 | R37: 0.8819875776 | S37: 0.9440993789 | T37: 0.9875776398 | U37: 1 | V37: 54.9398082 | W37: 34 | X37: 48.96227229 | AA37: 2017-01-02T09:00:00 | AB37: 2 | AD37: 9 | AE37: 1.190545165 | AF37: 1.273041169 | AG37: 1.2980173 | AH37: 1.15640053 | AI37: 0.8918254822 | AJ37: 0.6486201256 | AK37: 1.193666354 | AL37: 1.178274122 | AM37: 1.226418495 | AN37: 1.168657865 | AO37: 1.226418495 | AP37: 61.65332141 | AQ37: P1 | AR37: 11 | AS37: 678.1865355
H38: 2017-02-04 | I38: 2 | J38: Laborable | K38: 0.9059213843 | L38: 0.01863354037 | M38: 0.06832298137 | N38: 0.149068323 | O38: 0.3229813665 | P38: 0.5838509317 | Q38: 0.7763975155 | R38: 0.8819875776 | S38: 0.9440993789 | T38: 0.9875776398 | U38: 1 | V38: 79.54202519 | W38: 35 | X38: 73.56448928 | AA38: 2017-01-02T10:00:00 | AB38: 2 | AD38: 9 | AE38: 1.20021215 | AF38: 1.237011268 | AG38: 1.224462435 | AH38: 1.160204403 | AI38: 1.002161529 | AJ38: 0.9518581214 | AK38: 1.155243847 | AL38: 1.224947708 | AM38: 1.302582517 | AN38: 1.270372171 | AO38: 1.302582517 | AP38: 65.48216529 | AQ38: P1 | AR38: 9 | AS38: 589.3394876
H39: 2017-02-05 | I39: 2 | J39: Laborable | K39: 0.931989356 | L39: 0.01863354037 | M39: 0.06832298137 | N39: 0.149068323 | O39: 0.3229813665 | P39: 0.5838509317 | Q39: 0.7763975155 | R39: 0.8819875776 | S39: 0.9440993789 | T39: 0.9875776398 | U39: 1 | V39: 76.51658205 | W39: 36 | X39: 70.53904614 | AA39: 2017-01-02T11:00:00 | AB39: 2 | AD39: 9 | AE39: 1.19141683 | AF39: 1.010825591 | AG39: 1.160059871 | AH39: 1.117094033 | AI39: 1.021515342 | AJ39: 0.9883004264 | AK39: 1.108114046 | AL39: 1.215450144 | AM39: 1.315908704 | AN39: 1.30140757 | AO39: 1.315908704 | AP39: 66.15208645 | AQ39: P1 | AR39: 10 | AS39: 661.5208645
H40: 2017-02-06 | I40: 2 | J40: Viernes | K40: 0.6436404895 | L40: 0.07317073171 | M40: 0.09756097561 | N40: 0.1951219512 | O40: 0.3414634146 | P40: 0.5853658537 | Q40: 0.7804878049 | R40: 0.9024390244 | S40: 0.9512195122 | T40: 1 | U40: 1 | V40: 56.03871594 | W40: 37 | X40: 50.06118003 | AA40: 2017-01-02T12:00:00 | AB40: 2 | AD40: 9 | AE40: 1.130623177 | AF40: 1.177771083 | AG40: 1.212436866 | AH40: 1.186648492 | AI40: 1.057917829 | AJ40: 0.9781827928 | AK40: 1.073709694 | AL40: 1.175934682 | AM40: 1.239984312 | AN40: 1.23863483 | AO40: 1.239984312 | AP40: 62.335289 | AQ40: P2 | AR40: 9 | AS40: 561.017601
H41: 2017-02-07 | I41: 2 | J41: Sábado | K41: 0.5210108584 | L41: 0.075 | M41: 0.15 | N41: 0.225 | O41: 0.425 | P41: 0.6 | Q41: 0.8 | R41: 0.975 | S41: 1 | T41: 1 | U41: 1 | V41: 46.22235957 | W41: 38 | X41: 40.24482367 | AA41: 2017-01-02T13:00:00 | AB41: 2 | AD41: 9 | AE41: 1.090918166 | AF41: 0.9775741429 | AG41: 1.174495446 | AH41: 1.09899791 | AI41: 0.9944544604 | AJ41: 0.9949744667 | AK41: 1.03402882 | AL41: 1.12387636 | AM41: 1.147860486 | AN41: 1.153146853 | AO41: 1.147860486 | AP41: 57.70412935 | AQ41: P2 | AR41: 9 | AS41: 519.3371642
H42: 2017-02-08 | I42: 2 | J42: Domingo | K42: 0.7706478638 | L42: 0.075 | M42: 0.125 | N42: 0.35 | O42: 0.5 | P42: 0.75 | Q42: 0.875 | R42: 0.975 | S42: 1 | T42: 1 | U42: 1 | V42: 57.24177087 | W42: 39 | X42: 51.26423497 | AA42: 2017-01-02T14:00:00 | AB42: 2 | AD42: 9 | AE42: 1.013623061 | AF42: 0.7832216768 | AG42: 1.112435293 | AH42: 1.071475106 | AI42: 0.9906137207 | AJ42: 1.046113995 | AK42: 0.9440903095 | AL42: 1.006139852 | AM42: 1.026730678 | AN42: 0.9974043463 | AO42: 1.026730678 | AP42: 51.61480909 | AQ42: P2 | AR42: 8 | AS42: 412.9184727
H43: 2017-02-09 | I43: 2 | J43: Laborable | K43: 0.4226353977 | L43: 0.01863354037 | M43: 0.06832298137 | N43: 0.149068323 | O43: 0.3229813665 | P43: 0.5838509317 | Q43: 0.7763975155 | R43: 0.8819875776 | S43: 0.9440993789 | T43: 0.9875776398 | U43: 1 | V43: 40.7525426 | W43: 40 | X43: 34.7750067 | AA43: 2017-01-02T15:00:00 | AB43: 2 | AD43: 9 | AE43: 1.00216526 | AF43: 0.6899065291 | AG43: 1.035483752 | AH43: 1.041724241 | AI43: 0.9334759985 | AJ43: 0.8944640596 | AK43: 0.9426632468 | AL43: 0.9691922709 | AM43: 1.031686507 | AN43: 1.007747346 | AO43: 1.031686507 | AP43: 51.86394374 | AQ43: P2 | AR43: 8 | AS43: 414.9115499
H44: 2017-02-10 | I44: 2 | J44: Laborable | K44: 0.666009011 | L44: 0.01863354037 | M44: 0.06832298137 | N44: 0.149068323 | O44: 0.3229813665 | P44: 0.5838509317 | Q44: 0.7763975155 | R44: 0.8819875776 | S44: 0.9440993789 | T44: 0.9875776398 | U44: 1 | V44: 52.07858125 | W44: 41 | X44: 46.10104534 | AA44: 2017-01-02T16:00:00 | AB44: 2 | AD44: 9 | AE44: 1.051094591 | AF44: 0.6381725309 | AG44: 1.080306817 | AH44: 1.063586172 | AI44: 0.9198162641 | AJ44: 0.8394392921 | AK44: 0.9653660576 | AL44: 0.9772361004 | AM44: 1.018940485 | AN44: 1.013995984 | AO44: 1.018940485 | AP44: 51.22318805 | AQ44: P2 | AR44: 8 | AS44: 409.7855044
H45: 2017-02-11 | I45: 2 | J45: Laborable | K45: 0.6883854775 | L45: 0.01863354037 | M45: 0.06832298137 | N45: 0.149068323 | O45: 0.3229813665 | P45: 0.5838509317 | Q45: 0.7763975155 | R45: 0.8819875776 | S45: 0.9440993789 | T45: 0.9875776398 | U45: 1 | V45: 53.41425478 | W45: 42 | X45: 47.43671887 | AA45: 2017-01-02T17:00:00 | AB45: 2 | AD45: 9 | AE45: 1.114579067 | AF45: 1.007007136 | AG45: 1.224094782 | AH45: 1.179218303 | AI45: 0.9768949139 | AJ45: 1.100297453 | AK45: 1.025662525 | AL45: 1.026483856 | AM45: 1.067894528 | AN45: 1.102087253 | AO45: 1.067894528 | AP45: 53.68415826 | AQ45: P1 | AR45: 13 | AS45: 697.8940573
H46: 2017-02-12 | I46: 2 | J46: Laborable | K46: 0.8449683291 | L46: 0.01863354037 | M46: 0.06832298137 | N46: 0.149068323 | O46: 0.3229813665 | P46: 0.5838509317 | Q46: 0.7763975155 | R46: 0.8819875776 | S46: 0.9440993789 | T46: 0.9875776398 | U46: 1 | V46: 64.42507945 | W46: 43 | X46: 58.44754355 | AA46: 2017-01-02T18:00:00 | AB46: 2 | AD46: 9 | AE46: 1.188572415 | AF46: 1.657222352 | AG46: 1.417969796 | AH46: 1.27104153 | AI46: 1.07907264 | AJ46: 1.721408749 | AK46: 1.211654483 | AL46: 1.239382368 | AM46: 1.309655655 | AN46: 1.311517523 | AO46: 1.309655655 | AP46: 65.83773921 | AQ46: P1 | AR46: 13 | AS46: 855.8906097
H47: 2017-02-13 | I47: 2 | J47: Viernes | K47: 0.8505291124 | L47: 0.07317073171 | M47: 0.09756097561 | N47: 0.1951219512 | O47: 0.3414634146 | P47: 0.5853658537 | Q47: 0.7804878049 | R47: 0.9024390244 | S47: 0.9512195122 | T47: 1 | U47: 1 | V47: 62.99409421 | W47: 44 | X47: 57.0165583 | AA47: 2017-01-02T19:00:00 | AB47: 2 | AD47: 9 | AE47: 1.232356783 | AF47: 2.009585438 | AG47: 1.508879327 | AH47: 1.287508834 | AI47: 1.131704719 | AJ47: 1.743445092 | AK47: 1.371864373 | AL47: 1.27395272 | AM47: 1.427703569 | AN47: 1.340214092 | AO47: 1.427703569 | AP47: 71.77212947 | AQ47: P1 | AR47: 14 | AS47: 1004.809813
H48: 2017-02-14 | I48: 2 | J48: Sábado | K48: 0.1922187026 | L48: 0.075 | M48: 0.15 | N48: 0.225 | O48: 0.425 | P48: 0.6 | Q48: 0.8 | R48: 0.975 | S48: 1 | T48: 1 | U48: 1 | V48: 23.49618295 | W48: 45 | X48: 17.51864704 | AA48: 2017-01-02T20:00:00 | AB48: 2 | AD48: 9 | AE48: 1.206397996 | AF48: 1.71466061 | AG48: 1.454991537 | AH48: 1.259576043 | AI48: 1.226697496 | AJ48: 1.743445092 | AK48: 1.272120412 | AL48: 1.203953694 | AM48: 1.256020162 | AN48: 1.279553032 | AO48: 1.256020162 | AP48: 63.14142772 | AQ48: P2 | AR48: 13 | AS48: 820.8385604
H49: 2017-02-15 | I49: 2 | J49: Domingo | K49: 0.6136318432 | L49: 0.075 | M49: 0.125 | N49: 0.35 | O49: 0.5 | P49: 0.75 | Q49: 0.875 | R49: 0.975 | S49: 1 | T49: 1 | U49: 1 | V49: 49.03318489 | W49: 46 | X49: 43.05564898 | AA49: 2017-01-02T21:00:00 | AB49: 2 | AD49: 9 | AE49: 1.148589438 | AF49: 1.71466061 | AG49: 1.45560354 | AH49: 1.271961547 | AI49: 1.614605394 | AJ49: 1.743445092 | AK49: 1.166722319 | AL49: 1.144949191 | AM49: 1.14605202 | AN49: 1.191793608 | AO49: 1.14605202 | AP49: 57.61321592 | AQ49: P2 | AR49: 13 | AS49: 748.971807
H50: 2017-02-16 | I50: 2 | J50: Laborable | K50: 0.6761061394 | L50: 0.01863354037 | M50: 0.06832298137 | N50: 0.149068323 | O50: 0.3229813665 | P50: 0.5838509317 | Q50: 0.7763975155 | R50: 0.8819875776 | S50: 0.9440993789 | T50: 0.9875776398 | U50: 1 | V50: 59.09798117 | W50: 47 | X50: 53.12044526 | AA50: 2017-01-02T22:00:00 | AB50: 2 | AD50: 9 | AE50: 1.062811957 | AF50: 1.943796967 | AG50: 1.307258957 | AH50: 1.189996801 | AI50: 1.436485338 | AJ50: 1.611894866 | AK50: 1.075317125 | AL50: 0.971118858 | AM50: 0.9802179 | AN50: 1.037644672 | AO50: 0.9802179 | AP50: 49.27656382 | AQ50: P2 | AR50: 11 | AS50: 542.0422021
H51: 2017-02-17 | I51: 2 | J51: Laborable | K51: 0.4287354718 | L51: 0.01863354037 | M51: 0.06832298137 | N51: 0.149068323 | O51: 0.3229813665 | P51: 0.5838509317 | Q51: 0.7763975155 | R51: 0.8819875776 | S51: 0.9440993789 | T51: 0.9875776398 | U51: 1 | V51: 43.29491051 | W51: 48 | X51: 37.3173746 | AA51: 2017-01-02T23:00:00 | AB51: 2 | AD51: 9 | AE51: 0.9820904442 | AF51: 1.306333454 | AG51: 1.067252305 | AH51: 1.102522208 | AI51: 1.19151188 | AJ51: 1.474335785 | AK51: 0.9814992948 | AL51: 0.8998951755 | AM51: 0.9813765946 | AN51: 1.012723422 | AO51: 0.9813765946 | AP51: 49.3348126 | AQ51: P6 | AR51: 11 | AS51: 542.6829386
H52: 2017-02-18 | I52: 2 | J52: Laborable | K52: 0.6735989319 | L52: 0.01863354037 | M52: 0.06832298137 | N52: 0.149068323 | O52: 0.3229813665 | P52: 0.5838509317 | Q52: 0.7763975155 | R52: 0.8819875776 | S52: 0.9440993789 | T52: 0.9875776398 | U52: 1 | V52: 56.31904267 | W52: 49 | X52: 50.34150676 | AA52: 2017-01-03 | AB52: 3 | AD52: 9 | AE52: 0.9012374717 | AF52: 0.6106594642 | AG52: 1.053876873 | AH52: 0.9345776736 | AI52: 0.9693817565 | AJ52: 1.395013152 | AK52: 1.041903752 | AL52: 0.8492125663 | AM52: 0.8621260222 | AN52: 0.8950162495 | AO52: 0.8621260222 | AP52: 26.88402706 | AQ52: P6 | AR52: 10 | AS52: 268.8402706
H53: 2017-02-19 | I53: 2 | J53: Laborable | K53: 0.7182245307 | L53: 0.01863354037 | M53: 0.06832298137 | N53: 0.149068323 | O53: 0.3229813665 | P53: 0.5838509317 | Q53: 0.7763975155 | R53: 0.8819875776 | S53: 0.9440993789 | T53: 0.9875776398 | U53: 1 | V53: 53.82667434 | W53: 50 | X53: 47.84913843 | AA53: 2017-01-03T01:00:00 | AB53: 3 | AD53: 9 | AE53: 0.7916175025 | AF53: 0.322417613 | AG53: 0.878327836 | AH53: 0.8013404509 | AI53: 0.7765945411 | AJ53: 1.113211589 | AK53: 0.9554913247 | AL53: 0.7998350648 | AM53: 0.7012613754 | AN53: 0.7278050746 | AO53: 0.7012613754 | AP53: 21.86771923 | AQ53: P6 | AR53: 12 | AS53: 262.4126307
H54: 2017-02-20 | I54: 2 | J54: Viernes | K54: 0.0284133505 | L54: 0.07317073171 | M54: 0.09756097561 | N54: 0.1951219512 | O54: 0.3414634146 | P54: 0.5853658537 | Q54: 0.7804878049 | R54: 0.9024390244 | S54: 0.9512195122 | T54: 1 | U54: 1 | V54: 5.662819411 | W54: 51 | X54: 0 | AA54: 2017-01-03T02:00:00 | AB54: 3 | AD54: 9 | AE54: 0.752899128 | AF54: 0.2087779628 | AG54: 0.6951464574 | AH54: 0.6352149567 | AI54: 0.4105346329 | AJ54: 0.8172759281 | AK54: 0.8734293475 | AL54: 0.7306623646 | AM54: 0.6362411351 | AN54: 0.7082216969 | AO54: 0.6362411351 | AP54: 19.84016658 | AQ54: P6 | AR54: 11 | AS54: 218.2418324
H55: 2017-02-21 | I55: 2 | J55: Sábado | K55: 0.1581241954 | L55: 0.075 | M55: 0.15 | N55: 0.225 | O55: 0.425 | P55: 0.6 | Q55: 0.8 | R55: 0.975 | S55: 1 | T55: 1 | U55: 1 | V55: 26.72696767 | W55: 52 | X55: 20.74943176 | AA55: 2017-01-03T03:00:00 | AB55: 3 | AD55: 9 | AE55: 0.7246271425 | AF55: 0.17424201 | AG55: 0.5341341757 | AH55: 0.58397105 | AI55: 0.4016491357 | AJ55: 0.4122375726 | AK55: 0.8186365621 | AL55: 0.6646371805 | AM55: 0.607676672 | AN55: 0.6487042904 | AO55: 0.607676672 | AP55: 18.94942929 | AQ55: P6 | AR55: 11 | AS55: 208.4437222
H56: 2017-02-22 | I56: 2 | J56: Domingo | K56: 0.05361503504 | L56: 0.075 | M56: 0.125 | N56: 0.35 | O56: 0.5 | P56: 0.75 | Q56: 0.875 | R56: 0.975 | S56: 1 | T56: 1 | U56: 1 | V56: 2.334618956 | W56: 53 | X56: 0 | AA56: 2017-01-03T04:00:00 | AB56: 3 | AD56: 9 | AE56: 0.701735743 | AF56: 0.1703964882 | AG56: 0.5231373636 | AH56: 0.5814173994 | AI56: 0.3949462426 | AJ56: 0.2909674968 | AK56: 0.7764601665 | AL56: 0.6334965403 | AM56: 0.5630922094 | AN56: 0.6171811402 | AO56: 0.5630922094 | AP56: 17.55913382 | AQ56: P6 | AR56: 11 | AS56: 193.150472
H57: 2017-02-23 | I57: 2 | J57: Laborable | K57: 0.5017475141 | L57: 0.01863354037 | M57: 0.06832298137 | N57: 0.149068323 | O57: 0.3229813665 | P57: 0.5838509317 | Q57: 0.7763975155 | R57: 0.8819875776 | S57: 0.9440993789 | T57: 0.9875776398 | U57: 1 | V57: 42.00835092 | W57: 54 | X57: 36.03081502 | AA57: 2017-01-03T05:00:00 | AB57: 3 | AD57: 9 | AE57: 0.7168063097 | AF57: 0.2157851335 | AG57: 0.5356127732 | AH57: 0.6613481835 | AI57: 0.4607559422 | AJ57: 0.2633183659 | AK57: 0.7750165994 | AL57: 0.6624961529 | AM57: 0.569180663 | AN57: 0.6114210118 | AO57: 0.569180663 | AP57: 17.74899255 | AQ57: P6 | AR57: 10 | AS57: 177.4899255
H58: 2017-02-24 | I58: 2 | J58: Laborable | K58: 0.2293273933 | L58: 0.01863354037 | M58: 0.06832298137 | N58: 0.149068323 | O58: 0.3229813665 | P58: 0.5838509317 | Q58: 0.7763975155 | R58: 0.8819875776 | S58: 0.9440993789 | T58: 0.9875776398 | U58: 1 | V58: 30.24366353 | W58: 55 | X58: 24.26612762 | AA58: 2017-01-03T06:00:00 | AB58: 3 | AD58: 9 | AE58: 0.8040043443 | AF58: 0.3609629477 | AG58: 0.6483160078 | AH58: 0.8036348023 | AI58: 0.7698660578 | AJ58: 0.266631586 | AK58: 0.7916653625 | AL58: 0.7870839563 | AM58: 0.6693556967 | AN58: 0.6886815888 | AO58: 0.6693556967 | AP58: 20.87279145 | AQ58: P6 | AR58: 11 | AS58: 229.6007059
H59: 2017-02-25 | I59: 2 | J59: Laborable | K59: 0.398338584 | L59: 0.01863354037 | M59: 0.06832298137 | N59: 0.149068323 | O59: 0.3229813665 | P59: 0.5838509317 | Q59: 0.7763975155 | R59: 0.8819875776 | S59: 0.9440993789 | T59: 0.9875776398 | U59: 1 | V59: 41.38952868 | W59: 56 | X59: 35.41199277 | AA59: 2017-01-03T07:00:00 | AB59: 3 | AD59: 9 | AE59: 1.032492509 | AF59: 0.9942414385 | AG59: 1.001341323 | AH59: 1.028041641 | AI59: 1.078142708 | AJ59: 0.4196668036 | AK59: 0.8467175903 | AL59: 0.9756484688 | AM59: 0.89958088 | AN59: 0.8221330743 | AO59: 0.89958088 | AP59: 28.05199715 | AQ59: P2 | AR59: 12 | AS59: 336.6239658
H60: 2017-02-26 | I60: 2 | J60: Laborable | K60: 0.02696483436 | L60: 0.01863354037 | M60: 0.06832298137 | N60: 0.149068323 | O60: 0.3229813665 | P60: 0.5838509317 | Q60: 0.7763975155 | R60: 0.8819875776 | S60: 0.9440993789 | T60: 0.9875776398 | U60: 1 | V60: 13.78696201 | W60: 57 | X60: 7.809426103 | AA60: 2017-01-03T08:00:00 | AB60: 3 | AD60: 9 | AE60: 1.08210493 | AF60: 1.317473162 | AG60: 1.044058835 | AH60: 1.070507397 | AI60: 1.121500619 | AJ60: 0.3931514027 | AK60: 0.8681816227 | AL60: 1.091694443 | AM60: 1.089280692 | AN60: 1.047973529 | AO60: 1.089280692 | AP60: 33.9674837 | AQ60: P2 | AR60: 9 | AS60: 305.7073533
H61: 2017-02-27 | I61: 2 | J61: Viernes | K61: 0.6724211073 | L61: 0.07317073171 | M61: 0.09756097561 | N61: 0.1951219512 | O61: 0.3414634146 | P61: 0.5853658537 | Q61: 0.7804878049 | R61: 0.9024390244 | S61: 0.9512195122 | T61: 1 | U61: 1 | V61: 59.9539776 | W61: 58 | X61: 53.97644169 | AA61: 2017-01-03T09:00:00 | AB61: 3 | AD61: 9 | AE61: 1.14990881 | AF61: 1.650971355 | AG61: 1.086425157 | AH61: 1.092296503 | AI61: 1.120037701 | AJ61: 0.6094376745 | AK61: 0.9801775528 | AL61: 1.129894706 | AM61: 1.155280665 | AN61: 1.14610314 | AO61: 1.155280665 | AP61: 36.02558776 | AQ61: P1 | AR61: 9 | AS61: 324.2302898
H62: 2017-02-28 | I62: 2 | J62: Sábado | K62: 0.6807298045 | L62: 0.075 | M62: 0.15 | N62: 0.225 | O62: 0.425 | P62: 0.6 | Q62: 0.8 | R62: 0.975 | S62: 1 | T62: 1 | U62: 1 | V62: 56.61256234 | W62: 59 | X62: 50.63502643 | AA62: 2017-01-03T10:00:00 | AB62: 3 | AD62: 9 | AE62: 1.215696875 | AF62: 1.39603509 | AG62: 1.072835959 | AH62: 1.085193129 | AI62: 1.10599654 | AJ62: 1.019346927 | AK62: 1.100865542 | AL62: 1.194882814 | AM62: 1.276327749 | AN62: 1.217188975 | AO62: 1.276327749 | AP62: 39.80024828 | AQ62: P1 | AR62: 8 | AS62: 318.4019863
H63: 2017-03-01 | I63: 3 | J63: Domingo | K63: 0.6718356543 | L63: 0.1276595745 | M63: 0.2127659574 | N63: 0.3829787234 | O63: 0.6595744681 | P63: 0.829787234 | Q63: 1 | R63: 1 | S63: 1 | T63: 1 | U63: 1 | V63: 43.93532124 | W63: 60 | X63: 39.04433743 | AA63: 2017-01-03T11:00:00 | AB63: 3 | AD63: 9 | AE63: 1.184616895 | AF63: 1.179131015 | AG63: 1.013437955 | AH63: 1.059978324 | AI63: 1.103627004 | AJ63: 1.08390901 | AK63: 1.100276022 | AL63: 1.177473881 | AM63: 1.298122752 | AN63: 1.23896542 | AO63: 1.298122752 | AP63: 40.47989074 | AQ63: P1 | AR63: 9 | AS63: 364.3190167
H64: 2017-03-02 | I64: 3 | J64: Laborable | K64: 0.04480911497 | L64: 0.05113636364 | M64: 0.125 | N64: 0.2443181818 | O64: 0.4318181818 | P64: 0.7386363636 | Q64: 0.9602272727 | R64: 1 | S64: 1 | T64: 1 | U64: 1 | V64: 5.068810886 | W64: 61 | X64: 0.1778270725 | AA64: 2017-01-03T12:00:00 | AB64: 3 | AD64: 9 | AE64: 1.120199665 | AF64: 1.235129866 | AG64: 1.103967827 | AH64: 1.094245914 | AI64: 1.204433721 | AJ64: 1.207269226 | AK64: 1.039871483 | AL64: 1.156267431 | AM64: 1.220283773 | AN64: 1.220851243 | AO64: 1.220283773 | AP64: 38.05260615 | AQ64: P2 | AR64: 7 | AS64: 266.368243
H65: 2017-03-03 | I65: 3 | J65: Laborable | K65: 0.02763384527 | L65: 0.05113636364 | M65: 0.125 | N65: 0.2443181818 | O65: 0.4318181818 | P65: 0.7386363636 | Q65: 0.9602272727 | R65: 1 | S65: 1 | T65: 1 | U65: 1 | V65: 2.9553242 | W65: 62 | X65: 0 | AA65: 2017-01-03T13:00:00 | AB65: 3 | AD65: 9 | AE65: 1.079207864 | AF65: 1.157958921 | AG65: 1.039105883 | AH65: 1.069410781 | AI65: 1.146247907 | AJ65: 1.108125856 | AK65: 1.00908871 | AL65: 1.088948156 | AM65: 1.151481111 | AN65: 1.149923349 | AO65: 1.151481111 | AP65: 35.9071047 | AQ65: P2 | AR65: 8 | AS65: 287.2568376
H66: 2017-03-04 | I66: 3 | J66: Laborable | K66: 0.58285804 | L66: 0.05113636364 | M66: 0.125 | N66: 0.2443181818 | O66: 0.4318181818 | P66: 0.7386363636 | Q66: 0.9602272727 | R66: 1 | S66: 1 | T66: 1 | U66: 1 | V66: 42.7263737 | W66: 63 | X66: 37.83538989 | AA66: 2017-01-03T14:00:00 | AB66: 3 | AD66: 9 | AE66: 0.9996463242 | AF66: 1.027591764 | AG66: 0.9845206695 | AH66: 1.065627764 | AI66: 1.100888321 | AJ66: 1.095610363 | AK66: 0.9736857314 | AL66: 0.9696682373 | AM66: 1.030453849 | AN66: 1.025558471 | AO66: 1.030453849 | AP66: 32.13306228 | AQ66: P2 | AR66: 8 | AS66: 257.0644982
H67: 2017-03-05 | I67: 3 | J67: Laborable | K67: 0.467518744 | L67: 0.05113636364 | M67: 0.125 | N67: 0.2443181818 | O67: 0.4318181818 | P67: 0.7386363636 | Q67: 0.9602272727 | R67: 1 | S67: 1 | T67: 1 | U67: 1 | V67: 48.28963797 | W67: 64 | X67: 43.39865416 | AA67: 2017-01-03T15:00:00 | AB67: 3 | AD67: 9 | AE67: 0.9730461278 | AF67: 0.8793533414 | AG67: 0.9048930879 | AH67: 1.051770456 | AI67: 1.076029352 | AJ67: 1.054771944 | AK67: 0.9136322247 | AL67: 0.9587893176 | AM67: 1.031641448 | AN67: 1.029623823 | AO67: 1.031641448 | AP67: 32.17009565 | AQ67: P2 | AR67: 8 | AS67: 257.3607652
H68: 2017-03-06 | I68: 3 | J68: Viernes | K68: 0.518124364 | L68: 0 | M68: 0.07142857143 | N68: 0.2142857143 | O68: 0.4047619048 | P68: 0.8333333333 | Q68: 0.9285714286 | R68: 1 | S68: 1 | T68: 1 | U68: 1 | V68: 41.89248835 | W68: 65 | X68: 37.00150454 | AA68: 2017-01-03T16:00:00 | AB68: 3 | AD68: 9 | AE68: 1.020505127 | AF68: 0.8223052393 | AG68: 0.9090099633 | AH68: 1.048448918 | AI68: 1.077127269 | AJ68: 0.962672787 | AK68: 0.897488501 | AL68: 0.9682036906 | AM68: 1.028807843 | AN68: 1.01889212 | AO68: 1.028807843 | AP68: =VLOOKUP(AB68,$W$4:$X$368,2,FALSE)*AO68 -> 32.0817342 | AQ68: P2 | AR68: 7 | AS68: 224.5721394
H69: 2017-03-07 | I69: 3 | J69: Sábado | K69: =RAND() -> 0.6959672807 | L69: 0.06666666667 | M69: 0.1777777778 | N69: 0.3111111111 | O69: 0.4666666667 | P69: 0.8 | Q69: 0.9555555556 | R69: 1 | S69: 1 | T69: 1 | U69: 1 | V69: =IF(K69<L69,$L$3,IF(K69<M69,$M$3,IF(K69<N69,$N$3,IF(K69<O69,$O$3,IF(K69<P69,$P$3,IF(K69<Q69,$Q$3,IF(K69<R69,$R$3,IF(K69<S69,$S$3,IF(K69<T69,$T$3,$U$3)))))))))+RANDBETWEEN(0,9)+RAND() -> 49.09588559 | W69: 66 | X69: =MAX(V69-VLOOKUP(I69,$A$11:$F$22,6,FALSE),0) -> 44.20490178 | AA69: 2017-01-03T17:00:00 | AB69: 3 | AD69: 9 | AE69: 1.079866618 | AF69: 1.161723379 | AG69: 1.048639567 | AH69: 1.10808263 | AI69: 1.165936085 | AJ69: 1.029826173 | AK69: 0.9267349095 | AL69: 1.078467321 | AM69: 1.096860638 | AN69: 1.126449234 | AO69: =IF(AD69=1,AE69,IF(AD69=2,AF69,IF(AD69=3,AG69,IF(AD69=4,AH69,IF(AD69=5,AI69,IF(AD69=6,AJ69,IF(AD69=7,AK69,IF(AD69=8,AL69,IF(AD69=9,AM69,IF(AD69=10,AN69)))))))))) -> 1.096860638 | AP69: 34.20385223 | AQ69: P1 | AR69: 10 | AS69: 342.0385223
H70: 2017-03-08 | I70: 3 | J70: Domingo | K70: 0.03969009083 | L70: 0.1276595745 | M70: 0.2127659574 | N70: 0.3829787234 | O70: 0.6595744681 | P70: 0.829787234 | Q70: 1 | R70: 1 | S70: 1 | T70: 1 | U70: 1 | V70: 2.990668396 | W70: 67 | X70: 0 | AA70: =AA69+1/24 -> 2017-01-03T18:00:00 | AB70: 3 | AD70: =AD69 -> 9 | AE70: 1.152126185 | AF70: 1.430985772 | AG70: 1.261908892 | AH70: 1.200889463 | AI70: 1.258535205 | AJ70: 1.312952022 | AK70: 1.14919379 | AL70: 1.281040252 | AM70: 1.278929101 | AN70: 1.311666317 | AO70: 1.278929101 | AP70: 39.8813673 | AQ70: P1 | AR70: 9 | AS70: 358.9323057
H71: 2017-03-09 | I71: 3 | J71: Laborable | K71: 0.9704283012 | L71: 0.05113636364 | M71: 0.125 | N71: 0.2443181818 | O71: 0.4318181818 | P71: 0.7386363636 | Q71: 0.9602272727 | R71: 1 | S71: 1 | T71: 1 | U71: 1 | V71: 60.52325149 | W71: 68 | X71: 55.63226768 | AA71: 2017-01-03T19:00:00 | AB71: 3 | AD71: 9 | AE71: 1.192871129 | AF71: 1.98509818 | AG71: 1.422813535 | AH71: 1.24394164 | AI71: 1.358248261 | AJ71: 1.559051222 | AK71: 1.289764722 | AL71: 1.312911776 | AM71: 1.398920793 | AN71: 1.322690611 | AO71: 1.398920793 | AP71: 43.62311713 | AQ71: P1 | AR71: 11 | AS71: =AP71*AR71 -> 479.8542884
H72: 2017-03-10 | I72: 3 | J72: Laborable | K72: 0.3494781875 | L72: 0.05113636364 | M72: 0.125 | N72: 0.2443181818 | O72: 0.4318181818 | P72: 0.7386363636 | Q72: 0.9602272727 | R72: 1 | S72: 1 | T72: 1 | U72: 1 | V72: 34.10691473 | W72: 69 | X72: 29.21593092 | AA72: 2017-01-03T20:00:00 | AB72: 3 | AD72: 9 | AE72: 1.175942017 | AF72: 1.851082729 | AG72: 1.400141983 | AH72: 1.24640061 | AI72: 1.271337735 | AJ72: 1.840216639 | AK72: 1.303283764 | AL72: 1.277627247 | AM72: 1.281545978 | AN72: 1.237868477 | AO72: 1.281545978 | AP72: 39.96297044 | AQ72: P2 | AR72: 9 | AS72: 359.666734
H73: 2017-03-11 | I73: 3 | J73: Laborable | K73: 0.9663908209 | L73: 0.05113636364 | M73: 0.125 | N73: 0.2443181818 | O73: 0.4318181818 | P73: 0.7386363636 | Q73: 0.9602272727 | R73: 1 | S73: 1 | T73: 1 | U73: 1 | V73: 66.64874323 | W73: 70 | X73: 61.75775942 | AA73: 2017-01-03T21:00:00 | AB73: 3 | AD73: 9 | AE73: 1.11994512 | AF73: 1.8491225 | AG73: 1.431759458 | AH73: 1.282602743 | AI73: 1.373761643 | AJ73: 1.743445092 | AK73: 1.240251992 | AL73: 1.2028964 | AM73: 1.16725642 | AN73: 1.157831833 | AO73: 1.16725642 | AP73: 36.39903261 | AQ73: P2 | AR73: 11 | AS73: 400.3893587
H74: 2017-03-12 | I74: 3 | J74: Laborable | K74: 0.06840483936 | L74: 0.05113636364 | M74: 0.125 | N74: 0.2443181818 | O74: 0.4318181818 | P74: 0.7386363636 | Q74: 0.9602272727 | R74: 1 | S74: 1 | T74: 1 | U74: 1 | V74: 10.2125249 | W74: 71 | X74: 5.321541086 | AA74: 2017-01-03T22:00:00 | AB74: 3 | AD74: 9 | AE74: 1.066195503 | AF74: 1.455219117 | AG74: 1.336515344 | AH74: 1.166964716 | AI74: 1.188371467 | AJ74: 1.731153113 | AK74: 1.197818633 | AL74: 1.022774598 | AM74: 1.000833204 | AN74: 1.016099655 | AO74: 1.000833204 | AP74: 31.20938963 | AQ74: P2 | AR74: 9 | AS74: 280.8845067
H75: 2017-03-13 | I75: 3 | J75: Viernes | K75: 0.1581368683 | L75: 0 | M75: 0.07142857143 | N75: 0.2142857143 | O75: 0.4047619048 | P75: 0.8333333333 | Q75: 0.9285714286 | R75: 1 | S75: 1 | T75: 1 | U75: 1 | V75: 21.86682219 | W75: 72 | X75: 16.97583838 | AA75: 2017-01-03T23:00:00 | AB75: 3 | AD75: 9 | AE75: 0.9627006588 | AF75: 0.8951901589 | AG75: 1.070073076 | AH75: 1.084092854 | AI75: 1.066050153 | AJ75: 1.398167208 | AK75: 1.130364096 | AL75: 0.9853874337 | AM75: 0.9854593311 | AN75: 1.013149676 | AO75: 0.9854593311 | AP75: 30.72997989 | AQ75: P6 | AR75: 11 | AS75: 338.0297788
H76: 2017-03-14 | I76: 3 | J76: Sábado | K76: 0.2328445961 | L76: 0.06666666667 | M76: 0.1777777778 | N76: 0.3111111111 | O76: 0.4666666667 | P76: 0.8 | Q76: 0.9555555556 | R76: 1 | S76: 1 | T76: 1 | U76: 1 | V76: 24.44434299 | W76: 73 | X76: 19.55335917 | AA76: 2017-01-04 | AB76: 4 | AD76: 9 | AE76: 0.8743309903 | AF76: 1.254388884 | AG76: 0.9627250696 | AH76: 0.9915036431 | AI76: 0.8898690667 | AJ76: 1.075884538 | AK76: 1.050082072 | AL76: 0.8121666803 | AM76: 1.041842773 | AN76: 0.890029643 | AO76: 1.041842773 | AP76: 44.81541118 | AQ76: P6 | AR76: 10 | AS76: 448.1541118
H77: 2017-03-15 | I77: 3 | J77: Domingo | K77: 0.9133147913 | L77: 0.1276595745 | M77: 0.2127659574 | N77: 0.3829787234 | O77: 0.6595744681 | P77: 0.829787234 | Q77: 1 | R77: 1 | S77: 1 | T77: 1 | U77: 1 | V77: 57.21915824 | W77: 74 | X77: 52.32817442 | AA77: 2017-01-04T01:00:00 | AB77: 4 | AD77: 9 | AE77: 0.7717740063 | AF77: 0.7870592853 | AG77: 0.7242076584 | AH77: 0.89471122 | AI77: 0.7131543684 | AJ77: 0.750403028 | AK77: 0.982575633 | AL77: 0.7547651709 | AM77: 0.798056477 | AN77: 0.7443718465 | AO77: 0.798056477 | AP77: 34.32881631 | AQ77: P6 | AR77: 11 | AS77: 377.6169794
H78: 2017-03-16 | I78: 3 | J78: Laborable | K78: 0.7185159238 | L78: 0.05113636364 | M78: 0.125 | N78: 0.2443181818 | O78: 0.4318181818 | P78: 0.7386363636 | Q78: 0.9602272727 | R78: 1 | S78: 1 | T78: 1 | U78: 1 | V78: 45.63089605 | W78: 75 | X78: 40.73991223 | AA78: 2017-01-04T02:00:00 | AB78: 4 | AD78: 9 | AE78: 0.7573105911 | AF78: 0.5059830071 | AG78: 0.523810179 | AH78: 0.657547119 | AI78: 0.5492006253 | AJ78: 0.1596725764 | AK78: 0.8795478747 | AL78: 0.6667020909 | AM78: 0.6904201365 | AN78: 0.692782353 | AO78: 0.6904201365 | AP78: 29.69878289 | AQ78: P6 | AR78: 9 | AS78: 267.289046
H79: 2017-03-17 | I79: 3 | J79: Laborable | K79: 0.8834303919 | L79: 0.05113636364 | M79: 0.125 | N79: 0.2443181818 | O79: 0.4318181818 | P79: 0.7386363636 | Q79: 0.9602272727 | R79: 1 | S79: 1 | T79: 1 | U79: 1 | V79: 56.3782136 | W79: 76 | X79: 51.48722979 | AA79: 2017-01-04T03:00:00 | AB79: 4 | AD79: 9 | AE79: 0.7516276511 | AF79: 0.4988322678 | AG79: 0.4495897766 | AH79: 0.6219024389 | AI79: 0.5205963185 | AJ79: 0.1466453232 | AK79: 0.8178783365 | AL79: 0.5991250605 | AM79: 0.6379739339 | AN79: 0.6510331488 | AO79: 0.6379739339 | AP79: 27.44278208 | AQ79: P6 | AR79: 11 | AS79: 301.8706029
H80: 2017-03-18 | I80: 3 | J80: Laborable | K80: 0.7466850508 | L80: 0.05113636364 | M80: 0.125 | N80: 0.2443181818 | O80: 0.4318181818 | P80: 0.7386363636 | Q80: 0.9602272727 | R80: 1 | S80: 1 | T80: 1 | U80: 1 | V80: 59.06448247 | W80: 77 | X80: 54.17349866 | AA80: 2017-01-04T04:00:00 | AB80: 4 | AD80: 9 | AE80: 0.7344571195 | AF80: 0.3265102048 | AG80: 0.4204838307 | AH80: 0.6116049413 | AI80: 0.4772384312 | AJ80: 0.1153229392 | AK80: 0.7326356011 | AL80: 0.5463099176 | AM80: 0.6017659054 | AN80: 0.611967751 | AO80: 0.6017659054 | AP80: 25.88527482 | AQ80: P6 | AR80: 10 | AS80: 258.8527482
H81: 2017-03-19 | I81: 3 | J81: Laborable | K81: 0.3356945878 | L81: 0.05113636364 | M81: 0.125 | N81: 0.2443181818 | O81: 0.4318181818 | P81: 0.7386363636 | Q81: 0.9602272727 | R81: 1 | S81: 1 | T81: 1 | U81: 1 | V81: 31.14194695 | W81: 78 | X81: 26.25096313 | AA81: 2017-01-04T05:00:00 | AB81: 4 | AD81: 9 | AE81: 0.7690333663 | AF81: 0.3929155602 | AG81: 0.4739143289 | AH81: 0.6633097847 | AI81: 0.4892087794 | AJ81: 0.1466453232 | AK81: 0.7205618256 | AL81: 0.6362962046 | AM81: 0.6025916945 | AN81: 0.6019971676 | AO81: 0.6025916945 | AP81: 25.92079657 | AQ81: P6 | AR81: 10 | AS81: 259.2079657
H82: 2017-03-20 | I82: 3 | J82: Viernes | K82: 0.5143679713 | L82: 0 | M82: 0.07142857143 | N82: 0.2142857143 | O82: 0.4047619048 | P82: 0.8333333333 | Q82: 0.9285714286 | R82: 1 | S82: 1 | T82: 1 | U82: 1 | V82: 44.28569997 | W82: 79 | X82: 39.39471615 | AA82: 2017-01-04T06:00:00 | AB82: 4 | AD82: 9 | AE82: 0.8964166905 | AF82: 0.5250998527 | AG82: 0.5796353016 | AH82: 0.8322805056 | AI82: 0.5880588748 | AJ82: 0.4239410274 | AK82: 0.7279795199 | AL82: 0.7667062476 | AM82: 0.700922617 | AN82: 0.6649825914 | AO82: 0.700922617 | AP82: 30.15055257 | AQ82: P6 | AR82: 9 | AS82: 271.3549732
H83: 2017-03-21 | I83: 3 | J83: Sábado | K83: 0.7967028382 | L83: 0.06666666667 | M83: 0.1777777778 | N83: 0.3111111111 | O83: 0.4666666667 | P83: 0.8 | Q83: 0.9555555556 | R83: 1 | S83: 1 | T83: 1 | U83: 1 | V83: 40.56620789 | W83: 80 | X83: 35.67522408 | AA83: 2017-01-04T07:00:00 | AB83: 4 | AD83: 9 | AE83: 1.091449896 | AF83: 0.8810416462 | AG83: 0.9968720511 | AH83: 1.029576532 | AI83: 0.9010725276 | AJ83: 1.163310964 | AK83: 0.8039367358 | AL83: 0.8745473851 | AM83: 0.8899701483 | AN83: 0.8088832255 | AO83: 0.8899701483 | AP83: 38.2825309 | AQ83: P2 | AR83: 11 | AS83: 421.1078399
H84: 2017-03-22 | I84: 3 | J84: Domingo | K84: 0.3582362303 | L84: 0.1276595745 | M84: 0.2127659574 | N84: 0.3829787234 | O84: 0.6595744681 | P84: 0.829787234 | Q84: 1 | R84: 1 | S84: 1 | T84: 1 | U84: 1 | V84: 21.938245 | W84: 81 | X84: 17.04726119 | AA84: 2017-01-04T08:00:00 | AB84: 4 | AD84: 9 | AE84: 1.152681689 | AF84: 0.9825758874 | AG84: 1.041964919 | AH84: 1.079253798 | AI84: 0.9152727085 | AJ84: 1.216557482 | AK84: 0.8220773126 | AL84: 1.140093224 | AM84: 1.067235965 | AN84: 1.071376056 | AO84: 1.067235965 | AP84: 45.90771262 | AQ84: P2 | AR84: 9 | AS84: 413.1694136
H85: 2017-03-23 | I85: 3 | J85: Laborable | K85: 0.6654307739 | L85: 0.05113636364 | M85: 0.125 | N85: 0.2443181818 | O85: 0.4318181818 | P85: 0.7386363636 | Q85: 0.9602272727 | R85: 1 | S85: 1 | T85: 1 | U85: 1 | V85: 47.05612309 | W85: 82 | X85: 42.16513928 | AA85: 2017-01-04T09:00:00 | AB85: 4 | AD85: 9 | AE85: 1.253805838 | AF85: 1.087041297 | AG85: 1.173909911 | AH85: 1.100519733 | AI85: 1.166652227 | AJ85: 1.289990394 | AK85: 0.8666185496 | AL85: 1.16387886 | AM85: 1.191738121 | AN85: 1.167193908 | AO85: 1.191738121 | AP85: 51.26323793 | AQ85: P1 | AR85: 8 | AS85: 410.1059034
H86: 2017-03-24 | I86: 3 | J86: Laborable | K86: 0.09253016085 | L86: 0.05113636364 | M86: 0.125 | N86: 0.2443181818 | O86: 0.4318181818 | P86: 0.7386363636 | Q86: 0.9602272727 | R86: 1 | S86: 1 | T86: 1 | U86: 1 | V86: 14.88440117 | W86: 83 | X86: 9.993417357 | AA86: 2017-01-04T10:00:00 | AB86: 4 | AD86: 9 | AE86: 1.300537666 | AF86: 1.144585946 | AG86: 1.160076274 | AH86: 1.087718684 | AI86: 1.147729887 | AJ86: 1.280341254 | AK86: 0.9267055337 | AL86: 1.209201589 | AM86: 1.276688985 | AN86: 1.261233267 | AO86: 1.276688985 | AP86: 54.91744371 | AQ86: P1 | AR86: 8 | AS86: 439.3395497
H87: 2017-03-25 | I87: 3 | J87: Laborable | K87: 0.8719174063 | L87: 0.05113636364 | M87: 0.125 | N87: 0.2443181818 | O87: 0.4318181818 | P87: 0.7386363636 | Q87: 0.9602272727 | R87: 1 | S87: 1 | T87: 1 | U87: 1 | V87: 54.82850125 | W87: 84 | X87: 49.93751743 | AA87: 2017-01-04T11:00:00 | AB87: 4 | AD87: 9 | AE87: 1.241514961 | AF87: 1.176979111 | AG87: 1.116764845 | AH87: 1.075478066 | AI87: 1.146681888 | AJ87: 1.240534565 | AK87: 0.9669852372 | AL87: 1.196650401 | AM87: 1.289856956 | AN87: 1.284265408 | AO87: 1.289856956 | AP87: 55.48387088 | AQ87: P1 | AR87: 8 | AS87: 443.870967
H88: 2017-03-26 | I88: 3 | J88: Laborable | K88: 0.4109942882 | L88: 0.05113636364 | M88: 0.125 | N88: 0.2443181818 | O88: 0.4318181818 | P88: 0.7386363636 | Q88: 0.9602272727 | R88: 1 | S88: 1 | T88: 1 | U88: 1 | V88: 31.28092469 | W88: 85 | X88: 26.38994088 | AA88: 2017-01-04T12:00:00 | AB88: 4 | AD88: 9 | AE88: 1.135495158 | AF88: 1.236141204 | AG88: 1.222474089 | AH88: 1.095013869 | AI88: 1.195174414 | AJ88: 1.359436913 | AK88: 0.9685173671 | AL88: 1.182806004 | AM88: 1.220593572 | AN88: 1.230648022 | AO88: 1.220593572 | AP88: 52.50447023 | AQ88: P2 | AR88: 7 | AS88: 367.5312916
H89: 2017-03-27 | I89: 3 | J89: Viernes | K89: 0.6335798985 | L89: 0 | M89: 0.07142857143 | N89: 0.2142857143 | O89: 0.4047619048 | P89: 0.8333333333 | Q89: 0.9285714286 | R89: 1 | S89: 1 | T89: 1 | U89: 1 | V89: 42.78425579 | W89: 86 | X89: 37.89327198 | AA89: 2017-01-04T13:00:00 | AB89: 4 | AD89: 9 | AE89: 1.073676055 | AF89: 1.160313475 | AG89: 1.174913762 | AH89: 1.068093667 | AI89: 1.087946126 | AJ89: 1.212573512 | AK89: 0.9806650741 | AL89: 1.123501302 | AM89: 1.105377944 | AN89: 1.135895401 | AO89: 1.105377944 | AP89: 47.54840979 | AQ89: P2 | AR89: 7 | AS89: 332.8388685
H90: 2017-03-28 | I90: 3 | J90: Sábado | K90: 0.9301671829 | L90: 0.06666666667 | M90: 0.1777777778 | N90: 0.3111111111 | O90: 0.4666666667 | P90: 0.8 | Q90: 0.9555555556 | R90: 1 | S90: 1 | T90: 1 | U90: 1 | V90: 55.60151461 | W90: 87 | X90: 50.71053079 | AA90: 2017-01-04T14:00:00 | AB90: 4 | AD90: 9 | AE90: 0.9884525707 | AF90: 0.9854321442 | AG90: 1.090867488 | AH90: 1.064894078 | AI90: 1.066556575 | AJ90: 1.131071325 | AK90: 0.9760943915 | AL90: 0.9969510511 | AM90: 0.9845641505 | AN90: 0.9884074202 | AO90: 0.9845641505 | AP90: 42.35154133 | AQ90: P2 | AR90: 7 | AS90: 296.4607893
H91: 2017-03-29 | I91: 3 | J91: Domingo | K91: 0.1598257321 | L91: 0.1276595745 | M91: 0.2127659574 | N91: 0.3829787234 | O91: 0.6595744681 | P91: 0.829787234 | Q91: 1 | R91: 1 | S91: 1 | T91: 1 | U91: 1 | V91: 12.98908435 | W91: 88 | X91: 8.098100539 | AA91: 2017-01-04T15:00:00 | AB91: 4 | AD91: 9 | AE91: 0.9747947964 | AF91: 0.8721279601 | AG91: 1.005400218 | AH91: 1.036161471 | AI91: 1.030672237 | AJ91: 1.065725723 | AK91: 0.9361368823 | AL91: 0.9882962321 | AM91: 0.9781674664 | AN91: 1.014248038 | AO91: 0.9781674664 | AP91: 42.07638462 | AQ91: P2 | AR91: 9 | AS91: 378.6874616
H92: 2017-03-30 | I92: 3 | J92: Laborable | K92: 0.2288434024 | L92: 0.05113636364 | M92: 0.125 | N92: 0.2443181818 | O92: 0.4318181818 | P92: 0.7386363636 | Q92: 0.9602272727 | R92: 1 | S92: 1 | T92: 1 | U92: 1 | V92: 25.57398944 | W92: 89 | X92: 20.68300563 | AA92: 2017-01-04T16:00:00 | AB92: 4 | AD92: 9 | AE92: 0.9990103889 | AF92: 0.8642863054 | AG92: 0.997692575 | AH92: 1.04674154 | AI92: 1.061954508 | AJ92: 1.068059019 | AK92: 0.9310951744 | AL92: 1.005790049 | AM92: 0.9659761381 | AN92: 1.021938362 | AO92: 0.9659761381 | AP92: 41.55196826 | AQ92: P2 | AR92: 7 | AS92: 290.8637778
H93: 2017-03-31 | I93: 3 | J93: Laborable | K93: 0.7360847697 | L93: 0.05113636364 | M93: 0.125 | N93: 0.2443181818 | O93: 0.4318181818 | P93: 0.7386363636 | Q93: 0.9602272727 | R93: 1 | S93: 1 | T93: 1 | U93: 1 | V93: 42.42523515 | W93: 90 | X93: 37.53425134 | AA93: 2017-01-04T17:00:00 | AB93: 4 | AD93: 9 | AE93: 1.07410594 | AF93: 0.9172583063 | AG93: 1.097639135 | AH93: 1.100840141 | AI93: 1.167253672 | AJ93: 1.180890328 | AK93: 0.9914422381 | AL93: 1.121086601 | AM93: 1.025798385 | AN93: 1.082251666 | AO93: 1.025798385 | AP93: 44.12525346 | AQ93: P1 | AR93: 9 | AS93: 397.1272811
H94: 2017-04-01 | I94: 4 | J94: Laborable | K94: 0.1950519083 | L94: 0.03468208092 | M94: 0.05202312139 | N94: 0.1387283237 | O94: 0.5144508671 | P94: 0.774566474 | Q94: 0.9768786127 | R94: 1 | S94: 1 | T94: 1 | U94: 1 | V94: 32.02115488 | W94: 91 | X94: 25.68288641 | AA94: 2017-01-04T18:00:00 | AB94: 4 | AD94: 9 | AE94: 1.136668795 | AF94: 1.205396061 | AG94: 1.313627036 | AH94: 1.14257839 | AI94: 1.264504464 | AJ94: 1.518447159 | AK94: 1.232575731 | AL94: 1.229498388 | AM94: 1.225620051 | AN94: 1.319319168 | AO94: 1.225620051 | AP94: 52.72068682 | AQ94: P1 | AR94: 10 | AS94: 527.2068682
H95: 2017-04-02 | I95: 4 | J95: Laborable | K95: 0.8029638101 | L95: 0.03468208092 | M95: 0.05202312139 | N95: 0.1387283237 | O95: 0.5144508671 | P95: 0.774566474 | Q95: 0.9768786127 | R95: 1 | S95: 1 | T95: 1 | U95: 1 | V95: 53.33715173 | W95: 92 | X95: 46.99888327 | AA95: 2017-01-04T19:00:00 | AB95: 4 | AD95: 9 | AE95: 1.158407104 | AF95: 1.353137432 | AG95: 1.461458092 | AH95: 1.186680562 | AI95: 1.414325536 | AJ95: 1.743445092 | AK95: 1.348322977 | AL95: 1.2662241 | AM95: 1.354544625 | AN95: 1.347085705 | AO95: 1.354544625 | AP95: 58.26644472 | AQ95: P1 | AR95: 10 | AS95: 582.6644472
H96: 2017-04-03 | I96: 4 | J96: Viernes | K96: 0.02634423013 | L96: 0.08823529412 | M96: 0.1470588235 | N96: 0.2058823529 | O96: 0.5 | P96: 0.7352941176 | Q96: 0.9705882353 | R96: 1 | S96: 1 | T96: 1 | U96: 1 | V96: 8.945544941 | W96: 93 | X96: 2.607276477 | AA96: 2017-01-04T20:00:00 | AB96: 4 | AD96: 9 | AE96: 1.114093099 | AF96: 1.759808855 | AG96: 1.419920325 | AH96: 1.190871959 | AI96: 1.345327573 | AJ96: 1.553497058 | AK96: 1.41558643 | AL96: 1.238350522 | AM96: 1.22998858 | AN96: 1.252809781 | AO96: 1.22998858 | AP96: 52.90860138 | AQ96: P2 | AR96: 9 | AS96: 476.1774124
H97: 2017-04-04 | I97: 4 | J97: Sábado | K97: 0.3931014771 | L97: 0.119047619 | M97: 0.1904761905 | N97: 0.2619047619 | O97: 0.5238095238 | P97: 0.8095238095 | Q97: 1 | R97: 1 | S97: 1 | T97: 1 | U97: 1 | V97: 35.57169427 | W97: 94 | X97: 29.23342581 | AA97: 2017-01-04T21:00:00 | AB97: 4 | AD97: 9 | AE97: 1.005431796 | AF97: 1.797141226 | AG97: 1.414075726 | AH97: 1.209403194 | AI97: 1.587022624 | AJ97: 1.588605389 | AK97: 1.426719797 | AL97: 1.19770803 | AM97: 1.115486704 | AN97: 1.166620642 | AO97: 1.115486704 | AP97: 47.98324338 | AQ97: P2 | AR97: 10 | AS97: 479.8324338
H98: 2017-04-05 | I98: 4 | J98: Domingo | K98: 0.9227429432 | L98: 0.09803921569 | M98: 0.1960784314 | N98: 0.2941176471 | O98: 0.6666666667 | P98: 0.9019607843 | Q98: 1 | R98: 1 | S98: 1 | T98: 1 | U98: 1 | V98: 50.45337947 | W98: 95 | X98: 44.11511101 | AA98: 2017-01-04T22:00:00 | AB98: 4 | AD98: 9 | AE98: 0.923561503 | AF98: 1.608598374 | AG98: 1.25712582 | AH98: 1.141942911 | AI98: 1.209577744 | AJ98: 1.256194093 | AK98: 1.347789028 | AL98: 1.151109423 | AM98: 0.9880288065 | AN98: 0.9982355721 | AO98: 0.9880288065 | AP98: 42.50057531 | AQ98: P2 | AR98: 10 | AS98: 425.0057531
H99: 2017-04-06 | I99: 4 | J99: Laborable | K99: 0.01779505614 | L99: 0.03468208092 | M99: 0.05202312139 | N99: 0.1387283237 | O99: 0.5144508671 | P99: 0.774566474 | Q99: 0.9768786127 | R99: 1 | S99: 1 | T99: 1 | U99: 1 | V99: 6.766341985 | W99: 96 | X99: 0.4280735211 | AA99: 2017-01-04T23:00:00 | AB99: 4 | AD99: 9 | AE99: 0.8213623311 | AF99: 1.029200356 | AG99: 0.9208515879 | AH99: 1.071371752 | AI99: 1.064948825 | AJ99: 0.9639208853 | AK99: 1.147470678 | AL99: 1.132235467 | AM99: 1.016789865 | AN99: 0.9924238574 | AO99: 1.016789865 | AP99: 43.73774726 | AQ99: P6 | AR99: 11 | AS99: 481.1152198
H100: 2017-04-07 | I100: 4 | J100: Laborable | K100: 0.8586582089 | L100: 0.03468208092 | M100: 0.05202312139 | N100: 0.1387283237 | O100: 0.5144508671 | P100: 0.774566474 | Q100: 0.9768786127 | R100: 1 | S100: 1 | T100: 1 | U100: 1 | V100: 58.92962765 | W100: 97 | X100: 52.59135919 | AA100: 2017-01-05 | AB100: 5 | AD100: 9 | AE100: 0.9273642558 | AF100: 0.7191162702 | AG100: 0.8224344939 | AH100: 1.065945678 | AI100: 0.9918389788 | AJ100: 1.204622122 | AK100: 0.8983020485 | AL100: 1.09627351 | AM100: 0.8672682807 | AN100: 0.8897402146 | AO100: 0.8672682807 | AP100: 30.47725684 | AQ100: P6 | AR100: 9 | AS100: 274.2953116
H101: 2017-04-08 | I101: 4 | J101: Laborable | K101: 0.4742377802 | L101: 0.03468208092 | M101: 0.05202312139 | N101: 0.1387283237 | O101: 0.5144508671 | P101: 0.774566474 | Q101: 0.9768786127 | R101: 1 | S101: 1 | T101: 1 | U101: 1 | V101: 37.64073596 | W101: 98 | X101: 31.30246749 | AA101: 2017-01-05T01:00:00 | AB101: 5 | AD101: 9 | AE101: 0.8789707433 | AF101: 0.5013359177 | AG101: 0.6507391851 | AH101: 0.8819144167 | AI101: 0.8193713414 | AJ101: 0.8315073568 | AK101: 0.7790521146 | AL101: 1.056303299 | AM101: 0.7523260387 | AN101: 0.7194186415 | AO101: 0.7523260387 | AP101: 26.43799436 | AQ101: P6 | AR101: 11 | AS101: 290.8179379
H102: 2017-04-09 | I102: 4 | J102: Laborable | K102: 0.414117668 | L102: 0.03468208092 | M102: 0.05202312139 | N102: 0.1387283237 | O102: 0.5144508671 | P102: 0.774566474 | Q102: 0.9768786127 | R102: 1 | S102: 1 | T102: 1 | U102: 1 | V102: 32.73524997 | W102: 99 | X102: 26.3969815 | AA102: 2017-01-05T02:00:00 | AB102: 5 | AD102: 9 | AE102: 0.8514554689 | AF102: 0.316829242 | AG102: 0.4228160325 | AH102: 0.79062782 | AI102: 0.5266027495 | AJ102: 0.2918583218 | AK102: 0.68260607 | AL102: 0.9267140445 | AM102: 0.6792120794 | AN102: 0.6836408258 | AO102: 0.6792120794 | AP102: 23.86864763 | AQ102: P6 | AR102: 10 | AS102: 238.6864763
H103: 2017-04-10 | I103: 4 | J103: Viernes | K103: 0.5561270197 | L103: 0.08823529412 | M103: 0.1470588235 | N103: 0.2058823529 | O103: 0.5 | P103: 0.7352941176 | Q103: 0.9705882353 | R103: 1 | S103: 1 | T103: 1 | U103: 1 | V103: 42.53183316 | W103: 100 | X103: 36.19356469 | AA103: 2017-01-05T03:00:00 | AB103: 5 | AD103: 9 | AE103: 0.7949900025 | AF103: 0.304098908 | AG103: 0.3807411366 | AH103: 0.7562135581 | AI103: 0.4965898595 | AJ103: 0.09982468758 | AK103: 0.6367489366 | AL103: 0.8355220892 | AM103: 0.6318743688 | AN103: 0.6401583405 | AO103: 0.6318743688 | AP103: 22.20512136 | AQ103: P6 | AR103: 10 | AS103: 222.0512136
H104: 2017-04-11 | I104: 4 | J104: Sábado | K104: 0.4091346979 | L104: 0.119047619 | M104: 0.1904761905 | N104: 0.2619047619 | O104: 0.5238095238 | P104: 0.8095238095 | Q104: 1 | R104: 1 | S104: 1 | T104: 1 | U104: 1 | V104: 30.67064501 | W104: 101 | X104: 24.33237655 | AA104: 2017-01-05T04:00:00 | AB104: 5 | AD104: 9 | AE104: 0.7695038114 | AF104: 0.278940382 | AG104: 0.3728981463 | AH104: 0.7229178495 | AI104: 0.4623822652 | AJ104: 0.05199730524 | AK104: 0.6192447646 | AL104: 0.7940527366 | AM104: 0.5990960644 | AN104: 0.6060362827 | AO104: 0.5990960644 | AP104: 21.05323697 | AQ104: P6 | AR104: 11 | AS104: 231.5856066
H105: 2017-04-12 | I105: 4 | J105: Domingo | K105: 0.5885730742 | L105: 0.09803921569 | M105: 0.1960784314 | N105: 0.2941176471 | O105: 0.6666666667 | P105: 0.9019607843 | Q105: 1 | R105: 1 | S105: 1 | T105: 1 | U105: 1 | V105: 34.33676013 | W105: 102 | X105: 27.99849167 | AA105: 2017-01-05T05:00:00 | AB105: 5 | AD105: 9 | AE105: 0.7719489029 | AF105: 0.3826870647 | AG105: 0.4311907811 | AH105: 0.7661950889 | AI105: 0.5194183559 | AJ105: 0.1154345517 | AK105: 0.6468670455 | AL105: 0.7792297557 | AM105: 0.610884597 | AN105: 0.6148713291 | AO105: 0.610884597 | AP105: 21.4675057 | AQ105: P6 | AR105: 37 | AS105: 794.297711
H106: 2017-04-13 | I106: 4 | J106: Laborable | K106: 0.06611120909 | L106: 0.03468208092 | M106: 0.05202312139 | N106: 0.1387283237 | O106: 0.5144508671 | P106: 0.774566474 | Q106: 0.9768786127 | R106: 1 | S106: 1 | T106: 1 | U106: 1 | V106: 23.88528091 | W106: 103 | X106: 17.54701244 | AA106: 2017-01-05T06:00:00 | AB106: 5 | AD106: 9 | AE106: 0.8507750062 | AF106: 0.5222098659 | AG106: 0.6030845257 | AH106: 0.8282259593 | AI106: 0.5761739948 | AJ106: 0.2676992932 | AK106: 0.8314651305 | AL106: 0.7741296596 | AM106: 0.6961221165 | AN106: 0.6752337187 | AO106: 0.6961221165 | AP106: 24.4628946 | AQ106: P6 | AR106: 34 | AS106: 831.7384162
H107: 2017-04-14 | I107: 4 | J107: Domingo | K107: 0.3243447327 | L107: 0.09803921569 | M107: 0.1960784314 | N107: 0.2941176471 | O107: 0.6666666667 | P107: 0.9019607843 | Q107: 1 | R107: 1 | S107: 1 | T107: 1 | U107: 1 | V107: 34.5658095 | W107: 104 | X107: 28.22754104 | AA107: 2017-01-05T07:00:00 | AB107: 5 | AD107: 9 | AE107: 0.9664626956 | AF107: 1.053588472 | AG107: 0.9714813563 | AH107: 1.050178273 | AI107: 0.946806824 | AJ107: 1.001250652 | AK107: 0.9745066181 | AL107: 0.8038179482 | AM107: 0.8791033269 | AN107: 0.8355585241 | AO107: 0.8791033269 | AP107: 30.89316014 | AQ107: P2 | AR107: 21 | AS107: 648.756363
H108: 2017-04-15 | I108: 4 | J108: Laborable | K108: 0.6389982454 | L108: 0.03468208092 | M108: 0.05202312139 | N108: 0.1387283237 | O108: 0.5144508671 | P108: 0.774566474 | Q108: 0.9768786127 | R108: 1 | S108: 1 | T108: 1 | U108: 1 | V108: 40.90383562 | W108: 105 | X108: 34.56556715 | AA108: 2017-01-05T08:00:00 | AB108: 5 | AD108: 9 | AE108: 1.062592396 | AF108: 1.145426229 | AG108: 1.030984215 | AH108: 1.064342963 | AI108: 0.9042127521 | AJ108: 1.104469791 | AK108: 1.102002507 | AL108: 0.8431384243 | AM108: 1.07835323 | AN108: 1.121338799 | AO108: 1.07835323 | AP108: 37.89513475 | AQ108: P2 | AR108: 12 | AS108: 454.7416169
H109: 2017-04-16 | I109: 4 | J109: Laborable | K109: 0.7737210711 | L109: 0.03468208092 | M109: 0.05202312139 | N109: 0.1387283237 | O109: 0.5144508671 | P109: 0.774566474 | Q109: 0.9768786127 | R109: 1 | S109: 1 | T109: 1 | U109: 1 | V109: 44.671761 | W109: 106 | X109: 38.33349254 | AA109: 2017-01-05T09:00:00 | AB109: 5 | AD109: 9 | AE109: 1.161357364 | AF109: 1.246423978 | AG109: 1.1237461 | AH109: 1.09311935 | AI109: 1.077619001 | AJ109: 1.251774441 | AK109: 1.099213572 | AL109: 0.9616893877 | AM109: 1.156454119 | AN109: 1.230420878 | AO109: 1.156454119 | AP109: 40.63973052 | AQ109: P1 | AR109: 9 | AS109: 365.7575747
H110: 2017-04-17 | I110: 4 | J110: Viernes | K110: 0.350839733 | L110: 0.08823529412 | M110: 0.1470588235 | N110: 0.2058823529 | O110: 0.5 | P110: 0.7352941176 | Q110: 0.9705882353 | R110: 1 | S110: 1 | T110: 1 | U110: 1 | V110: 31.78526892 | W110: 107 | X110: 25.44700045 | AA110: 2017-01-05T10:00:00 | AB110: 5 | AD110: 9 | AE110: 1.211231234 | AF110: 1.231116709 | AG110: 1.091616226 | AH110: 1.083328363 | AI110: 1.087534767 | AJ110: 1.293137469 | AK110: 1.130671819 | AL110: 1.119626959 | AM110: 1.328542443 | AN110: 1.320834109 | AO110: 1.328542443 | AP110: 46.68720183 | AQ110: P1 | AR110: 7 | AS110: 326.8104128
H111: 2017-04-18 | I111: 4 | J111: Sábado | K111: 0.6221340853 | L111: 0.119047619 | M111: 0.1904761905 | N111: 0.2619047619 | O111: 0.5238095238 | P111: 0.8095238095 | Q111: 1 | R111: 1 | S111: 1 | T111: 1 | U111: 1 | V111: 47.23342957 | W111: 108 | X111: 40.89516111 | AA111: 2017-01-05T11:00:00 | AB111: 5 | AD111: 9 | AE111: 1.172761576 | AF111: 1.214586684 | AG111: 1.09542206 | AH111: 1.054023899 | AI111: 1.083035985 | AJ111: 1.292665761 | AK111: 1.10797144 | AL111: 1.106938892 | AM111: 1.327273225 | AN111: 1.336857377 | AO111: 1.327273225 | AP111: 46.64259937 | AQ111: P1 | AR111: 8 | AS111: 373.1407949
H112: 2017-04-19 | I112: 4 | J112: Domingo | K112: 0.1970520643 | L112: 0.09803921569 | M112: 0.1960784314 | N112: 0.2941176471 | O112: 0.6666666667 | P112: 0.9019607843 | Q112: 1 | R112: 1 | S112: 1 | T112: 1 | U112: 1 | V112: 23.42869346 | W112: 109 | X112: 17.090425 | AA112: 2017-01-05T12:00:00 | AB112: 5 | AD112: 9 | AE112: 1.074983986 | AF112: 1.290255483 | AG112: 1.157066691 | AH112: 1.08428386 | AI112: 1.197076442 | AJ112: 1.384689896 | AK112: 1.042612562 | AL112: 1.104592425 | AM112: 1.255865924 | AN112: 1.30685342 | AO112: 1.255865924 | AP112: 44.13322749 | AQ112: P2 | AR112: 8 | AS112: 353.0658199
H113: 2017-04-20 | I113: 4 | J113: Laborable | K113: 0.5068123764 | L113: 0.03468208092 | M113: 0.05202312139 | N113: 0.1387283237 | O113: 0.5144508671 | P113: 0.774566474 | Q113: 0.9768786127 | R113: 1 | S113: 1 | T113: 1 | U113: 1 | V113: 39.90819559 | W113: 110 | X113: 33.56992713 | AA113: 2017-01-05T13:00:00 | AB113: 5 | AD113: 9 | AE113: 1.000023126 | AF113: 1.198658455 | AG113: 1.138215717 | AH113: 1.050555309 | AI113: 1.11580453 | AJ113: 1.250815988 | AK113: 1.039390335 | AL113: 1.059739054 | AM113: 1.183402182 | AN113: 1.197485712 | AO113: 1.183402182 | AP113: 41.58673049 | AQ113: P2 | AR113: 9 | AS113: 374.2805744
H114: 2017-04-21 | I114: 4 | J114: Laborable | K114: 0.6221998386 | L114: 0.03468208092 | M114: 0.05202312139 | N114: 0.1387283237 | O114: 0.5144508671 | P114: 0.774566474 | Q114: 0.9768786127 | R114: 1 | S114: 1 | T114: 1 | U114: 1 | V114: 47.95663071 | W114: 111 | X114: 41.61836225 | AA114: 2017-01-05T14:00:00 | AB114: 5 | AD114: 9 | AE114: 0.9314104003 | AF114: 1.151974355 | AG114: 1.090929658 | AH114: 1.037737371 | AI114: 1.062491389 | AJ114: 1.131244747 | AK114: 0.9827354795 | AL114: 0.9451600562 | AM114: 1.052714152 | AN114: 1.089003891 | AO114: 1.052714152 | AP114: 36.99413469 | AQ114: P2 | AR114: 7 | AS114: 258.9589428
H115: 2017-04-22 | I115: 4 | J115: Laborable | K115: 0.2208875546 | L115: 0.03468208092 | M115: 0.05202312139 | N115: 0.1387283237 | O115: 0.5144508671 | P115: 0.774566474 | Q115: 0.9768786127 | R115: 1 | S115: 1 | T115: 1 | U115: 1 | V115: 31.75009022 | W115: 112 | X115: 25.41182176 | AA115: 2017-01-05T15:00:00 | AB115: 5 | AD115: 9 | AE115: 0.898186368 | AF115: 1.102757098 | AG115: 1.043057098 | AH115: 0.9729962752 | AI115: 0.9525627277 | AJ115: 1.011386582 | AK115: 0.9831734357 | AL115: 0.8959551215 | AM115: 1.025213603 | AN115: 1.05544126 | AO115: 1.025213603 | AP115: 36.02771945 | AQ115: P2 | AR115: 12 | AS115: 432.3326334
H116: 2017-04-23 | I116: 4 | J116: Laborable | K116: 0.06329745168 | L116: 0.03468208092 | M116: 0.05202312139 | N116: 0.1387283237 | O116: 0.5144508671 | P116: 0.774566474 | Q116: 0.9768786127 | R116: 1 | S116: 1 | T116: 1 | U116: 1 | V116: 22.47796953 | W116: 113 | X116: 16.13970106 | AA116: 2017-01-05T16:00:00 | AB116: 5 | AD116: 9 | AE116: 0.9576059182 | AF116: 1.098034416 | AG116: 1.050738147 | AH116: 0.9741948735 | AI116: 0.9773092231 | AJ116: 1.026857627 | AK116: 1.01365685 | AL116: 0.8647646694 | AM116: 1.003013046 | AN116: 1.040160966 | AO116: 1.003013046 | AP116: 35.24755477 | AQ116: P2 | AR116: 11 | AS116: 387.7231024
H117: 2017-04-24 | I117: 4 | J117: Viernes | K117: 0.663705105 | L117: 0.08823529412 | M117: 0.1470588235 | N117: 0.2058823529 | O117: 0.5 | P117: 0.7352941176 | Q117: 0.9705882353 | R117: 1 | S117: 1 | T117: 1 | U117: 1 | V117: 47.25617048 | W117: 114 | X117: 40.91790202 | AA117: 2017-01-05T17:00:00 | AB117: 5 | AD117: 9 | AE117: 1.042402085 | AF117: 1.272164322 | AG117: 1.124364879 | AH117: 1.068725622 | AI117: 1.154914481 | AJ117: 1.182869412 | AK117: 1.098288542 | AL117: 0.8974348773 | AM117: 1.036440992 | AN117: 1.074698123 | AO117: 1.036440992 | AP117: 36.42226865 | AQ117: P1 | AR117: 12 | AS117: 437.0672238
H118: 2017-04-25 | I118: 4 | J118: Sábado | K118: 0.9160608956 | L118: 0.119047619 | M118: 0.1904761905 | N118: 0.2619047619 | O118: 0.5238095238 | P118: 0.8095238095 | Q118: 1 | R118: 1 | S118: 1 | T118: 1 | U118: 1 | V118: 51.90765751 | W118: 115 | X118: 45.56938904 | AA118: 2017-01-05T18:00:00 | AB118: 5 | AD118: 9 | AE118: 1.201592864 | AF118: 1.413475557 | AG118: 1.358768073 | AH118: 1.150328869 | AI118: 1.254302852 | AJ118: 1.468758583 | AK118: 1.292257693 | AL118: 1.190271788 | AM118: 1.191654833 | AN118: 1.198433809 | AO118: 1.191654833 | AP118: 41.87674245 | AQ118: P1 | AR118: 13 | AS118: 544.3976518
H119: 2017-04-26 | I119: 4 | J119: Domingo | K119: 0.006044844161 | L119: 0.09803921569 | M119: 0.1960784314 | N119: 0.2941176471 | O119: 0.6666666667 | P119: 0.9019607843 | Q119: 1 | R119: 1 | S119: 1 | T119: 1 | U119: 1 | V119: 0.8724300099 | W119: 116 | X119: 0 | AA119: 2017-01-05T19:00:00 | AB119: 5 | AD119: 9 | AE119: 1.245937684 | AF119: 1.53703405 | AG119: 1.504713943 | AH119: 1.149705404 | AI119: 1.361999562 | AJ119: 1.661971486 | AK119: 1.409607246 | AL119: 1.227678737 | AM119: 1.294032489 | AN119: 1.222579105 | AO119: 1.294032489 | AP119: 45.47446436 | AQ119: P1 | AR119: 14 | AS119: 636.642501
H120: 2017-04-27 | I120: 4 | J120: Laborable | K120: 0.9313040209 | L120: 0.03468208092 | M120: 0.05202312139 | N120: 0.1387283237 | O120: 0.5144508671 | P120: 0.774566474 | Q120: 0.9768786127 | R120: 1 | S120: 1 | T120: 1 | U120: 1 | V120: 54.48086719 | W120: 117 | X120: 48.14259873 | AA120: 2017-01-05T20:00:00 | AB120: 5 | AD120: 9 | AE120: 1.213015645 | AF120: 1.543815076 | AG120: 1.50741587 | AH120: 1.123859347 | AI120: 1.335392243 | AJ120: 1.610003798 | AK120: 1.331639621 | AL120: 1.221317143 | AM120: 1.135612882 | AN120: 1.11764323 | AO120: 1.135612882 | AP120: 39.9073346 | AQ120: P2 | AR120: 12 | AS120: 478.8880152
H121: 2017-04-28 | I121: 4 | J121: Laborable | K121: 0.1529245481 | L121: 0.03468208092 | M121: 0.05202312139 | N121: 0.1387283237 | O121: 0.5144508671 | P121: 0.774566474 | Q121: 0.9768786127 | R121: 1 | S121: 1 | T121: 1 | U121: 1 | V121: 30.81409272 | W121: 118 | X121: 24.47582426 | AA121: 2017-01-05T21:00:00 | AB121: 5 | AD121: 9 | AE121: 1.108037425 | AF121: 1.485887053 | AG121: 1.551227058 | AH121: 1.164428632 | AI121: 1.668253247 | AJ121: 2.04311843 | AK121: 1.226098251 | AL121: 1.201102334 | AM121: 1.081677331 | AN121: 1.066230706 | AO121: 1.081677331 | AP121: 38.01194922 | AQ121: P2 | AR121: 14 | AS121: 532.1672891
H122: 2017-04-29 | I122: 4 | J122: Laborable | K122: 0.09727558639 | L122: 0.03468208092 | M122: 0.05202312139 | N122: 0.1387283237 | O122: 0.5144508671 | P122: 0.774566474 | Q122: 0.9768786127 | R122: 1 | S122: 1 | T122: 1 | U122: 1 | V122: 29.46384486 | W122: 119 | X122: 23.1255764 | AA122: 2017-01-05T22:00:00 | AB122: 5 | AD122: 9 | AE122: 0.9996655246 | AF122: 1.312431351 | AG122: 1.355348292 | AH122: 1.097075444 | AI122: 1.327984181 | AJ122: 1.356631706 | AK122: 1.101385747 | AL122: 1.114407511 | AM122: 1.015966938 | AN122: 0.9750988614 | AO122: 1.015966938 | AP122: 35.70277616 | AQ122: P2 | AR122: 11 | AS122: 392.7305378
H123: 2017-04-30 | I123: 4 | J123: Laborable | K123: 0.6930004763 | L123: 0.03468208092 | M123: 0.05202312139 | N123: 0.1387283237 | O123: 0.5144508671 | P123: 0.774566474 | Q123: 0.9768786127 | R123: 1 | S123: 1 | T123: 1 | U123: 1 | V123: 40.69144247 | W123: 120 | X123: 34.353174 | AA123: 2017-01-05T23:00:00 | AB123: 5 | AD123: 9 | AE123: 0.9077255184 | AF123: 1.029007707 | AG123: 1.121000316 | AH123: 0.9690757763 | AI123: 1.100322249 | AJ123: 1.108092212 | AK123: 0.9705021714 | AL123: 1.180139578 | AM123: 1.117895737 | AN123: 0.9822618757 | AO123: 1.117895737 | AP123: 39.28472454 | AQ123: P6 | AR123: 10 | AS123: 392.8472454
H124: 2017-05-01 | I124: 5 | J124: Domingo | K124: 0.330700457 | L124: 0 | M124: 0 | N124: 0.1886792453 | O124: 0.5849056604 | P124: 0.8867924528 | Q124: 1 | R124: 1 | S124: 1 | T124: 1 | U124: 1 | V124: 36.19966564 | W124: 121 | X124: 24.68135031 | AA124: 2017-01-06 | AB124: 6 | AD124: 9 | AE124: 0.774347854 | AF124: 0.7580721577 | AG124: 0.9451225846 | AH124: 1.056466301 | AI124: 1.322300205 | AJ124: 0.751741828 | AK124: 0.8768812041 | AL124: 1.195737235 | AM124: 1.306810478 | AN124: 1.043574264 | AO124: 1.306810478 | AP124: 47.93896608 | AQ124: P6 | AR124: 10 | AS124: 479.3896608
H125: 2017-05-02 | I125: 5 | J125: Sábado | K125: 0.9925973402 | L125: 0 | M125: 0 | N125: 0.09090909091 | O125: 0.4090909091 | P125: 0.7727272727 | Q125: 1 | R125: 1 | S125: 1 | T125: 1 | U125: 1 | V125: 52.49587368 | W125: 122 | X125: 40.97755834 | AA125: 2017-01-06T01:00:00 | AB125: 6 | AD125: 9 | AE125: 0.6398400439 | AF125: 0.5298436651 | AG125: 0.7902984085 | AH125: 0.9571080796 | AI125: 1.135305128 | AJ125: 0.4362181076 | AK125: 0.8325445273 | AL125: 1.126265855 | AM125: 1.083592569 | AN125: 0.8099422523 | AO125: 1.083592569 | AP125: 39.75045219 | AQ125: P6 | AR125: 11 | AS125: 437.2549741
H126: 2017-05-03 | I126: 5 | J126: Domingo | K126: 0.8987995653 | L126: 0 | M126: 0 | N126: 0.1886792453 | O126: 0.5849056604 | P126: 0.8867924528 | Q126: 1 | R126: 1 | S126: 1 | T126: 1 | U126: 1 | V126: 54.34896651 | W126: 123 | X126: 42.83065117 | AA126: 2017-01-06T02:00:00 | AB126: 6 | AD126: 9 | AE126: 0.6006455207 | AF126: 0.3581685824 | AG126: 0.6284462696 | AH126: 0.8067467818 | AI126: 0.868894441 | AJ126: 0.2354062301 | AK126: 0.7671562381 | AL126: 0.9203498453 | AM126: 0.8573018148 | AN126: 0.7338987548 | AO126: 0.8573018148 | AP126: 31.44921419 | AQ126: P6 | AR126: 11 | AS126: 345.9413561
H127: 2017-05-04 | I127: 5 | J127: Laborable | K127: 0.6825197535 | L127: 0 | M127: 0 | N127: 0.01764705882 | O127: 0.3352941176 | P127: 0.7352941176 | Q127: 0.9823529412 | R127: 0.9882352941 | S127: 1 | T127: 1 | U127: 1 | V127: 44.08917955 | W127: 124 | X127: 32.57086422 | AA127: 2017-01-06T03:00:00 | AB127: 6 | AD127: 9 | AE127: 0.5998943298 | AF127: 0.3310938116 | AG127: 0.6059098451 | AH127: 0.6886937776 | AI127: 0.5664512175 | AJ127: 0.128064696 | AK127: 0.6740214266 | AL127: 0.8450435889 | AM127: 0.7824320595 | AN127: 0.6756157723 | AO127: 0.7824320595 | AP127: 28.70269607 | AQ127: P6 | AR127: 10 | AS127: 287.0269607
H128: 2017-05-05 | I128: 5 | J128: Laborable | K128: 0.4089922275 | L128: 0 | M128: 0 | N128: 0.01764705882 | O128: 0.3352941176 | P128: 0.7352941176 | Q128: 0.9823529412 | R128: 0.9882352941 | S128: 1 | T128: 1 | U128: 1 | V128: 48.62395623 | W128: 125 | X128: 37.1056409 | AA128: 2017-01-06T04:00:00 | AB128: 6 | AD128: 9 | AE128: 0.575457757 | AF128: 0.3236694736 | AG128: 0.5876381634 | AH128: 0.6596755226 | AI128: 0.5205857367 | AJ128: 0.120151196 | AK128: 0.6364921878 | AL128: 0.7680579481 | AM128: 0.7214456341 | AN128: 0.6379090687 | AO128: 0.7214456341 | AP128: 26.46547328 | AQ128: P6 | AR128: 11 | AS128: 291.1202061
H129: 2017-05-06 | I129: 5 | J129: Laborable | K129: 0.2801294407 | L129: 0 | M129: 0 | N129: 0.01764705882 | O129: 0.3352941176 | P129: 0.7352941176 | Q129: 0.9823529412 | R129: 0.9882352941 | S129: 1 | T129: 1 | U129: 1 | V129: 31.52086357 | W129: 126 | X129: 20.00254824 | AA129: 2017-01-06T05:00:00 | AB129: 6 | AD129: 9 | AE129: 0.6155404123 | AF129: 0.4033727075 | AG129: 0.6017323605 | AH129: 0.6726309032 | AI129: 0.5370239179 | AJ129: 0.1233636069 | AK129: 0.6859838153 | AL129: 0.7383137704 | AM129: 0.6734359664 | AN129: 0.627758427 | AO129: 0.6734359664 | AP129: 24.70428918 | AQ129: P6 | AR129: 13 | AS129: 321.1557594
H130: 2017-05-07 | I130: 5 | J130: Laborable | K130: 0.7678616854 | L130: 0 | M130: 0 | N130: 0.01764705882 | O130: 0.3352941176 | P130: 0.7352941176 | Q130: 0.9823529412 | R130: 0.9882352941 | S130: 1 | T130: 1 | U130: 1 | V130: 57.26297061 | W130: 127 | X130: 45.74465527 | AA130: 2017-01-06T06:00:00 | AB130: 6 | AD130: 9 | AE130: 0.8147759592 | AF130: 0.5265625264 | AG130: 0.679524363 | AH130: 0.8033722395 | AI130: 0.6748216274 | AJ130: 0.2069708411 | AK130: 0.8110195646 | AL130: 0.7336202328 | AM130: 0.6537436356 | AN130: 0.7122673935 | AO130: 0.6537436356 | AP130: 23.98189677 | AQ130: P6 | AR130: 14 | AS130: 335.7465548
H131: 2017-05-08 | I131: 5 | J131: Viernes | K131: 0.383495737 | L131: 0 | M131: 0 | N131: 0.02325581395 | O131: 0.3255813953 | P131: 0.6976744186 | Q131: 0.976744186 | R131: 0.976744186 | S131: 1 | T131: 1 | U131: 1 | V131: 42.37312079 | W131: 128 | X131: 30.85480546 | AA131: 2017-01-06T07:00:00 | AB131: 6 | AD131: 9 | AE131: 1.058901163 | AF131: 1.003970009 | AG131: 1.045741426 | AH131: 0.9738676407 | AI131: 0.8235199077 | AJ131: 0.8387838393 | AK131: 0.9186346628 | AL131: 0.7098170102 | AM131: 0.6579347271 | AN131: 0.8364034158 | AO131: 0.6579347271 | AP131: 24.13564255 | AQ131: P6 | AR131: 14 | AS131: 337.8989957
H132: 2017-05-09 | I132: 5 | J132: Sábado | K132: 0.02519353933 | L132: 0 | M132: 0 | N132: 0.09090909091 | O132: 0.4090909091 | P132: 0.7727272727 | Q132: 1 | R132: 1 | S132: 1 | T132: 1 | U132: 1 | V132: 24.04397165 | W132: 129 | X132: 12.52565631 | AA132: 2017-01-06T08:00:00 | AB132: 6 | AD132: 9 | AE132: 1.161806169 | AF132: 1.108221366 | AG132: 1.003796181 | AH132: 1.013373493 | AI132: 0.8051980274 | AJ132: 0.964979175 | AK132: 1.020729633 | AL132: 0.7247337531 | AM132: 0.7043423449 | AN132: 1.048966843 | AO132: 0.7043423449 | AP132: =VLOOKUP(AB132,$W$4:$X$368,2,FALSE)*AO132 -> 25.83805713 | AQ132: P6 | AR132: 11 | AS132: 284.2186284
H133: 2017-05-10 | I133: 5 | J133: Domingo | K133: =RAND() -> 0.5782686904 | L133: 0 | M133: 0 | N133: 0.1886792453 | O133: 0.5849056604 | P133: 0.8867924528 | Q133: 1 | R133: 1 | S133: 1 | T133: 1 | U133: 1 | V133: =IF(K133<L133,$L$3,IF(K133<M133,$M$3,IF(K133<N133,$N$3,IF(K133<O133,$O$3,IF(K133<P133,$P$3,IF(K133<Q133,$Q$3,IF(K133<R133,$R$3,IF(K133<S133,$S$3,IF(K133<T133,$T$3,$U$3)))))))))+RANDBETWEEN(0,9)+RAND() -> 38.99370326 | W133: 130 | X133: =MAX(V133-VLOOKUP(I133,$A$11:$F$22,6,FALSE),0) -> 27.47538792 | AA133: 2017-01-06T09:00:00 | AB133: 6 | AD133: 9 | AE133: 1.260401114 | AF133: 1.2375185 | AG133: 1.186740624 | AH133: 1.027683976 | AI133: 0.9649817547 | AJ133: 1.118165361 | AK133: 1.044728638 | AL133: 0.7653774011 | AM133: 0.8797115187 | AN133: 1.076231908 | AO133: =IF(AD133=1,AE133,IF(AD133=2,AF133,IF(AD133=3,AG133,IF(AD133=4,AH133,IF(AD133=5,AI133,IF(AD133=6,AJ133,IF(AD133=7,AK133,IF(AD133=8,AL133,IF(AD133=9,AM133,IF(AD133=10,AN133)))))))))) -> 0.8797115187 | AP133: 32.27129058 | AQ133: P6 | AR133: 10 | AS133: 322.7129058
H134: 2017-05-11 | I134: 5 | J134: Laborable | K134: 0.5005310732 | L134: 0 | M134: 0 | N134: 0.01764705882 | O134: 0.3352941176 | P134: 0.7352941176 | Q134: 0.9823529412 | R134: 0.9882352941 | S134: 1 | T134: 1 | U134: 1 | V134: 44.99486703 | W134: 131 | X134: 33.47655169 | AA134: =AA133+1/24 -> 2017-01-06T10:00:00 | AB134: 6 | AD134: =AD133 -> 9 | AE134: 1.303189175 | AF134: 1.210279889 | AG134: 1.186981385 | AH134: 1.04912584 | AI134: 0.9916912264 | AJ134: 1.141087444 | AK134: 1.089793088 | AL134: 0.9088241582 | AM134: 1.095576628 | AN134: 1.135793971 | AO134: 1.095576628 | AP134: 40.19007476 | AQ134: P6 | AR134: 8 | AS134: 321.5205981
H135: 2017-05-12 | I135: 5 | J135: Laborable | K135: 0.7415111136 | L135: 0 | M135: 0 | N135: 0.01764705882 | O135: 0.3352941176 | P135: 0.7352941176 | Q135: 0.9823529412 | R135: 0.9882352941 | S135: 1 | T135: 1 | U135: 1 | V135: 52.98255991 | W135: 132 | X135: 41.46424457 | AA135: 2017-01-06T11:00:00 | AB135: 6 | AD135: 9 | AE135: 1.259247203 | AF135: 1.175673399 | AG135: 1.153816919 | AH135: 1.026595789 | AI135: 1.05601746 | AJ135: 1.141586997 | AK135: 1.073772483 | AL135: 0.973436003 | AM135: 1.153704893 | AN135: 1.160725816 | AO135: 1.153704893 | AP135: 42.32244895 | AQ135: P6 | AR135: 7 | AS135: =AP135*AR135 -> 296.2571426
H136: 2017-05-13 | I136: 5 | J136: Laborable | K136: 0.1608083416 | L136: 0 | M136: 0 | N136: 0.01764705882 | O136: 0.3352941176 | P136: 0.7352941176 | Q136: 0.9823529412 | R136: 0.9882352941 | S136: 1 | T136: 1 | U136: 1 | V136: 33.1676399 | W136: 133 | X136: 21.64932456 | AA136: 2017-01-06T12:00:00 | AB136: 6 | AD136: 9 | AE136: 1.196018485 | AF136: 1.195798912 | AG136: 1.178758791 | AH136: 1.095229359 | AI136: 1.101785434 | AJ136: 1.221864023 | AK136: 1.025281512 | AL136: 1.0177168 | AM136: 1.134663956 | AN136: 1.112994008 | AO136: 1.134663956 | AP136: 41.62395224 | AQ136: P6 | AR136: 8 | AS136: 332.9916179
H137: 2017-05-14 | I137: 5 | J137: Laborable | K137: 0.5646195272 | L137: 0 | M137: 0 | N137: 0.01764705882 | O137: 0.3352941176 | P137: 0.7352941176 | Q137: 0.9823529412 | R137: 0.9882352941 | S137: 1 | T137: 1 | U137: 1 | V137: 40.20780622 | W137: 134 | X137: 28.68949089 | AA137: 2017-01-06T13:00:00 | AB137: 6 | AD137: 9 | AE137: 1.134552745 | AF137: 1.14221459 | AG137: 1.152395269 | AH137: 1.065327615 | AI137: 1.037089734 | AJ137: 1.146055041 | AK137: 1.010694575 | AL137: 1.021264682 | AM137: 1.107006646 | AN137: 1.078912883 | AO137: 1.107006646 | AP137: 40.60937293 | AQ137: P6 | AR137: 9 | AS137: 365.4843564
H138: 2017-05-15 | I138: 5 | J138: Viernes | K138: 0.9844559272 | L138: 0 | M138: 0 | N138: 0.02325581395 | O138: 0.3255813953 | P138: 0.6976744186 | Q138: 0.976744186 | R138: 0.976744186 | S138: 1 | T138: 1 | U138: 1 | V138: 77.8409394 | W138: 135 | X138: 66.32262406 | AA138: 2017-01-06T14:00:00 | AB138: 6 | AD138: 9 | AE138: 0.9913745647 | AF138: 1.079441787 | AG138: 1.081392791 | AH138: 1.048388921 | AI138: 0.9209172639 | AJ138: 1.11471988 | AK138: 0.9618755253 | AL138: 1.006130878 | AM138: 0.9801796294 | AN138: 0.9896373632 | AO138: 0.9801796294 | AP138: 35.95685741 | AQ138: P6 | AR138: 10 | AS138: 359.5685741
H139: 2017-05-16 | I139: 5 | J139: Sábado | K139: 0.07126841804 | L139: 0 | M139: 0 | N139: 0.09090909091 | O139: 0.4090909091 | P139: 0.7727272727 | Q139: 1 | R139: 1 | S139: 1 | T139: 1 | U139: 1 | V139: 26.1406727 | W139: 136 | X139: 14.62235736 | AA139: 2017-01-06T15:00:00 | AB139: 6 | AD139: 9 | AE139: 0.9711018637 | AF139: 1.036691158 | AG139: 1.003008898 | AH139: 0.9946026184 | AI139: 0.8816214173 | AJ139: 1.077721861 | AK139: 0.9598666532 | AL139: 0.9476332048 | AM139: 0.8986776545 | AN139: 0.9563082762 | AO139: 0.8986776545 | AP139: 32.9670433 | AQ139: P6 | AR139: 9 | AS139: 296.7033897
H140: 2017-05-17 | I140: 5 | J140: Domingo | K140: 0.265403522 | L140: 0 | M140: 0 | N140: 0.1886792453 | O140: 0.5849056604 | P140: 0.8867924528 | Q140: 1 | R140: 1 | S140: 1 | T140: 1 | U140: 1 | V140: 31.05744376 | W140: 137 | X140: 19.53912843 | AA140: 2017-01-06T16:00:00 | AB140: 6 | AD140: 9 | AE140: 1.045394979 | AF140: 1.040836197 | AG140: 0.9938466823 | AH140: 1.01106526 | AI140: 0.8851510731 | AJ140: 1.077269547 | AK140: 0.9835788077 | AL140: 0.855742605 | AM140: 0.8583928282 | AN140: 0.9502315533 | AO140: 0.8583928282 | AP140: 31.48923687 | AQ140: P6 | AR140: 10 | AS140: 314.8923687
H141: 2017-05-18 | I141: 5 | J141: Laborable | K141: 0.5929045917 | L141: 0 | M141: 0 | N141: 0.01764705882 | O141: 0.3352941176 | P141: 0.7352941176 | Q141: 0.9823529412 | R141: 0.9882352941 | S141: 1 | T141: 1 | U141: 1 | V141: 43.43046461 | W141: 138 | X141: 31.91214928 | AA141: 2017-01-06T17:00:00 | AB141: 6 | AD141: 9 | AE141: 1.128585121 | AF141: 1.164968202 | AG141: 1.088960726 | AH141: 1.063370897 | AI141: 1.036525821 | AJ141: 1.188465553 | AK141: 1.056069776 | AL141: 0.8954501739 | AM141: 0.9028069084 | AN141: 0.9848093804 | AO141: 0.9028069084 | AP141: 33.11852063 | AQ141: P6 | AR141: 14 | AS141: 463.6592888
H142: 2017-05-19 | I142: 5 | J142: Laborable | K142: 0.4867004228 | L142: 0 | M142: 0 | N142: 0.01764705882 | O142: 0.3352941176 | P142: 0.7352941176 | Q142: 0.9823529412 | R142: 0.9882352941 | S142: 1 | T142: 1 | U142: 1 | V142: 40.27094751 | W142: 139 | X142: 28.75263218 | AA142: 2017-01-06T18:00:00 | AB142: 6 | AD142: 9 | AE142: 1.227315203 | AF142: 1.51032493 | AG142: 1.200660853 | AH142: 1.17955339 | AI142: 1.143686424 | AJ142: 1.48505622 | AK142: 1.275685471 | AL142: 1.23206125 | AM142: 1.151168159 | AN142: 1.269525675 | AO142: 1.151168159 | AP142: 42.22939152 | AQ142: P6 | AR142: 15 | AS142: 633.4408729
H143: 2017-05-20 | I143: 5 | J143: Laborable | K143: 0.1947567668 | L143: 0 | M143: 0 | N143: 0.01764705882 | O143: 0.3352941176 | P143: 0.7352941176 | Q143: 0.9823529412 | R143: 0.9882352941 | S143: 1 | T143: 1 | U143: 1 | V143: 38.99315226 | W143: 140 | X143: 27.47483693 | AA143: 2017-01-06T19:00:00 | AB143: 6 | AD143: 9 | AE143: 1.269179344 | AF143: 1.724467986 | AG143: 1.272459794 | AH143: 1.199475397 | AI143: 1.349488212 | AJ143: 1.918498319 | AK143: 1.490458149 | AL143: 1.287178717 | AM143: 1.257391083 | AN143: 1.372255059 | AO143: 1.257391083 | AP143: 46.12606762 | AQ143: P6 | AR143: 15 | AS143: 691.8910143
H144: 2017-05-21 | I144: 5 | J144: Laborable | K144: 0.6812667733 | L144: 0 | M144: 0 | N144: 0.01764705882 | O144: 0.3352941176 | P144: 0.7352941176 | Q144: 0.9823529412 | R144: 0.9882352941 | S144: 1 | T144: 1 | U144: 1 | V144: 40.01450763 | W144: 141 | X144: 28.49619229 | AA144: 2017-01-06T20:00:00 | AB144: 6 | AD144: 9 | AE144: 1.230194311 | AF144: 1.573689347 | AG144: 1.229367156 | AH144: 1.175313368 | AI144: 1.372279607 | AJ144: 1.743445092 | AK144: 1.379666925 | AL144: 1.366568107 | AM144: 1.317084771 | AN144: 1.303048596 | AO144: 1.317084771 | AP144: 48.3158677 | AQ144: P6 | AR144: 16 | AS144: 773.0538832
H145: 2017-05-22 | I145: 5 | J145: Viernes | K145: 0.6482775082 | L145: 0 | M145: 0 | N145: 0.02325581395 | O145: 0.3255813953 | P145: 0.6976744186 | Q145: 0.976744186 | R145: 0.976744186 | S145: 1 | T145: 1 | U145: 1 | V145: 46.30818174 | W145: 142 | X145: 34.78986641 | AA145: 2017-01-06T21:00:00 | AB145: 6 | AD145: 9 | AE145: 1.138943282 | AF145: 1.545454441 | AG145: 1.228275948 | AH145: 1.184698797 | AI145: 1.475795547 | AJ145: 1.743445092 | AK145: 1.254493469 | AL145: 1.365045208 | AM145: 1.332083932 | AN145: 1.233921437 | AO145: 1.332083932 | AP145: 48.86609612 | AQ145: P6 | AR145: 16 | AS145: 781.8575379
H146: 2017-05-23 | I146: 5 | J146: Sábado | K146: 0.9526471519 | L146: 0 | M146: 0 | N146: 0.09090909091 | O146: 0.4090909091 | P146: 0.7727272727 | Q146: 1 | R146: 1 | S146: 1 | T146: 1 | U146: 1 | V146: 56.97233664 | W146: 143 | X146: 45.4540213 | AA146: 2017-01-06T22:00:00 | AB146: 6 | AD146: 9 | AE146: 1.071575639 | AF146: 1.290382545 | AG146: 1.13374243 | AH146: 1.161947191 | AI146: 1.375490454 | AJ146: 1.782138922 | AK146: 1.161298698 | AL146: 1.298836772 | AM146: 1.207985976 | AN146: 1.073611748 | AO146: 1.207985976 | AP146: 44.31369332 | AQ146: P6 | AR146: 13 | AS146: 576.0780132
H147: 2017-05-24 | I147: 5 | J147: Domingo | K147: 0.6018524352 | L147: 0 | M147: 0 | N147: 0.1886792453 | O147: 0.5849056604 | P147: 0.8867924528 | Q147: 1 | R147: 1 | S147: 1 | T147: 1 | U147: 1 | V147: 42.18569237 | W147: 144 | X147: 30.66737704 | AA147: 2017-01-06T23:00:00 | AB147: 6 | AD147: 9 | AE147: 0.9317177618 | AF147: 1.081138465 | AG147: 1.021382133 | AH147: 1.085686843 | AI147: 1.153378363 | AJ147: 1.374326239 | AK147: 1.009272971 | AL147: 1.296794801 | AM147: 1.282526189 | AN147: 1.175656134 | AO147: 1.282526189 | AP147: 47.04812252 | AQ147: P6 | AR147: 12 | AS147: 564.5774703
H148: 2017-05-25 | I148: 5 | J148: Laborable | K148: 0.7041268597 | L148: 0 | M148: 0 | N148: 0.01764705882 | O148: 0.3352941176 | P148: 0.7352941176 | Q148: 0.9823529412 | R148: 0.9882352941 | S148: 1 | T148: 1 | U148: 1 | V148: 43.30811557 | W148: 145 | X148: 31.78980023 | AA148: 2017-01-07 | AB148: 7 | AD148: 9 | AE148: 0.7624524208 | AF148: 1.978964898 | AG148: 1.296015628 | AH148: 1.111410489 | AI148: 1.157505346 | AJ148: 0.9176397169 | AK148: 0.8647112846 | AL148: 0.9732678668 | AM148: 1.236628884 | AN148: 1.226174408 | AO148: 1.236628884 | AP148: 70.33234699 | AQ148: P6 | AR148: 12 | AS148: 843.9881638
H149: 2017-05-26 | I149: 5 | J149: Laborable | K149: 0.229229798 | L149: 0 | M149: 0 | N149: 0.01764705882 | O149: 0.3352941176 | P149: 0.7352941176 | Q149: 0.9823529412 | R149: 0.9882352941 | S149: 1 | T149: 1 | U149: 1 | V149: 38.97155791 | W149: 146 | X149: 27.45324258 | AA149: 2017-01-07T01:00:00 | AB149: 7 | AD149: 9 | AE149: 0.7182401895 | AF149: 1.030193426 | AG149: 0.9906726352 | AH149: 0.9901854233 | AI149: 0.6833962405 | AJ149: 0.5804880031 | AK149: 0.7985344788 | AL149: 0.8131164049 | AM149: 1.019257366 | AN149: 0.9169522458 | AO149: 1.019257366 | AP149: 57.96950372 | AQ149: P6 | AR149: 18 | AS149: 1043.451067
H150: 2017-05-27 | I150: 5 | J150: Laborable | K150: 0.9287075942 | L150: 0 | M150: 0 | N150: 0.01764705882 | O150: 0.3352941176 | P150: 0.7352941176 | Q150: 0.9823529412 | R150: 0.9882352941 | S150: 1 | T150: 1 | U150: 1 | V150: 58.31883188 | W150: 147 | X150: 46.80051654 | AA150: 2017-01-07T02:00:00 | AB150: 7 | AD150: 9 | AE150: 0.6809617027 | AF150: 0.5471565633 | AG150: 0.843411419 | AH150: 0.887009165 | AI150: 0.3611183184 | AJ150: 0.3318383419 | AK150: 0.6940986447 | AL150: 0.7430743783 | AM150: 0.8556301005 | AN150: 0.8539503276 | AO150: 0.8556301005 | AP150: 48.66332485 | AQ150: P6 | AR150: 58 | AS150: 2822.472841
H151: 2017-05-28 | I151: 5 | J151: Laborable | K151: 0.6067847658 | L151: 0 | M151: 0 | N151: 0.01764705882 | O151: 0.3352941176 | P151: 0.7352941176 | Q151: 0.9823529412 | R151: 0.9882352941 | S151: 1 | T151: 1 | U151: 1 | V151: 47.60477389 | W151: 148 | X151: 36.08645856 | AA151: 2017-01-07T03:00:00 | AB151: 7 | AD151: 9 | AE151: 0.662329817 | AF151: 0.4098218213 | AG151: 0.7831595612 | AH151: 0.8117511825 | AI151: 0.3231413304 | AJ151: 0.1928875793 | AK151: 0.6720252722 | AL151: 0.7068704466 | AM151: 0.8114231715 | AN151: 0.7864127962 | AO151: 0.8114231715 | AP151: 46.14908868 | AQ151: P6 | AR151: 81 | AS151: 3738.076183
H152: 2017-05-29 | I152: 5 | J152: Viernes | K152: 0.256777936 | L152: 0 | M152: 0 | N152: 0.02325581395 | O152: 0.3255813953 | P152: 0.6976744186 | Q152: 0.976744186 | R152: 0.976744186 | S152: 1 | T152: 1 | U152: 1 | V152: 32.55106413 | W152: 149 | X152: 21.03274879 | AA152: 2017-01-07T04:00:00 | AB152: 7 | AD152: 9 | AE152: 0.6544395004 | AF152: 0.3682378645 | AG152: 0.6992308656 | AH152: 0.7622432024 | AI152: 0.3194953141 | AJ152: 0.1516731153 | AK152: 0.6395880852 | AL152: 0.6816977653 | AM152: 0.7558297335 | AN152: 0.7403394634 | AO152: 0.7558297335 | AP152: 42.98725329 | AQ152: P6 | AR152: 59 | AS152: 2536.247944
H153: 2017-05-30 | I153: 5 | J153: Sábado | K153: 0.05742976909 | L153: 0 | M153: 0 | N153: 0.09090909091 | O153: 0.4090909091 | P153: 0.7727272727 | Q153: 1 | R153: 1 | S153: 1 | T153: 1 | U153: 1 | V153: 24.2374789 | W153: 150 | X153: 12.71916356 | AA153: 2017-01-07T05:00:00 | AB153: 7 | AD153: 9 | AE153: 0.6701051641 | AF153: 0.3508225315 | AG153: 0.6485307985 | AH153: 0.7282649605 | AI153: 0.3466491434 | AJ153: 0.2420027246 | AK153: 0.6829382334 | AL153: 0.6817284812 | AM153: 0.7084353386 | AN153: 0.706823145 | AO153: 0.7084353386 | AP153: 40.29173237 | AQ153: P6 | AR153: 91 | AS153: 3666.547646
H154: 2017-05-31 | I154: 5 | J154: Domingo | K154: 0.8227668434 | L154: 0 | M154: 0 | N154: 0.1886792453 | O154: 0.5849056604 | P154: 0.8867924528 | Q154: 1 | R154: 1 | S154: 1 | T154: 1 | U154: 1 | V154: 48.17322231 | W154: 151 | X154: 36.65490697 | AA154: 2017-01-07T06:00:00 | AB154: 7 | AD154: 9 | AE154: 0.7244887574 | AF154: 0.3662411584 | AG154: 0.6527672709 | AH154: 0.7280256732 | AI154: 0.4796193644 | AJ154: 0.4674186598 | AK154: 0.8219074499 | AL154: 0.7572448495 | AM154: 0.696013378 | AN154: 0.6845838316 | AO154: 0.696013378 | AP154: 39.58524261 | AQ154: P6 | AR154: 317 | AS154: 12548.52191
H155: 2017-06-01 | I155: 6 | J155: Laborable | K155: 0.4515190084 | L155: 0 | M155: 0 | N155: 0.005847953216 | O155: 0.2514619883 | P155: 0.5380116959 | Q155: 0.9005847953 | R155: 0.9824561404 | S155: 1 | T155: 1 | U155: 1 | V155: 43.94243287 | W155: 152 | X155: 30.11012525 | AA155: 2017-01-07T07:00:00 | AB155: 7 | AD155: 9 | AE155: 0.8480186708 | AF155: 0.4147630069 | AG155: 0.7837055826 | AH155: 0.8012836859 | AI155: 0.854943605 | AJ155: 0.9425755326 | AK155: 0.9671246307 | AL155: 0.9664514741 | AM155: 0.6285046654 | AN155: 0.7047867218 | AO155: 0.6285046654 | AP155: 35.74573485 | AQ155: P6 | AR155: 352 | AS155: 12582.49867
H156: 2017-06-02 | I156: 6 | J156: Laborable | K156: 0.3262334182 | L156: 0 | M156: 0 | N156: 0.005847953216 | O156: 0.2514619883 | P156: 0.5380116959 | Q156: 0.9005847953 | R156: 0.9824561404 | S156: 1 | T156: 1 | U156: 1 | V156: 43.32978595 | W156: 153 | X156: 29.49747834 | AA156: 2017-01-07T08:00:00 | AB156: 7 | AD156: 9 | AE156: 0.8208892709 | AF156: 0.4895130703 | AG156: 0.7945648342 | AH156: 0.8646941432 | AI156: 0.9461520002 | AJ156: 1.114592685 | AK156: 1.079890667 | AL156: 1.095249888 | AM156: 0.6554769966 | AN156: 0.7742642738 | AO156: 0.6554769966 | AP156: 37.2797661 | AQ156: P6 | AR156: 379 | AS156: 14129.03135
H157: 2017-06-03 | I157: 6 | J157: Laborable | K157: 0.8094928044 | L157: 0 | M157: 0 | N157: 0.005847953216 | O157: 0.2514619883 | P157: 0.5380116959 | Q157: 0.9005847953 | R157: 0.9824561404 | S157: 1 | T157: 1 | U157: 1 | V157: 54.07855278 | W157: 154 | X157: 40.24624516 | AA157: 2017-01-07T09:00:00 | AB157: 7 | AD157: 9 | AE157: 1.227517868 | AF157: 0.5781806406 | AG157: 0.945843061 | AH157: 0.9382369621 | AI157: 1.270138731 | AJ157: 1.240039389 | AK157: 1.108763949 | AL157: 1.097281032 | AM157: 0.7412987277 | AN157: 0.8834115513 | AO157: 0.7412987277 | AP157: 42.16081315 | AQ157: P6 | AR157: 198 | AS157: 8347.841004
H158: 2017-06-04 | I158: 6 | J158: Laborable | K158: 0.0272446255 | L158: 0 | M158: 0 | N158: 0.005847953216 | O158: 0.2514619883 | P158: 0.5380116959 | Q158: 0.9005847953 | R158: 0.9824561404 | S158: 1 | T158: 1 | U158: 1 | V158: 32.19790183 | W158: 155 | X158: 18.36559422 | AA158: 2017-01-07T10:00:00 | AB158: 7 | AD158: 9 | AE158: 1.40720388 | AF158: 0.7578186308 | AG158: 1.008847324 | AH158: 1.006706318 | AI158: 1.2466072 | AJ158: 1.214240188 | AK158: 1.080122901 | AL158: 1.155500893 | AM158: 0.9058963122 | AN158: 1.113348372 | AO158: 0.9058963122 | AP158: 51.52217821 | AQ158: P6 | AR158: 386 | AS158: 19887.56079
H159: 2017-06-05 | I159: 6 | J159: Viernes | K159: 0.818241024 | L159: 0 | M159: 0 | N159: 0 | O159: 0.2790697674 | P159: 0.6046511628 | Q159: 0.8837209302 | R159: 1 | S159: 1 | T159: 1 | U159: 1 | V159: 50.827048 | W159: 156 | X159: 36.99474038 | AA159: 2017-01-07T11:00:00 | AB159: 7 | AD159: 9 | AE159: 1.387377294 | AF159: 0.7543360784 | AG159: 1.024699221 | AH159: 1.0036987 | AI159: 1.246804876 | AJ159: 1.212047227 | AK159: 1.079317811 | AL159: 1.147668151 | AM159: 0.9561583181 | AN159: 1.168431382 | AO159: 0.9561583181 | AP159: 54.38079237 | AQ159: P6 | AR159: 514 | AS159: 27951.72728
H160: 2017-06-06 | I160: 6 | J160: Sábado | K160: 0.8816095158 | L160: 0 | M160: 0 | N160: 0 | O160: 0.3488372093 | P160: 0.6511627907 | Q160: 0.9534883721 | R160: 1 | S160: 1 | T160: 1 | U160: 1 | V160: 54.26474174 | W160: 157 | X160: 40.43243413 | AA160: 2017-01-07T12:00:00 | AB160: 7 | AD160: 9 | AE160: 1.234345727 | AF160: 0.7614573516 | AG160: 1.001548924 | AH160: 1.006624428 | AI160: 1.27452607 | AJ160: 1.431644665 | AK160: 1.042887798 | AL160: 1.135341294 | AM160: 0.9965943893 | AN160: 1.104907237 | AO160: 0.9965943893 | AP160: 56.68056381 | AQ160: P6 | AR160: 601 | AS160: 34065.01885
H161: 2017-06-07 | I161: 6 | J161: Domingo | K161: 0.7518004195 | L161: 0 | M161: 0.04651162791 | N161: 0.1395348837 | O161: 0.511627907 | P161: 0.7441860465 | Q161: 1 | R161: 1 | S161: 1 | T161: 1 | U161: 1 | V161: 56.73552559 | W161: 158 | X161: 42.90321797 | AA161: 2017-01-07T13:00:00 | AB161: 7 | AD161: 9 | AE161: 1.141908578 | AF161: 0.8112861744 | AG161: 1.009699606 | AH161: 1.032968984 | AI161: 1.077824376 | AJ161: 1.187306027 | AK161: 1.012667015 | AL161: 1.102165936 | AM161: 0.9915277939 | AN161: 1.046918475 | AO161: 0.9915277939 | AP161: 56.39240497 | AQ161: P6 | AR161: 508 | AS161: 28647.34172
H162: 2017-06-08 | I162: 6 | J162: Laborable | K162: 0.9544158925 | L162: 0 | M162: 0 | N162: 0.005847953216 | O162: 0.2514619883 | P162: 0.5380116959 | Q162: 0.9005847953 | R162: 0.9824561404 | S162: 1 | T162: 1 | U162: 1 | V162: 65.33198262 | W162: 159 | X162: 51.499675 | AA162: 2017-01-07T14:00:00 | AB162: 7 | AD162: 9 | AE162: 0.9222944115 | AF162: 0.8328434051 | AG162: 1.010269132 | AH162: 1.046078695 | AI162: 1.066149656 | AJ162: 1.05590914 | AK162: 0.9568068765 | AL162: 1.045157223 | AM162: 1.003271603 | AN162: 0.9640378563 | AO162: 1.003271603 | AP162: 57.06032539 | AQ162: P6 | AR162: 84 | AS162: 4793.067333
H163: 2017-06-09 | I163: 6 | J163: Laborable | K163: 0.04732561382 | L163: 0 | M163: 0 | N163: 0.005847953216 | O163: 0.2514619883 | P163: 0.5380116959 | Q163: 0.9005847953 | R163: 0.9824561404 | S163: 1 | T163: 1 | U163: 1 | V163: 35.33705024 | W163: 160 | X163: 21.50474262 | AA163: 2017-01-07T15:00:00 | AB163: 7 | AD163: 9 | AE163: 0.8261329349 | AF163: 0.7711766475 | AG163: 0.9594445203 | AH163: 0.9820955829 | AI163: 0.8398479321 | AJ163: 0.9704926435 | AK163: 0.9605176812 | AL163: 1.028939373 | AM163: 0.8979235528 | AN163: 0.9013998142 | AO163: 0.8979235528 | AP163: 51.06873346 | AQ163: P6 | AR163: 483 | AS163: 24666.19826
H164: 2017-06-10 | I164: 6 | J164: Laborable | K164: 0.6035488316 | L164: 0 | M164: 0 | N164: 0.005847953216 | O164: 0.2514619883 | P164: 0.5380116959 | Q164: 0.9005847953 | R164: 0.9824561404 | S164: 1 | T164: 1 | U164: 1 | V164: 59.21284209 | W164: 161 | X164: 45.38053447 | AA164: 2017-01-07T16:00:00 | AB164: 7 | AD164: 9 | AE164: 0.8092789172 | AF164: 0.6854444454 | AG164: 0.9443672222 | AH164: 0.9688027462 | AI164: 0.7845260538 | AJ164: 0.979475197 | AK164: 0.9812354908 | AL164: 1.019032522 | AM164: 0.8489486808 | AN164: 0.8849385791 | AO164: 0.8489486808 | AP164: 48.28332408 | AQ164: P6 | AR164: 482 | AS164: 23272.56221
H165: 2017-06-11 | I165: 6 | J165: Laborable | K165: 0.9242421789 | L165: 0 | M165: 0 | N165: 0.005847953216 | O165: 0.2514619883 | P165: 0.5380116959 | Q165: 0.9005847953 | R165: 0.9824561404 | S165: 1 | T165: 1 | U165: 1 | V165: 63.343659 | W165: 162 | X165: 49.51135139 | AA165: 2017-01-07T17:00:00 | AB165: 7 | AD165: 9 | AE165: 0.9101747802 | AF165: 0.8055944099 | AG165: 1.006610728 | AH165: 1.046255784 | AI165: 1.048013911 | AJ165: 1.160139265 | AK165: 1.03931806 | AL165: 1.084551745 | AM165: 0.8323220437 | AN165: 0.9646183247 | AO165: 0.8323220437 | AP165: 47.33769647 | AQ165: P6 | AR165: 333 | AS165: 15763.45293
H166: 2017-06-12 | I166: 6 | J166: Viernes | K166: 0.08303168952 | L166: 0 | M166: 0 | N166: 0 | O166: 0.2790697674 | P166: 0.6046511628 | Q166: 0.8837209302 | R166: 1 | S166: 1 | T166: 1 | U166: 1 | V166: 33.96207003 | W166: 163 | X166: 20.12976242 | AA166: 2017-01-07T18:00:00 | AB166: 7 | AD166: 9 | AE166: 1.183066981 | AF166: 1.640954426 | AG166: 1.252929457 | AH166: 1.21179304 | AI166: 1.435293035 | AJ166: 1.481307666 | AK166: 1.254005434 | AL166: 1.207324971 | AM166: 1.17738873 | AN166: 1.184704116 | AO166: 1.17738873 | AP166: 66.96310734 | AQ166: P6 | AR166: 290 | AS166: 19419.30113
H167: 2017-06-13 | I167: 6 | J167: Sábado | K167: 0.4481650566 | L167: 0 | M167: 0 | N167: 0 | O167: 0.3488372093 | P167: 0.6511627907 | Q167: 0.9534883721 | R167: 1 | S167: 1 | T167: 1 | U167: 1 | V167: 48.17231185 | W167: 164 | X167: 34.34000423 | AA167: 2017-01-07T19:00:00 | AB167: 7 | AD167: 9 | AE167: 1.37862593 | AF167: 1.986535424 | AG167: 1.392568294 | AH167: 1.274177058 | AI167: 1.587597926 | AJ167: 1.804492316 | AK167: 1.519841962 | AL167: 1.225331064 | AM167: 1.317880218 | AN167: 1.329369385 | AO167: 1.317880218 | AP167: 74.95345606 | AQ167: P6 | AR167: 31 | AS167: 2323.557138
H168: 2017-06-14 | I168: 6 | J168: Domingo | K168: 0.6484261694 | L168: 0 | M168: 0.04651162791 | N168: 0.1395348837 | O168: 0.511627907 | P168: 0.7441860465 | Q168: 1 | R168: 1 | S168: 1 | T168: 1 | U168: 1 | V168: 42.3925495 | W168: 165 | X168: 28.56024188 | AA168: 2017-01-07T20:00:00 | AB168: 7 | AD168: 9 | AE168: 1.421817221 | AF168: 1.71466061 | AG168: 1.363107468 | AH168: 1.278048981 | AI168: 1.527693738 | AJ168: 1.858757328 | AK168: 1.437582326 | AL168: 1.18257759 | AM168: 1.535967397 | AN168: 1.344655452 | AO168: 1.535967397 | AP168: 87.35700201 | AQ168: P6 | AR168: 26 | AS168: 2271.282052
H169: 2017-06-15 | I169: 6 | J169: Laborable | K169: 0.6572986567 | L169: 0 | M169: 0 | N169: 0.005847953216 | O169: 0.2514619883 | P169: 0.5380116959 | Q169: 0.9005847953 | R169: 0.9824561404 | S169: 1 | T169: 1 | U169: 1 | V169: 55.38021853 | W169: 166 | X169: 41.54791092 | AA169: 2017-01-07T21:00:00 | AB169: 7 | AD169: 9 | AE169: 1.366541138 | AF169: 1.71466061 | AG169: 1.321739804 | AH169: 1.239124619 | AI169: 1.566098266 | AJ169: 1.743445092 | AK169: 1.239975034 | AL169: 1.149658488 | AM169: 1.710798984 | AN169: 1.316712866 | AO169: 1.710798984 | AP169: 97.3004183 | AQ169: P6 | AR169: 22 | AS169: 2140.609203
H170: 2017-06-16 | I170: 6 | J170: Laborable | K170: 0.09009721568 | L170: 0 | M170: 0 | N170: 0.005847953216 | O170: 0.2514619883 | P170: 0.5380116959 | Q170: 0.9005847953 | R170: 0.9824561404 | S170: 1 | T170: 1 | U170: 1 | V170: 31.44268059 | W170: 167 | X170: 17.61037298 | AA170: 2017-01-07T22:00:00 | AB170: 7 | AD170: 9 | AE170: 1.235020936 | AF170: 1.822068925 | AG170: 1.181152828 | AH170: 1.160914702 | AI170: 1.391452676 | AJ170: 1.336557804 | AK170: 1.092018691 | AL170: 1.022431597 | AM170: 1.366620029 | AN170: 1.133455842 | AO170: 1.366620029 | AP170: 77.72549657 | AQ170: P6 | AR170: 20 | AS170: 1554.509931
H171: 2017-06-17 | I171: 6 | J171: Laborable | K171: 0.6453913943 | L171: 0 | M171: 0 | N171: 0.005847953216 | O171: 0.2514619883 | P171: 0.5380116959 | Q171: 0.9005847953 | R171: 0.9824561404 | S171: 1 | T171: 1 | U171: 1 | V171: 53.7996556 | W171: 168 | X171: 39.96734798 | AA171: 2017-01-07T23:00:00 | AB171: 7 | AD171: 9 | AE171: 1.006767909 | AF171: 1.774988047 | AG171: 1.085113814 | AH171: 1.119605478 | AI171: 1.165404892 | AJ171: 1.108182605 | AK171: 0.9741202234 | AL171: 0.9783365658 | AM171: 1.350203586 | AN171: 1.264803533 | AO171: 1.350203586 | AP171: 76.79182355 | AQ171: P6 | AR171: 20 | AS171: 1535.836471
H172: 2017-06-18 | I172: 6 | J172: Laborable | K172: 0.9319122603 | L172: 0 | M172: 0 | N172: 0.005847953216 | O172: 0.2514619883 | P172: 0.5380116959 | Q172: 0.9005847953 | R172: 0.9824561404 | S172: 1 | T172: 1 | U172: 1 | V172: 61.34418353 | W172: 169 | X172: 47.51187591 | AA172: 2017-01-08 | AB172: 8 | AC172: 1 | AD172: =IF(AC172=1,RANDBETWEEN(1,10),"") -> 4 | AE172: 0.9122481014 | AF172: 1.381861575 | AG172: 1.255243709 | AH172: 1.197785978 | AI172: 1.257733625 | AJ172: 0.8263540209 | AK172: 0.9079493198 | AL172: 1.03509917 | AM172: 1.033466952 | AN172: 1.314182723 | AO172: 1.197785978 | AP172: 39.48457867 | AQ172: P6 | AR172: 21 | AS172: 829.176152
H173: 2017-06-19 | I173: 6 | J173: Viernes | K173: 0.6857572822 | L173: 0 | M173: 0 | N173: 0 | O173: 0.2790697674 | P173: 0.6046511628 | Q173: 0.8837209302 | R173: 1 | S173: 1 | T173: 1 | U173: 1 | V173: 50.38693605 | W173: 170 | X173: 36.55462843 | AA173: 2017-01-08T01:00:00 | AB173: 8 | AD173: =AD172 -> 4 | AE173: 0.7948963171 | AF173: 0.9066679435 | AG173: 1.003684321 | AH173: 1.106919531 | AI173: 0.9294352024 | AJ173: 0.3995086511 | AK173: 0.8474515245 | AL173: 0.9465218115 | AM173: 0.8586140047 | AN173: 1.025667117 | AO173: 1.106919531 | AP173: 36.4891993 | AQ173: P6 | AR173: 19 | AS173: 693.2947867
H174: 2017-06-20 | I174: 6 | J174: Sábado | K174: 0.6932041136 | L174: 0 | M174: 0 | N174: 0 | O174: 0.3488372093 | P174: 0.6511627907 | Q174: 0.9534883721 | R174: 1 | S174: 1 | T174: 1 | U174: 1 | V174: 51.6626398 | W174: 171 | X174: 37.83033218 | AA174: 2017-01-08T02:00:00 | AB174: 8 | AD174: =AD173 -> 4 | AE174: 0.7241757571 | AF174: 0.7462599849 | AG174: 0.6677218545 | AH174: 0.9523180119 | AI174: 0.8099241434 | AJ174: 0.2241127584 | AK174: 0.7461767125 | AL174: 0.9015964935 | AM174: 0.6905835618 | AN174: 0.9066906638 | AO174: 0.9523180119 | AP174: 31.39281652 | AQ174: P6 | AR174: 19 | AS174: 596.4635139
H175: 2017-06-21 | I175: 6 | J175: Domingo | K175: 0.4999421597 | L175: 0 | M175: 0.04651162791 | N175: 0.1395348837 | O175: 0.511627907 | P175: 0.7441860465 | Q175: 1 | R175: 1 | S175: 1 | T175: 1 | U175: 1 | V175: 39.13357182 | W175: 172 | X175: 25.3012642 | AA175: 2017-01-08T03:00:00 | AB175: 8 | AD175: 4 | AE175: 0.7451055267 | AF175: 0.6044270081 | AG175: 0.5284980358 | AH175: 0.8286534703 | AI175: 0.7410095954 | AJ175: 0.1408014515 | AK175: 0.694649153 | AL175: 0.8416728495 | AM175: 0.6173057865 | AN175: 0.845247571 | AO175: 0.8286534703 | AP175: 27.31625994 | AQ175: P6 | AR175: 25 | AS175: 682.9064984
H176: 2017-06-22 | I176: 6 | J176: Laborable | K176: 0.4883603872 | L176: 0 | M176: 0 | N176: 0.005847953216 | O176: 0.2514619883 | P176: 0.5380116959 | Q176: 0.9005847953 | R176: 0.9824561404 | S176: 1 | T176: 1 | U176: 1 | V176: 44.48547383 | W176: 173 | X176: 30.65316621 | AA176: 2017-01-08T04:00:00 | AB176: 8 | AD176: 4 | AE176: 0.7026158542 | AF176: 0.5818914044 | AG176: 0.4462057245 | AH176: 0.7230661154 | AI176: 0.7000709129 | AJ176: 0.1407331143 | AK176: 0.6210408842 | AL176: 0.7562614819 | AM176: 0.5678204695 | AN176: 0.7808996715 | AO176: 0.7230661154 | AP176: 23.83561122 | AQ176: P6 | AR176: 56 | AS176: 1334.794229
H177: 2017-06-23 | I177: 6 | J177: Laborable | K177: 0.9721323361 | L177: 0 | M177: 0 | N177: 0.005847953216 | O177: 0.2514619883 | P177: 0.5380116959 | Q177: 0.9005847953 | R177: 0.9824561404 | S177: 1 | T177: 1 | U177: 1 | V177: 64.11703145 | W177: 174 | X177: 50.28472383 | AA177: 2017-01-08T05:00:00 | AB177: 8 | AD177: 4 | AE177: 0.7247876807 | AF177: 0.5661390675 | AG177: 0.4131007602 | AH177: 0.7334326036 | AI177: 0.648806951 | AJ177: 0.1956845124 | AK177: 0.6800355612 | AL177: 0.7161626134 | AM177: 0.566236117 | AN177: 0.7512895734 | AO177: 0.7334326036 | AP177: 24.17733874 | AQ177: P6 | AR177: 63 | AS177: 1523.17234
H178: 2017-06-24 | I178: 6 | J178: Laborable | K178: 0.03507375361 | L178: 0 | M178: 0 | N178: 0.005847953216 | O178: 0.2514619883 | P178: 0.5380116959 | Q178: 0.9005847953 | R178: 0.9824561404 | S178: 1 | T178: 1 | U178: 1 | V178: 32.95228209 | W178: 175 | X178: 19.11997447 | AA178: 2017-01-08T06:00:00 | AB178: 8 | AD178: 4 | AE178: 0.7480023754 | AF178: 0.5901786077 | AG178: 0.4346373457 | AH178: 0.746071901 | AI178: 0.648806951 | AJ178: 0.3590423773 | AK178: 0.8074819673 | AL178: 0.7920116534 | AM178: 0.6399245241 | AN178: 0.7351679384 | AO178: 0.746071901 | AP178: 24.59398857 | AQ178: P6 | AR178: 310 | AS178: 7624.136457
H179: 2017-06-25 | I179: 6 | J179: Laborable | K179: 0.5921527448 | L179: 0 | M179: 0 | N179: 0.005847953216 | O179: 0.2514619883 | P179: 0.5380116959 | Q179: 0.9005847953 | R179: 0.9824561404 | S179: 1 | T179: 1 | U179: 1 | V179: 51.8497706 | W179: 176 | X179: 38.01746299 | AA179: 2017-01-08T07:00:00 | AB179: 8 | AD179: 4 | AE179: 0.7856301676 | AF179: 0.7031165898 | AG179: 0.534671563 | AH179: 0.8386717531 | AI179: 0.7147842559 | AJ179: 0.7156831096 | AK179: 0.9194997 | AL179: 0.9348024705 | AM179: 0.8974825255 | AN179: 0.5477949234 | AO179: 0.8386717531 | AP179: 27.64650898 | AQ179: P6 | AR179: 368 | AS179: 10173.91531
H180: 2017-06-26 | I180: 6 | J180: Viernes | K180: 0.01360787481 | L180: 0 | M180: 0 | N180: 0 | O180: 0.2790697674 | P180: 0.6046511628 | Q180: 0.8837209302 | R180: 1 | S180: 1 | T180: 1 | U180: 1 | V180: 36.87505452 | W180: 177 | X180: 23.0427469 | AA180: 2017-01-08T08:00:00 | AB180: 8 | AD180: 4 | AE180: 0.8226112934 | AF180: 0.5847104998 | AG180: 0.5112877623 | AH180: 0.7853474822 | AI180: 0.5959135131 | AJ180: 0.8444960147 | AK180: 1.001122138 | AL180: 1.091968783 | AM180: 1.043121693 | AN180: 0.532053494 | AO180: 0.7853474822 | AP180: 25.88869381 | AQ180: P6 | AR180: 403 | AS180: 10433.1436
H181: 2017-06-27 | I181: 6 | J181: Sábado | K181: 0.9882260573 | L181: 0 | M181: 0 | N181: 0 | O181: 0.3488372093 | P181: 0.6511627907 | Q181: 0.9534883721 | R181: 1 | S181: 1 | T181: 1 | U181: 1 | V181: 65.97129613 | W181: 178 | X181: 52.13898852 | AA181: 2017-01-08T09:00:00 | AB181: 8 | AD181: 4 | AE181: 0.9203487152 | AF181: 0.7739160242 | AG181: 0.7724174607 | AH181: 0.8191873198 | AI181: 0.6939251252 | AJ181: 0.9515502535 | AK181: 0.9926403483 | AL181: 1.093066771 | AM181: 1.027989702 | AN181: 0.6265561819 | AO181: 0.8191873198 | AP181: 27.00421173 | AQ181: P6 | AR181: 330 | AS181: 8911.389871
H182: 2017-06-28 | I182: 6 | J182: Domingo | K182: 0.04513710014 | L182: 0 | M182: 0.04651162791 | N182: 0.1395348837 | O182: 0.511627907 | P182: 0.7441860465 | Q182: 1 | R182: 1 | S182: 1 | T182: 1 | U182: 1 | V182: 10.6841925 | W182: 179 | X182: 0 | AA182: 2017-01-08T10:00:00 | AB182: 8 | AD182: 4 | AE182: 1.001766784 | AF182: 1.003156334 | AG182: 1.053168565 | AH182: 0.9765681487 | AI182: 0.7914439907 | AJ182: 0.9412443307 | AK182: 1.023973824 | AL182: 1.099341435 | AM182: 1.156117128 | AN182: 0.7349104493 | AO182: 0.9765681487 | AP182: 32.19221345 | AQ182: P6 | AR182: 413 | AS182: 13295.38416
H183: 2017-06-29 | I183: 6 | J183: Laborable | K183: 0.3629458737 | L183: 0 | M183: 0 | N183: 0.005847953216 | O183: 0.2514619883 | P183: 0.5380116959 | Q183: 0.9005847953 | R183: 0.9824561404 | S183: 1 | T183: 1 | U183: 1 | V183: 42.73790667 | W183: 180 | X183: 28.90559905 | AA183: 2017-01-08T11:00:00 | AB183: 8 | AD183: 4 | AE183: 1.065399623 | AF183: 1.115381654 | AG183: 1.092746101 | AH183: 0.9866884266 | AI183: 0.8524864279 | AJ183: 0.9541519294 | AK183: 1.033465502 | AL183: 1.096180036 | AM183: 1.180796899 | AN183: 0.8058739973 | AO183: 0.9866884266 | AP183: 32.52582473 | AQ183: P6 | AR183: 422 | AS183: 13725.89804
H184: 2017-06-30 | I184: 6 | J184: Laborable | K184: 0.8931679569 | L184: 0 | M184: 0 | N184: 0.005847953216 | O184: 0.2514619883 | P184: 0.5380116959 | Q184: 0.9005847953 | R184: 0.9824561404 | S184: 1 | T184: 1 | U184: 1 | V184: 51.87390292 | W184: 181 | X184: 38.0415953 | AA184: 2017-01-08T12:00:00 | AB184: 8 | AD184: 4 | AE184: 1.009300704 | AF184: 1.285135532 | AG184: 1.148591536 | AH184: 1.050998427 | AI184: 0.8697542003 | AJ184: 1.022944924 | AK184: 1.018458894 | AL184: 1.091505515 | AM184: 1.119513183 | AN184: 0.9209729217 | AO184: 1.050998427 | AP184: 34.64578049 | AQ184: P6 | AR184: 448 | AS184: 15521.30966
H185: 2017-07-01 | I185: 7 | J185: Laborable | K185: 0.6807821927 | L185: 0 | M185: 0 | N185: 0 | O185: 0.1843575419 | P185: 0.4413407821 | Q185: 0.8212290503 | R185: 0.9608938547 | S185: 1 | T185: 1 | U185: 1 | V185: 56.72789746 | W185: 182 | X185: 46.16321874 | AA185: 2017-01-08T13:00:00 | AB185: 8 | AD185: 4 | AE185: 1.053153612 | AF185: 1.053296423 | AG185: 1.095742587 | AH185: 1.030917743 | AI185: 0.8797666117 | AJ185: 0.9455153451 | AK185: 1.001847613 | AL185: 1.060395732 | AM185: 1.089177873 | AN185: 0.9489642072 | AO185: 1.030917743 | AP185: 33.98382805 | AQ185: P6 | AR185: 448 | AS185: 15224.75496
H186: 2017-07-02 | I186: 7 | J186: Laborable | K186: 0.3882246488 | L186: 0 | M186: 0 | N186: 0 | O186: 0.1843575419 | P186: 0.4413407821 | Q186: 0.8212290503 | R186: 0.9608938547 | S186: 1 | T186: 1 | U186: 1 | V186: 46.60665885 | W186: 183 | X186: 36.04198013 | AA186: 2017-01-08T14:00:00 | AB186: 8 | AD186: 4 | AE186: 1.024587326 | AF186: 0.9698162318 | AG186: 1.034566235 | AH186: 1.012568027 | AI186: 0.9296634407 | AJ186: 0.907625505 | AK186: 0.9629542069 | AL186: 0.9689680305 | AM186: 0.9587515343 | AN186: 0.9682843781 | AO186: 1.012568027 | AP186: 33.37893632 | AQ186: P6 | AR186: 285 | AS186: 9512.996853
H187: 2017-07-03 | I187: 7 | J187: Viernes | K187: 0.756622656 | L187: 0 | M187: 0 | N187: 0 | O187: 0.1818181818 | P187: 0.4318181818 | Q187: 0.8181818182 | R187: 0.9772727273 | S187: 1 | T187: 1 | U187: 1 | V187: 58.65365606 | W187: 184 | X187: 48.08897734 | AA187: 2017-01-08T15:00:00 | AB187: 8 | AD187: 4 | AE187: 0.8904426587 | AF187: 0.7062336688 | AG187: 0.9688941569 | AH187: 0.9394474927 | AI187: 0.7960830078 | AJ187: 0.8104731758 | AK187: 0.957104987 | AL187: 0.9352788238 | AM187: 0.9434181415 | AN187: 0.8904541406 | AO187: 0.9394474927 | AP187: 30.96854455 | AQ187: P6 | AR187: 466 | AS187: 14431.34176
H188: 2017-07-04 | I188: 7 | J188: Sábado | K188: 0.2988600288 | L188: 0 | M188: 0 | N188: 0 | O188: 0.1860465116 | P188: 0.6279069767 | Q188: 0.8837209302 | R188: 1 | S188: 1 | T188: 1 | U188: 1 | V188: 40.59759724 | W188: 185 | X188: 30.03291852 | AA188: 2017-01-08T16:00:00 | AB188: 8 | AD188: 4 | AE188: 0.894724163 | AF188: 0.5480037506 | AG188: 0.8241872691 | AH188: 0.9040642724 | AI188: 0.8066202352 | AJ188: 0.8167657819 | AK188: 0.9875852982 | AL188: 0.9400818075 | AM188: 0.9286439428 | AN188: 0.8574091301 | AO188: 0.9040642724 | AP188: 29.80214957 | AQ188: P6 | AR188: 479 | AS188: 14275.22964
H189: 2017-07-05 | I189: 7 | J189: Domingo | K189: 0.3928701736 | L189: 0 | M189: 0 | N189: 0 | O189: 0.3636363636 | P189: 0.75 | Q189: 0.9090909091 | R189: 1 | S189: 1 | T189: 1 | U189: 1 | V189: 41.17484098 | W189: 186 | X189: 30.61016226 | AA189: 2017-01-08T17:00:00 | AB189: 8 | AD189: 4 | AE189: 0.9908552715 | AF189: 0.6403270605 | AG189: 0.9786001977 | AH189: 1.01722884 | AI189: 0.9791659619 | AJ189: 0.9505709464 | AK189: 1.062490406 | AL189: 1.033338099 | AM189: 1.091860101 | AN189: 0.8878607496 | AO189: 1.01722884 | AP189: 33.53257834 | AQ189: P6 | AR189: 480 | AS189: 16095.63761
H190: 2017-07-06 | I190: 7 | J190: Laborable | K190: 0.2892055388 | L190: 0 | M190: 0 | N190: 0 | O190: 0.1843575419 | P190: 0.4413407821 | Q190: 0.8212290503 | R190: 0.9608938547 | S190: 1 | T190: 1 | U190: 1 | V190: 41.85318196 | W190: 187 | X190: 31.28850324 | AA190: 2017-01-08T18:00:00 | AB190: 8 | AD190: 4 | AE190: 1.320962092 | AF190: 1.180369489 | AG190: 1.235486933 | AH190: 1.127108518 | AI190: 1.416169705 | AJ190: 1.518162717 | AK190: 1.230738451 | AL190: 1.174645355 | AM190: 1.348200029 | AN190: 1.220271702 | AO190: 1.127108518 | AP190: 37.15472191 | AQ190: P6 | AR190: 448 | AS190: 16645.31541
H191: 2017-07-07 | I191: 7 | J191: Laborable | K191: 0.9119523097 | L191: 0 | M191: 0 | N191: 0 | O191: 0.1843575419 | P191: 0.4413407821 | Q191: 0.8212290503 | R191: 0.9608938547 | S191: 1 | T191: 1 | U191: 1 | V191: 63.866225 | W191: 188 | X191: 53.30154628 | AA191: 2017-01-08T19:00:00 | AB191: 8 | AD191: 4 | AE191: 1.430798738 | AF191: 1.431397292 | AG191: 1.524807083 | AH191: 1.194226313 | AI191: 1.859385429 | AJ191: 1.743445092 | AK191: 1.45403652 | AL191: 1.207376779 | AM191: 1.410595923 | AN191: 1.426264176 | AO191: 1.194226313 | AP191: 39.3672356 | AQ191: P6 | AR191: 90 | AS191: 3543.051204
H192: 2017-07-08 | I192: 7 | J192: Laborable | K192: 0.07046185153 | L192: 0 | M192: 0 | N192: 0 | O192: 0.1843575419 | P192: 0.4413407821 | Q192: 0.8212290503 | R192: 0.9608938547 | S192: 1 | T192: 1 | U192: 1 | V192: 33.6445805 | W192: 189 | X192: 23.07990178 | AA192: 2017-01-08T20:00:00 | AB192: 8 | AD192: 4 | AE192: 1.447957679 | AF192: 1.802150664 | AG192: 1.633918423 | AH192: 1.257393768 | AI192: 1.705360154 | AJ192: 1.743445092 | AK192: 1.483413856 | AL192: 1.166531864 | AM192: 1.353305847 | AN192: 1.566121549 | AO192: 1.257393768 | AP192: 41.44952773 | AQ192: P6 | AR192: 26 | AS192: 1077.687721
H193: 2017-07-09 | I193: 7 | J193: Laborable | K193: 0.3832950567 | L193: 0 | M193: 0 | N193: 0 | O193: 0.1843575419 | P193: 0.4413407821 | Q193: 0.8212290503 | R193: 0.9608938547 | S193: 1 | T193: 1 | U193: 1 | V193: 48.34078292 | W193: 190 | X193: 37.7761042 | AA193: 2017-01-08T21:00:00 | AB193: 8 | AD193: 4 | AE193: 1.42449969 | AF193: 1.71466061 | AG193: 1.753416346 | AH193: 1.333060533 | AI193: 1.617381569 | AJ193: 1.743445092 | AK193: 1.309134333 | AL193: 1.130664047 | AM193: 1.26829599 | AN193: 1.626408791 | AO193: 1.333060533 | AP193: 43.94385509 | AQ193: P6 | AR193: 24 | AS193: 1054.652522
H194: 2017-07-10 | I194: 7 | J194: Viernes | K194: 0.4864232157 | L194: 0 | M194: 0 | N194: 0 | O194: 0.1818181818 | P194: 0.4318181818 | Q194: 0.8181818182 | R194: 0.9772727273 | S194: 1 | T194: 1 | U194: 1 | V194: 59.13356199 | W194: 191 | X194: 48.56888327 | AA194: 2017-01-08T22:00:00 | AB194: 8 | AD194: 4 | AE194: 1.354686941 | AF194: 1.60649054 | AG194: 1.661355983 | AH194: 1.259393246 | AI194: 1.38397952 | AJ194: 1.743445092 | AK194: 1.194543909 | AL194: 1.000818675 | AM194: 1.118759931 | AN194: 1.512424128 | AO194: 1.259393246 | AP194: 41.5154398 | AQ194: P6 | AR194: 20 | AS194: 830.3087961
H195: 2017-07-11 | I195: 7 | J195: Sábado | K195: 0.1370847753 | L195: 0 | M195: 0 | N195: 0 | O195: 0.1860465116 | P195: 0.6279069767 | Q195: 0.8837209302 | R195: 1 | S195: 1 | T195: 1 | U195: 1 | V195: 36.77827254 | W195: 192 | X195: 26.21359382 | AA195: 2017-01-08T23:00:00 | AB195: 8 | AD195: 4 | AE195: 1.210442931 | AF195: 1.239208044 | AG195: 1.427050049 | AH195: 1.178882079 | AI195: 1.372329472 | AJ195: 1.897579631 | AK195: 1.062204891 | AL195: 0.9857097018 | AM195: 1.090018141 | AN195: 1.568229822 | AO195: 1.178882079 | AP195: 38.8614185 | AQ195: P6 | AR195: 21 | AS195: 816.0897884
H196: 2017-07-12 | I196: 7 | J196: Domingo | K196: 0.3074620628 | L196: 0 | M196: 0 | N196: 0 | O196: 0.3636363636 | P196: 0.75 | Q196: 0.9090909091 | R196: 1 | S196: 1 | T196: 1 | U196: 1 | V196: 34.03479018 | W196: 193 | X196: 23.47011146 | AA196: 2017-01-09 | AB196: 9 | AD196: 4 | AE196: 0.805318348 | AF196: 0.9665165329 | AG196: 0.8035235986 | AH196: 1.022306021 | AI196: 1.192480246 | AJ196: 1.310844932 | AK196: 0.8916608343 | AL196: 0.9012719675 | AM196: 0.8576862969 | AN196: 0.9269735146 | AO196: 1.022306021 | AP196: =VLOOKUP(AB196,$W$4:$X$368,2,FALSE)*AO196 -> 58.70459325 | AQ196: P6 | AR196: 22 | AS196: 1291.501052
H197: 2017-07-13 | I197: 7 | J197: Laborable | K197: =RAND() -> 0.9021717504 | L197: 0 | M197: 0 | N197: 0 | O197: 0.1843575419 | P197: 0.4413407821 | Q197: 0.8212290503 | R197: 0.9608938547 | S197: 1 | T197: 1 | U197: 1 | V197: =IF(K197<L197,$L$3,IF(K197<M197,$M$3,IF(K197<N197,$N$3,IF(K197<O197,$O$3,IF(K197<P197,$P$3,IF(K197<Q197,$Q$3,IF(K197<R197,$R$3,IF(K197<S197,$S$3,IF(K197<T197,$T$3,$U$3)))))))))+RANDBETWEEN(0,9)+RAND() -> 67.25413359 | W197: 194 | X197: =MAX(V197-VLOOKUP(I197,$A$11:$F$22,6,FALSE),0) -> 56.68945487 | AA197: 2017-01-09T01:00:00 | AB197: 9 | AD197: 4 | AE197: 0.7280170893 | AF197: 0.4275970439 | AG197: 0.5450067355 | AH197: 0.7430217823 | AI197: 1.082714262 | AJ197: 0.9088814455 | AK197: 0.8039636666 | AL197: 0.8025557113 | AM197: 0.7014403621 | AN197: 0.7123296383 | AO197: =IF(AD197=1,AE197,IF(AD197=2,AF197,IF(AD197=3,AG197,IF(AD197=4,AH197,IF(AD197=5,AI197,IF(AD197=6,AJ197,IF(AD197=7,AK197,IF(AD197=8,AL197,IF(AD197=9,AM197,IF(AD197=10,AN197)))))))))) -> 0.7430217823 | AP197: 42.66705919 | AQ197: P6 | AR197: 19 | AS197: 810.6741247
H198: 2017-07-14 | I198: 7 | J198: Laborable | K198: 0.3734086339 | L198: 0 | M198: 0 | N198: 0 | O198: 0.1843575419 | P198: 0.4413407821 | Q198: 0.8212290503 | R198: 0.9608938547 | S198: 1 | T198: 1 | U198: 1 | V198: 47.43606775 | W198: 195 | X198: 36.87138903 | AA198: =AA197+1/24 -> 2017-01-09T02:00:00 | AB198: 9 | AD198: 4 | AE198: 0.6718018639 | AF198: 0.2052012413 | AG198: 0.3023569727 | AH198: 0.5248393205 | AI198: 0.9054158817 | AJ198: 0.5723145875 | AK198: 0.7429290494 | AL198: 0.7598500065 | AM198: 0.6245032301 | AN198: 0.6746423569 | AO198: 0.5248393205 | AP198: 30.13821518 | AQ198: P6 | AR198: 22 | AS198: 663.0407339
H199: 2017-07-15 | I199: 7 | J199: Laborable | K199: 0.1717325829 | L199: 0 | M199: 0 | N199: 0 | O199: 0.1843575419 | P199: 0.4413407821 | Q199: 0.8212290503 | R199: 0.9608938547 | S199: 1 | T199: 1 | U199: 1 | V199: 31.68537622 | W199: 196 | X199: 21.1206975 | AA199: 2017-01-09T03:00:00 | AB199: 9 | AD199: 4 | AE199: 0.6605791897 | AF199: 0.1803713385 | AG199: 0.2977284046 | AH199: 0.4856329334 | AI199: 0.7583409846 | AJ199: 0.3410356689 | AK199: 0.7088587053 | AL199: 0.6973856306 | AM199: 0.5942021894 | AN199: 0.6143750745 | AO199: 0.4856329334 | AP199: 27.88683941 | AQ199: P6 | AR199: 28 | AS199: =AP199*AR199 -> 780.8315034
H200: 2017-07-16 | I200: 7 | J200: Laborable | K200: 0.4761062444 | L200: 0 | M200: 0 | N200: 0 | O200: 0.1843575419 | P200: 0.4413407821 | Q200: 0.8212290503 | R200: 0.9608938547 | S200: 1 | T200: 1 | U200: 1 | V200: 52.01503794 | W200: 197 | X200: 41.45035922 | AA200: 2017-01-09T04:00:00 | AB200: 9 | AD200: 4 | AE200: 0.6564442341 | AF200: 0.1805645296 | AG200: 0.2996035592 | AH200: 0.4701842834 | AI200: 0.676073845 | AJ200: 0.2136534548 | AK200: 0.6699496571 | AL200: 0.6409030933 | AM200: 0.5510505474 | AN200: 0.5805980102 | AO200: 0.4701842834 | AP200: 26.99972078 | AQ200: P6 | AR200: 56 | AS200: 1511.984364
... 925 more rows

Sheet Hoja2
N1: Diferencia | O1: Variación categoría
N2: =M305-M5 -> 28804.62041 | O2: =N2/20 -> 1440.23102 | BD2: Gráfico Benef | BI2: Min | BJ2: =MIN(BD5:BD305) -> -12418.15006 | BQ2: Gráfico Benef cierre | BW2: Min | BX2: =MIN(BQ5:BQ305) -> 
AI3: Resultados | AX3: Gráfico MP | BI3: Max | BJ3: =MAX(BD5:BD305) -> 16386.47035 | BW3: Max | BX3: =MAX(BQ5:BQ305) -> 
B4: P1 | C4: P2 | D4: P3 | E4: P4 | F4: P5 | G4: P6 | H4: MP mercado | I4: MP cliente | J4: Coste | M4: Ordenado | N4: Diferencia | O4: Categoria | P4: Categoria € | R4: Orden | S4: Categorias | T4: Valores | AI4: coste | AJ4: P1 | AK4: P2 | AL4: P3 | AM4: P4 | AN4: P5 | AO4: P6 | AP4: Mercado | AQ4: Cliente | AS4: grupo | AX4: Mp | AY4: Cantidad | AZ4: Agregado | BD4: Benef/perdida | BE4: diferencia | BF4: Categoria | BI4: dif | BJ4: =(ABS(BJ3)+ABS(BJ2))/20 -> 1440.23102 | BP4: Benef/perdida gráfico | BQ4: Benef/perdida | BR4: diferencia | BS4: Categoria | BT4: Buscar 0 | BW4: dif | BX4: =(ABS(BX3)+ABS(BX2))/20 -> 
A5: 1 | B5: 48.78507234 | C5: 46.68757519 | D5: 50.93484245 | E5: 46.39176166 | F5: 50.81350353 | G5: 45.16399054 | H5: 45.85497282 | I5: 46.59417318 | J5: 80810.79063 | L5: 1 | M5: 62517.85281 | N5: 0 | O5: 0 | P5: 62517.85281 | R5: 0 | S5: =$M$5+R5*$O$2 -> 62517.85281 | T5: 2 | AI5: =J5 -> 80810.79063 | AJ5: =B5 -> 48.78507234 | AK5: =C5 -> 46.68757519 | AL5: 50.93484245 | AM5: 46.39176166 | AN5: 50.81350353 | AO5: 45.16399054 | AP5: =H5 -> 45.85497282 | AQ5: =I5 -> 46.59417318 | AS5: =ROUND(AP5,0) -> 46 | AX5: 32 | AY5: =COUNTIF($AS$5:$AS$305,AX5) -> 0 | AZ5: =AY5 -> 0 | BC5: 1 | BD5: =Resultados!$K$60-M5 -> 16386.47035 | BE5: =BD5+ABS($BJ$2) -> 28804.62041 | BF5: =ROUND(BE5/$BJ$4,0) -> 20 | BG5: 1 | BO5: 1 | BP5: 15133.68047 | BQ5: =Resultados!$K$60-M5-(Resultados!$D$88-VLOOKUP(M5,$AI$5:$AP$305,8,FALSE))*Resultados!$D$90*8760 -> 11181.51924 | BR5: =BP5+ABS($BX$2) ->  | BS5: =ROUND(BR5/$BX$4,0) ->  | BT5: =IF(BV5=$BT$307,0,BV5) -> 15133.68047 | BU5: 1 | BV5: =ABS(BP5) -> 15133.68047
A6: 2 | B6: 51.42854459 | C6: 44.5824459 | D6: 51.95683066 | E6: 43.59235288 | F6: 46.37754716 | G6: 42.9116307 | H6: 42.56776194 | I6: 44.63840168 | J6: 77418.79051 | L6: 2 | M6: 62749.35441 | N6: 231.5016058 | O6: 0 | P6: 62517.85281 | R6: 1 | S6: =$M$5+R6*$O$2 -> 63958.08383 | T6: 4 | AI6: =J6 -> 77418.79051 | AJ6: =B6 -> 51.42854459 | AK6: =C6 -> 44.5824459 | AL6: =D6 -> 51.95683066 | AM6: =E6 -> 43.59235288 | AN6: =F6 -> 46.37754716 | AO6: =G6 -> 42.9116307 | AP6: =H6 -> 42.56776194 | AQ6: =I6 -> 44.63840168 | AS6: =ROUND(AP6,0) -> 43 | AX6: 33 | AY6: =COUNTIF($AS$5:$AS$305,AX6) -> 0 | AZ6: =AZ5+AY6 -> 0 | BC6: 2 | BD6: =Resultados!$K$60-M6 -> 16154.96874 | BE6: 28573.1188 | BF6: 20 | BG6: 2 | BI6: Gráfico Benef | BO6: 2 | BP6: 14856.99308 | BQ6: =Resultados!$K$60-M6-(Resultados!$D$88-VLOOKUP(M6,$AI$5:$AP$305,8,FALSE))*Resultados!$D$90*8760 -> 8895.897842 | BR6: =BP6+ABS($BX$2) ->  | BS6: =ROUND(BR6/$BJ$4,0) ->  | BT6: =IF(BV6=$BT$307,0,BV6) -> 14856.99308 | BU6: 2 | BV6: =ABS(BP6) -> 14856.99308 | BW6: Gráfico Benef
A7: 3 | B7: 47.86977631 | C7: 44.4992368 | D7: 40.56732443 | E7: 37.66816949 | F7: 36.60887809 | G7: 38.01866165 | H7: 37.80718091 | I7: 39.34553109 | J7: 68239.07923 | L7: 3 | M7: 63801.01867 | N7: 1283.165858 | O7: 1 | P7: 63958.08383 | R7: 2 | S7: 65398.31485 | T7: 3 | AI7: 68239.07923 | AJ7: 47.86977631 | AK7: 44.4992368 | AL7: 40.56732443 | AM7: 37.66816949 | AN7: 36.60887809 | AO7: 38.01866165 | AP7: 37.80718091 | AQ7: 39.34553109 | AS7: 38 | AX7: 34 | AY7: 1 | AZ7: =AZ6+AY7 -> 1 | BC7: 3 | BD7: =Resultados!$K$60-M7 -> 15103.30449 | BE7: 27521.45455 | BF7: 19 | BG7: 3 | BI7: Categoria | BJ7: Categoria | BK7: Contador | BO7: 3 | BP7: 14355.80456 | BQ7: =Resultados!$K$60-M7-(Resultados!$D$88-VLOOKUP(M7,$AI$5:$AP$305,8,FALSE))*Resultados!$D$90*8760 -> 10403.64334 | BT7: 14355.80456 | BU7: 3 | BV7: 14355.80456 | BW7: Categoria | BX7: Categoria | BY7: Contador
A8: 4 | B8: 46.20800636 | C8: 43.01784841 | D8: 48.78729381 | E8: 45.40325331 | F8: 42.31627249 | G8: 38.9501471 | H8: 40.13564193 | I8: 41.3323811 | J8: 71684.98048 | L8: 4 | M8: 63850.13815 | N8: 1332.285345 | O8: 1 | P8: 63958.08383 | R8: 3 | S8: 66838.54587 | T8: 6 | AI8: 71684.98048 | AJ8: 46.20800636 | AK8: 43.01784841 | AL8: 48.78729381 | AM8: 45.40325331 | AN8: 42.31627249 | AO8: 38.9501471 | AP8: 40.13564193 | AQ8: 41.3323811 | AS8: 40 | AX8: 35 | AY8: 1 | AZ8: 2 | BC8: 4 | BD8: =Resultados!$K$60-M8 -> 15054.18501 | BE8: 27472.33506 | BF8: 19 | BG8: 4 | BI8: 0 | BJ8: =$BJ$2+$BJ$4*BI8 -> -12418.15006 | BK8: =COUNTIF($BF$5:$BF$305,BI8) -> 1 | BO8: 4 | BP8: 14349.32373 | BQ8: =Resultados!$K$60-M8-(Resultados!$D$88-VLOOKUP(M8,$AI$5:$AP$305,8,FALSE))*Resultados!$D$90*8760 -> 9716.392241 | BT8: 14349.32373 | BU8: 4 | BV8: 14349.32373 | BW8: 0 | BX8: =$BX$2+$BX$4*BW8 ->  | BY8: =COUNTIF($BS$5:$BS$305,BW8) -> 0
A9: 5 | B9: 47.47493431 | C9: 41.76956132 | D9: 42.57729056 | E9: 38.92561914 | F9: 35.71145852 | G9: 39.13024757 | H9: 36.60260473 | I9: 39.83769624 | J9: 69092.66783 | L9: 5 | M9: 63970.35779 | N9: 1452.504986 | O9: 1 | P9: 63958.08383 | R9: 4 | S9: 68278.77689 | T9: 16 | AI9: 69092.66783 | AJ9: 47.47493431 | AK9: 41.76956132 | AL9: 42.57729056 | AM9: 38.92561914 | AN9: 35.71145852 | AO9: 39.13024757 | AP9: 36.60260473 | AQ9: 39.83769624 | AS9: 37 | AX9: 36 | AY9: 3 | AZ9: 5 | BC9: 5 | BD9: =Resultados!$K$60-M9 -> 14933.96536 | BE9: 27352.11542 | BF9: 19 | BG9: 5 | BI9: 1 | BJ9: -10977.91904 | BK9: =COUNTIF($BF$5:$BF$305,BI9) -> 1 | BO9: 5 | BP9: 14285.57864 | BQ9: =Resultados!$K$60-M9-(Resultados!$D$88-VLOOKUP(M9,$AI$5:$AP$305,8,FALSE))*Resultados!$D$90*8760 -> 10333.41742 | BT9: 14285.57864 | BU9: 5 | BV9: 14285.57864 | BW9: 1 | BX9: =$BX$2+$BX$4*BW9 ->  | BY9: =COUNTIF($BF$5:$BF$305,BW9) -> 1
A10: 6 | B10: 54.53228303 | C10: 51.72956371 | D10: 53.73583771 | E10: 51.44182109 | F10: 48.71945269 | G10: 44.5840971 | H10: 46.71880558 | I10: 47.54132113 | J10: 82453.48047 | L10: 6 | M10: 64608.87408 | N10: 2091.021276 | O10: 1 | P10: 63958.08383 | R10: 5 | S10: 69719.00791 | T10: 19 | AI10: 82453.48047 | AJ10: 54.53228303 | AK10: 51.72956371 | AL10: 53.73583771 | AM10: 51.44182109 | AN10: 48.71945269 | AO10: 44.5840971 | AP10: 46.71880558 | AQ10: 47.54132113 | AS10: 47 | AX10: 37 | AY10: 12 | AZ10: 17 | BC10: 6 | BD10: =Resultados!$K$60-M10 -> 14295.44907 | BE10: 26713.59913 | BF10: 19 | BG10: 6 | BI10: 2 | BJ10: -9537.688015 | BK10: 3 | BO10: 6 | BP10: 13668.55346 | BQ10: =Resultados!$K$60-M10-(Resultados!$D$88-VLOOKUP(M10,$AI$5:$AP$305,8,FALSE))*Resultados!$D$90*8760 -> 9657.254389 | BT10: 13668.55346 | BU10: 6 | BV10: 13668.55346 | BW10: 2 | BY10: 3
A11: 7 | B11: =SUMIF(Hoja1!$AQ$4:$AQ$8763,Hoja2!B$4,Hoja1!$AS$4:$AS$8763)/Hoja1!AV$4 -> 42.52647298 | C11: 42.94445449 | D11: 52.86083851 | E11: 46.1036314 | F11: 42.45583646 | G11: 42.78808068 | H11: 41.33791363 | I11: 44.04828476 | J11: 76395.31887 | L11: 7 | M11: 65503.66849 | N11: 2985.815678 | O11: 2 | P11: 65398.31485 | R11: 6 | S11: 71159.23893 | T11: 19 | AD11: Posicion % más caro | AE11: 75 | AI11: 76395.31887 | AJ11: 42.52647298 | AK11: 42.94445449 | AL11: 52.86083851 | AM11: 46.1036314 | AN11: 42.45583646 | AO11: 42.78808068 | AP11: 41.33791363 | AQ11: 44.04828476 | AS11: 41 | AX11: 38 | AY11: 20 | AZ11: 37 | BC11: 7 | BD11: =Resultados!$K$60-M11 -> 13400.65467 | BE11: 25818.80473 | BF11: 18 | BG11: 7 | BI11: 3 | BJ11: -8097.456995 | BK11: 7 | BO11: 7 | BP11: 13609.41561 | BQ11: =Resultados!$K$60-M11-(Resultados!$D$88-VLOOKUP(M11,$AI$5:$AP$305,8,FALSE))*Resultados!$D$90*8760 -> 10904.83185 | BT11: 13609.41561 | BU11: 7 | BV11: 13609.41561 | BW11: 3 | BY11: 7
A12: 8 | B12: 54.2430825 | C12: 50.97405953 | D12: 47.58395705 | E12: 44.24276061 | F12: 42.29725014 | G12: 38.70230564 | H12: 40.08565588 | I12: 42.38271115 | J12: 73506.62461 | L12: 8 | M12: 65684.60614 | N12: 3166.753329 | O12: 2 | P12: 65398.31485 | R12: 7 | S12: 72599.46995 | T12: 29 | AI12: 73506.62461 | AJ12: 54.2430825 | AK12: 50.97405953 | AL12: 47.58395705 | AM12: 44.24276061 | AN12: 42.29725014 | AO12: 38.70230564 | AP12: 40.08565588 | AQ12: 42.38271115 | AS12: 40 | AX12: 39 | AY12: 20 | AZ12: 57 | BC12: 8 | BD12: =Resultados!$K$60-M12 -> 13219.71702 | BE12: 25637.86708 | BF12: 18 | BG12: 8 | BI12: 4 | BJ12: -6657.225975 | BK12: 3 | BO12: 8 | BP12: 13442.56971 | BQ12: =Resultados!$K$60-M12-(Resultados!$D$88-VLOOKUP(M12,$AI$5:$AP$305,8,FALSE))*Resultados!$D$90*8760 -> 8001.110003 | BT12: 13442.56971 | BU12: 8 | BV12: 13442.56971 | BW12: 4 | BY12: 3
A13: 9 | B13: 49.89310322 | C13: 47.77968076 | D13: 52.55921678 | E13: 51.42188217 | F13: 43.96472321 | G13: 41.6288587 | H13: 43.46861404 | I13: 44.52133913 | J13: 77215.76261 | L13: 9 | M13: 65837.3357 | N13: 3319.482896 | O13: 2 | P13: 65398.31485 | R13: 8 | S13: 74039.70097 | T13: 43 | AI13: 77215.76261 | AJ13: 49.89310322 | AK13: 47.77968076 | AL13: 52.55921678 | AM13: 51.42188217 | AN13: 43.96472321 | AO13: 41.6288587 | AP13: 43.46861404 | AQ13: 44.52133913 | AS13: 43 | AX13: 40 | AY13: 29 | AZ13: 86 | BC13: 9 | BD13: =Resultados!$K$60-M13 -> 13066.98745 | BE13: 25485.13751 | BF13: 18 | BG13: 9 | BI13: 5 | BJ13: -5216.994954 | BK13: 11 | BO13: 9 | BP13: 12848.05906 | BQ13: =Resultados!$K$60-M13-(Resultados!$D$88-VLOOKUP(M13,$AI$5:$AP$305,8,FALSE))*Resultados!$D$90*8760 -> 9490.408489 | BT13: 12848.05906 | BU13: 9 | BV13: 12848.05906 | BW13: 5 | BY13: 11
A14: 10 | B14: 53.82235519 | C14: 46.60205026 | D14: 50.84811058 | E14: 48.52651665 | F14: 42.4745394 | G14: 43.09002562 | H14: 43.58417928 | I14: 45.08263184 | J14: 78189.24285 | L14: 10 | M14: 66469.46535 | N14: 3951.612538 | O14: 3 | P14: 66838.54587 | R14: 9 | S14: 75479.93199 | T14: 33 | AI14: 78189.24285 | AJ14: 53.82235519 | AK14: 46.60205026 | AL14: 50.84811058 | AM14: 48.52651665 | AN14: 42.4745394 | AO14: 43.09002562 | AP14: 43.58417928 | AQ14: 45.08263184 | AS14: 44 | AX14: 41 | AY14: 46 | AZ14: 132 | BC14: 10 | BD14: =Resultados!$K$60-M14 -> 12434.85781 | BE14: 24853.00787 | BF14: 17 | BG14: 10 | BI14: 6 | BJ14: -3776.763934 | BK14: 12 | BO14: 10 | BP14: 12769.80533 | BQ14: =Resultados!$K$60-M14-(Resultados!$D$88-VLOOKUP(M14,$AI$5:$AP$305,8,FALSE))*Resultados!$D$90*8760 -> 8817.644105 | BT14: 12769.80533 | BU14: 10 | BV14: 12769.80533 | BW14: 6 | BY14: 12
A15: 11 | B15: 50.56278652 | C15: 46.78446029 | D15: 56.54579407 | E15: 52.73452963 | F15: 47.94886046 | G15: 44.57172564 | H15: 44.66494024 | I15: 46.94589405 | J15: 81420.79914 | L15: 11 | M15: 66490.02598 | N15: 3972.173167 | O15: 3 | P15: 66838.54587 | R15: 10 | S15: 76920.16301 | T15: 29 | AI15: 81420.79914 | AJ15: 50.56278652 | AK15: 46.78446029 | AL15: 56.54579407 | AM15: 52.73452963 | AN15: 47.94886046 | AO15: 44.57172564 | AP15: 44.66494024 | AQ15: 46.94589405 | AS15: 45 | AX15: 42 | AY15: 47 | AZ15: 179 | BC15: 11 | BD15: =Resultados!$K$60-M15 -> 12414.29718 | BE15: 24832.44724 | BF15: 17 | BG15: 11 | BI15: 7 | BJ15: -2336.532914 | BK15: 20 | BO15: 11 | BP15: 12624.47688 | BQ15: =Resultados!$K$60-M15-(Resultados!$D$88-VLOOKUP(M15,$AI$5:$AP$305,8,FALSE))*Resultados!$D$90*8760 -> 8143.130082 | BT15: 12624.47688 | BU15: 11 | BV15: 12624.47688 | BW15: 7 | BY15: 20
A16: 12 | B16: 53.6781113 | C16: 46.51145166 | D16: 46.36072426 | E16: 41.87841861 | F16: 42.72575254 | G16: 41.541739 | H16: 40.8117713 | I16: 43.36690709 | J16: 75213.56878 | L16: 12 | M16: 66830.84333 | N16: 4312.990518 | O16: 3 | P16: 66838.54587 | R16: 11 | S16: 78360.39403 | T16: 25 | AI16: 75213.56878 | AJ16: 53.6781113 | AK16: 46.51145166 | AL16: 46.36072426 | AM16: 41.87841861 | AN16: 42.72575254 | AO16: 41.541739 | AP16: 40.8117713 | AQ16: 43.36690709 | AS16: 41 | AX16: 43 | AY16: 34 | AZ16: 213 | BC16: 12 | BD16: =Resultados!$K$60-M16 -> 12073.47983 | BE16: 24491.62989 | BF16: 17 | BG16: 12 | BI16: 8 | BJ16: -896.3018933 | BK16: 15 | BO16: 12 | BP16: 12375.12151 | BQ16: =Resultados!$K$60-M16-(Resultados!$D$88-VLOOKUP(M16,$AI$5:$AP$305,8,FALSE))*Resultados!$D$90*8760 -> 7274.749701 | BT16: 12375.12151 | BU16: 12 | BV16: 12375.12151 | BW16: 8 | BY16: 15
A17: 13 | B17: 46.86225611 | C17: 41.68779831 | D17: 52.5554207 | E17: 48.36809234 | F17: 46.29782386 | G17: 44.6261588 | H17: 42.73869495 | I17: 45.45491944 | J17: 78834.92135 | L17: 13 | M17: 67069.81954 | N17: 4551.966728 | O17: 3 | P17: 66838.54587 | R17: 12 | S17: 79800.62505 | T17: 15 | AI17: 78834.92135 | AJ17: 46.86225611 | AK17: 41.68779831 | AL17: 52.5554207 | AM17: 48.36809234 | AN17: 46.29782386 | AO17: 44.6261588 | AP17: 42.73869495 | AQ17: 45.45491944 | AS17: 43 | AX17: 44 | AY17: 27 | AZ17: 240 | BC17: 13 | BD17: =Resultados!$K$60-M17 -> 11834.50362 | BE17: 24252.65368 | BF17: 17 | BG17: 13 | BI17: 9 | BJ17: 543.929127 | BK17: 25 | BO17: 13 | BP17: 12198.3133 | BQ17: =Resultados!$K$60-M17-(Resultados!$D$88-VLOOKUP(M17,$AI$5:$AP$305,8,FALSE))*Resultados!$D$90*8760 -> 7410.601657 | BT17: 12198.3133 | BU17: 13 | BV17: 12198.3133 | BW17: 9 | BY17: 25
A18: 14 | B18: 47.42242591 | C18: 43.25788779 | D18: 45.36924864 | E18: 42.79954454 | F18: 43.79734818 | G18: 37.82509858 | H18: 39.24921513 | I18: 40.54562492 | J18: 70320.46676 | L18: 14 | M18: 67293.8091 | N18: 4775.956295 | O18: 3 | P18: 66838.54587 | R18: 13 | S18: 81240.85607 | T18: 20 | AI18: 70320.46676 | AJ18: 47.42242591 | AK18: 43.25788779 | AL18: 45.36924864 | AM18: 42.79954454 | AN18: 43.79734818 | AO18: 37.82509858 | AP18: 39.24921513 | AQ18: 40.54562492 | AS18: 39 | AX18: 45 | AY18: 21 | AZ18: 261 | BC18: 14 | BD18: =Resultados!$K$60-M18 -> 11610.51406 | BE18: 24028.66411 | BF18: 17 | BG18: 14 | BI18: 10 | BJ18: 1984.160147 | BK18: 29 | BO18: 14 | BP18: 12095.2913 | BQ18: =Resultados!$K$60-M18-(Resultados!$D$88-VLOOKUP(M18,$AI$5:$AP$305,8,FALSE))*Resultados!$D$90*8760 -> 5786.335043 | BT18: 12095.2913 | BU18: 14 | BV18: 12095.2913 | BW18: 10 | BY18: 29
A19: 15 | B19: 49.22295085 | C19: 46.79733215 | D19: 49.82068127 | E19: 49.45922606 | F19: 46.21029149 | G19: 41.82701327 | H19: 42.12291814 | I19: 44.41759716 | J19: 77035.8373 | L19: 15 | M19: 67461.76495 | N19: 4943.912145 | O19: 3 | P19: 66838.54587 | R19: 14 | S19: 82681.08709 | T19: 12 | AI19: 77035.8373 | AJ19: 49.22295085 | AK19: 46.79733215 | AL19: 49.82068127 | AM19: 49.45922606 | AN19: 46.21029149 | AO19: 41.82701327 | AP19: 42.12291814 | AQ19: 44.41759716 | AS19: 42 | AX19: 46 | AY19: 17 | AZ19: 278 | BC19: 15 | BD19: =Resultados!$K$60-M19 -> 11442.55821 | BE19: 23860.70826 | BF19: 17 | BG19: 15 | BI19: 11 | BJ19: 3424.391168 | BK19: 33 | BO19: 15 | BP19: 12011.31273 | BQ19: =Resultados!$K$60-M19-(Resultados!$D$88-VLOOKUP(M19,$AI$5:$AP$305,8,FALSE))*Resultados!$D$90*8760 -> 10397.16251 | BT19: 12011.31273 | BU19: 15 | BV19: 12011.31273 | BW19: 11 | BY19: 33
A20: 16 | B20: 50.20229352 | C20: 46.29021652 | D20: 45.59209954 | E20: 43.29437879 | F20: 36.23087016 | G20: 38.51329127 | H20: 39.85389239 | I20: 40.69661475 | J20: 70582.33658 | L20: 16 | M20: 67597.6364 | N20: 5079.783587 | O20: 4 | P20: 68278.77689 | R20: 15 | S20: 84121.31811 | T20: 11 | AI20: 70582.33658 | AJ20: 50.20229352 | AK20: 46.29021652 | AL20: 45.59209954 | AM20: 43.29437879 | AN20: 36.23087016 | AO20: 38.51329127 | AP20: 39.85389239 | AQ20: 40.69661475 | AS20: 40 | AX20: 47 | AY20: 10 | AZ20: 288 | BC20: 16 | BD20: =Resultados!$K$60-M20 -> 11306.68676 | BE20: 23724.83682 | BF20: 16 | BG20: 16 | BI20: 12 | BJ20: 4864.622188 | BK20: 43 | BO20: 16 | BP20: 11953.27123 | BQ20: =Resultados!$K$60-M20-(Resultados!$D$88-VLOOKUP(M20,$AI$5:$AP$305,8,FALSE))*Resultados!$D$90*8760 -> 7932.51976 | BT20: 11953.27123 | BU20: 16 | BV20: 11953.27123 | BW20: 12 | BY20: 43
A21: 17 | B21: 45.02740789 | C21: 37.93561925 | D21: 50.86493168 | E21: 45.51898771 | F21: 47.23843988 | G21: 42.36150175 | H21: 40.78389842 | I21: 43.40851449 | J21: 75285.73074 | L21: 17 | M21: 67653.68098 | N21: 5135.82817 | O21: 4 | P21: 68278.77689 | R21: 16 | S21: 85561.54913 | T21: 3 | AI21: 75285.73074 | AJ21: 45.02740789 | AK21: 37.93561925 | AL21: 50.86493168 | AM21: 45.51898771 | AN21: 47.23843988 | AO21: 42.36150175 | AP21: 40.78389842 | AQ21: 43.40851449 | AS21: 41 | AX21: 48 | AY21: 10 | AZ21: 298 | BC21: 17 | BD21: =Resultados!$K$60-M21 -> 11250.64218 | BE21: 23668.79224 | BF21: 16 | BG21: 17 | BI21: 13 | BJ21: 6304.853208 | BK21: 29 | BO21: 17 | BP21: 11915.99467 | BQ21: =Resultados!$K$60-M21-(Resultados!$D$88-VLOOKUP(M21,$AI$5:$AP$305,8,FALSE))*Resultados!$D$90*8760 -> 7631.920984 | BT21: 11915.99467 | BU21: 17 | BV21: 11915.99467 | BW21: 13 | BY21: 29
A22: 18 | B22: 60.617846 | C22: 57.51271437 | D22: 49.37199808 | E22: 45.27083881 | F22: 45.43883442 | G22: 45.68559898 | H22: 45.80108838 | I22: 48.07378578 | J22: 83376.96266 | L22: 18 | M22: 67934.89381 | N22: 5417.040997 | O22: 4 | P22: 68278.77689 | R22: 17 | S22: 87001.78015 | T22: 7 | AI22: 83376.96266 | AJ22: 60.617846 | AK22: 57.51271437 | AL22: 49.37199808 | AM22: 45.27083881 | AN22: 45.43883442 | AO22: 45.68559898 | AP22: 45.80108838 | AQ22: 48.07378578 | AS22: 46 | AX22: 49 | AY22: 1 | AZ22: 299 | BC22: 18 | BD22: =Resultados!$K$60-M22 -> 10969.42935 | BE22: 23387.57941 | BF22: 16 | BG22: 18 | BI22: 14 | BJ22: 7745.084229 | BK22: 19 | BO22: 18 | BP22: 11884.68098 | BQ22: =Resultados!$K$60-M22-(Resultados!$D$88-VLOOKUP(M22,$AI$5:$AP$305,8,FALSE))*Resultados!$D$90*8760 -> 7237.605431 | BT22: 11884.68098 | BU22: 18 | BV22: 11884.68098 | BW22: 14 | BY22: 19
A23: 19 | B23: 60.97881446 | C23: 54.16392822 | D23: 57.29608518 | E23: 52.99895556 | F23: 42.9179546 | G23: 48.33654763 | H23: 48.38578891 | I23: 50.17670031 | J23: 87024.16088 | L23: 19 | M23: 68033.86781 | N23: 5516.015 | O23: 4 | P23: 68278.77689 | R23: 18 | S23: 88442.01117 | T23: 3 | W23: OMIP | X23: P1 | Y23: P2 | Z23: P3 | AA23: P4 | AB23: P5 | AC23: P6 | AI23: 87024.16088 | AJ23: 60.97881446 | AK23: 54.16392822 | AL23: 57.29608518 | AM23: 52.99895556 | AN23: 42.9179546 | AO23: 48.33654763 | AP23: 48.38578891 | AQ23: 50.17670031 | AS23: 48 | AX23: 50 | AY23: 0 | AZ23: 299 | BC23: 19 | BD23: =Resultados!$K$60-M23 -> 10870.45535 | BE23: 23288.60541 | BF23: 16 | BG23: 19 | BI23: 15 | BJ23: 9185.315249 | BK23: 19 | BO23: 19 | BP23: 11736.95595 | BQ23: =Resultados!$K$60-M23-(Resultados!$D$88-VLOOKUP(M23,$AI$5:$AP$305,8,FALSE))*Resultados!$D$90*8760 -> 7255.902039 | BT23: 11736.95595 | BU23: 19 | BV23: 11736.95595 | BW23: 15 | BY23: 19
A24: 20 | B24: 50.79745292 | C24: 46.63426647 | D24: 43.79763247 | E24: 41.97043815 | F24: 43.12979106 | G24: 39.47624709 | H24: 41.44740814 | I24: 41.85749915 | J24: 72595.72109 | L24: 20 | M24: 68091.33645 | N24: 5573.483643 | O24: 4 | P24: 68278.77689 | R24: 19 | S24: 89882.24219 | T24: 1 | V24: =ROUND(AE11/100*301,0) -> 226 | W24: =VLOOKUP($AD24,$AI$5:$AP$305,8,FALSE) -> 42.54746179 | X24: =VLOOKUP($AD24,$AI$5:$AP$305,2,FALSE) -> 51.95108904 | Y24: =VLOOKUP($AD24,$AI$5:$AP$305,3,FALSE) -> 45.97000777 | Z24: =VLOOKUP($AD24,$AI$5:$AP$305,4,FALSE) -> 52.62163912 | AA24: =VLOOKUP($AD24,$AI$5:$AP$305,5,FALSE) -> 45.87097822 | AB24: =VLOOKUP($AD24,$AI$5:$AP$305,6,FALSE) -> 49.75836297 | AC24: =VLOOKUP($AD24,$AI$5:$AP$305,7,FALSE) -> 43.808524 | AD24: =VLOOKUP(V24,$L$5:$M$305,2,FALSE) -> 78904.32316 | AI24: 72595.72109 | AJ24: 50.79745292 | AK24: 46.63426647 | AL24: 43.79763247 | AM24: 41.97043815 | AN24: 43.12979106 | AO24: 39.47624709 | AP24: 41.44740814 | AQ24: 41.85749915 | AS24: 41 | AX24: 51 | AY24: 1 | AZ24: 300 | BC24: 20 | BD24: =Resultados!$K$60-M24 -> 10812.98671 | BE24: 23231.13676 | BF24: 16 | BG24: 20 | BI24: 16 | BJ24: 10625.54627 | BK24: 16 | BO24: 20 | BP24: 11660.57403 | BQ24: =Resultados!$K$60-M24-(Resultados!$D$88-VLOOKUP(M24,$AI$5:$AP$305,8,FALSE))*Resultados!$D$90*8760 -> 8672.315655 | BT24: 11660.57403 | BU24: 20 | BV24: 11660.57403 | BW24: 16 | BY24: 16
A25: 21 | B25: 46.09839678 | C25: 40.5858374 | D25: 47.45603738 | E25: 44.81867108 | F25: 42.81697895 | G25: 39.52772763 | H25: 40.91845175 | I25: 41.37569925 | J25: 71760.10949 | L25: 21 | M25: 68111.94773 | N25: 5594.094922 | O25: 4 | P25: 68278.77689 | R25: 20 | S25: 91322.47321 | T25: 1 | V25: =V24-1 -> 225 | W25: =VLOOKUP($AD25,$AI$5:$AP$305,8,FALSE) -> 42.46465778 | X25: =VLOOKUP($AD25,$AI$5:$AP$305,2,FALSE) -> 51.97137592 | Y25: =VLOOKUP($AD25,$AI$5:$AP$305,3,FALSE) -> 47.78675474 | Z25: =VLOOKUP($AD25,$AI$5:$AP$305,4,FALSE) -> 48.52488808 | AA25: =VLOOKUP($AD25,$AI$5:$AP$305,5,FALSE) -> 44.66367372 | AB25: =VLOOKUP($AD25,$AI$5:$AP$305,6,FALSE) -> 46.7463998 | AC25: =VLOOKUP($AD25,$AI$5:$AP$305,7,FALSE) -> 43.86462743 | AD25: =VLOOKUP(V25,$L$5:$M$305,2,FALSE) -> 78860.56058 | AI25: 71760.10949 | AJ25: 46.09839678 | AK25: 40.5858374 | AL25: 47.45603738 | AM25: 44.81867108 | AN25: 42.81697895 | AO25: 39.52772763 | AP25: 40.91845175 | AQ25: 41.37569925 | AS25: 41 | AX25: 52 | AY25: 1 | AZ25: 301 | BC25: 21 | BD25: =Resultados!$K$60-M25 -> 10792.37543 | BE25: 23210.52548 | BF25: 16 | BG25: 21 | BI25: 17 | BJ25: 12065.77729 | BK25: 6 | BO25: 21 | BP25: 11660.39589 | BQ25: =Resultados!$K$60-M25-(Resultados!$D$88-VLOOKUP(M25,$AI$5:$AP$305,8,FALSE))*Resultados!$D$90*8760 -> 8422.960284 | BT25: 11660.39589 | BU25: 21 | BV25: 11660.39589 | BW25: 17 | BY25: 6
A26: 22 | B26: 62.74640277 | C26: 60.52531724 | D26: 46.07164613 | E26: 43.12132379 | F26: 49.38729673 | G26: 44.32052882 | H26: 46.68115787 | I26: 47.77368656 | J26: 82856.48438 | L26: 22 | M26: 68193.04231 | N26: 5675.189502 | O26: 4 | P26: 68278.77689 | V26: =V25-1 -> 224 | W26: 43.55454927 | X26: 51.65174702 | Y26: 45.71555331 | Z26: 52.24834919 | AA26: 44.48763217 | AB26: 49.86871296 | AC26: 43.35003335 | AD26: 78848.34161 | AI26: 82856.48438 | AJ26: 62.74640277 | AK26: 60.52531724 | AL26: 46.07164613 | AM26: 43.12132379 | AN26: 49.38729673 | AO26: 44.32052882 | AP26: 46.68115787 | AQ26: 47.77368656 | AS26: 47 | AX26: 53 | AY26: 0 | AZ26: 301 | BC26: 22 | BD26: =Resultados!$K$60-M26 -> 10711.28085 | BE26: 23129.4309 | BF26: 16 | BG26: 22 | BI26: 18 | BJ26: 13506.00831 | BK26: 3 | BO26: 22 | BP26: 11584.08221 | BQ26: =Resultados!$K$60-M26-(Resultados!$D$88-VLOOKUP(M26,$AI$5:$AP$305,8,FALSE))*Resultados!$D$90*8760 -> 8246.152073 | BT26: 11584.08221 | BU26: 22 | BV26: 11584.08221 | BW26: 18 | BY26: 3
A27: 23 | B27: 60.44644419 | C27: 58.29168028 | D27: 48.20516649 | E27: 44.80093543 | F27: 47.33369512 | G27: 44.27888208 | H27: 46.74691839 | I27: 47.4057633 | J27: 82218.3752 | L27: 23 | M27: 68235.28697 | N27: 5717.43416 | O27: 4 | P27: 68278.77689 | V27: =V24+1 -> 227 | W27: 44.13801702 | X27: 52.50721324 | Y27: 47.01097927 | Z27: 53.65306746 | AA27: 48.56168115 | AB27: 50.64180047 | AC27: 43.22306566 | AD27: 79024.57901 | AI27: 82218.3752 | AJ27: 60.44644419 | AK27: 58.29168028 | AL27: 48.20516649 | AM27: 44.80093543 | AN27: 47.33369512 | AO27: 44.27888208 | AP27: 46.74691839 | AQ27: 47.4057633 | AS27: 47 | AX27: 54 | AY27: 0 | AZ27: 301 | BC27: 23 | BD27: =Resultados!$K$60-M27 -> 10669.03619 | BE27: 23087.18625 | BF27: 16 | BG27: 23 | BI27: 19 | BJ27: 14946.23933 | BK27: 4 | BO27: 23 | BP27: 11559.36214 | BQ27: =Resultados!$K$60-M27-(Resultados!$D$88-VLOOKUP(M27,$AI$5:$AP$305,8,FALSE))*Resultados!$D$90*8760 -> 7388.430285 | BT27: 11559.36214 | BU27: 23 | BV27: 11559.36214 | BW27: 19 | BY27: 4
A28: 24 | B28: 52.670602 | C28: 50.22629965 | D28: 41.27885681 | E28: 38.71978692 | F28: 38.8980735 | G28: 37.00355758 | H28: 37.68819119 | I28: 40.02007908 | J28: 69408.98424 | L28: 24 | M28: 68286.23239 | N28: 5768.379583 | O28: 4 | P28: 68278.77689 | V28: =V24+2 -> 228 | W28: 43.82878341 | X28: 55.48973347 | Y28: 48.68705308 | Z28: 48.205272 | AA28: 46.70121506 | AB28: 43.56914342 | AC28: 43.72631209 | AD28: 79059.81243 | AI28: 69408.98424 | AJ28: 52.670602 | AK28: 50.22629965 | AL28: 41.27885681 | AM28: 38.71978692 | AN28: 38.8980735 | AO28: 37.00355758 | AP28: 37.68819119 | AQ28: 40.02007908 | AS28: 38 | AX28: 55 | AY28: 0 | AZ28: 301 | BC28: 24 | BD28: =Resultados!$K$60-M28 -> 10618.09077 | BE28: 23036.24082 | BF28: 16 | BG28: 24 | BI28: 20 | BJ28: 16386.47035 | BK28: 2 | BO28: 24 | BP28: 11469.85956 | BQ28: =Resultados!$K$60-M28-(Resultados!$D$88-VLOOKUP(M28,$AI$5:$AP$305,8,FALSE))*Resultados!$D$90*8760 -> 7607.200922 | BT28: 11469.85956 | BU28: 24 | BV28: 11469.85956 | BW28: 20 | BY28: 2
A29: 25 | B29: 57.59084593 | C29: 53.44563261 | D29: 44.45508313 | E29: 41.59713729 | F29: 43.53163922 | G29: 45.19136531 | H29: 45.60395076 | I29: 46.39746457 | J29: 80469.62827 | L29: 25 | M29: 68380.26577 | N29: 5862.41296 | O29: 4 | P29: 68278.77689 | AI29: 80469.62827 | AJ29: 57.59084593 | AK29: 53.44563261 | AL29: 44.45508313 | AM29: 41.59713729 | AN29: 43.53163922 | AO29: 45.19136531 | AP29: 45.60395076 | AQ29: 46.39746457 | AS29: 46 | AX29: 56 | AY29: 0 | AZ29: 301 | BC29: 25 | BD29: =Resultados!$K$60-M29 -> 10524.05739 | BE29: 22942.20745 | BF29: 16 | BG29: 25 | BO29: 25 | BP29: 11362.76288 | BQ29: =Resultados!$K$60-M29-(Resultados!$D$88-VLOOKUP(M29,$AI$5:$AP$305,8,FALSE))*Resultados!$D$90*8760 -> 6187.899328 | BT29: 11362.76288 | BU29: 25 | BV29: 11362.76288
A30: 26 | B30: 53.06397136 | C30: 47.25774188 | D30: 52.47900648 | E30: 48.2127528 | F30: 42.60845615 | G30: 41.74892372 | H30: 44.35293282 | I30: 44.36419467 | J30: 76943.21848 | L30: 26 | M30: 68391.11549 | N30: 5873.262681 | O30: 4 | P30: 68278.77689 | X30: P1 | Y30: P2 | Z30: P3 | AA30: P4 | AB30: P5 | AC30: P6 | AI30: 76943.21848 | AJ30: 53.06397136 | AK30: 47.25774188 | AL30: 52.47900648 | AM30: 48.2127528 | AN30: 42.60845615 | AO30: 41.74892372 | AP30: 44.35293282 | AQ30: 44.36419467 | AS30: 44 | BC30: 26 | BD30: =Resultados!$K$60-M30 -> 10513.20767 | BE30: 22931.35773 | BF30: 16 | BG30: 26 | BO30: 26 | BP30: 11340.59151 | BQ30: =Resultados!$K$60-M30-(Resultados!$D$88-VLOOKUP(M30,$AI$5:$AP$305,8,FALSE))*Resultados!$D$90*8760 -> 6726.979525 | BT30: 11340.59151 | BU30: 26 | BV30: 11340.59151
A31: 27 | B31: 54.03771453 | C31: 49.15261572 | D31: 47.01071746 | E31: 41.55020235 | F31: 44.25562239 | G31: 43.47626884 | H31: 42.52184965 | I31: 44.92410907 | J31: 77914.30826 | L31: 27 | M31: 68435.20985 | N31: 5917.357044 | O31: 4 | P31: 68278.77689 | W31: Precios | X31: =AVERAGE(X24:X28) -> 52.71423174 | Y31: =AVERAGE(Y24:Y28) -> 47.03406963 | Z31: 51.05064317 | AA31: 46.05703606 | AB31: 48.11688392 | AC31: 43.5945125 | AD31: =SUMPRODUCT(X31:AC31,Hoja1!AV4:BA4)/1000 -> 79290.77847 | AI31: 77914.30826 | AJ31: 54.03771453 | AK31: 49.15261572 | AL31: 47.01071746 | AM31: 41.55020235 | AN31: 44.25562239 | AO31: 43.47626884 | AP31: 42.52184965 | AQ31: 44.92410907 | AS31: 43 | BC31: 27 | BD31: =Resultados!$K$60-M31 -> 10469.11331 | BE31: 22887.26336 | BF31: 16 | BG31: 27 | BO31: 27 | BP31: 11276.9316 | BQ31: =Resultados!$K$60-M31-(Resultados!$D$88-VLOOKUP(M31,$AI$5:$AP$305,8,FALSE))*Resultados!$D$90*8760 -> 7259.780325 | BT31: 11276.9316 | BU31: 27 | BV31: 11276.9316
A32: 28 | B32: 51.94991991 | C32: 49.4964964 | D32: 40.42112444 | E32: 40.70466679 | F32: 44.4257069 | G32: 36.94271078 | H32: 40.08936156 | I32: 40.57575025 | J32: 70372.71474 | L32: 28 | M32: 68543.94311 | N32: 6026.090303 | O32: 4 | P32: 68278.77689 | AI32: 70372.71474 | AJ32: 51.94991991 | AK32: 49.4964964 | AL32: 40.42112444 | AM32: 40.70466679 | AN32: 44.4257069 | AO32: 36.94271078 | AP32: 40.08936156 | AQ32: 40.57575025 | AS32: 40 | BC32: 28 | BD32: =Resultados!$K$60-M32 -> 10360.38005 | BE32: 22778.5301 | BF32: 16 | BG32: 28 | BO32: 28 | BP32: 11226.91092 | BQ32: =Resultados!$K$60-M32-(Resultados!$D$88-VLOOKUP(M32,$AI$5:$AP$305,8,FALSE))*Resultados!$D$90*8760 -> 6543.588866 | BT32: 11226.91092 | BU32: 28 | BV32: 11226.91092
A33: 29 | B33: 48.81945036 | C33: 45.16427909 | D33: 42.59897164 | E33: 41.26243475 | F33: 41.27255173 | G33: 37.06717995 | H33: 39.93302819 | I33: 39.8338646 | J33: 69086.02241 | L33: 29 | M33: 68591.12373 | N33: 6073.270921 | O33: 4 | P33: 68278.77689 | AI33: 69086.02241 | AJ33: 48.81945036 | AK33: 45.16427909 | AL33: 42.59897164 | AM33: 41.26243475 | AN33: 41.27255173 | AO33: 37.06717995 | AP33: 39.93302819 | AQ33: 39.8338646 | AS33: 40 | BC33: 29 | BD33: =Resultados!$K$60-M33 -> 10313.19943 | BE33: 22731.34948 | BF33: 16 | BG33: 29 | BO33: 29 | BP33: 11211.94155 | BQ33: =Resultados!$K$60-M33-(Resultados!$D$88-VLOOKUP(M33,$AI$5:$AP$305,8,FALSE))*Resultados!$D$90*8760 -> 6143.516553 | BT33: 11211.94155 | BU33: 29 | BV33: 11211.94155
A34: 30 | B34: 45.81071714 | C34: 43.34903581 | D34: 43.64938117 | E34: 41.59607438 | F34: 48.16807204 | G34: 38.73173123 | H34: 40.45436192 | I34: 41.21168318 | J34: 71475.64756 | L34: 30 | M34: 68760.56629 | N34: 6242.713485 | O34: 4 | P34: 68278.77689 | AI34: 71475.64756 | AJ34: 45.81071714 | AK34: 43.34903581 | AL34: 43.64938117 | AM34: 41.59607438 | AN34: 48.16807204 | AO34: 38.73173123 | AP34: 40.45436192 | AQ34: 41.21168318 | AS34: 40 | BC34: 30 | BD34: =Resultados!$K$60-M34 -> 10143.75687 | BE34: 22561.90692 | BF34: 16 | BG34: 30 | BO34: 30 | BP34: 11208.06326 | BQ34: =Resultados!$K$60-M34-(Resultados!$D$88-VLOOKUP(M34,$AI$5:$AP$305,8,FALSE))*Resultados!$D$90*8760 -> 6155.852107 | BT34: 11208.06326 | BU34: 30 | BV34: 11208.06326
A35: 31 | B35: 53.87473774 | C35: 49.68525061 | D35: 44.68902468 | E35: 39.84950685 | F35: 36.56631729 | G35: 39.20452235 | H35: 39.27488666 | I35: 41.37763614 | J35: 71763.46875 | L35: 31 | M35: 68866.87585 | N35: 6349.023038 | O35: 4 | P35: 68278.77689 | AI35: 71763.46875 | AJ35: 53.87473774 | AK35: 49.68525061 | AL35: 44.68902468 | AM35: 39.84950685 | AN35: 36.56631729 | AO35: 39.20452235 | AP35: 39.27488666 | AQ35: 41.37763614 | AS35: 39 | BC35: 31 | BD35: =Resultados!$K$60-M35 -> 10037.44731 | BE35: 22455.59737 | BF35: 16 | BG35: 31 | BO35: 31 | BP35: 11189.76665 | BQ35: =Resultados!$K$60-M35-(Resultados!$D$88-VLOOKUP(M35,$AI$5:$AP$305,8,FALSE))*Resultados!$D$90*8760 -> 5479.901438 | BT35: 11189.76665 | BU35: 31 | BV35: 11189.76665
A36: 32 | B36: 48.55689918 | C36: 41.13846415 | D36: 50.12761757 | E36: 46.48647584 | F36: 46.74119179 | G36: 42.10183863 | H36: 42.11844291 | I36: 43.82415571 | J36: 76006.59975 | L36: 32 | M36: 69011.59699 | N36: 6493.744183 | O36: 5 | P36: 69719.00791 | AI36: 76006.59975 | AJ36: 48.55689918 | AK36: 41.13846415 | AL36: 50.12761757 | AM36: 46.48647584 | AN36: 46.74119179 | AO36: 42.10183863 | AP36: 42.11844291 | AQ36: 43.82415571 | AS36: 42 | BC36: 32 | BD36: =Resultados!$K$60-M36 -> 9892.726167 | BE36: 22310.87622 | BF36: 15 | BG36: 32 | BO36: 32 | BP36: 11158.62829 | BQ36: =Resultados!$K$60-M36-(Resultados!$D$88-VLOOKUP(M36,$AI$5:$AP$305,8,FALSE))*Resultados!$D$90*8760 -> 6731.083838 | BT36: 11158.62829 | BU36: 32 | BV36: 11158.62829
A37: 33 | B37: 50.99582741 | C37: 47.15691669 | D37: 56.11363021 | E37: 54.08892954 | F37: 45.19695433 | G37: 44.30328916 | H37: 45.32522427 | I37: 46.65647568 | J37: 80918.84522 | L37: 33 | M37: 69040.01482 | N37: 6522.162016 | O37: 5 | P37: 69719.00791 | AI37: 80918.84522 | AJ37: 50.99582741 | AK37: 47.15691669 | AL37: 56.11363021 | AM37: 54.08892954 | AN37: 45.19695433 | AO37: 44.30328916 | AP37: 45.32522427 | AQ37: 46.65647568 | AS37: 45 | BC37: 33 | BD37: =Resultados!$K$60-M37 -> 9864.308334 | BE37: 22282.45839 | BF37: 15 | BG37: 33 | BO37: 33 | BP37: 11130.4018 | BQ37: =Resultados!$K$60-M37-(Resultados!$D$88-VLOOKUP(M37,$AI$5:$AP$305,8,FALSE))*Resultados!$D$90*8760 -> 7206.467067 | BT37: 11130.4018 | BU37: 33 | BV37: 11130.4018
A38: 34 | B38: 51.7839749 | C38: 50.59014102 | D38: 43.65275677 | E38: 43.30181478 | F38: 45.09760736 | G38: 38.83766755 | H38: 41.6689005 | I38: 42.22976786 | J38: 73241.36681 | L38: 34 | M38: 69086.02241 | N38: 6568.169597 | O38: 5 | P38: 69719.00791 | AI38: 73241.36681 | AJ38: 51.7839749 | AK38: 50.59014102 | AL38: 43.65275677 | AM38: 43.30181478 | AN38: 45.09760736 | AO38: 38.83766755 | AP38: 41.6689005 | AQ38: 42.22976786 | AS38: 42 | BC38: 34 | BD38: =Resultados!$K$60-M38 -> 9818.300754 | BE38: 22236.45081 | BF38: 15 | BG38: 34 | BO38: 34 | BP38: 10989.70697 | BQ38: =Resultados!$K$60-M38-(Resultados!$D$88-VLOOKUP(M38,$AI$5:$AP$305,8,FALSE))*Resultados!$D$90*8760 -> 7963.833444 | BT38: 10989.70697 | BU38: 34 | BV38: 10989.70697
A39: 35 | B39: 53.25858767 | C39: 52.40755647 | D39: 39.64625928 | E39: 37.97826446 | F39: 42.70153836 | G39: 37.06533288 | H39: 40.28719924 | I39: 40.54683412 | J39: 70322.56395 | L39: 35 | M39: 69125.0046 | N39: 6607.151796 | O39: 5 | P39: 69719.00791 | AI39: 70322.56395 | AJ39: 53.25858767 | AK39: 52.40755647 | AL39: 39.64625928 | AM39: 37.97826446 | AN39: 42.70153836 | AO39: 37.06533288 | AP39: 40.28719924 | AQ39: 40.54683412 | AS39: 40 | BC39: 35 | BD39: =Resultados!$K$60-M39 -> 9779.318555 | BE39: 22197.46861 | BF39: 15 | BG39: 35 | BO39: 35 | BP39: 10766.25036 | BQ39: =Resultados!$K$60-M39-(Resultados!$D$88-VLOOKUP(M39,$AI$5:$AP$305,8,FALSE))*Resultados!$D$90*8760 -> 6552.986719 | BT39: 10766.25036 | BU39: 35 | BV39: 10766.25036
A40: 36 | B40: 48.57350938 | C40: 41.85388413 | D40: 53.12084681 | E40: 47.3197927 | F40: 46.46232609 | G40: 43.37472165 | H40: 41.78436382 | I40: 44.82360385 | J40: 77739.99663 | L40: 36 | M40: 69246.28886 | N40: 6728.436054 | O40: 5 | P40: 69719.00791 | AI40: 77739.99663 | AJ40: 48.57350938 | AK40: 41.85388413 | AL40: 53.12084681 | AM40: 47.3197927 | AN40: 46.46232609 | AO40: 43.37472165 | AP40: 41.78436382 | AQ40: 44.82360385 | AS40: 42 | BC40: 36 | BD40: =Resultados!$K$60-M40 -> 9658.034296 | BE40: 22076.18435 | BF40: 15 | BG40: 36 | BO40: 36 | BP40: 10759.86379 | BQ40: =Resultados!$K$60-M40-(Resultados!$D$88-VLOOKUP(M40,$AI$5:$AP$305,8,FALSE))*Resultados!$D$90*8760 -> 5964.369386 | BT40: 10759.86379 | BU40: 36 | BV40: 10759.86379
A41: 37 | B41: 47.3804755 | C41: 44.43944775 | D41: 48.32555297 | E41: 46.98637197 | F41: 41.70008352 | G41: 39.93132237 | H41: 39.11144665 | I41: 42.17308417 | J41: 73143.05722 | L41: 37 | M41: 69277.36624 | N41: 6759.513433 | O41: 5 | P41: 69719.00791 | AI41: 73143.05722 | AJ41: 47.3804755 | AK41: 44.43944775 | AL41: 48.32555297 | AM41: 46.98637197 | AN41: 41.70008352 | AO41: 39.93132237 | AP41: 39.11144665 | AQ41: 42.17308417 | AS41: 39 | BC41: 37 | BD41: =Resultados!$K$60-M41 -> 9626.956918 | BE41: 22045.10697 | BF41: 15 | BG41: 37 | BO41: 37 | BP41: 10683.24506 | BQ41: =Resultados!$K$60-M41-(Resultados!$D$88-VLOOKUP(M41,$AI$5:$AP$305,8,FALSE))*Resultados!$D$90*8760 -> 5710.211714 | BT41: 10683.24506 | BU41: 37 | BV41: 10683.24506
A42: 38 | B42: 46.94010725 | C42: 43.94564773 | D42: 44.16127312 | E42: 42.11992734 | F42: 45.28700154 | G42: 39.69983921 | H42: 40.59864203 | I42: 41.6933958 | J42: 72311.10777 | L42: 38 | M42: 69408.98424 | N42: 6891.131433 | O42: 5 | P42: 69719.00791 | AI42: 72311.10777 | AJ42: 46.94010725 | AK42: 43.94564773 | AL42: 44.16127312 | AM42: 42.11992734 | AN42: 45.28700154 | AO42: 39.69983921 | AP42: 40.59864203 | AQ42: 41.6933958 | AS42: 41 | BC42: 38 | BD42: =Resultados!$K$60-M42 -> 9495.338918 | BE42: 21913.48897 | BF42: 15 | BG42: 38 | BO42: 38 | BP42: 10679.14075 | BQ42: =Resultados!$K$60-M42-(Resultados!$D$88-VLOOKUP(M42,$AI$5:$AP$305,8,FALSE))*Resultados!$D$90*8760 -> 5674.394396 | BT42: 10679.14075 | BU42: 38 | BV42: 10679.14075
A43: 39 | B43: 51.53552636 | C43: 50.15897327 | D43: 41.53087029 | E43: 40.73871447 | F43: 48.07731777 | G43: 39.42914427 | H43: 40.01599594 | I43: 42.49164654 | J43: 73695.55715 | L43: 39 | M43: 69554.15263 | N43: 7036.299821 | O43: 5 | P43: 69719.00791 | AI43: 73695.55715 | AJ43: 51.53552636 | AK43: 50.15897327 | AL43: 41.53087029 | AM43: 40.73871447 | AN43: 48.07731777 | AO43: 39.42914427 | AP43: 40.01599594 | AQ43: 42.49164654 | AS43: 40 | BC43: 39 | BD43: =Resultados!$K$60-M43 -> 9350.17053 | BE43: 21768.32059 | BF43: 15 | BG43: 39 | BO43: 39 | BP43: 10658.25516 | BQ43: =Resultados!$K$60-M43-(Resultados!$D$88-VLOOKUP(M43,$AI$5:$AP$305,8,FALSE))*Resultados!$D$90*8760 -> 8059.151506 | BT43: 10658.25516 | BU43: 39 | BV43: 10658.25516
A44: 40 | B44: 50.81467651 | C44: 49.07386012 | D44: 40.35297388 | E44: 38.10580534 | F44: 39.15376869 | G44: 35.64601713 | H44: 40.85662592 | I44: 38.89734446 | J44: 67461.76495 | L44: 40 | M44: 69572.21953 | N44: 7054.366721 | O44: 5 | P44: 69719.00791 | AI44: 67461.76495 | AJ44: 50.81467651 | AK44: 49.07386012 | AL44: 40.35297388 | AM44: 38.10580534 | AN44: 39.15376869 | AO44: 35.64601713 | AP44: 40.85662592 | AQ44: 38.89734446 | AS44: 41 | BC44: 40 | BD44: =Resultados!$K$60-M44 -> 9332.103629 | BE44: 21750.25368 | BF44: 15 | BG44: 40 | BO44: 40 | BP44: 10570.45583 | BQ44: =Resultados!$K$60-M44-(Resultados!$D$88-VLOOKUP(M44,$AI$5:$AP$305,8,FALSE))*Resultados!$D$90*8760 -> 6479.072885 | BT44: 10570.45583 | BU44: 40 | BV44: 10570.45583
A45: 41 | B45: 48.22226577 | C45: 44.54579495 | D45: 50.76340757 | E45: 48.64257629 | F45: 43.4770656 | G45: 40.63314784 | H45: 42.20852214 | I45: 43.11792778 | J45: 74781.75051 | L45: 41 | M45: 69715.53252 | N45: 7197.679707 | O45: 5 | P45: 69719.00791 | AI45: 74781.75051 | AJ45: 48.22226577 | AK45: 44.54579495 | AL45: 50.76340757 | AM45: 48.64257629 | AN45: 43.4770656 | AO45: 40.63314784 | AP45: 42.20852214 | AQ45: 43.11792778 | AS45: 42 | BC45: 41 | BD45: =Resultados!$K$60-M45 -> 9188.790643 | BE45: 21606.9407 | BF45: 15 | BG45: 41 | BO45: 41 | BP45: 10555.38316 | BQ45: =Resultados!$K$60-M45-(Resultados!$D$88-VLOOKUP(M45,$AI$5:$AP$305,8,FALSE))*Resultados!$D$90*8760 -> 7517.698333 | BT45: 10555.38316 | BU45: 41 | BV45: 10555.38316
A46: 42 | B46: 52.85244775 | C46: 46.88178752 | D46: 51.60550856 | E46: 49.13169852 | F46: 49.26549528 | G46: 44.49023654 | H46: 44.11850024 | I46: 46.65277515 | J46: 80912.4272 | L46: 42 | M46: 69877.49799 | N46: 7359.645185 | O46: 5 | P46: 69719.00791 | AI46: 80912.4272 | AJ46: 52.85244775 | AK46: 46.88178752 | AL46: 51.60550856 | AM46: 49.13169852 | AN46: 49.26549528 | AO46: 44.49023654 | AP46: 44.11850024 | AQ46: 46.65277515 | AS46: 44 | BC46: 42 | BD46: =Resultados!$K$60-M46 -> 9026.825166 | BE46: 21444.97522 | BF46: 15 | BG46: 42 | BO46: 42 | BP46: 10505.14794 | BQ46: =Resultados!$K$60-M46-(Resultados!$D$88-VLOOKUP(M46,$AI$5:$AP$305,8,FALSE))*Resultados!$D$90*8760 -> 6528.92745 | BT46: 10505.14794 | BU46: 42 | BV46: 10505.14794
A47: 43 | B47: 46.30877321 | C47: 43.5888557 | D47: 49.71014137 | E47: 46.12881492 | F47: 47.45998267 | G47: 42.29377417 | H47: 41.80492661 | I47: 43.99257652 | J47: 76298.70105 | L47: 43 | M47: 69949.73714 | N47: 7431.884329 | O47: 5 | P47: 69719.00791 | AI47: 76298.70105 | AJ47: 46.30877321 | AK47: 43.5888557 | AL47: 49.71014137 | AM47: 46.12881492 | AN47: 47.45998267 | AO47: 42.29377417 | AP47: 41.80492661 | AQ47: 43.99257652 | AS47: 42 | BC47: 43 | BD47: =Resultados!$K$60-M47 -> 8954.586021 | BE47: 21372.73608 | BF47: 15 | BG47: 43 | BO47: 43 | BP47: 10495.75009 | BQ47: =Resultados!$K$60-M47-(Resultados!$D$88-VLOOKUP(M47,$AI$5:$AP$305,8,FALSE))*Resultados!$D$90*8760 -> 7324.770375 | BT47: 10495.75009 | BU47: 43 | BV47: 10495.75009
A48: 44 | B48: 53.89794979 | C48: 49.17001688 | D48: 45.64707115 | E48: 43.99404902 | F48: 39.68490896 | G48: 37.85583328 | H48: 38.23468354 | I48: 41.28855852 | J48: 71608.97662 | L48: 44 | M48: 69983.39509 | N48: 7465.542281 | O48: 5 | P48: 69719.00791 | AI48: 71608.97662 | AJ48: 53.89794979 | AK48: 49.17001688 | AL48: 45.64707115 | AM48: 43.99404902 | AN48: 39.68490896 | AO48: 37.85583328 | AP48: 38.23468354 | AQ48: 41.28855852 | AS48: 38 | BC48: 44 | BD48: =Resultados!$K$60-M48 -> 8920.92807 | BE48: 21339.07813 | BF48: 15 | BG48: 44 | BO48: 44 | BP48: 10481.08867 | BQ48: =Resultados!$K$60-M48-(Resultados!$D$88-VLOOKUP(M48,$AI$5:$AP$305,8,FALSE))*Resultados!$D$90*8760 -> 5760.198519 | BT48: 10481.08867 | BU48: 44 | BV48: 10481.08867
A49: 45 | B49: 55.48973347 | C49: 48.68705308 | D49: 48.205272 | E49: 46.70121506 | F49: 43.56914342 | G49: 43.72631209 | H49: 43.82878341 | I49: 45.58458794 | J49: 79059.81243 | L49: 45 | M49: 70028.43904 | N49: 7510.586232 | O49: 5 | P49: 69719.00791 | AI49: 79059.81243 | AJ49: 55.48973347 | AK49: 48.68705308 | AL49: 48.205272 | AM49: 46.70121506 | AN49: 43.56914342 | AO49: 43.72631209 | AP49: 43.82878341 | AQ49: 45.58458794 | AS49: 44 | BC49: 45 | BD49: =Resultados!$K$60-M49 -> 8875.884118 | BE49: 21294.03417 | BF49: 15 | BG49: 45 | BO49: 45 | BP49: 10431.23411 | BQ49: =Resultados!$K$60-M49-(Resultados!$D$88-VLOOKUP(M49,$AI$5:$AP$305,8,FALSE))*Resultados!$D$90*8760 -> 4877.776344 | BT49: 10431.23411 | BU49: 45 | BV49: 10431.23411
A50: 46 | B50: 44.95143074 | C50: 40.40655416 | D50: 40.25632151 | E50: 38.03352646 | F50: 37.63628204 | G50: 35.27606748 | H50: 36.75525721 | I50: 37.25241449 | J50: 64608.87408 | L50: 46 | M50: 70050.62867 | N50: 7532.775864 | O50: 5 | P50: 69719.00791 | AI50: 64608.87408 | AJ50: 44.95143074 | AK50: 40.40655416 | AL50: 40.25632151 | AM50: 38.03352646 | AN50: 37.63628204 | AO50: 35.27606748 | AP50: 36.75525721 | AQ50: 37.25241449 | AS50: 37 | BC50: 46 | BD50: =Resultados!$K$60-M50 -> 8853.694486 | BE50: 21271.84454 | BF50: 15 | BG50: 46 | BO50: 46 | BP50: 10350.35753 | BQ50: =Resultados!$K$60-M50-(Resultados!$D$88-VLOOKUP(M50,$AI$5:$AP$305,8,FALSE))*Resultados!$D$90*8760 -> 5877.337392 | BT50: 10350.35753 | BU50: 46 | BV50: 10350.35753
A51: 47 | B51: 48.93580984 | C51: 42.48574435 | D51: 57.46676449 | E51: 50.17372696 | F51: 48.5151566 | G51: 46.12040788 | H51: 44.93491199 | I51: 47.20451065 | J51: 81869.33187 | L51: 47 | M51: 70128.02582 | N51: 7610.173007 | O51: 5 | P51: 69719.00791 | AI51: 81869.33187 | AJ51: 48.93580984 | AK51: 42.48574435 | AL51: 57.46676449 | AM51: 50.17372696 | AN51: 48.5151566 | AO51: 46.12040788 | AP51: 44.93491199 | AQ51: 47.20451065 | AS51: 45 | BC51: 47 | BD51: =Resultados!$K$60-M51 -> 8776.297344 | BE51: 21194.4474 | BF51: 15 | BG51: 47 | BO51: 47 | BP51: 10344.64 | BQ51: =Resultados!$K$60-M51-(Resultados!$D$88-VLOOKUP(M51,$AI$5:$AP$305,8,FALSE))*Resultados!$D$90*8760 -> 5045.493775 | BT51: 10344.64 | BU51: 47 | BV51: 10344.64
A52: 48 | B52: 46.55439572 | C52: 39.58655075 | D52: 53.4046782 | E52: 46.70659481 | F52: 44.90237275 | G52: 44.02266211 | H52: 41.56455153 | I52: 44.62922181 | J52: 77402.86936 | L52: 48 | M52: 70320.46676 | N52: 7802.613954 | O52: 5 | P52: 69719.00791 | AI52: 77402.86936 | AJ52: 46.55439572 | AK52: 39.58655075 | AL52: 53.4046782 | AM52: 46.70659481 | AN52: 44.90237275 | AO52: 44.02266211 | AP52: 41.56455153 | AQ52: 44.62922181 | AS52: 42 | BC52: 48 | BD52: =Resultados!$K$60-M52 -> 8583.856396 | BE52: 21002.00645 | BF52: 15 | BG52: 48 | BO52: 48 | BP52: 10183.197 | BQ52: =Resultados!$K$60-M52-(Resultados!$D$88-VLOOKUP(M52,$AI$5:$AP$305,8,FALSE))*Resultados!$D$90*8760 -> 6130.368848 | BT52: 10183.197 | BU52: 48 | BV52: 10183.197
A53: 49 | B53: 59.17709782 | C53: 54.30376921 | D53: 52.38969475 | E53: 51.10509628 | F53: 46.37293138 | G53: 45.27833881 | H53: 44.32871935 | I53: 48.19366589 | J53: 83584.8772 | L53: 49 | M53: 70322.56395 | N53: 7804.711142 | O53: 5 | P53: 69719.00791 | AI53: 83584.8772 | AJ53: 59.17709782 | AK53: 54.30376921 | AL53: 52.38969475 | AM53: 51.10509628 | AN53: 46.37293138 | AO53: 45.27833881 | AP53: 44.32871935 | AQ53: 48.19366589 | AS53: 44 | BC53: 49 | BD53: =Resultados!$K$60-M53 -> 8581.759209 | BE53: 20999.90926 | BF53: 15 | BG53: 49 | BO53: 49 | BP53: 10140.06055 | BQ53: =Resultados!$K$60-M53-(Resultados!$D$88-VLOOKUP(M53,$AI$5:$AP$305,8,FALSE))*Resultados!$D$90*8760 -> 7037.545744 | BT53: 10140.06055 | BU53: 49 | BV53: 10140.06055
A54: 50 | B54: 45.87978622 | C54: 43.13765005 | D54: 45.05538864 | E54: 42.3951227 | F54: 40.0723285 | G54: 37.08291786 | H54: 37.69293244 | I54: 39.52131059 | J54: 68543.94311 | L54: 50 | M54: 70372.71474 | N54: 7854.861935 | O54: 5 | P54: 69719.00791 | AI54: 68543.94311 | AJ54: 45.87978622 | AK54: 43.13765005 | AL54: 45.05538864 | AM54: 42.3951227 | AN54: 40.0723285 | AO54: 37.08291786 | AP54: 37.69293244 | AQ54: 39.52131059 | AS54: 38 | BC54: 50 | BD54: =Resultados!$K$60-M54 -> 8531.608416 | BE54: 20949.75847 | BF54: 15 | BG54: 50 | BO54: 50 | BP54: 10108.01333 | BQ54: =Resultados!$K$60-M54-(Resultados!$D$88-VLOOKUP(M54,$AI$5:$AP$305,8,FALSE))*Resultados!$D$90*8760 -> 6814.089141 | BT54: 10108.01333 | BU54: 50 | BV54: 10108.01333
A55: 51 | B55: 56.7337588 | C55: 52.91450258 | D55: 44.55502318 | E55: 40.93369963 | F55: 44.32844827 | G55: 42.39865344 | H55: 43.44839574 | I55: 44.66659049 | J55: 77467.67988 | L55: 51 | M55: 70486.99081 | N55: 7969.137999 | O55: 6 | P55: 71159.23893 | AI55: 77467.67988 | AJ55: 56.7337588 | AK55: 52.91450258 | AL55: 44.55502318 | AM55: 40.93369963 | AN55: 44.32844827 | AO55: 42.39865344 | AP55: 43.44839574 | AQ55: 44.66659049 | AS55: 43 | BC55: 51 | BD55: =Resultados!$K$60-M55 -> 8417.332352 | BE55: 20835.48241 | BF55: 14 | BG55: 51 | BO55: 51 | BP55: 10105.13862 | BQ55: =Resultados!$K$60-M55-(Resultados!$D$88-VLOOKUP(M55,$AI$5:$AP$305,8,FALSE))*Resultados!$D$90*8760 -> 7784.794723 | BT55: 10105.13862 | BU55: 51 | BV55: 10105.13862
A56: 52 | B56: 51.65174702 | C56: 45.71555331 | D56: 52.24834919 | E56: 44.48763217 | F56: 49.86871296 | G56: 43.35003335 | H56: 43.55454927 | I56: 45.46265734 | J56: 78848.34161 | L56: 52 | M56: 70582.33658 | N56: 8064.483771 | O56: 6 | P56: 71159.23893 | AI56: 78848.34161 | AJ56: 51.65174702 | AK56: 45.71555331 | AL56: 52.24834919 | AM56: 44.48763217 | AN56: 49.86871296 | AO56: 43.35003335 | AP56: 43.55454927 | AQ56: 45.46265734 | AS56: 44 | BC56: 52 | BD56: =Resultados!$K$60-M56 -> 8321.986579 | BE56: 20740.13663 | BF56: 14 | BG56: 52 | BO56: 52 | BP56: 10095.67778 | BQ56: =Resultados!$K$60-M56-(Resultados!$D$88-VLOOKUP(M56,$AI$5:$AP$305,8,FALSE))*Resultados!$D$90*8760 -> 6398.19631 | BT56: 10095.67778 | BU56: 52 | BV56: 10095.67778
A57: 53 | B57: 49.49620693 | C57: 44.38833764 | D57: 48.38173376 | E57: 46.44229306 | F57: 37.07465882 | G57: 39.76815986 | H57: 40.93366496 | I57: 41.70032791 | J57: 72323.13051 | L57: 53 | M57: 70734.66881 | N57: 8216.816002 | O57: 6 | P57: 71159.23893 | AI57: 72323.13051 | AJ57: 49.49620693 | AK57: 44.38833764 | AL57: 48.38173376 | AM57: 46.44229306 | AN57: 37.07465882 | AO57: 39.76815986 | AP57: 40.93366496 | AQ57: 41.70032791 | AS57: 41 | BC57: 53 | BD57: =Resultados!$K$60-M57 -> 8169.654349 | BE57: 20587.8044 | BF57: 14 | BG57: 53 | BO57: 53 | BP57: 10088.16059 | BQ57: =Resultados!$K$60-M57-(Resultados!$D$88-VLOOKUP(M57,$AI$5:$AP$305,8,FALSE))*Resultados!$D$90*8760 -> 5653.784412 | BT57: 10088.16059 | BU57: 53 | BV57: 10088.16059
A58: 54 | B58: 56.18996003 | C58: 52.23994992 | D58: 57.0855552 | E58: 53.48580631 | F58: 47.68791799 | G58: 46.16204281 | H58: 47.17634828 | I58: 48.87179033 | J58: 84760.98505 | L58: 54 | M58: 70761.75713 | N58: 8243.904322 | O58: 6 | P58: 71159.23893 | AI58: 84760.98505 | AJ58: 56.18996003 | AK58: 52.23994992 | AL58: 57.0855552 | AM58: 53.48580631 | AN58: 47.68791799 | AO58: 46.16204281 | AP58: 47.17634828 | AQ58: 48.87179033 | AS58: 47 | BC58: 54 | BD58: =Resultados!$K$60-M58 -> 8142.566029 | BE58: 20560.71608 | BF58: 14 | BG58: 54 | BO58: 54 | BP58: 10082.53007 | BQ58: =Resultados!$K$60-M58-(Resultados!$D$88-VLOOKUP(M58,$AI$5:$AP$305,8,FALSE))*Resultados!$D$90*8760 -> 5487.585488 | BT58: 10082.53007 | BU58: 54 | BV58: 10082.53007
A59: 55 | B59: 55.01676684 | C59: 53.61809228 | D59: 43.43707115 | E59: 43.03143594 | F59: 47.24743794 | G59: 38.7797072 | H59: 41.64063525 | I59: 42.91138422 | J59: 74423.53087 | L59: 55 | M59: 70838.15272 | N59: 8320.299915 | O59: 6 | P59: 71159.23893 | AI59: 74423.53087 | AJ59: 55.01676684 | AK59: 53.61809228 | AL59: 43.43707115 | AM59: 43.03143594 | AN59: 47.24743794 | AO59: 38.7797072 | AP59: 41.64063525 | AQ59: 42.91138422 | AS59: 42 | BC59: 55 | BD59: =Resultados!$K$60-M59 -> 8066.170436 | BE59: 20484.32049 | BF59: 14 | BG59: 55 | BO59: 55 | BP59: 10057.70596 | BQ59: =Resultados!$K$60-M59-(Resultados!$D$88-VLOOKUP(M59,$AI$5:$AP$305,8,FALSE))*Resultados!$D$90*8760 -> 6807.702566 | BT59: 10057.70596 | BU59: 55 | BV59: 10057.70596
A60: 56 | B60: 51.6680819 | C60: 44.68948356 | D60: 49.77842583 | E60: 47.87052793 | F60: 44.54220405 | G60: 42.55660984 | H60: 43.57913174 | I60: 44.52057668 | J60: 77214.44025 | L60: 56 | M60: 70877.13523 | N60: 8359.282422 | O60: 6 | P60: 71159.23893 | AI60: 77214.44025 | AJ60: 51.6680819 | AK60: 44.68948356 | AL60: 49.77842583 | AM60: 47.87052793 | AN60: 44.54220405 | AO60: 42.55660984 | AP60: 43.57913174 | AQ60: 44.52057668 | AS60: 44 | BC60: 56 | BD60: =Resultados!$K$60-M60 -> 8027.187928 | BE60: 20445.33798 | BF60: 14 | BG60: 56 | BO60: 56 | BP60: 9983.057857 | BQ60: =Resultados!$K$60-M60-(Resultados!$D$88-VLOOKUP(M60,$AI$5:$AP$305,8,FALSE))*Resultados!$D$90*8760 -> 5415.32307 | BT60: 9983.057857 | BU60: 56 | BV60: 9983.057857
A61: 57 | B61: 52.08400292 | C61: 48.1304637 | D61: 47.46927031 | E61: 43.74972 | F61: 41.80439492 | G61: 39.88129873 | H61: 39.87766481 | I61: 42.53246198 | J61: 73766.34556 | L61: 57 | M61: 70929.98139 | N61: 8412.128584 | O61: 6 | P61: 71159.23893 | AI61: 73766.34556 | AJ61: 52.08400292 | AK61: 48.1304637 | AL61: 47.46927031 | AM61: 43.74972 | AN61: 41.80439492 | AO61: 39.88129873 | AP61: 39.87766481 | AQ61: 42.53246198 | AS61: 40 | BC61: 57 | BD61: =Resultados!$K$60-M61 -> 7974.341766 | BE61: 20392.49182 | BF61: 14 | BG61: 57 | BO61: 57 | BP61: 9916.530608 | BQ61: =Resultados!$K$60-M61-(Resultados!$D$88-VLOOKUP(M61,$AI$5:$AP$305,8,FALSE))*Resultados!$D$90*8760 -> 5682.032344 | BT61: 9916.530608 | BU61: 57 | BV61: 9916.530608
A62: 58 | B62: 48.28858527 | C62: 45.64788305 | D62: 43.20972693 | E62: 40.08018554 | F62: 42.56097397 | G62: 39.62362126 | H62: 39.74446228 | I62: 41.38748616 | J62: 71780.55217 | L62: 58 | M62: 70936.80368 | N62: 8418.950867 | O62: 6 | P62: 71159.23893 | AI62: 71780.55217 | AJ62: 48.28858527 | AK62: 45.64788305 | AL62: 43.20972693 | AM62: 40.08018554 | AN62: 42.56097397 | AO62: 39.62362126 | AP62: 39.74446228 | AQ62: 41.38748616 | AS62: 40 | BC62: 58 | BD62: =Resultados!$K$60-M62 -> 7967.519483 | BE62: 20385.66954 | BF62: 14 | BG62: 58 | BO62: 58 | BP62: 9829.498614 | BQ62: =Resultados!$K$60-M62-(Resultados!$D$88-VLOOKUP(M62,$AI$5:$AP$305,8,FALSE))*Resultados!$D$90*8760 -> 6706.093936 | BT62: 9829.498614 | BU62: 58 | BV62: 9829.498614
A63: 59 | B63: 53.59243442 | C63: 51.18251233 | D63: 45.62610183 | E63: 45.16403814 | F63: 45.24490431 | G63: 40.78609712 | H63: 43.0260821 | I63: 43.84115218 | J63: 76036.07765 | L63: 59 | M63: 71026.03205 | N63: 8508.17924 | O63: 6 | P63: 71159.23893 | AI63: 76036.07765 | AJ63: 53.59243442 | AK63: 51.18251233 | AL63: 45.62610183 | AM63: 45.16403814 | AN63: 45.24490431 | AO63: 40.78609712 | AP63: 43.0260821 | AQ63: 43.84115218 | AS63: 43 | BC63: 59 | BD63: =Resultados!$K$60-M63 -> 7878.291111 | BE63: 20296.44117 | BF63: 14 | BG63: 59 | BO63: 59 | BP63: 9826.938601 | BQ63: =Resultados!$K$60-M63-(Resultados!$D$88-VLOOKUP(M63,$AI$5:$AP$305,8,FALSE))*Resultados!$D$90*8760 -> 5441.674039 | BT63: 9826.938601 | BU63: 59 | BV63: 9826.938601
A64: 60 | B64: 59.63143124 | C64: 51.05687151 | D64: 55.11234459 | E64: 46.75964457 | F64: 50.97129287 | G64: 48.93251108 | H64: 48.11684123 | I64: 50.31211046 | J64: 87259.01003 | L64: 60 | M64: 71103.89023 | N64: 8586.03742 | O64: 6 | P64: 71159.23893 | AI64: 87259.01003 | AJ64: 59.63143124 | AK64: 51.05687151 | AL64: 55.11234459 | AM64: 46.75964457 | AN64: 50.97129287 | AO64: 48.93251108 | AP64: 48.11684123 | AQ64: 50.31211046 | AS64: 48 | BC64: 60 | BD64: =Resultados!$K$60-M64 -> 7800.432931 | BE64: 20218.58299 | BF64: 14 | BG64: 60 | BO64: 60 | BP64: 9802.021935 | BQ64: =Resultados!$K$60-M64-(Resultados!$D$88-VLOOKUP(M64,$AI$5:$AP$305,8,FALSE))*Resultados!$D$90*8760 -> 7708.412806 | BT64: 9802.021935 | BU64: 60 | BV64: 9802.021935
A65: 61 | B65: 43.92749828 | C65: 38.70343932 | D65: 43.39672978 | E65: 41.80381402 | F65: 38.8022548 | G65: 33.98208926 | H65: 36.79823294 | I65: 36.8842565 | J65: 63970.35779 | L65: 61 | M65: 71256.41423 | N65: 8738.561417 | O65: 6 | P65: 71159.23893 | AI65: 63970.35779 | AJ65: 43.92749828 | AK65: 38.70343932 | AL65: 43.39672978 | AM65: 41.80381402 | AN65: 38.8022548 | AO65: 33.98208926 | AP65: 36.79823294 | AQ65: 36.8842565 | AS65: 37 | BC65: 61 | BD65: =Resultados!$K$60-M65 -> 7647.908933 | BE65: 20066.05899 | BF65: 14 | BG65: 61 | BO65: 61 | BP65: 9740.820836 | BQ65: =Resultados!$K$60-M65-(Resultados!$D$88-VLOOKUP(M65,$AI$5:$AP$305,8,FALSE))*Resultados!$D$90*8760 -> 6618.294604 | BT65: 9740.820836 | BU65: 61 | BV65: 9740.820836
A66: 62 | B66: 50.02140183 | C66: 46.41610449 | D66: 44.76994871 | E66: 41.75322881 | F66: 42.20536009 | G66: 36.92237844 | H66: 40.14236038 | I66: 40.19682978 | J66: 69715.53252 | L66: 62 | M66: 71475.64756 | N66: 8957.794756 | O66: 6 | P66: 71159.23893 | AI66: 69715.53252 | AJ66: 50.02140183 | AK66: 46.41610449 | AL66: 44.76994871 | AM66: 41.75322881 | AN66: 42.20536009 | AO66: 36.92237844 | AP66: 40.14236038 | AQ66: 40.19682978 | AS66: 40 | BC66: 62 | BD66: =Resultados!$K$60-M66 -> 7428.675595 | BE66: 19846.82565 | BF66: 14 | BG66: 62 | BO66: 62 | BP66: 9738.496266 | BQ66: =Resultados!$K$60-M66-(Resultados!$D$88-VLOOKUP(M66,$AI$5:$AP$305,8,FALSE))*Resultados!$D$90*8760 -> 6030.896635 | BT66: 9738.496266 | BU66: 62 | BV66: 9738.496266
A67: 63 | B67: 52.45638609 | C67: 45.49881583 | D67: 57.12315401 | E67: 52.11472808 | F67: 45.43579787 | G67: 44.57759223 | H67: 43.63820761 | I67: 46.68939181 | J67: 80975.93344 | L67: 63 | M67: 71550.1876 | N67: 9032.334793 | O67: 6 | P67: 71159.23893 | AI67: 80975.93344 | AJ67: 52.45638609 | AK67: 45.49881583 | AL67: 57.12315401 | AM67: 52.11472808 | AN67: 45.43579787 | AO67: 44.57759223 | AP67: 43.63820761 | AQ67: 46.68939181 | AS67: 44 | BC67: 63 | BD67: =Resultados!$K$60-M67 -> 7354.135557 | BE67: 19772.28561 | BF67: 14 | BG67: 63 | BO67: 63 | BP67: 9732.892827 | BQ67: =Resultados!$K$60-M67-(Resultados!$D$88-VLOOKUP(M67,$AI$5:$AP$305,8,FALSE))*Resultados!$D$90*8760 -> 7178.24058 | BT67: 9732.892827 | BU67: 63 | BV67: 9732.892827
A68: 64 | B68: 50.1933022 | C68: 45.15845269 | D68: 46.12567923 | E68: 42.21349208 | F68: 39.24846381 | G68: 38.62982225 | H68: 39.43320842 | I68: 40.89706103 | J68: 70929.98139 | L68: 64 | M68: 71608.97662 | N68: 9091.123817 | O68: 6 | P68: 71159.23893 | AI68: 70929.98139 | AJ68: 50.1933022 | AK68: 45.15845269 | AL68: 46.12567923 | AM68: 42.21349208 | AN68: 39.24846381 | AO68: 38.62982225 | AP68: 39.43320842 | AQ68: 40.89706103 | AS68: 39 | BC68: 64 | BD68: =Resultados!$K$60-M68 -> 7295.346534 | BE68: 19713.49659 | BF68: 14 | BG68: 64 | BO68: 64 | BP68: 9725.091051 | BQ68: =Resultados!$K$60-M68-(Resultados!$D$88-VLOOKUP(M68,$AI$5:$AP$305,8,FALSE))*Resultados!$D$90*8760 -> 3953.129318 | BT68: 9725.091051 | BU68: 64 | BV68: 9725.091051
A69: 65 | B69: 57.96944609 | C69: 52.83365577 | D69: 52.66334276 | E69: 50.59003235 | F69: 47.46916897 | G69: 46.6197611 | H69: 45.73099989 | I69: 48.83069959 | J69: 84689.71916 | L69: 65 | M69: 71620.9839 | N69: 9103.131094 | O69: 6 | P69: 71159.23893 | AI69: 84689.71916 | AJ69: 57.96944609 | AK69: 52.83365577 | AL69: 52.66334276 | AM69: 50.59003235 | AN69: 47.46916897 | AO69: 46.6197611 | AP69: 45.73099989 | AQ69: 48.83069959 | AS69: 46 | BC69: 65 | BD69: =Resultados!$K$60-M69 -> 7283.339257 | BE69: =BD69+ABS($BJ$2) -> 19701.48931 | BF69: =ROUND(BE69/$BJ$4,0) -> 14 | BG69: 65 | BO69: 65 | BP69: 9712.359741 | BQ69: =Resultados!$K$60-M69-(Resultados!$D$88-VLOOKUP(M69,$AI$5:$AP$305,8,FALSE))*Resultados!$D$90*8760 -> 5478.994443 | BT69: 9712.359741 | BU69: 65 | BV69: 9712.359741
A70: 66 | B70: 43.39837584 | C70: 39.67613079 | D70: 41.54759708 | E70: 39.82408679 | F70: 42.49360751 | G70: 37.28315948 | H70: 38.19821118 | I70: 38.9756857 | J70: 67597.6364 | L70: 66 | M70: 71634.60056 | N70: 9116.747753 | O70: 6 | P70: 71159.23893 | AI70: =J70 -> 67597.6364 | AJ70: =B70 -> 43.39837584 | AK70: =C70 -> 39.67613079 | AL70: =D70 -> 41.54759708 | AM70: =E70 -> 39.82408679 | AN70: =F70 -> 42.49360751 | AO70: =G70 -> 37.28315948 | AP70: =H70 -> 38.19821118 | AQ70: =I70 -> 38.9756857 | AS70: =ROUND(AP70,0) -> 38 | BC70: 66 | BD70: =Resultados!$K$60-M70 -> 7269.722598 | BE70: 19687.87265 | BF70: 14 | BG70: 66 | BO70: 66 | BP70: 9673.055638 | BQ70: =Resultados!$K$60-M70-(Resultados!$D$88-VLOOKUP(M70,$AI$5:$AP$305,8,FALSE))*Resultados!$D$90*8760 -> 4818.447434 | BR70: =BP70+ABS($BX$2) ->  | BS70: =ROUND(BR70/$BJ$4,0) ->  | BT70: =IF(BV70=$BT$307,0,BV70) -> 9673.055638 | BU70: 66 | BV70: =ABS(BP70) -> 9673.055638
A71: 67 | B71: 50.33308536 | C71: 44.32920256 | D71: 49.11424725 | E71: 46.21449006 | F71: 47.48695522 | G71: 40.24894709 | H71: 41.55920678 | I71: 43.16863233 | J71: 74869.69016 | L71: 67 | M71: 71760.10949 | N71: 9242.256681 | O71: 6 | P71: 71159.23893 | AI71: 74869.69016 | AJ71: 50.33308536 | AK71: 44.32920256 | AL71: 49.11424725 | AM71: 46.21449006 | AN71: 47.48695522 | AO71: 40.24894709 | AP71: 41.55920678 | AQ71: 43.16863233 | AS71: 42 | BC71: 67 | BD71: =Resultados!$K$60-M71 -> 7144.213669 | BE71: 19562.36373 | BF71: 14 | BG71: 67 | BO71: 67 | BP71: 9662.372937 | BQ71: =Resultados!$K$60-M71-(Resultados!$D$88-VLOOKUP(M71,$AI$5:$AP$305,8,FALSE))*Resultados!$D$90*8760 -> 6152.977401 | BT71: 9662.372937 | BU71: 67 | BV71: 9662.372937
A72: 68 | B72: 53.51305526 | C72: 52.14460642 | D72: 53.20027836 | E72: 50.74218314 | F72: 50.95351285 | G72: 45.56425776 | H72: 45.46130606 | I72: 48.19615623 | J72: 83589.19634 | L72: 68 | M72: 71763.46875 | N72: 9245.61594 | O72: 6 | P72: 71159.23893 | AI72: 83589.19634 | AJ72: 53.51305526 | AK72: 52.14460642 | AL72: 53.20027836 | AM72: 50.74218314 | AN72: 50.95351285 | AO72: 45.56425776 | AP72: 45.46130606 | AQ72: 48.19615623 | AS72: 45 | BC72: 68 | BD72: =Resultados!$K$60-M72 -> 7140.85441 | BE72: 19559.00447 | BF72: 14 | BG72: 68 | BO72: 68 | BP72: 9634.193566 | BQ72: =Resultados!$K$60-M72-(Resultados!$D$88-VLOOKUP(M72,$AI$5:$AP$305,8,FALSE))*Resultados!$D$90*8760 -> 4709.855127 | BT72: 9634.193566 | BU72: 68 | BV72: 9634.193566
A73: 69 | B73: 54.71023763 | C73: 47.8573769 | D73: 47.14914355 | E73: 44.96904411 | F73: 35.58482307 | G73: 41.89876233 | H73: 41.30956168 | I73: 43.33046555 | J73: 75150.36624 | L73: 69 | M73: 71780.55217 | N73: 9262.699363 | O73: 6 | P73: 71159.23893 | AI73: 75150.36624 | AJ73: 54.71023763 | AK73: 47.8573769 | AL73: 47.14914355 | AM73: 44.96904411 | AN73: 35.58482307 | AO73: 41.89876233 | AP73: 41.30956168 | AQ73: 43.33046555 | AS73: 41 | BC73: 69 | BD73: =Resultados!$K$60-M73 -> 7123.770988 | BE73: 19541.92104 | BF73: 14 | BG73: 69 | BO73: 69 | BP73: 9627.434631 | BQ73: =Resultados!$K$60-M73-(Resultados!$D$88-VLOOKUP(M73,$AI$5:$AP$305,8,FALSE))*Resultados!$D$90*8760 -> 5104.119949 | BT73: 9627.434631 | BU73: 69 | BV73: 9627.434631
A74: 70 | B74: 55.79315216 | C74: 53.42129752 | D74: 42.92613504 | E74: 42.84390921 | F74: 48.79719357 | G74: 41.03705366 | H74: 43.05432678 | I74: 44.38946602 | J74: 76987.04795 | L74: 70 | M74: 71890.20207 | N74: 9372.349261 | O74: 7 | P74: 72599.46995 | AI74: 76987.04795 | AJ74: 55.79315216 | AK74: 53.42129752 | AL74: 42.92613504 | AM74: 42.84390921 | AN74: 48.79719357 | AO74: 41.03705366 | AP74: 43.05432678 | AQ74: 44.38946602 | AS74: 43 | BC74: 70 | BD74: =Resultados!$K$60-M74 -> 7014.121089 | BE74: 19432.27115 | BF74: 13 | BG74: 70 | BO74: 70 | BP74: 9626.555618 | BQ74: =Resultados!$K$60-M74-(Resultados!$D$88-VLOOKUP(M74,$AI$5:$AP$305,8,FALSE))*Resultados!$D$90*8760 -> 5788.659614 | BT74: 9626.555618 | BU74: 70 | BV74: 9626.555618
A75: 71 | B75: 46.76939172 | C75: 43.62728733 | D75: 51.06874419 | E75: 47.72396623 | F75: 40.7462236 | G75: 40.01975497 | H75: 41.42325546 | I75: 42.197568 | J75: 73185.52086 | L75: 71 | M75: 72010.23688 | N75: 9492.38407 | O75: 7 | P75: 72599.46995 | AI75: 73185.52086 | AJ75: 46.76939172 | AK75: 43.62728733 | AL75: 51.06874419 | AM75: 47.72396623 | AN75: 40.7462236 | AO75: 40.01975497 | AP75: 41.42325546 | AQ75: 42.197568 | AS75: 41 | BC75: 71 | BD75: =Resultados!$K$60-M75 -> 6894.086281 | BE75: 19312.23634 | BF75: 13 | BG75: 71 | BO75: 71 | BP75: 9605.945634 | BQ75: =Resultados!$K$60-M75-(Resultados!$D$88-VLOOKUP(M75,$AI$5:$AP$305,8,FALSE))*Resultados!$D$90*8760 -> 6135.999367 | BT75: 9605.945634 | BU75: 71 | BV75: 9605.945634
A76: 72 | B76: 51.97137592 | C76: 47.78675474 | D76: 48.52488808 | E76: 44.66367372 | F76: 46.7463998 | G76: 43.86462743 | H76: 42.46465778 | I76: 45.4697026 | J76: 78860.56058 | L76: 72 | M76: 72013.48776 | N76: 9495.634953 | O76: 7 | P76: 72599.46995 | AI76: 78860.56058 | AJ76: 51.97137592 | AK76: 47.78675474 | AL76: 48.52488808 | AM76: 44.66367372 | AN76: 46.7463998 | AO76: 43.86462743 | AP76: 42.46465778 | AQ76: 45.4697026 | AS76: 42 | BC76: 72 | BD76: =Resultados!$K$60-M76 -> 6890.835397 | BE76: 19308.98545 | BF76: 13 | BG76: 72 | BO76: 72 | BP76: 9593.639599 | BQ76: =Resultados!$K$60-M76-(Resultados!$D$88-VLOOKUP(M76,$AI$5:$AP$305,8,FALSE))*Resultados!$D$90*8760 -> 4195.90072 | BT76: 9593.639599 | BU76: 72 | BV76: 9593.639599
A77: 73 | B77: 54.50191482 | C77: 49.15036441 | D77: 44.09575478 | E77: 38.16140583 | F77: 43.39216882 | G77: 41.16585221 | H77: 40.84040327 | I77: 43.05554563 | J77: 74673.55778 | L77: 73 | M77: 72043.41982 | N77: 9525.567011 | O77: 7 | P77: 72599.46995 | AI77: 74673.55778 | AJ77: 54.50191482 | AK77: 49.15036441 | AL77: 44.09575478 | AM77: 38.16140583 | AN77: 43.39216882 | AO77: 41.16585221 | AP77: 40.84040327 | AQ77: 43.05554563 | AS77: 41 | BC77: 73 | BD77: =Resultados!$K$60-M77 -> 6860.903339 | BE77: 19279.05339 | BF77: 13 | BG77: 73 | BO77: 73 | BP77: 9555.444374 | BQ77: =Resultados!$K$60-M77-(Resultados!$D$88-VLOOKUP(M77,$AI$5:$AP$305,8,FALSE))*Resultados!$D$90*8760 -> 3455.349254 | BT77: 9555.444374 | BU77: 73 | BV77: 9555.444374
A78: 74 | B78: 54.89489539 | C78: 51.37907828 | D78: 55.51694146 | E78: 50.66759253 | F78: 46.79777685 | G78: 46.86776722 | H78: 46.02760972 | I78: 48.67321593 | J78: 84416.58675 | L78: 74 | M78: 72107.52085 | N78: 9589.668044 | O78: 7 | P78: 72599.46995 | AI78: 84416.58675 | AJ78: 54.89489539 | AK78: 51.37907828 | AL78: 55.51694146 | AM78: 50.66759253 | AN78: 46.79777685 | AO78: 46.86776722 | AP78: 46.02760972 | AQ78: 48.67321593 | AS78: 46 | BC78: 74 | BD78: =Resultados!$K$60-M78 -> 6796.802307 | BE78: 19214.95236 | BF78: 13 | BG78: 74 | BO78: 74 | BP78: 9528.868922 | BQ78: =Resultados!$K$60-M78-(Resultados!$D$88-VLOOKUP(M78,$AI$5:$AP$305,8,FALSE))*Resultados!$D$90*8760 -> 7708.234671 | BT78: 9528.868922 | BU78: 74 | BV78: 9528.868922
A79: 75 | B79: 54.49989999 | C79: 49.86060945 | D79: 57.02483559 | E79: 54.42265612 | F79: 51.30079088 | G79: 47.96599964 | H79: 48.24455042 | I79: 50.034171 | J79: 86776.96462 | L79: 75 | M79: 72311.10777 | N79: 9793.254966 | O79: 7 | P79: 72599.46995 | AI79: 86776.96462 | AJ79: 54.49989999 | AK79: 49.86060945 | AL79: 57.02483559 | AM79: 54.42265612 | AN79: 51.30079088 | AO79: 47.96599964 | AP79: 48.24455042 | AQ79: 50.034171 | AS79: 48 | BC79: 75 | BD79: =Resultados!$K$60-M79 -> 6593.215384 | BE79: 19011.36544 | BF79: 13 | BG79: 75 | BO79: 75 | BP79: 9514.012012 | BQ79: =Resultados!$K$60-M79-(Resultados!$D$88-VLOOKUP(M79,$AI$5:$AP$305,8,FALSE))*Resultados!$D$90*8760 -> 5321.825799 | BT79: 9514.012012 | BU79: 75 | BV79: 9514.012012
A80: 76 | B80: 58.48936201 | C80: 55.02084818 | D80: 57.66600202 | E80: 56.74862514 | F80: 49.26627017 | G80: 47.30391735 | H80: 47.83052577 | I80: 50.46062039 | J80: 87516.57882 | L80: 76 | M80: 72323.13051 | N80: 9805.277704 | O80: 7 | P80: 72599.46995 | AI80: 87516.57882 | AJ80: 58.48936201 | AK80: 55.02084818 | AL80: 57.66600202 | AM80: 56.74862514 | AN80: 49.26627017 | AO80: 47.30391735 | AP80: 47.83052577 | AQ80: 50.46062039 | AS80: 48 | BC80: 76 | BD80: =Resultados!$K$60-M80 -> 6581.192646 | BE80: 18999.3427 | BF80: 13 | BG80: 76 | BO80: 76 | BP80: 9495.295041 | BQ80: =Resultados!$K$60-M80-(Resultados!$D$88-VLOOKUP(M80,$AI$5:$AP$305,8,FALSE))*Resultados!$D$90*8760 -> 5603.283151 | BT80: 9495.295041 | BU80: 76 | BV80: 9495.295041
A81: 77 | B81: 52.50873232 | C81: 48.39449304 | D81: 53.92986019 | E81: 52.3300895 | F81: 47.71555232 | G81: 44.88639935 | H81: 44.7873018 | I81: 47.22443168 | J81: 81903.88198 | L81: 77 | M81: 72409.08079 | N81: 9891.227985 | O81: 7 | P81: 72599.46995 | AI81: 81903.88198 | AJ81: 52.50873232 | AK81: 48.39449304 | AL81: 53.92986019 | AM81: 52.3300895 | AN81: 47.71555232 | AO81: 44.88639935 | AP81: 44.7873018 | AQ81: 47.22443168 | AS81: 45 | BC81: 77 | BD81: =Resultados!$K$60-M81 -> 6495.242365 | BE81: 18913.39242 | BF81: 13 | BG81: 77 | BO81: 77 | BP81: 9489.054591 | BQ81: =Resultados!$K$60-M81-(Resultados!$D$88-VLOOKUP(M81,$AI$5:$AP$305,8,FALSE))*Resultados!$D$90*8760 -> 5720.894416 | BT81: 9489.054591 | BU81: 77 | BV81: 9489.054591
A82: 78 | B82: 50.50318056 | C82: 46.51254366 | D82: 54.44564318 | E82: 51.12357778 | F82: 48.94528395 | G82: 44.85587782 | H82: 45.43150006 | I82: 46.91805771 | J82: 81372.52107 | L82: 78 | M82: 72516.68289 | N82: 9998.830086 | O82: 7 | P82: 72599.46995 | AI82: 81372.52107 | AJ82: 50.50318056 | AK82: 46.51254366 | AL82: 54.44564318 | AM82: 51.12357778 | AN82: 48.94528395 | AO82: 44.85587782 | AP82: 45.43150006 | AQ82: 46.91805771 | AS82: 45 | BC82: 78 | BD82: =Resultados!$K$60-M82 -> 6387.640264 | BE82: 18805.79032 | BF82: 13 | BG82: 78 | BO82: 78 | BP82: 9439.746711 | BQ82: =Resultados!$K$60-M82-(Resultados!$D$88-VLOOKUP(M82,$AI$5:$AP$305,8,FALSE))*Resultados!$D$90*8760 -> 5772.929829 | BT82: 9439.746711 | BU82: 78 | BV82: 9439.746711
A83: 79 | B83: 54.23344393 | C83: 52.12328649 | D83: 46.01261667 | E83: 42.91513855 | F83: 41.80658744 | G83: 40.27138945 | H83: 39.36159331 | I83: 43.13098677 | J83: 74804.39942 | L83: 79 | M83: 72543.63669 | N83: 10025.78389 | O83: 7 | P83: 72599.46995 | AI83: 74804.39942 | AJ83: 54.23344393 | AK83: 52.12328649 | AL83: 46.01261667 | AM83: 42.91513855 | AN83: 41.80658744 | AO83: 40.27138945 | AP83: 39.36159331 | AQ83: 43.13098677 | AS83: 39 | BC83: 79 | BD83: =Resultados!$K$60-M83 -> 6360.686465 | BE83: 18778.83652 | BF83: 13 | BG83: 79 | BO83: 79 | BP83: 9432.06266 | BQ83: =Resultados!$K$60-M83-(Resultados!$D$88-VLOOKUP(M83,$AI$5:$AP$305,8,FALSE))*Resultados!$D$90*8760 -> 4283.739951 | BT83: 9432.06266 | BU83: 79 | BV83: 9432.06266
A84: 80 | B84: 46.48480792 | C84: 39.25342756 | D84: 54.65732691 | E84: 49.18159906 | F84: 44.10089889 | G84: 42.81499537 | H84: 41.58708179 | I84: 44.0777663 | J84: 76446.45029 | L84: 80 | M84: 72595.72109 | N84: 10077.86828 | O84: 7 | P84: 72599.46995 | AI84: 76446.45029 | AJ84: 46.48480792 | AK84: 39.25342756 | AL84: 54.65732691 | AM84: 49.18159906 | AN84: 44.10089889 | AO84: 42.81499537 | AP84: 41.58708179 | AQ84: 44.0777663 | AS84: 42 | BC84: 80 | BD84: =Resultados!$K$60-M84 -> 6308.602072 | BE84: 18726.75213 | BF84: 13 | BG84: 80 | BO84: 80 | BP84: 9431.155666 | BQ84: =Resultados!$K$60-M84-(Resultados!$D$88-VLOOKUP(M84,$AI$5:$AP$305,8,FALSE))*Resultados!$D$90*8760 -> 5780.731605 | BT84: 9431.155666 | BU84: 80 | BV84: 9431.155666
A85: 81 | B85: 50.61526073 | C85: 43.68638656 | D85: 50.72597483 | E85: 45.23833411 | F85: 46.37425399 | G85: 41.27509855 | H85: 40.63082996 | I85: 43.60451273 | J85: 75625.66107 | L85: 81 | M85: 72600.40925 | N85: 10082.55644 | O85: 7 | P85: 72599.46995 | AI85: 75625.66107 | AJ85: 50.61526073 | AK85: 43.68638656 | AL85: 50.72597483 | AM85: 45.23833411 | AN85: 46.37425399 | AO85: 41.27509855 | AP85: 40.63082996 | AQ85: 43.60451273 | AS85: 41 | BC85: 81 | BD85: =Resultados!$K$60-M85 -> 6303.913911 | BE85: 18722.06397 | BF85: 13 | BG85: 81 | BO85: 81 | BP85: 9428.672674 | BQ85: =Resultados!$K$60-M85-(Resultados!$D$88-VLOOKUP(M85,$AI$5:$AP$305,8,FALSE))*Resultados!$D$90*8760 -> 4455.040321 | BT85: 9428.672674 | BU85: 81 | BV85: 9428.672674
A86: 82 | B86: 40.88079991 | C86: 36.00945883 | D86: 46.67950814 | E86: 41.84904629 | F86: 40.56538905 | G86: 37.49787205 | H86: 35.40139382 | I86: 38.80050388 | J86: 67293.8091 | L86: 82 | M86: 72613.50228 | N86: 10095.64947 | O86: 7 | P86: 72599.46995 | AI86: 67293.8091 | AJ86: 40.88079991 | AK86: 36.00945883 | AL86: 46.67950814 | AM86: 41.84904629 | AN86: 40.56538905 | AO86: 37.49787205 | AP86: 35.40139382 | AQ86: 38.80050388 | AS86: 35 | BC86: 82 | BD86: =Resultados!$K$60-M86 -> 6290.820884 | BE86: 18708.97094 | BF86: 13 | BG86: 82 | BO86: 82 | BP86: 9393.835261 | BQ86: =Resultados!$K$60-M86-(Resultados!$D$88-VLOOKUP(M86,$AI$5:$AP$305,8,FALSE))*Resultados!$D$90*8760 -> 6603.221935 | BT86: 9393.835261 | BU86: 82 | BV86: 9393.835261
A87: 83 | B87: 52.84634278 | C87: 50.90157084 | D87: 49.03169027 | E87: 46.75624609 | F87: 46.47634184 | G87: 43.27847657 | H87: 43.89745606 | I87: 45.64630955 | J87: 79166.85955 | L87: 83 | M87: 72621.68003 | N87: 10103.82722 | O87: 7 | P87: 72599.46995 | AI87: 79166.85955 | AJ87: 52.84634278 | AK87: 50.90157084 | AL87: 49.03169027 | AM87: 46.75624609 | AN87: 46.47634184 | AO87: 43.27847657 | AP87: 43.89745606 | AQ87: 45.64630955 | AS87: 44 | BC87: 83 | BD87: =Resultados!$K$60-M87 -> 6282.64313 | BE87: 18700.79319 | BF87: 13 | BG87: 83 | BO87: 83 | BP87: 9380.198068 | BQ87: =Resultados!$K$60-M87-(Resultados!$D$88-VLOOKUP(M87,$AI$5:$AP$305,8,FALSE))*Resultados!$D$90*8760 -> 5358.210907 | BT87: 9380.198068 | BU87: 83 | BV87: 9380.198068
A88: 84 | B88: 58.7168271 | C88: 49.59897807 | D88: 56.1391422 | E88: 50.44014112 | F88: 50.59946431 | G88: 48.35408013 | H88: 48.38786224 | I88: 50.10687284 | J88: 86903.05534 | L88: 84 | M88: 72654.40279 | N88: 10136.54998 | O88: 7 | P88: 72599.46995 | AI88: 86903.05534 | AJ88: 58.7168271 | AK88: 49.59897807 | AL88: 56.1391422 | AM88: 50.44014112 | AN88: 50.59946431 | AO88: 48.35408013 | AP88: 48.38786224 | AQ88: 50.10687284 | AS88: 48 | BC88: 84 | BD88: =Resultados!$K$60-M88 -> 6249.920368 | BE88: 18668.07042 | BF88: 13 | BG88: 84 | BO88: 84 | BP88: 9367.484292 | BQ88: =Resultados!$K$60-M88-(Resultados!$D$88-VLOOKUP(M88,$AI$5:$AP$305,8,FALSE))*Resultados!$D$90*8760 -> 5536.893369 | BT88: 9367.484292 | BU88: 84 | BV88: 9367.484292
A89: 85 | B89: 48.09531579 | C89: 41.80817249 | D89: 51.9480253 | E89: 48.37054035 | F89: 45.08126715 | G89: 42.74053594 | H89: 40.66099156 | I89: 44.29223745 | J89: 76818.41918 | L89: 85 | M89: 72662.59598 | N89: 10144.74317 | O89: 7 | P89: 72599.46995 | AI89: 76818.41918 | AJ89: 48.09531579 | AK89: 41.80817249 | AL89: 51.9480253 | AM89: 48.37054035 | AN89: 45.08126715 | AO89: 42.74053594 | AP89: 40.66099156 | AQ89: 44.29223745 | AS89: 41 | BC89: 85 | BD89: =Resultados!$K$60-M89 -> 6241.727179 | BE89: 18659.87724 | BF89: 13 | BG89: 85 | BO89: 85 | BP89: 9310.372129 | BQ89: =Resultados!$K$60-M89-(Resultados!$D$88-VLOOKUP(M89,$AI$5:$AP$305,8,FALSE))*Resultados!$D$90*8760 -> 4621.048571 | BT89: 9310.372129 | BU89: 85 | BV89: 9310.372129
A90: 86 | B90: 52.84931177 | C90: 50.44095767 | D90: 48.50107219 | E90: 44.9857728 | F90: 51.61326313 | G90: 41.80698356 | H90: 44.0115294 | I90: 45.10732312 | J90: 78232.06628 | L90: 86 | M90: 72682.94953 | N90: 10165.09672 | O90: 7 | P90: 72599.46995 | AI90: 78232.06628 | AJ90: 52.84931177 | AK90: 50.44095767 | AL90: 48.50107219 | AM90: 44.9857728 | AN90: 51.61326313 | AO90: 41.80698356 | AP90: 44.0115294 | AQ90: 45.10732312 | AS90: 44 | BC90: 86 | BD90: =Resultados!$K$60-M90 -> 6221.373631 | BE90: 18639.52369 | BF90: 13 | BG90: 86 | BO90: 86 | BP90: 9285.927493 | BQ90: =Resultados!$K$60-M90-(Resultados!$D$88-VLOOKUP(M90,$AI$5:$AP$305,8,FALSE))*Resultados!$D$90*8760 -> 4714.741423 | BT90: 9285.927493 | BU90: 86 | BV90: 9285.927493
A91: 87 | B91: 45.9750931 | C91: 44.03547232 | D91: 41.05220585 | E91: 38.64603993 | F91: 41.81719902 | G91: 36.95978936 | H91: 37.78992703 | I91: 39.17014278 | J91: 67934.89381 | L91: 87 | M91: 72701.42422 | N91: 10183.57141 | O91: 7 | P91: 72599.46995 | AI91: 67934.89381 | AJ91: 45.9750931 | AK91: 44.03547232 | AL91: 41.05220585 | AM91: 38.64603993 | AN91: 41.81719902 | AO91: 36.95978936 | AP91: 37.78992703 | AQ91: 39.17014278 | AS91: 38 | BC91: 87 | BD91: =Resultados!$K$60-M91 -> 6202.898938 | BE91: 18621.04899 | BF91: 13 | BG91: 87 | BO91: 87 | BP91: 9281.274408 | BQ91: =Resultados!$K$60-M91-(Resultados!$D$88-VLOOKUP(M91,$AI$5:$AP$305,8,FALSE))*Resultados!$D$90*8760 -> 5675.273409 | BT91: 9281.274408 | BU91: 87 | BV91: 9281.274408
A92: 88 | B92: 42.71376554 | C92: 38.51403498 | D92: 41.45025395 | E92: 39.41529041 | F92: 41.16118003 | G92: 37.36549378 | H92: 36.9998836 | I92: 38.67135518 | J92: 67069.81954 | L92: 88 | M92: 72882.32443 | N92: 10364.47162 | O92: 7 | P92: 72599.46995 | AI92: 67069.81954 | AJ92: 42.71376554 | AK92: 38.51403498 | AL92: 41.45025395 | AM92: 39.41529041 | AN92: 41.16118003 | AO92: 37.36549378 | AP92: 36.9998836 | AQ92: 38.67135518 | AS92: 37 | BC92: 88 | BD92: =Resultados!$K$60-M92 -> 6021.998727 | BE92: 18440.14878 | BF92: 13 | BG92: 88 | BO92: 88 | BP92: 9273.987021 | BQ92: =Resultados!$K$60-M92-(Resultados!$D$88-VLOOKUP(M92,$AI$5:$AP$305,8,FALSE))*Resultados!$D$90*8760 -> 4190.644797 | BT92: 9273.987021 | BU92: 88 | BV92: 9273.987021
A93: 89 | B93: 50.33670732 | C93: 48.03554082 | D93: 56.74331162 | E93: 52.95419588 | F93: 50.27862844 | G93: 44.39871119 | H93: 45.31215627 | I93: 47.19299196 | J93: 81849.35438 | L93: 89 | M93: 72956.95811 | N93: 10439.1053 | O93: 7 | P93: 72599.46995 | AI93: 81849.35438 | AJ93: 50.33670732 | AK93: 48.03554082 | AL93: 56.74331162 | AM93: 52.95419588 | AN93: 50.27862844 | AO93: 44.39871119 | AP93: 45.31215627 | AQ93: 47.19299196 | AS93: 45 | BC93: 89 | BD93: =Resultados!$K$60-M93 -> 5947.365051 | BE93: 18365.51511 | BF93: 13 | BG93: 89 | BO93: 89 | BP93: 9122.889493 | BQ93: =Resultados!$K$60-M93-(Resultados!$D$88-VLOOKUP(M93,$AI$5:$AP$305,8,FALSE))*Resultados!$D$90*8760 -> 3796.085735 | BT93: 9122.889493 | BU93: 89 | BV93: 9122.889493
A94: 90 | B94: 52.68488623 | C94: 50.17661363 | D94: 51.58956594 | E94: 49.1872902 | F94: 44.97063076 | G94: 45.35103872 | H94: 44.65735449 | I94: 46.97254379 | J94: 81467.01921 | L94: 90 | M94: 73011.23185 | N94: 10493.37904 | O94: 7 | P94: 72599.46995 | AI94: 81467.01921 | AJ94: 52.68488623 | AK94: 50.17661363 | AL94: 51.58956594 | AM94: 49.1872902 | AN94: 44.97063076 | AO94: 45.35103872 | AP94: 44.65735449 | AQ94: 46.97254379 | AS94: 45 | BC94: 90 | BD94: =Resultados!$K$60-M94 -> 5893.091313 | BE94: 18311.24137 | BF94: 13 | BG94: 90 | BO94: 90 | BP94: 9121.93531 | BQ94: =Resultados!$K$60-M94-(Resultados!$D$88-VLOOKUP(M94,$AI$5:$AP$305,8,FALSE))*Resultados!$D$90*8760 -> 4077.758552 | BT94: 9121.93531 | BU94: 90 | BV94: 9121.93531
A95: 91 | B95: 61.55889087 | C95: 55.45483811 | D95: 46.85865153 | E95: 42.50486922 | F95: 38.97832447 | G95: 42.24390674 | H95: 44.44063212 | I95: 44.87674283 | J95: 77832.15843 | L95: 91 | M95: 73023.0709 | N95: 10505.21809 | O95: 7 | P95: 72599.46995 | AI95: 77832.15843 | AJ95: 61.55889087 | AK95: 55.45483811 | AL95: 46.85865153 | AM95: 42.50486922 | AN95: 38.97832447 | AO95: 42.24390674 | AP95: 44.44063212 | AQ95: 44.87674283 | AS95: 44 | BC95: 91 | BD95: =Resultados!$K$60-M95 -> 5881.252262 | BE95: 18299.40232 | BF95: 13 | BG95: 91 | BO95: 91 | BP95: 9117.258081 | BQ95: =Resultados!$K$60-M95-(Resultados!$D$88-VLOOKUP(M95,$AI$5:$AP$305,8,FALSE))*Resultados!$D$90*8760 -> 5543.133819 | BT95: 9117.258081 | BU95: 91 | BV95: 9117.258081
A96: 92 | B96: 44.96086541 | C96: 44.52583453 | D96: 36.82469934 | E96: 34.42568073 | F96: 40.15005364 | G96: 34.31481548 | H96: 35.95662926 | I96: 36.81493983 | J96: 63850.13815 | L96: 92 | M96: 73027.90467 | N96: 10510.05186 | O96: 7 | P96: 72599.46995 | AI96: 63850.13815 | AJ96: 44.96086541 | AK96: 44.52583453 | AL96: 36.82469934 | AM96: 34.42568073 | AN96: 40.15005364 | AO96: 34.31481548 | AP96: 35.95662926 | AQ96: 36.81493983 | AS96: 36 | BC96: 92 | BD96: =Resultados!$K$60-M96 -> 5876.418486 | BE96: 18294.56854 | BF96: 13 | BG96: 92 | BO96: 92 | BP96: 9089.328988 | BQ96: =Resultados!$K$60-M96-(Resultados!$D$88-VLOOKUP(M96,$AI$5:$AP$305,8,FALSE))*Resultados!$D$90*8760 -> 5561.85079 | BT96: 9089.328988 | BU96: 92 | BV96: 9089.328988
A97: 93 | B97: 49.90263157 | C97: 44.16008352 | D97: 47.77394513 | E97: 42.05720708 | F97: 47.44987153 | G97: 40.28706032 | H97: 40.02415997 | I97: 42.68825732 | J97: 74036.54984 | L97: 93 | M97: 73098.90189 | N97: 10581.04908 | O97: 7 | P97: 72599.46995 | AI97: 74036.54984 | AJ97: 49.90263157 | AK97: 44.16008352 | AL97: 47.77394513 | AM97: 42.05720708 | AN97: 47.44987153 | AO97: 40.28706032 | AP97: 40.02415997 | AQ97: 42.68825732 | AS97: 40 | BC97: 93 | BD97: =Resultados!$K$60-M97 -> 5805.421271 | BE97: 18223.57133 | BF97: 13 | BG97: 93 | BO97: 93 | BP97: 9056.281171 | BQ97: =Resultados!$K$60-M97-(Resultados!$D$88-VLOOKUP(M97,$AI$5:$AP$305,8,FALSE))*Resultados!$D$90*8760 -> 4516.168351 | BT97: 9056.281171 | BU97: 93 | BV97: 9056.281171
A98: 94 | B98: 54.06588493 | C98: 52.63532197 | D98: 45.43274819 | E98: 42.51073403 | F98: 43.76077853 | G98: 40.6134507 | H98: 42.10996165 | I98: 43.50193663 | J98: 75447.7578 | L98: 94 | M98: 73103.64199 | N98: 10585.78918 | O98: 7 | P98: 72599.46995 | AI98: 75447.7578 | AJ98: 54.06588493 | AK98: 52.63532197 | AL98: 45.43274819 | AM98: 42.51073403 | AN98: 43.76077853 | AO98: 40.6134507 | AP98: 42.10996165 | AQ98: 43.50193663 | AS98: 42 | BC98: 94 | BD98: =Resultados!$K$60-M98 -> 5800.681169 | BE98: 18218.83122 | BF98: 13 | BG98: 94 | BO98: 94 | BP98: 8997.654997 | BQ98: =Resultados!$K$60-M98-(Resultados!$D$88-VLOOKUP(M98,$AI$5:$AP$305,8,FALSE))*Resultados!$D$90*8760 -> 5428.036846 | BT98: 8997.654997 | BU98: 94 | BV98: 8997.654997
A99: 95 | B99: 48.01250336 | C99: 45.28208113 | D99: 41.66962274 | E99: 39.10006568 | F99: 40.36765086 | G99: 38.24448908 | H99: 38.79311559 | I99: 40.11419787 | J99: 69572.21953 | L99: 95 | M99: 73143.05722 | N99: 10625.20441 | O99: 7 | P99: 72599.46995 | AI99: 69572.21953 | AJ99: 48.01250336 | AK99: 45.28208113 | AL99: 41.66962274 | AM99: 39.10006568 | AN99: 40.36765086 | AO99: 38.24448908 | AP99: 38.79311559 | AQ99: 40.11419787 | AS99: 39 | BC99: 95 | BD99: =Resultados!$K$60-M99 -> 5761.265937 | BE99: 18179.41599 | BF99: 13 | BG99: 95 | BO99: 95 | BP99: 8988.815628 | BQ99: =Resultados!$K$60-M99-(Resultados!$D$88-VLOOKUP(M99,$AI$5:$AP$305,8,FALSE))*Resultados!$D$90*8760 -> 3187.0932 | BT99: 8988.815628 | BU99: 95 | BV99: 8988.815628
A100: 96 | B100: 53.22926777 | C100: 50.17240142 | D100: 46.21864999 | E100: 41.975387 | F100: 38.44950298 | G100: 38.68162263 | H100: 41.18460398 | I100: 41.51991859 | J100: 72010.23688 | L100: 96 | M100: 73185.52086 | N100: 10667.66805 | O100: 7 | P100: 72599.46995 | AI100: 72010.23688 | AJ100: 53.22926777 | AK100: 50.17240142 | AL100: 46.21864999 | AM100: 41.975387 | AN100: 38.44950298 | AO100: 38.68162263 | AP100: 41.18460398 | AQ100: 41.51991859 | AS100: 41 | BC100: 96 | BD100: =Resultados!$K$60-M100 -> 5718.802301 | BE100: 18136.95236 | BF100: 13 | BG100: 96 | BO100: 96 | BP100: 8899.475596 | BQ100: =Resultados!$K$60-M100-(Resultados!$D$88-VLOOKUP(M100,$AI$5:$AP$305,8,FALSE))*Resultados!$D$90*8760 -> 5169.774088 | BT100: 8899.475596 | BU100: 96 | BV100: 8899.475596
A101: 97 | B101: 48.84012096 | C101: 40.45605453 | D101: 52.40506189 | E101: 47.40595227 | F101: 46.25578977 | G101: 42.23396189 | H101: 40.45663937 | I101: 43.99848872 | J101: 76308.9549 | L101: 97 | M101: 73241.36681 | N101: 10723.514 | O101: 7 | P101: 72599.46995 | AI101: 76308.9549 | AJ101: 48.84012096 | AK101: 40.45605453 | AL101: 52.40506189 | AM101: 47.40595227 | AN101: 46.25578977 | AO101: 42.23396189 | AP101: 40.45663937 | AQ101: 43.99848872 | AS101: 40 | BC101: 97 | BD101: =Resultados!$K$60-M101 -> 5662.956351 | BE101: 18081.10641 | BF101: 13 | BG101: 97 | BO101: 97 | BP101: 8899.176946 | BQ101: =Resultados!$K$60-M101-(Resultados!$D$88-VLOOKUP(M101,$AI$5:$AP$305,8,FALSE))*Resultados!$D$90*8760 -> 5329.113186 | BT101: 8899.176946 | BU101: 97 | BV101: 8899.176946
A102: 98 | B102: 52.67099635 | C102: 49.64746973 | D102: 43.88018611 | E102: 39.77554222 | F102: 40.83108705 | G102: 41.04533897 | H102: 41.1687033 | I102: 42.74493349 | J102: 74134.84638 | L102: 98 | M102: 73278.54764 | N102: 10760.69484 | O102: 7 | P102: 72599.46995 | AI102: 74134.84638 | AJ102: 52.67099635 | AK102: 49.64746973 | AL102: 43.88018611 | AM102: 39.77554222 | AN102: 40.83108705 | AO102: 41.04533897 | AP102: 41.1687033 | AQ102: 42.74493349 | AS102: 41 | BC102: 98 | BD102: =Resultados!$K$60-M102 -> 5625.775515 | BE102: 18043.92557 | BF102: 13 | BG102: 98 | BO102: 98 | BP102: 8875.173112 | BQ102: =Resultados!$K$60-M102-(Resultados!$D$88-VLOOKUP(M102,$AI$5:$AP$305,8,FALSE))*Resultados!$D$90*8760 -> 6231.035779 | BT102: 8875.173112 | BU102: 98 | BV102: 8875.173112
A103: 99 | B103: 58.05671283 | C103: 54.74301324 | D103: 55.64733973 | E103: 49.04844427 | F103: 49.71276919 | G103: 45.87036251 | H103: 44.99768295 | I103: 48.81313608 | J103: 84659.25782 | L103: 99 | M103: 73359.51296 | N103: 10841.66015 | O103: 8 | P103: 74039.70097 | AI103: 84659.25782 | AJ103: 58.05671283 | AK103: 54.74301324 | AL103: 55.64733973 | AM103: 49.04844427 | AN103: 49.71276919 | AO103: 45.87036251 | AP103: 44.99768295 | AQ103: 48.81313608 | AS103: 45 | BC103: 99 | BD103: =Resultados!$K$60-M103 -> 5544.810199 | BE103: 17962.96025 | BF103: 12 | BG103: 99 | BO103: 99 | BP103: 8838.271474 | BQ103: =Resultados!$K$60-M103-(Resultados!$D$88-VLOOKUP(M103,$AI$5:$AP$305,8,FALSE))*Resultados!$D$90*8760 -> 5874.777379 | BT103: 8838.271474 | BU103: 99 | BV103: 8838.271474
A104: 100 | B104: 42.45672382 | C104: 37.63455675 | D104: 46.1110734 | E104: 43.49860919 | F104: 42.54094446 | G104: 37.55912258 | H104: 37.72782175 | I104: 39.4331927 | J104: 68391.11549 | L104: 100 | M104: 73414.48036 | N104: 10896.62756 | O104: 8 | P104: 74039.70097 | AI104: 68391.11549 | AJ104: 42.45672382 | AK104: 37.63455675 | AL104: 46.1110734 | AM104: 43.49860919 | AN104: 42.54094446 | AO104: 37.55912258 | AP104: 37.72782175 | AQ104: 39.4331927 | AS104: 38 | BC104: 100 | BD104: =Resultados!$K$60-M104 -> 5489.842794 | BE104: 17907.99285 | BF104: 12 | BG104: 100 | BO104: 100 | BP104: 8829.937567 | BQ104: =Resultados!$K$60-M104-(Resultados!$D$88-VLOOKUP(M104,$AI$5:$AP$305,8,FALSE))*Resultados!$D$90*8760 ->  | BT104: 8829.937567 | BU104: 100 | BV104: 8829.937567
A105: 101 | B105: 53.52696981 | C105: 47.91347784 | D105: 53.40058114 | E105: 49.68287482 | F105: 43.91150391 | G105: 41.77610791 | H105: 44.15664031 | I105: 44.76905415 | J105: 77645.38814 | L105: 101 | M105: 73435.16126 | N105: 10917.30845 | O105: 8 | P105: 74039.70097 | AI105: 77645.38814 | AJ105: 53.52696981 | AK105: 47.91347784 | AL105: 53.40058114 | AM105: 49.68287482 | AN105: 43.91150391 | AO105: 41.77610791 | AP105: 44.15664031 | AQ105: 44.76905415 | AS105: 44 | BC105: 101 | BD105: =Resultados!$K$60-M105 -> 5469.161899 | BE105: 17887.31195 | BF105: 12 | BG105: 101 | BO105: 101 | BP105: 8820.490564 | BQ105: =Resultados!$K$60-M105-(Resultados!$D$88-VLOOKUP(M105,$AI$5:$AP$305,8,FALSE))*Resultados!$D$90*8760 -> 4024.81578 | BT105: 8820.490564 | BU105: 101 | BV105: 8820.490564
A106: 102 | B106: 55.3955571 | C106: 51.64286293 | D106: 53.65658034 | E106: 52.27544017 | F106: 49.75981438 | G106: 43.13742669 | H106: 45.61173319 | I106: 46.91165278 | J106: 81361.41264 | L106: 102 | M106: 73440.60914 | N106: 10922.75633 | O106: 8 | P106: 74039.70097 | AI106: 81361.41264 | AJ106: 55.3955571 | AK106: 51.64286293 | AL106: 53.65658034 | AM106: 52.27544017 | AN106: 49.75981438 | AO106: 43.13742669 | AP106: 45.61173319 | AQ106: 46.91165278 | AS106: 46 | BC106: 102 | BD106: =Resultados!$K$60-M106 -> 5463.714016 | BE106: 17881.86407 | BF106: 12 | BG106: 102 | BO106: 102 | BP106: 8770.635002 | BQ106: =Resultados!$K$60-M106-(Resultados!$D$88-VLOOKUP(M106,$AI$5:$AP$305,8,FALSE))*Resultados!$D$90*8760 -> 4947.015724 | BT106: 8770.635002 | BU106: 102 | BV106: 8770.635002
A107: 103 | B107: 42.11245003 | C107: 38.4096426 | D107: 44.25788643 | E107: 40.85320451 | F107: 41.55027933 | G107: 36.6942586 | H107: 36.57199757 | I107: 38.53356542 | J107: 66830.84333 | L107: 103 | M107: 73441.01239 | N107: 10923.15958 | O107: 8 | P107: 74039.70097 | AI107: 66830.84333 | AJ107: 42.11245003 | AK107: 38.4096426 | AL107: 44.25788643 | AM107: 40.85320451 | AN107: 41.55027933 | AO107: 36.6942586 | AP107: 36.57199757 | AQ107: 38.53356542 | AS107: 37 | BC107: 103 | BD107: =Resultados!$K$60-M107 -> 5463.310774 | BE107: 17881.46083 | BF107: 12 | BG107: 103 | BO107: 103 | BP107: 8770.608657 | BQ107: =Resultados!$K$60-M107-(Resultados!$D$88-VLOOKUP(M107,$AI$5:$AP$305,8,FALSE))*Resultados!$D$90*8760 -> 5849.860713 | BT107: 8770.608657 | BU107: 103 | BV107: 8770.608657
A108: 104 | B108: 53.78868653 | C108: 50.43682203 | D108: 44.84560055 | E108: 43.5111686 | F108: 42.39103866 | G108: 38.34423087 | H108: 42.4066222 | I108: 41.86775149 | J108: 72613.50228 | L108: 104 | M108: 73473.45505 | N108: 10955.60224 | O108: 8 | P108: 74039.70097 | AI108: 72613.50228 | AJ108: 53.78868653 | AK108: 50.43682203 | AL108: 44.84560055 | AM108: 43.5111686 | AN108: 42.39103866 | AO108: 38.34423087 | AP108: 42.4066222 | AQ108: 41.86775149 | AS108: 42 | BC108: 104 | BD108: =Resultados!$K$60-M108 -> 5430.868109 | BE108: 17849.01817 | BF108: 12 | BG108: 104 | BO108: 104 | BP108: 8722.347572 | BQ108: =Resultados!$K$60-M108-(Resultados!$D$88-VLOOKUP(M108,$AI$5:$AP$305,8,FALSE))*Resultados!$D$90*8760 -> 4438.814019 | BT108: 8722.347572 | BU108: 104 | BV108: 8722.347572
A109: 105 | B109: 49.62492175 | C109: 46.7196197 | D109: 45.3351955 | E109: 42.95605771 | F109: 40.20213115 | G109: 38.94385625 | H109: 39.99024565 | I109: 41.29548172 | J109: 71620.9839 | L109: 105 | M109: 73506.62461 | N109: 10988.7718 | O109: 8 | P109: 74039.70097 | AI109: 71620.9839 | AJ109: 49.62492175 | AK109: 46.7196197 | AL109: 45.3351955 | AM109: 42.95605771 | AN109: 40.20213115 | AO109: 38.94385625 | AP109: 39.99024565 | AQ109: 41.29548172 | AS109: 40 | BC109: 105 | BD109: =Resultados!$K$60-M109 -> 5397.698546 | BE109: 17815.8486 | BF109: 12 | BG109: 105 | BO109: 105 | BP109: 8694.458437 | BQ109: =Resultados!$K$60-M109-(Resultados!$D$88-VLOOKUP(M109,$AI$5:$AP$305,8,FALSE))*Resultados!$D$90*8760 -> 3676.933098 | BT109: 8694.458437 | BU109: 105 | BV109: 8694.458437
A110: 106 | B110: 57.5198562 | C110: 53.31658328 | D110: 49.89994215 | E110: 50.23834452 | F110: 49.31816885 | G110: 43.87514483 | H110: 46.44852977 | I110: 47.23698507 | J110: 81925.654 | L110: 106 | M110: 73523.23489 | N110: 11005.38208 | O110: 8 | P110: 74039.70097 | AI110: 81925.654 | AJ110: 57.5198562 | AK110: 53.31658328 | AL110: 49.89994215 | AM110: 50.23834452 | AN110: 49.31816885 | AO110: 43.87514483 | AP110: 46.44852977 | AQ110: 47.23698507 | AS110: 46 | BC110: 106 | BD110: =Resultados!$K$60-M110 -> 5381.088268 | BE110: 17799.23832 | BF110: 12 | BG110: 106 | BO110: 106 | BP110: 8693.581117 | BQ110: =Resultados!$K$60-M110-(Resultados!$D$88-VLOOKUP(M110,$AI$5:$AP$305,8,FALSE))*Resultados!$D$90*8760 -> 4457.098117 | BT110: 8693.581117 | BU110: 106 | BV110: 8693.581117
A111: 107 | B111: 67.70003161 | C111: 63.13880975 | D111: 47.73075087 | E111: 44.97601613 | F111: 47.98802268 | G111: 42.84698241 | H111: 47.80145363 | I111: 47.62081966 | J111: 82591.35907 | L111: 107 | M111: 73530.35301 | N111: 11012.5002 | O111: 8 | P111: 74039.70097 | AI111: 82591.35907 | AJ111: 67.70003161 | AK111: 63.13880975 | AL111: 47.73075087 | AM111: 44.97601613 | AN111: 47.98802268 | AO111: 42.84698241 | AP111: 47.80145363 | AQ111: 47.62081966 | AS111: 48 | BC111: 107 | BD111: =Resultados!$K$60-M111 -> 5373.970147 | BE111: 17792.1202 | BF111: 12 | BG111: 107 | BO111: 107 | BP111: 8666.902645 | BQ111: =Resultados!$K$60-M111-(Resultados!$D$88-VLOOKUP(M111,$AI$5:$AP$305,8,FALSE))*Resultados!$D$90*8760 -> 5165.096859 | BT111: 8666.902645 | BU111: 107 | BV111: 8666.902645
A112: 108 | B112: 56.8019871 | C112: 53.95187975 | D112: 48.17698438 | E112: 43.93401471 | F112: 39.33577352 | G112: 42.95207945 | H112: 42.50978977 | I112: 45.00068421 | J112: 78047.11667 | L112: 108 | M112: 73546.58943 | N112: 11028.73662 | O112: 8 | P112: 74039.70097 | AI112: 78047.11667 | AJ112: 56.8019871 | AK112: 53.95187975 | AL112: 48.17698438 | AM112: 43.93401471 | AN112: 39.33577352 | AO112: 42.95207945 | AP112: 42.50978977 | AQ112: 45.00068421 | AS112: 43 | BC112: 108 | BD112: =Resultados!$K$60-M112 -> 5357.733729 | BE112: 17775.88378 | BF112: 12 | BG112: 108 | BO112: 108 | BP112: 8662.016349 | BQ112: =Resultados!$K$60-M112-(Resultados!$D$88-VLOOKUP(M112,$AI$5:$AP$305,8,FALSE))*Resultados!$D$90*8760 -> 4575.908569 | BT112: 8662.016349 | BU112: 108 | BV112: 8662.016349
A113: 109 | B113: 52.88287355 | C113: 49.48671741 | D113: 47.60214105 | E113: 44.54782418 | F113: 44.19669878 | G113: 41.08045082 | H113: 44.09772805 | I113: 43.72221795 | J113: 75829.80359 | L113: 109 | M113: 73556.61815 | N113: 11038.76534 | O113: 8 | P113: 74039.70097 | AI113: 75829.80359 | AJ113: 52.88287355 | AK113: 49.48671741 | AL113: 47.60214105 | AM113: 44.54782418 | AN113: 44.19669878 | AO113: 41.08045082 | AP113: 44.09772805 | AQ113: 43.72221795 | AS113: 44 | BC113: 109 | BD113: =Resultados!$K$60-M113 -> 5347.705013 | BE113: 17765.85507 | BF113: 12 | BG113: 109 | BO113: 109 | BP113: 8600.600468 | BQ113: =Resultados!$K$60-M113-(Resultados!$D$88-VLOOKUP(M113,$AI$5:$AP$305,8,FALSE))*Resultados!$D$90*8760 -> 6392.478774 | BT113: 8600.600468 | BU113: 109 | BV113: 8600.600468
A114: 110 | B114: 51.42649628 | C114: 47.15738325 | D114: 48.07083856 | E114: 43.87742171 | F114: 43.1215779 | G114: 41.2605096 | H114: 40.32318852 | I114: 43.37522911 | J114: 75228.00211 | L114: 110 | M114: 73570.59851 | N114: 11052.7457 | O114: 8 | P114: 74039.70097 | AI114: 75228.00211 | AJ114: 51.42649628 | AK114: 47.15738325 | AL114: 48.07083856 | AM114: 43.87742171 | AN114: 43.1215779 | AO114: 41.2605096 | AP114: 40.32318852 | AQ114: 43.37522911 | AS114: 40 | BC114: 110 | BD114: =Resultados!$K$60-M114 -> 5333.724647 | BE114: 17751.8747 | BF114: 12 | BG114: 110 | BO114: 110 | BP114: 8573.209793 | BQ114: =Resultados!$K$60-M114-(Resultados!$D$88-VLOOKUP(M114,$AI$5:$AP$305,8,FALSE))*Resultados!$D$90*8760 -> 4582.428983 | BT114: 8573.209793 | BU114: 110 | BV114: 8573.209793
A115: 111 | B115: 50.69544304 | C115: 42.67245422 | D115: 51.93582117 | E115: 45.60881627 | F115: 42.25640511 | G115: 43.9749294 | H115: 42.69820698 | I115: 44.74866144 | J115: 77610.01995 | L115: 111 | M115: 73621.48142 | N115: 11103.62861 | O115: 8 | P115: 74039.70097 | AI115: 77610.01995 | AJ115: 50.69544304 | AK115: 42.67245422 | AL115: 51.93582117 | AM115: 45.60881627 | AN115: 42.25640511 | AO115: 43.9749294 | AP115: 42.69820698 | AQ115: 44.74866144 | AS115: 43 | BC115: 111 | BD115: =Resultados!$K$60-M115 -> 5282.841743 | BE115: 17700.9918 | BF115: 12 | BG115: 111 | BO115: 111 | BP115: 8534.590206 | BQ115: =Resultados!$K$60-M115-(Resultados!$D$88-VLOOKUP(M115,$AI$5:$AP$305,8,FALSE))*Resultados!$D$90*8760 -> 5137.167766 | BT115: 8534.590206 | BU115: 111 | BV115: 8534.590206
A116: 112 | B116: 51.29759446 | C116: 45.85537609 | D116: 49.87783855 | E116: 46.30468968 | F116: 43.09325269 | G116: 42.13794679 | H116: 42.34177142 | I116: 44.05331727 | J116: 76404.04702 | L116: 112 | M116: 73657.76758 | N116: 11139.91477 | O116: 8 | P116: 74039.70097 | AI116: 76404.04702 | AJ116: 51.29759446 | AK116: 45.85537609 | AL116: 49.87783855 | AM116: 46.30468968 | AN116: 43.09325269 | AO116: 42.13794679 | AP116: 42.34177142 | AQ116: 44.05331727 | AS116: 42 | BC116: 112 | BD116: =Resultados!$K$60-M116 -> 5246.555582 | BE116: 17664.70564 | BF116: 12 | BG116: 112 | BO116: 112 | BP116: 8528.069792 | BQ116: =Resultados!$K$60-M116-(Resultados!$D$88-VLOOKUP(M116,$AI$5:$AP$305,8,FALSE))*Resultados!$D$90*8760 -> 3276.945357 | BT116: 8528.069792 | BU116: 112 | BV116: 8528.069792
A117: 113 | B117: 48.45309133 | C117: 44.63706848 | D117: 47.3358621 | E117: 44.36370108 | F117: 42.50129477 | G117: 39.58863133 | H117: 39.93941371 | I117: 41.86020227 | J117: 72600.40925 | L117: 113 | M117: 73695.55715 | N117: 11177.70434 | O117: 8 | P117: 74039.70097 | AI117: 72600.40925 | AJ117: 48.45309133 | AK117: 44.63706848 | AL117: 47.3358621 | AM117: 44.36370108 | AN117: 42.50129477 | AO117: 39.58863133 | AP117: 39.93941371 | AQ117: 41.86020227 | AS117: 40 | BC117: 113 | BD117: =Resultados!$K$60-M117 -> 5208.766013 | BE117: 17626.91607 | BF117: 12 | BG117: 113 | BO117: 113 | BP117: 8468.329573 | BQ117: =Resultados!$K$60-M117-(Resultados!$D$88-VLOOKUP(M117,$AI$5:$AP$305,8,FALSE))*Resultados!$D$90*8760 -> 3426.978459 | BT117: 8468.329573 | BU117: 113 | BV117: 8468.329573
A118: 114 | B118: 59.57701722 | C118: 54.9838852 | D118: 48.92968611 | E118: 44.57734455 | F118: 44.8711155 | G118: 44.17462994 | H118: 45.00651442 | I118: 46.69575657 | J118: 80986.97219 | L118: 114 | M118: 73711.31035 | N118: 11193.45754 | O118: 8 | P118: 74039.70097 | AI118: 80986.97219 | AJ118: 59.57701722 | AK118: 54.9838852 | AL118: 48.92968611 | AM118: 44.57734455 | AN118: 44.8711155 | AO118: 44.17462994 | AP118: 45.00651442 | AQ118: 46.69575657 | AS118: 45 | BC118: 114 | BD118: =Resultados!$K$60-M118 -> 5193.012808 | BE118: 17611.16286 | BF118: 12 | BG118: 114 | BO118: 114 | BP118: 8429.304469 | BQ118: =Resultados!$K$60-M118-(Resultados!$D$88-VLOOKUP(M118,$AI$5:$AP$305,8,FALSE))*Resultados!$D$90*8760 -> 6105.544735 | BT118: 8429.304469 | BU118: 114 | BV118: 8429.304469
A119: 115 | B119: 46.98868948 | C119: 42.73763543 | D119: 42.46217681 | E119: 41.34721641 | F119: 39.75666302 | G119: 39.390316 | H119: 41.32792508 | I119: 40.64163995 | J119: 70486.99081 | L119: 115 | M119: 73713.03366 | N119: 11195.18086 | O119: 8 | P119: 74039.70097 | AI119: 70486.99081 | AJ119: 46.98868948 | AK119: 42.73763543 | AL119: 42.46217681 | AM119: 41.34721641 | AN119: 39.75666302 | AO119: 39.390316 | AP119: 41.32792508 | AQ119: 40.64163995 | AS119: 41 | BC119: 115 | BD119: =Resultados!$K$60-M119 -> 5191.289495 | BE119: 17609.43955 | BF119: 12 | BG119: 115 | BO119: 115 | BP119: 8409.25934 | BQ119: =Resultados!$K$60-M119-(Resultados!$D$88-VLOOKUP(M119,$AI$5:$AP$305,8,FALSE))*Resultados!$D$90*8760 -> 4923.011889 | BT119: 8409.25934 | BU119: 115 | BV119: 8409.25934
A120: 116 | B120: 56.62278526 | C120: 52.71254433 | D120: 50.84640483 | E120: 47.62299501 | F120: 46.41110044 | G120: 43.57757775 | H120: 43.14698793 | I120: 46.46302461 | J120: 80583.33259 | L120: 116 | M120: 73766.34556 | N120: 11248.49275 | O120: 8 | P120: 74039.70097 | AI120: 80583.33259 | AJ120: 56.62278526 | AK120: 52.71254433 | AL120: 50.84640483 | AM120: 47.62299501 | AN120: 46.41110044 | AO120: 43.57757775 | AP120: 43.14698793 | AQ120: 46.46302461 | AS120: 43 | BC120: 116 | BD120: =Resultados!$K$60-M120 -> 5137.977601 | BE120: 17556.12766 | BF120: 12 | BG120: 116 | BO120: 116 | BP120: 8407.201543 | BQ120: =Resultados!$K$60-M120-(Resultados!$D$88-VLOOKUP(M120,$AI$5:$AP$305,8,FALSE))*Resultados!$D$90*8760 -> 3235.011975 | BT120: 8407.201543 | BU120: 116 | BV120: 8407.201543
A121: 117 | B121: 53.36754962 | C121: 50.7848199 | D121: 56.55836194 | E121: 52.40264901 | F121: 53.18674062 | G121: 43.47402956 | H121: 47.38103687 | I121: 47.36784706 | J121: 82152.61502 | L121: 117 | M121: 73827.1402 | N121: 11309.2874 | O121: 8 | P121: 74039.70097 | AI121: 82152.61502 | AJ121: 53.36754962 | AK121: 50.7848199 | AL121: 56.55836194 | AM121: 52.40264901 | AN121: 53.18674062 | AO121: 43.47402956 | AP121: 47.38103687 | AQ121: 47.36784706 | AS121: 47 | BC121: 117 | BD121: =Resultados!$K$60-M121 -> 5077.182955 | BE121: 17495.33301 | BF121: 12 | BG121: 117 | BO121: 117 | BP121: 8390.975241 | BQ121: =Resultados!$K$60-M121-(Resultados!$D$88-VLOOKUP(M121,$AI$5:$AP$305,8,FALSE))*Resultados!$D$90*8760 -> 4742.297215 | BT121: 8390.975241 | BU121: 117 | BV121: 8390.975241
A122: 118 | B122: 52.20679122 | C122: 48.24967086 | D122: 49.05467172 | E122: 46.76336344 | F122: 42.78800164 | G122: 39.08601183 | H122: 41.74374703 | I122: 42.50172321 | J122: 73713.03366 | L122: 118 | M122: 73878.53064 | N122: 11360.67783 | O122: 8 | P122: 74039.70097 | AI122: 73713.03366 | AJ122: 52.20679122 | AK122: 48.24967086 | AL122: 49.05467172 | AM122: 46.76336344 | AN122: 42.78800164 | AO122: 39.08601183 | AP122: 41.74374703 | AQ122: 42.50172321 | AS122: 42 | BC122: 118 | BD122: =Resultados!$K$60-M122 -> 5025.792519 | BE122: 17443.94257 | BF122: 12 | BG122: 118 | BO122: 118 | BP122: 8349.325653 | BQ122: =Resultados!$K$60-M122-(Resultados!$D$88-VLOOKUP(M122,$AI$5:$AP$305,8,FALSE))*Resultados!$D$90*8760 -> 5036.654406 | BT122: 8349.325653 | BU122: 118 | BV122: 8349.325653
A123: 119 | B123: 48.94076057 | C123: 48.10587106 | D123: 45.14825878 | E123: 44.50436545 | F123: 40.37664847 | G123: 40.23052333 | H123: 42.74093637 | I123: 42.25120572 | J123: 73278.54764 | L123: 119 | M123: 73928.63578 | N123: 11410.78297 | O123: 8 | P123: 74039.70097 | AI123: 73278.54764 | AJ123: 48.94076057 | AK123: 48.10587106 | AL123: 45.14825878 | AM123: 44.50436545 | AN123: 40.37664847 | AO123: 40.23052333 | AP123: 42.74093637 | AQ123: 42.25120572 | AS123: 43 | BC123: 119 | BD123: =Resultados!$K$60-M123 -> 4975.687382 | BE123: 17393.83744 | BF123: 12 | BG123: 119 | BO123: 119 | BP123: 8235.901174 | BQ123: =Resultados!$K$60-M123-(Resultados!$D$88-VLOOKUP(M123,$AI$5:$AP$305,8,FALSE))*Resultados!$D$90*8760 -> 4770.18635 | BT123: 8235.901174 | BU123: 119 | BV123: 8235.901174
A124: 120 | B124: 53.44773662 | C124: 45.45783984 | D124: 60.84376779 | E124: 53.21374296 | F124: 53.15776372 | G124: 48.02088339 | H124: 46.88074597 | I124: 49.86008371 | J124: 86475.03562 | L124: 120 | M124: 73948.62383 | N124: 11430.77102 | O124: 8 | P124: 74039.70097 | AI124: 86475.03562 | AJ124: 53.44773662 | AK124: 45.45783984 | AL124: 60.84376779 | AM124: 53.21374296 | AN124: 53.15776372 | AO124: 48.02088339 | AP124: 46.88074597 | AQ124: 49.86008371 | AS124: 47 | BC124: 120 | BD124: =Resultados!$K$60-M124 -> 4955.699328 | BE124: 17373.84938 | BF124: 12 | BG124: 120 | BO124: 120 | BP124: 8213.599266 | BQ124: =Resultados!$K$60-M124-(Resultados!$D$88-VLOOKUP(M124,$AI$5:$AP$305,8,FALSE))*Resultados!$D$90*8760 -> 5576.7077 | BT124: 8213.599266 | BU124: 120 | BV124: 8213.599266
A125: 121 | B125: 49.04348846 | C125: 42.80390878 | D125: 43.37923159 | E125: 41.76612355 | F125: 38.58031194 | G125: 37.70374704 | H125: 38.44081926 | I125: 39.79095213 | J125: 69011.59699 | L125: 121 | M125: 73986.46933 | N125: 11468.61652 | O125: 8 | P125: 74039.70097 | AI125: 69011.59699 | AJ125: 49.04348846 | AK125: 42.80390878 | AL125: 43.37923159 | AM125: 41.76612355 | AN125: 38.58031194 | AO125: 37.70374704 | AP125: 38.44081926 | AQ125: 39.79095213 | AS125: 38 | BC125: 121 | BD125: =Resultados!$K$60-M125 -> 4917.853834 | BE125: 17336.00389 | BF125: 12 | BG125: 121 | BO125: 121 | BP125: 8209.723425 | BQ125: =Resultados!$K$60-M125-(Resultados!$D$88-VLOOKUP(M125,$AI$5:$AP$305,8,FALSE))*Resultados!$D$90*8760 -> 4886.110252 | BT125: 8209.723425 | BU125: 121 | BV125: 8209.723425
A126: 122 | B126: 47.81412225 | C126: 43.41076848 | D126: 44.55920615 | E126: 43.51525404 | F126: 38.37776604 | G126: 38.46260366 | H126: 38.65233208 | I126: 40.39004071 | J126: 70050.62867 | L126: 122 | M126: 73997.6607 | N126: 11479.80789 | O126: 8 | P126: 74039.70097 | AI126: 70050.62867 | AJ126: 47.81412225 | AK126: 43.41076848 | AL126: 44.55920615 | AM126: 43.51525404 | AN126: 38.37776604 | AO126: 38.46260366 | AP126: 38.65233208 | AQ126: 40.39004071 | AS126: 39 | BC126: 122 | BD126: =Resultados!$K$60-M126 -> 4906.662463 | BE126: 17324.81252 | BF126: 12 | BG126: 122 | BO126: 122 | BP126: 8148.061943 | BQ126: =Resultados!$K$60-M126-(Resultados!$D$88-VLOOKUP(M126,$AI$5:$AP$305,8,FALSE))*Resultados!$D$90*8760 -> 4397.16443 | BT126: 8148.061943 | BU126: 122 | BV126: 8148.061943
A127: 123 | B127: 45.97686517 | C127: 40.32444309 | D127: 51.75532488 | E127: 47.09304047 | F127: 44.71893824 | G127: 40.79053058 | H127: 40.96395641 | I127: 42.67357161 | J127: 74011.07961 | L127: 123 | M127: 74011.07961 | N127: 11493.2268 | O127: 8 | P127: 74039.70097 | AI127: 74011.07961 | AJ127: 45.97686517 | AK127: 40.32444309 | AL127: 51.75532488 | AM127: 47.09304047 | AN127: 44.71893824 | AO127: 40.79053058 | AP127: 40.96395641 | AQ127: 42.67357161 | AS127: 41 | BC127: 123 | BD127: =Resultados!$K$60-M127 -> 4893.243548 | BE127: 17311.3936 | BF127: 12 | BG127: 123 | BO127: 123 | BP127: 8142.806019 | BQ127: =Resultados!$K$60-M127-(Resultados!$D$88-VLOOKUP(M127,$AI$5:$AP$305,8,FALSE))*Resultados!$D$90*8760 -> 3941.869366 | BT127: 8142.806019 | BU127: 123 | BV127: 8142.806019
A128: 124 | B128: 56.29978729 | C128: 51.38611972 | D128: 49.10816198 | E128: 45.26579827 | F128: 43.04120019 | G128: 43.96395844 | H128: 44.34562194 | I128: 45.86977131 | J128: 79554.42136 | L128: 124 | M128: 74035.10165 | N128: 11517.24884 | O128: 8 | P128: 74039.70097 | AI128: 79554.42136 | AJ128: 56.29978729 | AK128: 51.38611972 | AL128: 49.10816198 | AM128: 45.26579827 | AN128: 43.04120019 | AO128: 43.96395844 | AP128: 44.34562194 | AQ128: 45.86977131 | AS128: 44 | BC128: 124 | BD128: =Resultados!$K$60-M128 -> 4869.221511 | BE128: 17287.37157 | BF128: 12 | BG128: 124 | BO128: 124 | BP128: 8110.769878 | BQ128: =Resultados!$K$60-M128-(Resultados!$D$88-VLOOKUP(M128,$AI$5:$AP$305,8,FALSE))*Resultados!$D$90*8760 -> 4648.439246 | BT128: 8110.769878 | BU128: 124 | BV128: 8110.769878
A129: 125 | B129: 46.1868691 | C129: 39.4945713 | D129: 49.88758252 | E129: 44.25663891 | F129: 42.56975033 | G129: 39.90295231 | H129: 38.16238118 | I129: 41.53905132 | J129: 72043.41982 | L129: 125 | M129: 74036.54984 | N129: 11518.69703 | O129: 8 | P129: 74039.70097 | AI129: 72043.41982 | AJ129: 46.1868691 | AK129: 39.4945713 | AL129: 49.88758252 | AM129: 44.25663891 | AN129: 42.56975033 | AO129: 39.90295231 | AP129: 38.16238118 | AQ129: 41.53905132 | AS129: 38 | BC129: 125 | BD129: =Resultados!$K$60-M129 -> 4867.773324 | BE129: 17285.92338 | BF129: 12 | BG129: 125 | BO129: 125 | BP129: 8074.34999 | BQ129: =Resultados!$K$60-M129-(Resultados!$D$88-VLOOKUP(M129,$AI$5:$AP$305,8,FALSE))*Resultados!$D$90*8760 -> 3093.137459 | BT129: 8074.34999 | BU129: 125 | BV129: 8074.34999
A130: 126 | B130: 48.39809165 | C130: 42.61439351 | D130: 48.90865819 | E130: 48.42156381 | F130: 47.44391583 | G130: 41.72177053 | H130: 42.87245846 | I130: 43.89458998 | J130: 76128.75771 | L130: 126 | M130: 74134.84638 | N130: 11616.99357 | O130: 8 | P130: 74039.70097 | AI130: 76128.75771 | AJ130: 48.39809165 | AK130: 42.61439351 | AL130: 48.90865819 | AM130: 48.42156381 | AN130: 47.44391583 | AO130: 41.72177053 | AP130: 42.87245846 | AQ130: 43.89458998 | AS130: 43 | BC130: 126 | BD130: =Resultados!$K$60-M130 -> 4769.476777 | BE130: 17187.62683 | BF130: 12 | BG130: 126 | BO130: 126 | BP130: 8029.919774 | BQ130: =Resultados!$K$60-M130-(Resultados!$D$88-VLOOKUP(M130,$AI$5:$AP$305,8,FALSE))*Resultados!$D$90*8760 -> 3997.460871 | BT130: 8029.919774 | BU130: 126 | BV130: 8029.919774
A131: 127 | B131: 47.06497791 | C131: 43.23149707 | D131: 46.96216436 | E131: 46.73657068 | F131: 45.02461474 | G131: 42.69724434 | H131: 41.79415193 | I131: 43.88925141 | J131: 76119.49875 | L131: 127 | M131: 74149.63769 | N131: 11631.78488 | O131: 8 | P131: 74039.70097 | AI131: 76119.49875 | AJ131: 47.06497791 | AK131: 43.23149707 | AL131: 46.96216436 | AM131: 46.73657068 | AN131: 45.02461474 | AO131: 42.69724434 | AP131: 41.79415193 | AQ131: 43.88925141 | AS131: 42 | BC131: 127 | BD131: =Resultados!$K$60-M131 -> 4754.685466 | BE131: 17172.83552 | BF131: 12 | BG131: 127 | BO131: 127 | BP131: 8007.02854 | BQ131: =Resultados!$K$60-M131-(Resultados!$D$88-VLOOKUP(M131,$AI$5:$AP$305,8,FALSE))*Resultados!$D$90*8760 -> 5476.511452 | BT131: 8007.02854 | BU131: 127 | BV131: 8007.02854
A132: 128 | B132: 53.54469793 | C132: 48.7723906 | D132: 52.86179312 | E132: 49.38271531 | F132: 44.55635306 | G132: 44.18252665 | H132: 43.77833793 | I132: 46.27177873 | J132: 80251.64453 | L132: 128 | M132: 74150.76326 | N132: 11632.91045 | O132: 8 | P132: 74039.70097 | AI132: 80251.64453 | AJ132: 53.54469793 | AK132: 48.7723906 | AL132: 52.86179312 | AM132: 49.38271531 | AN132: 44.55635306 | AO132: 44.18252665 | AP132: 43.77833793 | AQ132: 46.27177873 | AS132: 44 | BC132: 128 | BD132: =Resultados!$K$60-M132 -> 4753.5599 | BE132: 17171.70996 | BF132: 12 | BG132: 128 | BO132: 128 | BP132: 7991.619145 | BQ132: =Resultados!$K$60-M132-(Resultados!$D$88-VLOOKUP(M132,$AI$5:$AP$305,8,FALSE))*Resultados!$D$90*8760 -> 4039.457923 | BT132: 7991.619145 | BU132: 128 | BV132: 7991.619145
A133: 129 | B133: 46.57385469 | C133: 42.66257922 | D133: 45.48108365 | E133: 44.07898899 | F133: 44.14292473 | G133: 39.99274245 | H133: 41.34827576 | I133: 41.81192703 | J133: 72516.68289 | L133: 129 | M133: 74274.77495 | N133: 11756.92214 | O133: 8 | P133: 74039.70097 | AI133: 72516.68289 | AJ133: 46.57385469 | AK133: 42.66257922 | AL133: 45.48108365 | AM133: 44.07898899 | AN133: 44.14292473 | AO133: 39.99274245 | AP133: 41.34827576 | AQ133: 41.81192703 | AS133: 41 | BC133: 129 | BD133: =Resultados!$K$60-M133 -> 4629.548212 | BE133: =BD133+ABS($BJ$2) -> 17047.69827 | BF133: =ROUND(BE133/$BJ$4,0) -> 12 | BG133: 129 | BO133: 129 | BP133: 7976.977003 | BQ133: =Resultados!$K$60-M133-(Resultados!$D$88-VLOOKUP(M133,$AI$5:$AP$305,8,FALSE))*Resultados!$D$90*8760 -> 4818.47378 | BT133: 7976.977003 | BU133: 129 | BV133: 7976.977003
A134: 130 | B134: 54.36656772 | C134: 46.68733074 | D134: 50.27662889 | E134: 45.28493986 | F134: 43.62642134 | G134: 41.70607173 | H134: 42.03092734 | I134: 44.093638 | J134: 76473.97745 | L134: 130 | M134: 74313.14286 | N134: 11795.29005 | O134: 8 | P134: 74039.70097 | AI134: =J134 -> 76473.97745 | AJ134: =B134 -> 54.36656772 | AK134: =C134 -> 46.68733074 | AL134: =D134 -> 50.27662889 | AM134: =E134 -> 45.28493986 | AN134: =F134 -> 43.62642134 | AO134: =G134 -> 41.70607173 | AP134: =H134 -> 42.03092734 | AQ134: =I134 -> 44.093638 | AS134: =ROUND(AP134,0) -> 42 | BC134: 130 | BD134: =Resultados!$K$60-M134 -> 4591.180297 | BE134: 17009.33035 | BF134: 12 | BG134: 130 | BO134: 130 | BP134: 7949.622093 | BQ134: =Resultados!$K$60-M134-(Resultados!$D$88-VLOOKUP(M134,$AI$5:$AP$305,8,FALSE))*Resultados!$D$90*8760 -> 3751.718823 | BR134: =BP134+ABS($BX$2) ->  | BS134: =ROUND(BR134/$BJ$4,0) ->  | BT134: =IF(BV134=$BT$307,0,BV134) -> 7949.622093 | BU134: 130 | BV134: =ABS(BP134) -> 7949.622093
A135: 131 | B135: 52.14423565 | C135: 50.20323249 | D135: 47.51475369 | E135: 45.62739572 | F135: 43.59312305 | G135: 41.85174537 | H135: 42.22549892 | I135: 44.20410445 | J135: 76665.56537 | L135: 131 | M135: 74344.98363 | N135: 11827.13082 | O135: 8 | P135: 74039.70097 | AI135: 76665.56537 | AJ135: 52.14423565 | AK135: 50.20323249 | AL135: 47.51475369 | AM135: 45.62739572 | AN135: 43.59312305 | AO135: 41.85174537 | AP135: 42.22549892 | AQ135: 44.20410445 | AS135: 42 | BC135: 131 | BD135: =Resultados!$K$60-M135 -> 4559.339532 | BE135: 16977.48959 | BF135: 12 | BG135: 131 | BO135: 131 | BP135: 7930.635048 | BQ135: =Resultados!$K$60-M135-(Resultados!$D$88-VLOOKUP(M135,$AI$5:$AP$305,8,FALSE))*Resultados!$D$90*8760 -> 3258.045233 | BT135: 7930.635048 | BU135: 131 | BV135: 7930.635048
A136: 132 | B136: 50.68987383 | C136: 46.22961329 | D136: 47.25199888 | E136: 41.11836111 | F136: 43.52896536 | G136: 41.18797346 | H136: 40.12729911 | I136: 42.9391529 | J136: 74471.69159 | L136: 132 | M136: 74346.59065 | N136: 11828.73784 | O136: 8 | P136: 74039.70097 | AI136: 74471.69159 | AJ136: 50.68987383 | AK136: 46.22961329 | AL136: 47.25199888 | AM136: 41.11836111 | AN136: 43.52896536 | AO136: 41.18797346 | AP136: 40.12729911 | AQ136: 42.9391529 | AS136: 40 | BC136: 132 | BD136: =Resultados!$K$60-M136 -> 4557.732511 | BE136: 16975.88257 | BF136: 12 | BG136: 132 | BO136: 132 | BP136: 7905.290541 | BQ136: =Resultados!$K$60-M136-(Resultados!$D$88-VLOOKUP(M136,$AI$5:$AP$305,8,FALSE))*Resultados!$D$90*8760 -> 4054.867317 | BT136: 7905.290541 | BU136: 132 | BV136: 7905.290541
A137: 133 | B137: 49.67545703 | C137: 46.09394188 | D137: 55.93715906 | E137: 51.98622496 | F137: 50.38622514 | G137: 45.07828004 | H137: 45.79136187 | I137: 47.25790502 | J137: 81961.9366 | L137: 133 | M137: 74358.11946 | N137: 11840.26665 | O137: 8 | P137: 74039.70097 | AI137: 81961.9366 | AJ137: 49.67545703 | AK137: 46.09394188 | AL137: 55.93715906 | AM137: 51.98622496 | AN137: 50.38622514 | AO137: 45.07828004 | AP137: 45.79136187 | AQ137: 47.25790502 | AS137: 46 | BC137: 133 | BD137: =Resultados!$K$60-M137 -> 4546.203697 | BE137: 16964.35375 | BF137: 12 | BG137: 133 | BO137: 133 | BP137: 7894.030588 | BQ137: =Resultados!$K$60-M137-(Resultados!$D$88-VLOOKUP(M137,$AI$5:$AP$305,8,FALSE))*Resultados!$D$90*8760 ->  | BT137: 7894.030588 | BU137: 133 | BV137: 7894.030588
A138: 134 | B138: 57.98136257 | C138: 54.29048709 | D138: 46.64151453 | E138: 44.16846421 | F138: 41.56468182 | G138: 39.41890617 | H138: 41.93236149 | I138: 43.2284145 | J138: 74973.37359 | L138: 134 | M138: 74423.53087 | N138: 11905.67806 | O138: 8 | P138: 74039.70097 | AI138: 74973.37359 | AJ138: 57.98136257 | AK138: 54.29048709 | AL138: 46.64151453 | AM138: 44.16846421 | AN138: 41.56468182 | AO138: 39.41890617 | AP138: 41.93236149 | AQ138: 43.2284145 | AS138: 42 | BC138: 134 | BD138: =Resultados!$K$60-M138 -> 4480.792288 | BE138: 16898.94234 | BF138: 12 | BG138: 134 | BO138: 134 | BP138: 7819.075394 | BQ138: =Resultados!$K$60-M138-(Resultados!$D$88-VLOOKUP(M138,$AI$5:$AP$305,8,FALSE))*Resultados!$D$90*8760 -> 4122.188768 | BT138: 7819.075394 | BU138: 134 | BV138: 7819.075394
A139: 135 | B139: 49.52563655 | C139: 45.62744985 | D139: 48.58693197 | E139: 45.68753365 | F139: 38.0534656 | G139: 37.9491671 | H139: 39.17800236 | I139: 40.78444701 | J139: 70734.66881 | L139: 135 | M139: 74468.80674 | N139: 11950.95393 | O139: 8 | P139: 74039.70097 | AI139: 70734.66881 | AJ139: 49.52563655 | AK139: 45.62744985 | AL139: 48.58693197 | AM139: 45.68753365 | AN139: 38.0534656 | AO139: 37.9491671 | AP139: 39.17800236 | AQ139: 40.78444701 | AS139: 39 | BC139: 135 | BD139: =Resultados!$K$60-M139 -> 4435.516416 | BE139: 16853.66647 | BF139: 12 | BG139: 135 | BO139: 135 | BP139: 7803.124432 | BQ139: =Resultados!$K$60-M139-(Resultados!$D$88-VLOOKUP(M139,$AI$5:$AP$305,8,FALSE))*Resultados!$D$90*8760 -> 4477.143247 | BT139: 7803.124432 | BU139: 135 | BV139: 7803.124432
A140: 136 | B140: 51.82315051 | C140: 46.99890601 | D140: 52.62575305 | E140: 48.13088125 | F140: 43.44157041 | G140: 39.09710511 | H140: 41.23481509 | I140: 42.7541109 | J140: 74150.76326 | L140: 136 | M140: 74471.69159 | N140: 11953.83878 | O140: 8 | P140: 74039.70097 | AI140: 74150.76326 | AJ140: 51.82315051 | AK140: 46.99890601 | AL140: 52.62575305 | AM140: 48.13088125 | AN140: 43.44157041 | AO140: 39.09710511 | AP140: 41.23481509 | AQ140: 42.7541109 | AS140: 41 | BC140: 136 | BD140: =Resultados!$K$60-M140 -> 4432.631568 | BE140: 16850.78162 | BF140: 12 | BG140: 136 | BO140: 136 | BP140: 7780.059455 | BQ140: =Resultados!$K$60-M140-(Resultados!$D$88-VLOOKUP(M140,$AI$5:$AP$305,8,FALSE))*Resultados!$D$90*8760 -> 2748.345586 | BT140: 7780.059455 | BU140: 136 | BV140: 7780.059455
A141: 137 | B141: 62.45227589 | C141: 55.59838466 | D141: 56.07367425 | E141: 52.92011672 | F141: 50.16625421 | G141: 48.05312907 | H141: 47.89020322 | I141: 50.91037499 | J141: 88296.6125 | L141: 137 | M141: 74508.75608 | N141: 11990.90327 | O141: 8 | P141: 74039.70097 | AI141: 88296.6125 | AJ141: 62.45227589 | AK141: 55.59838466 | AL141: 56.07367425 | AM141: 52.92011672 | AN141: 50.16625421 | AO141: 48.05312907 | AP141: 47.89020322 | AQ141: 50.91037499 | AS141: 48 | BC141: 137 | BD141: =Resultados!$K$60-M141 -> 4395.567079 | BE141: 16813.71713 | BF141: 12 | BG141: 137 | BO141: 137 | BP141: 7748.246957 | BQ141: =Resultados!$K$60-M141-(Resultados!$D$88-VLOOKUP(M141,$AI$5:$AP$305,8,FALSE))*Resultados!$D$90*8760 -> 5641.478376 | BT141: 7748.246957 | BU141: 137 | BV141: 7748.246957
A142: 138 | B142: 54.81671336 | C142: 50.42500772 | D142: 45.85400637 | E142: 44.94832555 | F142: 50.78330631 | G142: 41.5909089 | H142: 43.21485128 | I142: 44.88941605 | J142: 77854.13829 | L142: 138 | M142: 74526.08758 | N142: 12008.23477 | O142: 8 | P142: 74039.70097 | AI142: 77854.13829 | AJ142: 54.81671336 | AK142: 50.42500772 | AL142: 45.85400637 | AM142: 44.94832555 | AN142: 50.78330631 | AO142: 41.5909089 | AP142: 43.21485128 | AQ142: 44.88941605 | AS142: 43 | BC142: 138 | BD142: =Resultados!$K$60-M142 -> 4378.235578 | BE142: 16796.38563 | BF142: 12 | BG142: 138 | BO142: 138 | BP142: 7703.880045 | BQ142: =Resultados!$K$60-M142-(Resultados!$D$88-VLOOKUP(M142,$AI$5:$AP$305,8,FALSE))*Resultados!$D$90*8760 -> 5333.766271 | BT142: 7703.880045 | BU142: 138 | BV142: 7703.880045
A143: 139 | B143: 47.58571125 | C143: 43.86998881 | D143: 43.09948406 | E143: 41.10294407 | F143: 37.08443567 | G143: 37.18119191 | H143: 37.92379759 | I143: 39.22720956 | J143: 68033.86781 | L143: 139 | M143: 74584.33135 | N143: 12066.47854 | O143: 8 | P143: 74039.70097 | AI143: 68033.86781 | AJ143: 47.58571125 | AK143: 43.86998881 | AL143: 43.09948406 | AM143: 41.10294407 | AN143: 37.08443567 | AO143: 37.18119191 | AP143: 37.92379759 | AQ143: 39.22720956 | AS143: 38 | BC143: 139 | BD143: =Resultados!$K$60-M143 -> 4319.991806 | BE143: 16738.14186 | BF143: 12 | BG143: 139 | BO143: 139 | BP143: 7675.454655 | BQ143: =Resultados!$K$60-M143-(Resultados!$D$88-VLOOKUP(M143,$AI$5:$AP$305,8,FALSE))*Resultados!$D$90*8760 -> 2768.110658 | BT143: 7675.454655 | BU143: 139 | BV143: 7675.454655
A144: 140 | B144: 46.79290748 | C144: 42.60576678 | D144: 49.28145563 | E144: 45.37900522 | F144: 49.88701525 | G144: 40.19876196 | H144: 41.47595298 | I144: 42.86702175 | J144: 74346.59065 | L144: 140 | M144: 74652.49881 | N144: 12134.646 | O144: 8 | P144: 74039.70097 | AI144: 74346.59065 | AJ144: 46.79290748 | AK144: 42.60576678 | AL144: 49.28145563 | AM144: 45.37900522 | AN144: 49.88701525 | AO144: 40.19876196 | AP144: 41.47595298 | AQ144: 42.86702175 | AS144: 41 | BC144: 140 | BD144: =Resultados!$K$60-M144 -> 4251.824352 | BE144: 16669.97441 | BF144: 12 | BG144: 140 | BO144: 140 | BP144: 7629.09432 | BQ144: =Resultados!$K$60-M144-(Resultados!$D$88-VLOOKUP(M144,$AI$5:$AP$305,8,FALSE))*Resultados!$D$90*8760 -> 3483.324427 | BT144: 7629.09432 | BU144: 140 | BV144: 7629.09432
A145: 141 | B145: 48.26101557 | C145: 40.53652697 | D145: 49.3630317 | E145: 43.87349966 | F145: 47.44057682 | G145: 41.73904633 | H145: 41.55572141 | I145: 43.30942218 | J145: 75113.8696 | L145: 141 | M145: 74673.55778 | N145: 12155.70497 | O145: 8 | P145: 74039.70097 | AI145: 75113.8696 | AJ145: 48.26101557 | AK145: 40.53652697 | AL145: 49.3630317 | AM145: 43.87349966 | AN145: 47.44057682 | AO145: 41.73904633 | AP145: 41.55572141 | AQ145: 43.30942218 | AS145: 42 | BC145: 141 | BD145: =Resultados!$K$60-M145 -> 4230.765378 | BE145: 16648.91543 | BF145: 12 | BG145: 141 | BO145: 141 | BP145: 7557.202669 | BQ145: =Resultados!$K$60-M145-(Resultados!$D$88-VLOOKUP(M145,$AI$5:$AP$305,8,FALSE))*Resultados!$D$90*8760 -> 3171.158639 | BT145: 7557.202669 | BU145: 141 | BV145: 7557.202669
A146: 142 | B146: 55.75337148 | C146: 52.17277961 | D146: 52.94088625 | E146: 49.90577111 | F146: 48.88918384 | G146: 44.14764286 | H146: 45.37333241 | I146: 47.23315466 | J146: 81919.01072 | L146: 142 | M146: 74781.75051 | N146: 12263.8977 | O146: 9 | P146: 75479.93199 | AI146: 81919.01072 | AJ146: 55.75337148 | AK146: 52.17277961 | AL146: 52.94088625 | AM146: 49.90577111 | AN146: 48.88918384 | AO146: 44.14764286 | AP146: 45.37333241 | AQ146: 47.23315466 | AS146: 45 | BC146: 142 | BD146: =Resultados!$K$60-M146 -> 4122.572649 | BE146: 16540.7227 | BF146: 11 | BG146: 142 | BO146: 142 | BP146: 7556.859366 | BQ146: =Resultados!$K$60-M146-(Resultados!$D$88-VLOOKUP(M146,$AI$5:$AP$305,8,FALSE))*Resultados!$D$90*8760 -> 4261.438044 | BT146: 7556.859366 | BU146: 142 | BV146: 7556.859366
A147: 143 | B147: 49.0797404 | C147: 43.11009491 | D147: 47.07210524 | E147: 44.16479545 | F147: 35.40232592 | G147: 36.19862277 | H147: 37.91903973 | I147: 39.00800008 | J147: 67653.68098 | L147: 143 | M147: 74804.39942 | N147: 12286.54661 | O147: 9 | P147: 75479.93199 | AI147: 67653.68098 | AJ147: 49.0797404 | AK147: 43.11009491 | AL147: 47.07210524 | AM147: 44.16479545 | AN147: 35.40232592 | AO147: 36.19862277 | AP147: 37.91903973 | AQ147: 39.00800008 | AS147: 38 | BC147: 143 | BD147: =Resultados!$K$60-M147 -> 4099.923737 | BE147: 16518.07379 | BF147: 11 | BG147: 143 | BO147: 143 | BP147: 7545.350439 | BQ147: =Resultados!$K$60-M147-(Resultados!$D$88-VLOOKUP(M147,$AI$5:$AP$305,8,FALSE))*Resultados!$D$90*8760 -> 1744.879472 | BT147: 7545.350439 | BU147: 143 | BV147: 7545.350439
A148: 144 | B148: 50.77609943 | C148: 46.48167788 | D148: 50.29115443 | E148: 47.70861146 | F148: 47.99437668 | G148: 41.49807591 | H148: 42.61735519 | I148: 44.34265087 | J148: 76905.85391 | L148: 144 | M148: 74844.86951 | N148: 12327.0167 | O148: 9 | P148: 75479.93199 | AI148: 76905.85391 | AJ148: 50.77609943 | AK148: 46.48167788 | AL148: 50.29115443 | AM148: 47.70861146 | AN148: 47.99437668 | AO148: 41.49807591 | AP148: 42.61735519 | AQ148: 44.34265087 | AS148: 43 | BC148: 144 | BD148: =Resultados!$K$60-M148 -> 4059.453653 | BE148: 16477.60371 | BF148: 11 | BG148: 144 | BO148: 144 | BP148: 7479.154923 | BQ148: =Resultados!$K$60-M148-(Resultados!$D$88-VLOOKUP(M148,$AI$5:$AP$305,8,FALSE))*Resultados!$D$90*8760 -> 2898.016472 | BT148: 7479.154923 | BU148: 144 | BV148: 7479.154923
A149: 145 | B149: 47.03437928 | C149: 42.0499683 | D149: 60.35176166 | E149: 54.3021681 | F149: 44.09080274 | G149: 45.38147443 | H149: 43.25672457 | I149: 46.61191522 | J149: 80841.56161 | L149: 145 | M149: 74869.69016 | N149: 12351.83735 | O149: 9 | P149: 75479.93199 | AI149: 80841.56161 | AJ149: 47.03437928 | AK149: 42.0499683 | AL149: 60.35176166 | AM149: 54.3021681 | AN149: 44.09080274 | AO149: 45.38147443 | AP149: 43.25672457 | AQ149: 46.61191522 | AS149: 43 | BC149: 145 | BD149: =Resultados!$K$60-M149 -> 4034.633002 | BE149: 16452.78306 | BF149: 11 | BG149: 145 | BO149: 145 | BP149: 7477.778405 | BQ149: =Resultados!$K$60-M149-(Resultados!$D$88-VLOOKUP(M149,$AI$5:$AP$305,8,FALSE))*Resultados!$D$90*8760 -> 3604.698144 | BT149: 7477.778405 | BU149: 145 | BV149: 7477.778405
A150: 146 | B150: 49.70397946 | C150: 46.51988576 | D150: 45.32687179 | E150: 44.21205846 | F150: 42.91125739 | G150: 38.82036028 | H150: 43.0904479 | I150: 41.57601093 | J150: 72107.52085 | L150: 146 | M150: 74877.67408 | N150: 12359.82127 | O150: 9 | P150: 75479.93199 | AI150: 72107.52085 | AJ150: 49.70397946 | AK150: 46.51988576 | AL150: 45.32687179 | AM150: 44.21205846 | AN150: 42.91125739 | AO150: 38.82036028 | AP150: 43.0904479 | AQ150: 41.57601093 | AS150: 43 | BC150: 146 | BD150: =Resultados!$K$60-M150 -> 4026.649082 | BE150: 16444.79914 | BF150: 11 | BG150: 146 | BO150: 146 | BP150: 7477.445138 | BQ150: =Resultados!$K$60-M150-(Resultados!$D$88-VLOOKUP(M150,$AI$5:$AP$305,8,FALSE))*Resultados!$D$90*8760 -> 1626.696508 | BT150: 7477.445138 | BU150: 146 | BV150: 7477.445138
A151: 147 | B151: 46.47868074 | C151: 40.89119884 | D151: 52.38349056 | E151: 46.12742706 | F151: 47.71370799 | G151: 42.70290312 | H151: 40.83803701 | I151: 44.14877212 | J151: 76569.59951 | L151: 147 | M151: 74912.21058 | N151: 12394.35777 | O151: 9 | P151: 75479.93199 | AI151: 76569.59951 | AJ151: 46.47868074 | AK151: 40.89119884 | AL151: 52.38349056 | AM151: 46.12742706 | AN151: 47.71370799 | AO151: 42.70290312 | AP151: 40.83803701 | AQ151: 44.14877212 | AS151: 41 | BC151: 147 | BD151: =Resultados!$K$60-M151 -> 3992.112579 | BE151: 16410.26263 | BF151: 11 | BG151: 147 | BO151: 147 | BP151: 7461.252984 | BQ151: =Resultados!$K$60-M151-(Resultados!$D$88-VLOOKUP(M151,$AI$5:$AP$305,8,FALSE))*Resultados!$D$90*8760 -> 4947.314373 | BT151: 7461.252984 | BU151: 147 | BV151: 7461.252984
A152: 148 | B152: 51.55013798 | C152: 46.86692314 | D152: 43.0695999 | E152: 38.22009696 | F152: 39.67840887 | G152: 41.16432388 | H152: 40.57825009 | I152: 42.14762493 | J152: 73098.90189 | L152: 148 | M152: 74973.37359 | N152: 12455.52078 | O152: 9 | P152: 75479.93199 | AI152: 73098.90189 | AJ152: 51.55013798 | AK152: 46.86692314 | AL152: 43.0695999 | AM152: 38.22009696 | AN152: 39.67840887 | AO152: 41.16432388 | AP152: 40.57825009 | AQ152: 42.14762493 | AS152: 41 | BC152: 148 | BD152: =Resultados!$K$60-M152 -> 3930.949566 | BE152: 16349.09962 | BF152: 11 | BG152: 148 | BO152: 148 | BP152: 7448.200283 | BQ152: =Resultados!$K$60-M152-(Resultados!$D$88-VLOOKUP(M152,$AI$5:$AP$305,8,FALSE))*Resultados!$D$90*8760 -> 3827.898233 | BT152: 7448.200283 | BU152: 148 | BV152: 7448.200283
A153: 149 | B153: 58.48329557 | C153: 54.28570685 | D153: 48.88599695 | E153: 47.36229575 | F153: 48.27372408 | G153: 43.056358 | H153: 45.62821922 | I153: 46.50215882 | J153: 80651.20515 | L153: 149 | M153: 75113.8696 | N153: 12596.01679 | O153: 9 | P153: 75479.93199 | AI153: 80651.20515 | AJ153: 58.48329557 | AK153: 54.28570685 | AL153: 48.88599695 | AM153: 47.36229575 | AN153: 48.27372408 | AO153: 43.056358 | AP153: 45.62821922 | AQ153: 46.50215882 | AS153: 46 | BC153: 149 | BD153: =Resultados!$K$60-M153 -> 3790.453556 | BE153: 16208.60361 | BF153: 11 | BG153: 149 | BO153: 149 | BP153: 7435.485649 | BQ153: =Resultados!$K$60-M153-(Resultados!$D$88-VLOOKUP(M153,$AI$5:$AP$305,8,FALSE))*Resultados!$D$90*8760 -> 3357.46551 | BT153: 7435.485649 | BU153: 149 | BV153: 7435.485649
A154: 150 | B154: 54.85354108 | C154: 51.94172295 | D154: 46.91547815 | E154: 45.4836744 | F154: 41.86654326 | G154: 36.650643 | H154: 39.25174068 | I154: 41.30333286 | J154: 71634.60056 | L154: 150 | M154: 75150.36624 | N154: 12632.51343 | O154: 9 | P154: 75479.93199 | AI154: 71634.60056 | AJ154: 54.85354108 | AK154: 51.94172295 | AL154: 46.91547815 | AM154: 45.4836744 | AN154: 41.86654326 | AO154: 36.650643 | AP154: 39.25174068 | AQ154: 41.30333286 | AS154: 39 | BC154: 150 | BD154: =Resultados!$K$60-M154 -> 3753.956917 | BE154: 16172.10697 | BF154: 11 | BG154: 150 | BO154: 150 | BP154: 7407.510477 | BQ154: =Resultados!$K$60-M154-(Resultados!$D$88-VLOOKUP(M154,$AI$5:$AP$305,8,FALSE))*Resultados!$D$90*8760 -> 3105.332951 | BT154: 7407.510477 | BU154: 150 | BV154: 7407.510477
A155: 151 | B155: 50.32445095 | C155: 44.3503406 | D155: 43.80167067 | E155: 40.6753647 | F155: 43.60527714 | G155: 36.63006225 | H155: 38.36697279 | I155: 39.8563411 | J155: 69125.0046 | L155: 151 | M155: 75213.56878 | N155: 12695.71597 | O155: 9 | P155: 75479.93199 | AI155: 69125.0046 | AJ155: 50.32445095 | AK155: 44.3503406 | AL155: 43.80167067 | AM155: 40.6753647 | AN155: 43.60527714 | AO155: 36.63006225 | AP155: 38.36697279 | AQ155: 39.8563411 | AS155: 38 | BC155: 151 | BD155: =Resultados!$K$60-M155 -> 3690.754383 | BE155: 16108.90444 | BF155: 11 | BG155: 151 | BO155: 151 | BP155: 7379.139682 | BQ155: =Resultados!$K$60-M155-(Resultados!$D$88-VLOOKUP(M155,$AI$5:$AP$305,8,FALSE))*Resultados!$D$90*8760 -> 2606.06604 | BT155: 7379.139682 | BU155: 151 | BV155: 7379.139682
A156: 152 | B156: 54.29353627 | C156: 51.31434014 | D156: 50.38124765 | E156: 48.00210925 | F156: 42.11700265 | G156: 42.74069026 | H156: 42.45436663 | I156: 45.18997224 | J156: 78375.40911 | L156: 152 | M156: 75218.10362 | N156: 12700.25081 | O156: 9 | P156: 75479.93199 | AI156: 78375.40911 | AJ156: 54.29353627 | AK156: 51.31434014 | AL156: 50.38124765 | AM156: 48.00210925 | AN156: 42.11700265 | AO156: 42.74069026 | AP156: 42.45436663 | AQ156: 45.18997224 | AS156: 42 | BC156: 152 | BD156: =Resultados!$K$60-M156 -> 3686.219537 | BE156: 16104.36959 | BF156: 11 | BG156: 152 | BO156: 152 | BP156: 7309.626733 | BQ156: =Resultados!$K$60-M156-(Resultados!$D$88-VLOOKUP(M156,$AI$5:$AP$305,8,FALSE))*Resultados!$D$90*8760 -> 1700.402612 | BT156: 7309.626733 | BU156: 152 | BV156: 7309.626733
A157: 153 | B157: 49.33317544 | C157: 45.5324136 | D157: 47.7953154 | E157: 44.871051 | F157: 50.04560329 | G157: 42.19627675 | H157: 43.87120534 | I157: 44.3811963 | J157: 76972.70533 | L157: 153 | M157: 75228.00211 | N157: 12710.1493 | O157: 9 | P157: 75479.93199 | AI157: 76972.70533 | AJ157: 49.33317544 | AK157: 45.5324136 | AL157: 47.7953154 | AM157: 44.871051 | AN157: 50.04560329 | AO157: 42.19627675 | AP157: 43.87120534 | AQ157: 44.3811963 | AS157: 44 | BC157: 153 | BD157: =Resultados!$K$60-M157 -> 3676.321046 | BE157: 16094.4711 | BF157: 11 | BG157: 153 | BO157: 153 | BP157: 7291.456189 | BQ157: =Resultados!$K$60-M157-(Resultados!$D$88-VLOOKUP(M157,$AI$5:$AP$305,8,FALSE))*Resultados!$D$90*8760 -> 2163.634187 | BT157: 7291.456189 | BU157: 153 | BV157: 7291.456189
A158: 154 | B158: 42.48416567 | C158: 37.00956005 | D158: 44.63059304 | E158: 41.80913248 | F158: 42.73849132 | G158: 38.88253533 | H158: 37.83348755 | I158: 39.9262716 | J158: 69246.28886 | L158: 154 | M158: 75285.73074 | N158: 12767.87793 | O158: 9 | P158: 75479.93199 | AI158: 69246.28886 | AJ158: 42.48416567 | AK158: 37.00956005 | AL158: 44.63059304 | AM158: 41.80913248 | AN158: 42.73849132 | AO158: 38.88253533 | AP158: 37.83348755 | AQ158: 39.9262716 | AS158: 38 | BC158: 154 | BD158: =Resultados!$K$60-M158 -> 3618.592423 | BE158: 16036.74248 | BF158: 11 | BG158: 154 | BO158: 154 | BP158: 7256.400876 | BQ158: =Resultados!$K$60-M158-(Resultados!$D$88-VLOOKUP(M158,$AI$5:$AP$305,8,FALSE))*Resultados!$D$90*8760 -> 2509.487437 | BT158: 7256.400876 | BU158: 154 | BV158: 7256.400876
A159: 155 | B159: 48.96450446 | C159: 44.37642596 | D159: 42.12523595 | E159: 41.30237395 | F159: 43.51865418 | G159: 40.48957027 | H159: 41.44768775 | I159: 41.91844584 | J159: 72701.42422 | L159: 155 | M159: 75314.10643 | N159: 12796.25362 | O159: 9 | P159: 75479.93199 | AI159: 72701.42422 | AJ159: 48.96450446 | AK159: 44.37642596 | AL159: 42.12523595 | AM159: 41.30237395 | AN159: 43.51865418 | AO159: 40.48957027 | AP159: 41.44768775 | AQ159: 41.91844584 | AS159: 41 | BC159: 155 | BD159: =Resultados!$K$60-M159 -> 3590.216733 | BE159: 16008.36679 | BF159: 11 | BG159: 155 | BO159: 155 | BP159: 7229.106579 | BQ159: =Resultados!$K$60-M159-(Resultados!$D$88-VLOOKUP(M159,$AI$5:$AP$305,8,FALSE))*Resultados!$D$90*8760 -> 3339.294967 | BT159: 7229.106579 | BU159: 155 | BV159: 7229.106579
A160: 156 | B160: 49.45925429 | C160: 44.18960941 | D160: 52.20814199 | E160: 48.03676222 | F160: 51.30061355 | G160: 41.51042435 | H160: 42.31048437 | I160: 44.50571109 | J160: 77188.65806 | L160: 156 | M160: 75447.7578 | N160: 12929.90499 | O160: 9 | P160: 75479.93199 | AI160: 77188.65806 | AJ160: 49.45925429 | AK160: 44.18960941 | AL160: 52.20814199 | AM160: 48.03676222 | AN160: 51.30061355 | AO160: 41.51042435 | AP160: 42.31048437 | AQ160: 44.50571109 | AS160: 42 | BC160: 156 | BD160: =Resultados!$K$60-M160 -> 3456.565358 | BE160: 15874.71541 | BF160: 11 | BG160: 156 | BO160: 156 | BP160: 7210.206456 | BQ160: =Resultados!$K$60-M160-(Resultados!$D$88-VLOOKUP(M160,$AI$5:$AP$305,8,FALSE))*Resultados!$D$90*8760 -> 3509.091762 | BT160: 7210.206456 | BU160: 156 | BV160: 7210.206456
A161: 157 | B161: 51.79455968 | C161: 44.79282864 | D161: 50.72745869 | E161: 45.79737107 | F161: 54.23536397 | G161: 44.60730826 | H161: 44.63622804 | I161: 46.59621185 | J161: 80814.3264 | L161: 157 | M161: 75475.41154 | N161: 12957.55873 | O161: 9 | P161: 75479.93199 | AI161: 80814.3264 | AJ161: 51.79455968 | AK161: 44.79282864 | AL161: 50.72745869 | AM161: 45.79737107 | AN161: 54.23536397 | AO161: 44.60730826 | AP161: 44.63622804 | AQ161: 46.59621185 | AS161: 45 | BC161: 157 | BD161: =Resultados!$K$60-M161 -> 3428.911622 | BE161: 15847.06168 | BF161: 11 | BG161: 157 | BO161: 157 | BP161: 7187.173197 | BQ161: =Resultados!$K$60-M161-(Resultados!$D$88-VLOOKUP(M161,$AI$5:$AP$305,8,FALSE))*Resultados!$D$90*8760 -> 3850.96321 | BT161: 7187.173197 | BU161: 157 | BV161: 7187.173197
A162: 158 | B162: 57.88855938 | C162: 57.14494666 | D162: 52.37510142 | E162: 52.76512177 | F162: 49.29190681 | G162: 45.84718337 | H162: 46.68327558 | I162: 48.97132571 | J162: 84933.61463 | L162: 158 | M162: 75608.48455 | N162: 13090.63174 | O162: 9 | P162: 75479.93199 | AI162: 84933.61463 | AJ162: 57.88855938 | AK162: 57.14494666 | AL162: 52.37510142 | AM162: 52.76512177 | AN162: 49.29190681 | AO162: 45.84718337 | AP162: 46.68327558 | AQ162: 48.97132571 | AS162: 47 | BC162: 158 | BD162: =Resultados!$K$60-M162 -> 3295.838607 | BE162: 15713.98866 | BF162: 11 | BG162: 158 | BO162: 158 | BP162: 7139.254422 | BQ162: =Resultados!$K$60-M162-(Resultados!$D$88-VLOOKUP(M162,$AI$5:$AP$305,8,FALSE))*Resultados!$D$90*8760 -> 4257.562203 | BT162: 7139.254422 | BU162: 158 | BV162: 7139.254422
A163: 159 | B163: 46.66185087 | C163: 44.2208632 | D163: 45.36933879 | E163: 41.74018118 | F163: 42.86214748 | G163: 36.3076938 | H163: 39.23592606 | I163: 39.31898696 | J163: 68193.04231 | L163: 159 | M163: 75625.66107 | N163: 13107.80826 | O163: 9 | P163: 75479.93199 | AI163: 68193.04231 | AJ163: 46.66185087 | AK163: 44.2208632 | AL163: 45.36933879 | AM163: 41.74018118 | AN163: 42.86214748 | AO163: 36.3076938 | AP163: 39.23592606 | AQ163: 39.31898696 | AS163: 39 | BC163: 159 | BD163: =Resultados!$K$60-M163 -> 3278.662094 | BE163: 15696.81215 | BF163: 11 | BG163: 159 | BO163: 159 | BP163: 7123.319861 | BQ163: =Resultados!$K$60-M163-(Resultados!$D$88-VLOOKUP(M163,$AI$5:$AP$305,8,FALSE))*Resultados!$D$90*8760 -> 2035.469134 | BT163: 7123.319861 | BU163: 159 | BV163: 7123.319861
A164: 160 | B164: 49.63132019 | C164: 41.3151275 | D164: 52.19158846 | E164: 47.93051727 | F164: 45.95501355 | G164: 42.96285281 | H164: 42.08146045 | I164: 44.46362049 | J164: 77115.65804 | L164: 160 | M164: 75647.52224 | N164: 13129.66943 | O164: 9 | P164: 75479.93199 | AI164: 77115.65804 | AJ164: 49.63132019 | AK164: 41.3151275 | AL164: 52.19158846 | AM164: 47.93051727 | AN164: 45.95501355 | AO164: 42.96285281 | AP164: 42.08146045 | AQ164: 44.46362049 | AS164: 42 | BC164: 160 | BD164: =Resultados!$K$60-M164 -> 3256.800918 | BE164: 15674.95097 | BF164: 11 | BG164: 160 | BO164: 160 | BP164: 7118.519685 | BQ164: =Resultados!$K$60-M164-(Resultados!$D$88-VLOOKUP(M164,$AI$5:$AP$305,8,FALSE))*Resultados!$D$90*8760 -> 2957.246284 | BT164: 7118.519685 | BU164: 160 | BV164: 7118.519685
A165: 161 | B165: 49.30816333 | C165: 42.04280114 | D165: 44.70470831 | E165: 43.31260681 | F165: 40.68526522 | G165: 40.13037733 | H165: 40.65107138 | I165: 41.45070849 | J165: 71890.20207 | L165: 161 | M165: 75671.09433 | N165: 13153.24152 | O165: 9 | P165: 75479.93199 | AI165: 71890.20207 | AJ165: 49.30816333 | AK165: 42.04280114 | AL165: 44.70470831 | AM165: 43.31260681 | AN165: 40.68526522 | AO165: 40.13037733 | AP165: 40.65107138 | AQ165: 41.45070849 | AS165: 41 | BC165: 161 | BD165: =Resultados!$K$60-M165 -> 3233.228827 | BE165: 15651.37888 | BF165: 11 | BG165: 161 | BO165: 161 | BP165: 7069.768378 | BQ165: =Resultados!$K$60-M165-(Resultados!$D$88-VLOOKUP(M165,$AI$5:$AP$305,8,FALSE))*Resultados!$D$90*8760 -> 2012.008173 | BT165: 7069.768378 | BU165: 161 | BV165: 7069.768378
A166: 162 | B166: 52.70341302 | C166: 48.75233014 | D166: 48.80016791 | E166: 44.88397084 | F166: 45.2408387 | G166: 39.33023036 | H166: 41.79796545 | I166: 42.68742232 | J166: 74035.10165 | L166: 162 | M166: 75692.39607 | N166: 13174.54326 | O166: 9 | P166: 75479.93199 | AI166: 74035.10165 | AJ166: 52.70341302 | AK166: 48.75233014 | AL166: 48.80016791 | AM166: 44.88397084 | AN166: 45.2408387 | AO166: 39.33023036 | AP166: 41.79796545 | AQ166: 42.68742232 | AS166: 42 | BC166: 162 | BD166: =Resultados!$K$60-M166 -> 3211.927089 | BE166: 15630.07714 | BF166: 11 | BG166: 162 | BO166: 162 | BP166: 7057.494173 | BQ166: =Resultados!$K$60-M166-(Resultados!$D$88-VLOOKUP(M166,$AI$5:$AP$305,8,FALSE))*Resultados!$D$90*8760 -> 2682.948476 | BT166: 7057.494173 | BU166: 162 | BV166: 7057.494173
A167: 163 | B167: 47.71644257 | C167: 42.06845788 | D167: 45.1314467 | E167: 41.76360972 | F167: 45.7014051 | G167: 40.2082372 | H167: 39.67905649 | I167: 41.82746815 | J167: 72543.63669 | L167: 163 | M167: 75743.65451 | N167: 13225.8017 | O167: 9 | P167: 75479.93199 | AI167: 72543.63669 | AJ167: 47.71644257 | AK167: 42.06845788 | AL167: 45.1314467 | AM167: 41.76360972 | AN167: 45.7014051 | AO167: 40.2082372 | AP167: 39.67905649 | AQ167: 41.82746815 | AS167: 40 | BC167: 163 | BD167: =Resultados!$K$60-M167 -> 3160.668647 | BE167: 15578.8187 | BF167: 11 | BG167: 163 | BO167: 163 | BP167: 7056.513153 | BQ167: =Resultados!$K$60-M167-(Resultados!$D$88-VLOOKUP(M167,$AI$5:$AP$305,8,FALSE))*Resultados!$D$90*8760 -> 3525.617183 | BT167: 7056.513153 | BU167: 163 | BV167: 7056.513153
A168: 164 | B168: 46.54067777 | C168: 43.42428262 | D168: 53.5501921 | E168: 49.83601234 | F168: 46.904265 | G168: 44.19207762 | H168: 44.30747262 | I168: 45.35502734 | J168: 78661.67308 | L168: 164 | M168: 75829.80359 | N168: 13311.95078 | O168: 9 | P168: 75479.93199 | AI168: 78661.67308 | AJ168: 46.54067777 | AK168: 43.42428262 | AL168: 53.5501921 | AM168: 49.83601234 | AN168: 46.904265 | AO168: 44.19207762 | AP168: 44.30747262 | AQ168: 45.35502734 | AS168: 44 | BC168: 164 | BD168: =Resultados!$K$60-M168 -> 3074.519573 | BE168: 15492.66963 | BF168: 11 | BG168: 164 | BO168: 164 | BP168: 7045.298681 | BQ168: =Resultados!$K$60-M168-(Resultados!$D$88-VLOOKUP(M168,$AI$5:$AP$305,8,FALSE))*Resultados!$D$90*8760 -> 4868.329342 | BT168: 7045.298681 | BU168: 164 | BV168: 7045.298681
A169: 165 | B169: 50.46817209 | C169: 44.28956762 | D169: 48.25221654 | E169: 41.71888077 | F169: 43.30525551 | G169: 41.76211791 | H169: 41.17271698 | I169: 43.04340337 | J169: 74652.49881 | L169: 165 | M169: 75847.80139 | N169: 13329.94859 | O169: 9 | P169: 75479.93199 | AI169: 74652.49881 | AJ169: 50.46817209 | AK169: 44.28956762 | AL169: 48.25221654 | AM169: 41.71888077 | AN169: 43.30525551 | AO169: 41.76211791 | AP169: 41.17271698 | AQ169: 43.04340337 | AS169: 41 | BC169: 165 | BD169: =Resultados!$K$60-M169 -> 3056.521764 | BE169: 15474.67182 | BF169: 11 | BG169: 165 | BO169: 165 | BP169: 6981.563533 | BQ169: =Resultados!$K$60-M169-(Resultados!$D$88-VLOOKUP(M169,$AI$5:$AP$305,8,FALSE))*Resultados!$D$90*8760 -> 5170.72827 | BT169: 6981.563533 | BU169: 165 | BV169: 6981.563533
A170: 166 | B170: 52.04496312 | C170: 48.44160788 | D170: 46.18969761 | E170: 42.40182954 | F170: 43.24181728 | G170: 42.24002324 | H170: 42.46660792 | I170: 43.67254581 | J170: 75743.65451 | L170: 166 | M170: 75902.59138 | N170: 13384.73857 | O170: 9 | P170: 75479.93199 | AI170: 75743.65451 | AJ170: 52.04496312 | AK170: 48.44160788 | AL170: 46.18969761 | AM170: 42.40182954 | AN170: 43.24181728 | AO170: 42.24002324 | AP170: 42.46660792 | AQ170: 43.67254581 | AS170: 42 | BC170: 166 | BD170: =Resultados!$K$60-M170 -> 3001.73178 | BE170: 15419.88184 | BF170: 11 | BG170: 166 | BO170: 166 | BP170: 6909.840619 | BQ170: =Resultados!$K$60-M170-(Resultados!$D$88-VLOOKUP(M170,$AI$5:$AP$305,8,FALSE))*Resultados!$D$90*8760 -> 2665.657584 | BT170: 6909.840619 | BU170: 166 | BV170: 6909.840619
A171: 167 | B171: 63.81188652 | C171: 56.84927231 | D171: 50.7328815 | E171: 45.94634705 | F171: 45.65244858 | G171: 46.4541973 | H171: 46.34078735 | I171: 48.63090681 | J171: 84343.20775 | L171: 167 | M171: 75921.59038 | N171: 13403.73757 | O171: 9 | P171: 75479.93199 | AI171: 84343.20775 | AJ171: 63.81188652 | AK171: 56.84927231 | AL171: 50.7328815 | AM171: 45.94634705 | AN171: 45.65244858 | AO171: 46.4541973 | AP171: 46.34078735 | AQ171: 48.63090681 | AS171: 46 | BC171: 167 | BD171: =Resultados!$K$60-M171 -> 2982.732779 | BE171: 15400.88284 | BF171: 11 | BG171: 167 | BO171: 167 | BP171: 6909.407506 | BQ171: =Resultados!$K$60-M171-(Resultados!$D$88-VLOOKUP(M171,$AI$5:$AP$305,8,FALSE))*Resultados!$D$90*8760 -> 3117.607155 | BT171: 6909.407506 | BU171: 167 | BV171: 6909.407506
A172: 168 | B172: 55.17897169 | C172: 50.16169859 | D172: 49.11473204 | E172: 43.06111034 | F172: 45.91171145 | G172: 40.71973271 | H172: 41.22773737 | I172: 43.85135824 | J172: 76053.77857 | L172: 168 | M172: 75972.49596 | N172: 13454.64315 | O172: 9 | P172: 75479.93199 | AI172: 76053.77857 | AJ172: 55.17897169 | AK172: 50.16169859 | AL172: 49.11473204 | AM172: 43.06111034 | AN172: 45.91171145 | AO172: 40.71973271 | AP172: 41.22773737 | AQ172: 43.85135824 | AS172: 41 | BC172: 168 | BD172: =Resultados!$K$60-M172 -> 2931.827201 | BE172: 15349.97726 | BF172: 11 | BG172: 168 | BO172: 168 | BP172: 6903.513945 | BQ172: =Resultados!$K$60-M172-(Resultados!$D$88-VLOOKUP(M172,$AI$5:$AP$305,8,FALSE))*Resultados!$D$90*8760 -> 2311.498106 | BT172: 6903.513945 | BU172: 168 | BV172: 6903.513945
A173: 169 | B173: 52.06374997 | C173: 47.96596841 | D173: 42.74846305 | E173: 41.0451529 | F173: 44.78153159 | G173: 39.07001626 | H173: 41.16604115 | I173: 41.74988543 | J173: 72409.08079 | L173: 169 | M173: 76006.59975 | N173: 13488.74694 | O173: 9 | P173: 75479.93199 | AI173: 72409.08079 | AJ173: 52.06374997 | AK173: 47.96596841 | AL173: 42.74846305 | AM173: 41.0451529 | AN173: 44.78153159 | AO173: 39.07001626 | AP173: 41.16604115 | AQ173: 41.74988543 | AS173: 41 | BC173: 169 | BD173: =Resultados!$K$60-M173 -> 2897.723407 | BE173: 15315.87346 | BF173: 11 | BG173: 169 | BO173: 169 | BP173: 6883.427669 | BQ173: =Resultados!$K$60-M173-(Resultados!$D$88-VLOOKUP(M173,$AI$5:$AP$305,8,FALSE))*Resultados!$D$90*8760 -> 2957.679397 | BT173: 6883.427669 | BU173: 169 | BV173: 6883.427669
A174: 170 | B174: 47.97010049 | C174: 46.35874591 | D174: 51.66217647 | E174: 49.55591801 | F174: 41.09516728 | G174: 42.23945021 | H174: 42.08714222 | I174: 43.87195766 | J174: 76089.50526 | L174: 170 | M174: 76036.07765 | N174: 13518.22484 | O174: 9 | P174: 75479.93199 | AI174: 76089.50526 | AJ174: 47.97010049 | AK174: 46.35874591 | AL174: 51.66217647 | AM174: 49.55591801 | AN174: 41.09516728 | AO174: 42.23945021 | AP174: 42.08714222 | AQ174: 43.87195766 | AS174: 42 | BC174: 170 | BD174: =Resultados!$K$60-M174 -> 2868.245514 | BE174: 15286.39557 | BF174: 11 | BG174: 170 | BO174: 170 | BP174: 6850.177695 | BQ174: =Resultados!$K$60-M174-(Resultados!$D$88-VLOOKUP(M174,$AI$5:$AP$305,8,FALSE))*Resultados!$D$90*8760 -> 3723.293433 | BT174: 6850.177695 | BU174: 170 | BV174: 6850.177695
A175: 171 | B175: 50.25337343 | C175: 47.44477379 | D175: 45.75721907 | E175: 46.8231784 | F175: 42.55989451 | G175: 41.06490238 | H175: 40.72415847 | I175: 43.15432115 | J175: 74844.86951 | L175: 171 | M175: 76053.77857 | N175: 13535.92576 | O175: 9 | P175: 75479.93199 | AI175: 74844.86951 | AJ175: 50.25337343 | AK175: 47.44477379 | AL175: 45.75721907 | AM175: 46.8231784 | AN175: 42.55989451 | AO175: 41.06490238 | AP175: 40.72415847 | AQ175: 43.15432115 | AS175: 41 | BC175: 171 | BD175: =Resultados!$K$60-M175 -> 2850.544588 | BE175: 15268.69464 | BF175: 11 | BG175: 171 | BO175: 171 | BP175: 6799.51571 | BQ175: =Resultados!$K$60-M175-(Resultados!$D$88-VLOOKUP(M175,$AI$5:$AP$305,8,FALSE))*Resultados!$D$90*8760 -> 2130.242522 | BT175: 6799.51571 | BU175: 171 | BV175: 6799.51571
A176: 172 | B176: 53.13323461 | C176: 43.48611708 | D176: 54.66118632 | E176: 49.83621529 | F176: 48.53961306 | G176: 43.9033322 | H176: 44.195181 | I176: 46.08749826 | J176: 79932.03695 | L176: 172 | M176: 76089.50526 | N176: 13571.65245 | O176: 9 | P176: 75479.93199 | AI176: 79932.03695 | AJ176: 53.13323461 | AK176: 43.48611708 | AL176: 54.66118632 | AM176: 49.83621529 | AN176: 48.53961306 | AO176: 43.9033322 | AP176: 44.195181 | AQ176: 46.08749826 | AS176: 44 | BC176: 172 | BD176: =Resultados!$K$60-M176 -> 2814.817899 | BE176: 15232.96795 | BF176: 11 | BG176: 172 | BO176: 172 | BP176: 6749.226684 | BQ176: =Resultados!$K$60-M176-(Resultados!$D$88-VLOOKUP(M176,$AI$5:$AP$305,8,FALSE))*Resultados!$D$90*8760 -> 2847.354487 | BT176: 6749.226684 | BU176: 172 | BV176: 6749.226684
A177: 173 | B177: 44.1017306 | C177: 40.43081245 | D177: 46.31004233 | E177: 43.86862014 | F177: 43.17172323 | G177: 37.83652566 | H177: 37.57882968 | I177: 39.94419031 | J177: 69277.36624 | L177: 173 | M177: 76119.49875 | N177: 13601.64594 | O177: 9 | P177: 75479.93199 | AI177: 69277.36624 | AJ177: 44.1017306 | AK177: 40.43081245 | AL177: 46.31004233 | AM177: 43.86862014 | AN177: 43.17172323 | AO177: 37.83652566 | AP177: 37.57882968 | AQ177: 39.94419031 | AS177: 38 | BC177: 173 | BD177: =Resultados!$K$60-M177 -> 2784.824412 | BE177: 15202.97447 | BF177: 11 | BG177: 173 | BO177: 173 | BP177: 6746.200131 | BQ177: =Resultados!$K$60-M177-(Resultados!$D$88-VLOOKUP(M177,$AI$5:$AP$305,8,FALSE))*Resultados!$D$90*8760 -> 2560.701503 | BT177: 6746.200131 | BU177: 173 | BV177: 6746.200131
A178: 174 | B178: 47.62758221 | C178: 45.48651762 | D178: 43.99303788 | E178: 41.6440955 | F178: 42.73984304 | G178: 38.03281852 | H178: 40.18947986 | I178: 40.33186831 | J178: 69949.73714 | L178: 174 | M178: 76128.75771 | N178: 13610.9049 | O178: 9 | P178: 75479.93199 | AI178: 69949.73714 | AJ178: 47.62758221 | AK178: 45.48651762 | AL178: 43.99303788 | AM178: 41.6440955 | AN178: 42.73984304 | AO178: 38.03281852 | AP178: 40.18947986 | AQ178: 40.33186831 | AS178: 40 | BC178: 174 | BD178: =Resultados!$K$60-M178 -> 2775.565454 | BE178: 15193.71551 | BF178: 11 | BG178: 174 | BO178: 174 | BP178: 6720.27188 | BQ178: =Resultados!$K$60-M178-(Resultados!$D$88-VLOOKUP(M178,$AI$5:$AP$305,8,FALSE))*Resultados!$D$90*8760 -> 3496.039061 | BT178: 6720.27188 | BU178: 174 | BV178: 6720.27188
A179: 175 | B179: 44.04382972 | C179: 38.12622833 | D179: 53.41817314 | E179: 47.78082942 | F179: 49.05857704 | G179: 41.29082776 | H179: 39.31032811 | I179: 43.17323573 | J179: 74877.67408 | L179: 175 | M179: 76214.00694 | N179: 13696.15413 | O179: 10 | P179: 76920.16301 | AI179: 74877.67408 | AJ179: 44.04382972 | AK179: 38.12622833 | AL179: 53.41817314 | AM179: 47.78082942 | AN179: 49.05857704 | AO179: 41.29082776 | AP179: 39.31032811 | AQ179: 43.17323573 | AS179: 39 | BC179: 175 | BD179: =Resultados!$K$60-M179 -> 2690.316223 | BE179: 15108.46628 | BF179: 10 | BG179: 175 | BO179: 175 | BP179: 6708.029129 | BQ179: =Resultados!$K$60-M179-(Resultados!$D$88-VLOOKUP(M179,$AI$5:$AP$305,8,FALSE))*Resultados!$D$90*8760 -> 3593.189217 | BT179: 6708.029129 | BU179: 175 | BV179: 6708.029129
A180: 176 | B180: 47.04354443 | C180: 41.08925531 | D180: 43.28996524 | E180: 37.78169432 | F180: 40.0907733 | G180: 40.51845316 | H180: 39.0192003 | I180: 40.80006569 | J180: 70761.75713 | L180: 176 | M180: 76298.70105 | N180: 13780.84824 | O180: 10 | P180: 76920.16301 | AI180: 70761.75713 | AJ180: 47.04354443 | AK180: 41.08925531 | AL180: 43.28996524 | AM180: 37.78169432 | AN180: 40.0907733 | AO180: 40.51845316 | AP180: 39.0192003 | AQ180: 40.80006569 | AS180: 39 | BC180: 176 | BD180: =Resultados!$K$60-M180 -> 2605.622108 | BE180: 15023.77216 | BF180: 10 | BG180: 176 | BO180: 176 | BP180: 6700.506809 | BQ180: =Resultados!$K$60-M180-(Resultados!$D$88-VLOOKUP(M180,$AI$5:$AP$305,8,FALSE))*Resultados!$D$90*8760 -> 2390.937816 | BT180: 6700.506809 | BU180: 176 | BV180: 6700.506809
A181: 177 | B181: 53.72324552 | C181: 49.26963329 | D181: 50.09466174 | E181: 46.51637245 | F181: 44.22379284 | G181: 42.23601819 | H181: 43.42721082 | I181: 44.61987904 | J181: 77386.6657 | L181: 177 | M181: 76308.9549 | N181: 13791.1021 | O181: 10 | P181: 76920.16301 | AI181: 77386.6657 | AJ181: 53.72324552 | AK181: 49.26963329 | AL181: 50.09466174 | AM181: 46.51637245 | AN181: 44.22379284 | AO181: 42.23601819 | AP181: 43.42721082 | AQ181: 44.61987904 | AS181: 43 | BC181: 177 | BD181: =Resultados!$K$60-M181 -> 2595.368255 | BE181: 15013.51831 | BF181: 10 | BG181: 177 | BO181: 177 | BP181: 6692.460537 | BQ181: =Resultados!$K$60-M181-(Resultados!$D$88-VLOOKUP(M181,$AI$5:$AP$305,8,FALSE))*Resultados!$D$90*8760 -> 1199.584344 | BT181: 6692.460537 | BU181: 177 | BV181: 6692.460537
A182: 178 | B182: 55.08601887 | C182: 50.71807788 | D182: 51.42237199 | E182: 47.70870491 | F182: 43.41992823 | G182: 41.612901 | H182: 43.23633399 | I182: 44.59993168 | J182: 77352.06992 | L182: 178 | M182: 76395.31887 | N182: 13877.46606 | O182: 10 | P182: 76920.16301 | AI182: 77352.06992 | AJ182: 55.08601887 | AK182: 50.71807788 | AL182: 51.42237199 | AM182: 47.70870491 | AN182: 43.41992823 | AO182: 41.612901 | AP182: 43.23633399 | AQ182: 44.59993168 | AS182: 43 | BC182: 178 | BD182: =Resultados!$K$60-M182 -> 2509.004293 | BE182: 14927.15435 | BF182: 10 | BG182: 178 | BO182: 178 | BP182: 6676.255361 | BQ182: =Resultados!$K$60-M182-(Resultados!$D$88-VLOOKUP(M182,$AI$5:$AP$305,8,FALSE))*Resultados!$D$90*8760 -> 1885.216635 | BT182: 6676.255361 | BU182: 178 | BV182: 6676.255361
A183: 179 | B183: 52.95346093 | C183: 42.04151407 | D183: 55.8322221 | E183: 48.64209164 | F183: 46.28895646 | G183: 45.41167007 | H183: 44.40794915 | I183: 46.5319559 | J183: 80702.88384 | L183: 179 | M183: 76404.04702 | N183: 13886.19421 | O183: 10 | P183: 76920.16301 | AI183: 80702.88384 | AJ183: 52.95346093 | AK183: 42.04151407 | AL183: 55.8322221 | AM183: 48.64209164 | AN183: 46.28895646 | AO183: 45.41167007 | AP183: 44.40794915 | AQ183: 46.5319559 | AS183: 44 | BC183: 179 | BD183: =Resultados!$K$60-M183 -> 2500.276141 | BE183: 14918.4262 | BF183: 10 | BG183: 179 | BO183: 179 | BP183: 6635.109699 | BQ183: =Resultados!$K$60-M183-(Resultados!$D$88-VLOOKUP(M183,$AI$5:$AP$305,8,FALSE))*Resultados!$D$90*8760 -> 2755.867907 | BT183: 6635.109699 | BU183: 179 | BV183: 6635.109699
A184: 180 | B184: 47.14503547 | C184: 43.01376674 | D184: 47.59817229 | E184: 45.09410809 | F184: 44.75541705 | G184: 40.73837137 | H184: 39.8015865 | I184: 42.4698577 | J184: 73657.76758 | L184: 180 | M184: 76446.28576 | N184: 13928.43295 | O184: 10 | P184: 76920.16301 | AI184: 73657.76758 | AJ184: 47.14503547 | AK184: 43.01376674 | AL184: 47.59817229 | AM184: 45.09410809 | AN184: 44.75541705 | AO184: 40.73837137 | AP184: 39.8015865 | AQ184: 42.4698577 | AS184: 40 | BC184: 180 | BD184: =Resultados!$K$60-M184 -> 2458.0374 | BE184: 14876.18746 | BF184: 10 | BG184: 180 | BO184: 180 | BP184: 6617.818807 | BQ184: =Resultados!$K$60-M184-(Resultados!$D$88-VLOOKUP(M184,$AI$5:$AP$305,8,FALSE))*Resultados!$D$90*8760 -> 1935.77735 | BT184: 6617.818807 | BU184: 180 | BV184: 6617.818807
A185: 181 | B185: 41.90404653 | C185: 39.09151989 | D185: 42.93156127 | E185: 40.93132895 | F185: 37.53558211 | G185: 36.41750538 | H185: 36.09268605 | I185: 37.87266391 | J185: 65684.60614 | L185: 181 | M185: 76446.45029 | N185: 13928.59748 | O185: 10 | P185: 76920.16301 | AI185: 65684.60614 | AJ185: 41.90404653 | AK185: 39.09151989 | AL185: 42.93156127 | AM185: 40.93132895 | AN185: 37.53558211 | AO185: 36.41750538 | AP185: 36.09268605 | AQ185: 37.87266391 | AS185: 36 | BC185: 181 | BD185: =Resultados!$K$60-M185 -> 2457.872867 | BE185: 14876.02292 | BF185: 10 | BG185: 181 | BO185: 181 | BP185: 6613.799164 | BQ185: =Resultados!$K$60-M185-(Resultados!$D$88-VLOOKUP(M185,$AI$5:$AP$305,8,FALSE))*Resultados!$D$90*8760 -> 2052.356518 | BT185: 6613.799164 | BU185: 181 | BV185: 6613.799164
A186: 182 | B186: 45.03707316 | C186: 41.87767866 | D186: 44.31789628 | E186: 40.75987273 | F186: 40.5498818 | G186: 37.81809914 | H186: 38.61291113 | I186: 39.37271883 | J186: 68286.23239 | L186: 182 | M186: 76473.97745 | N186: 13956.12464 | O186: 10 | P186: 76920.16301 | AI186: 68286.23239 | AJ186: 45.03707316 | AK186: 41.87767866 | AL186: 44.31789628 | AM186: 40.75987273 | AN186: 40.5498818 | AO186: 37.81809914 | AP186: 38.61291113 | AQ186: 39.37271883 | AS186: 39 | BC186: 182 | BD186: =Resultados!$K$60-M186 -> 2430.345712 | BE186: 14848.49577 | BF186: 10 | BG186: 182 | BO186: 182 | BP186: 6558.227263 | BQ186: =Resultados!$K$60-M186-(Resultados!$D$88-VLOOKUP(M186,$AI$5:$AP$305,8,FALSE))*Resultados!$D$90*8760 -> 2413.63806 | BT186: 6558.227263 | BU186: 182 | BV186: 6558.227263
A187: 183 | B187: 49.45941594 | C187: 42.28527115 | D187: 65.23265093 | E187: 57.25581662 | F187: 51.16053296 | G187: 47.01578831 | H187: 46.31590016 | I187: 48.65772663 | J187: 84389.72282 | L187: 183 | M187: 76569.59951 | N187: 14051.7467 | O187: 10 | P187: 76920.16301 | AI187: 84389.72282 | AJ187: 49.45941594 | AK187: 42.28527115 | AL187: 65.23265093 | AM187: 57.25581662 | AN187: 51.16053296 | AO187: 47.01578831 | AP187: 46.31590016 | AQ187: 48.65772663 | AS187: 46 | BC187: 183 | BD187: =Resultados!$K$60-M187 -> 2334.723646 | BE187: 14752.8737 | BF187: 10 | BG187: 183 | BO187: 183 | BP187: 6543.643042 | BQ187: =Resultados!$K$60-M187-(Resultados!$D$88-VLOOKUP(M187,$AI$5:$AP$305,8,FALSE))*Resultados!$D$90*8760 -> 1273.04407 | BT187: 6543.643042 | BU187: 183 | BV187: 6543.643042
A188: 184 | B188: 47.75063652 | C188: 44.27016196 | D188: 41.69488046 | E188: 37.68526163 | F188: 39.34963639 | G188: 38.1412669 | H188: 38.38637787 | I188: 39.45861678 | J188: 68435.20985 | L188: 184 | M188: 76665.56537 | N188: 14147.71256 | O188: 10 | P188: 76920.16301 | AI188: 68435.20985 | AJ188: 47.75063652 | AK188: 44.27016196 | AL188: 41.69488046 | AM188: 37.68526163 | AN188: 39.34963639 | AO188: 38.1412669 | AP188: 38.38637787 | AQ188: 39.45861678 | AS188: 38 | BC188: 184 | BD188: =Resultados!$K$60-M188 -> 2238.757787 | BE188: 14656.90784 | BF188: 10 | BG188: 184 | BO188: 184 | BP188: 6512.862725 | BQ188: =Resultados!$K$60-M188-(Resultados!$D$88-VLOOKUP(M188,$AI$5:$AP$305,8,FALSE))*Resultados!$D$90*8760 -> 2392.494837 | BT188: 6512.862725 | BU188: 184 | BV188: 6512.862725
A189: 185 | B189: 48.28764046 | C189: 44.65329741 | D189: 48.53553274 | E189: 48.31040737 | F189: 46.52970893 | G189: 41.98859614 | H189: 43.08067693 | I189: 43.94374328 | J189: 76214.00694 | L189: 185 | M189: 76740.01762 | N189: 14222.16481 | O189: 10 | P189: 76920.16301 | AI189: 76214.00694 | AJ189: 48.28764046 | AK189: 44.65329741 | AL189: 48.53553274 | AM189: 48.31040737 | AN189: 46.52970893 | AO189: 41.98859614 | AP189: 43.08067693 | AQ189: 43.94374328 | AS189: 43 | BC189: 185 | BD189: =Resultados!$K$60-M189 -> 2164.30554 | BE189: 14582.4556 | BF189: 10 | BG189: 185 | BO189: 185 | BP189: 6461.648659 | BQ189: =Resultados!$K$60-M189-(Resultados!$D$88-VLOOKUP(M189,$AI$5:$AP$305,8,FALSE))*Resultados!$D$90*8760 -> 3304.239654 | BT189: 6461.648659 | BU189: 185 | BV189: 6461.648659
A190: 186 | B190: 51.25867143 | C190: 45.35039987 | D190: 46.7740678 | E190: 45.04880708 | F190: 40.54851159 | G190: 39.8946456 | H190: 41.23604224 | I190: 41.89133406 | J190: 72654.40279 | L190: 186 | M190: 76818.41918 | N190: 14300.56637 | O190: 10 | P190: 76920.16301 | AI190: 72654.40279 | AJ190: 51.25867143 | AK190: 45.35039987 | AL190: 46.7740678 | AM190: 45.04880708 | AN190: 40.54851159 | AO190: 39.8946456 | AP190: 41.23604224 | AQ190: 41.89133406 | AS190: 41 | BC190: 186 | BD190: =Resultados!$K$60-M190 -> 2085.903977 | BE190: 14504.05403 | BF190: 10 | BG190: 186 | BO190: 186 | BP190: 6447.633626 | BQ190: =Resultados!$K$60-M190-(Resultados!$D$88-VLOOKUP(M190,$AI$5:$AP$305,8,FALSE))*Resultados!$D$90*8760 -> 869.1325798 | BT190: 6447.633626 | BU190: 186 | BV190: 6447.633626
A191: 187 | B191: 54.17020719 | C191: 49.31041582 | D191: 47.84045497 | E191: 45.75833591 | F191: 41.63702863 | G191: 40.81294146 | H191: 39.7830857 | I191: 43.36952181 | J191: 75218.10362 | L191: 187 | M191: 76905.85391 | N191: 14388.0011 | O191: 10 | P191: 76920.16301 | AI191: 75218.10362 | AJ191: 54.17020719 | AK191: 49.31041582 | AL191: 47.84045497 | AM191: 45.75833591 | AN191: 41.63702863 | AO191: 40.81294146 | AP191: 39.7830857 | AQ191: 43.36952181 | AS191: 40 | BC191: 187 | BD191: =Resultados!$K$60-M191 -> 1998.469253 | BE191: 14416.61931 | BF191: 10 | BG191: 187 | BO191: 187 | BP191: 6365.799282 | BQ191: =Resultados!$K$60-M191-(Resultados!$D$88-VLOOKUP(M191,$AI$5:$AP$305,8,FALSE))*Resultados!$D$90*8760 -> 2495.472403 | BT191: 6365.799282 | BU191: 187 | BV191: 6365.799282
A192: 188 | B192: 55.79273605 | C192: 50.69393116 | D192: 54.35744818 | E192: 53.59594531 | F192: 48.63786687 | G192: 44.37363647 | H192: 44.71709975 | I192: 47.34432357 | J192: 82111.81696 | L192: 188 | M192: 76943.21848 | N192: 14425.36567 | O192: 10 | P192: 76920.16301 | AI192: 82111.81696 | AJ192: 55.79273605 | AK192: 50.69393116 | AL192: 54.35744818 | AM192: 53.59594531 | AN192: 48.63786687 | AO192: 44.37363647 | AP192: 44.71709975 | AQ192: 47.34432357 | AS192: 45 | BC192: 188 | BD192: =Resultados!$K$60-M192 -> 1961.10468 | BE192: 14379.25474 | BF192: 10 | BG192: 188 | BO192: 188 | BP192: 6344.656059 | BQ192: =Resultados!$K$60-M192-(Resultados!$D$88-VLOOKUP(M192,$AI$5:$AP$305,8,FALSE))*Resultados!$D$90*8760 -> 3978.473826 | BT192: 6344.656059 | BU192: 188 | BV192: 6344.656059
A193: 189 | B193: 51.80899062 | C193: 48.2937973 | D193: 49.26279958 | E193: 45.86828987 | F193: 41.04289608 | G193: 41.70717557 | H193: 42.53179405 | I193: 43.51788132 | J193: 75475.41154 | L193: 189 | M193: 76972.70533 | N193: 14454.85252 | O193: 10 | P193: 76920.16301 | AI193: 75475.41154 | AJ193: 51.80899062 | AK193: 48.2937973 | AL193: 49.26279958 | AM193: 45.86828987 | AN193: 41.04289608 | AO193: 41.70717557 | AP193: 42.53179405 | AQ193: 43.51788132 | AS193: 43 | BC193: 189 | BD193: =Resultados!$K$60-M193 -> 1931.617826 | BE193: 14349.76788 | BF193: 10 | BG193: 189 | BO193: 189 | BP193: 6343.099038 | BQ193: =Resultados!$K$60-M193-(Resultados!$D$88-VLOOKUP(M193,$AI$5:$AP$305,8,FALSE))*Resultados!$D$90*8760 -> 3526.993701 | BT193: 6343.099038 | BU193: 189 | BV193: 6343.099038
A194: 190 | B194: 58.60114649 | C194: 49.69715409 | D194: 46.97013525 | E194: 44.78710261 | F194: 48.75981929 | G194: 43.15613671 | H194: 43.35901937 | I194: 45.66488497 | J194: 79199.0759 | L194: 190 | M194: 76987.04795 | N194: 14469.19515 | O194: 10 | P194: 76920.16301 | AI194: 79199.0759 | AJ194: 58.60114649 | AK194: 49.69715409 | AL194: 46.97013525 | AM194: 44.78710261 | AN194: 48.75981929 | AO194: 43.15613671 | AP194: 43.35901937 | AQ194: 45.66488497 | AS194: 43 | BC194: 190 | BD194: =Resultados!$K$60-M194 -> 1917.275205 | BE194: 14335.42526 | BF194: 10 | BG194: 190 | BO194: 190 | BP194: 6342.717856 | BQ194: =Resultados!$K$60-M194-(Resultados!$D$88-VLOOKUP(M194,$AI$5:$AP$305,8,FALSE))*Resultados!$D$90*8760 -> 2797.065462 | BT194: 6342.717856 | BU194: 190 | BV194: 6342.717856
A195: 191 | B195: 48.62530344 | C195: 45.17135446 | D195: 47.25576562 | E195: 44.95888542 | F195: 42.85834896 | G195: 41.15565297 | H195: 42.01376303 | I195: 42.65938172 | J195: 73986.46933 | L195: 191 | M195: 77025.31913 | N195: 14507.46632 | O195: 10 | P195: 76920.16301 | AI195: 73986.46933 | AJ195: 48.62530344 | AK195: 45.17135446 | AL195: 47.25576562 | AM195: 44.95888542 | AN195: 42.85834896 | AO195: 41.15565297 | AP195: 42.01376303 | AQ195: 42.65938172 | AS195: 42 | BC195: 191 | BD195: =Resultados!$K$60-M195 -> 1879.004034 | BE195: 14297.15409 | BF195: 10 | BG195: 191 | BO195: 191 | BP195: 6263.659329 | BQ195: =Resultados!$K$60-M195-(Resultados!$D$88-VLOOKUP(M195,$AI$5:$AP$305,8,FALSE))*Resultados!$D$90*8760 -> 2740.299314 | BT195: 6263.659329 | BU195: 191 | BV195: 6263.659329
A196: 192 | B196: 39.31675394 | C196: 36.67734605 | D196: 44.06731784 | E196: 39.87261661 | F196: 35.01303839 | G196: 35.02071107 | H196: 33.76338938 | I196: 36.18024602 | J196: 62749.35441 | L196: 192 | M196: 77035.8373 | N196: 14517.98449 | O196: 10 | P196: 76920.16301 | AI196: 62749.35441 | AJ196: 39.31675394 | AK196: 36.67734605 | AL196: 44.06731784 | AM196: 39.87261661 | AN196: 35.01303839 | AO196: 35.02071107 | AP196: 33.76338938 | AQ196: 36.18024602 | AS196: 34 | BC196: 192 | BD196: =Resultados!$K$60-M196 -> 1868.485858 | BE196: 14286.63591 | BF196: 10 | BG196: 192 | BO196: 192 | BP196: 6172.357314 | BQ196: =Resultados!$K$60-M196-(Resultados!$D$88-VLOOKUP(M196,$AI$5:$AP$305,8,FALSE))*Resultados!$D$90*8760 -> 1932.362145 | BT196: 6172.357314 | BU196: 192 | BV196: 6172.357314
A197: 193 | B197: 60.03934054 | C197: 52.50795639 | D197: 48.41719665 | E197: 44.04877303 | F197: 42.04996827 | G197: 42.70008734 | H197: 43.04117887 | I197: 44.95707378 | J197: 77971.48074 | L197: 193 | M197: 77115.65804 | N197: 14597.80524 | O197: 10 | P197: 76920.16301 | AI197: 77971.48074 | AJ197: 60.03934054 | AK197: 52.50795639 | AL197: 48.41719665 | AM197: 44.04877303 | AN197: 42.04996827 | AO197: 42.70008734 | AP197: 43.04117887 | AQ197: 44.95707378 | AS197: 43 | BC197: 193 | BD197: =Resultados!$K$60-M197 -> 1788.665115 | BE197: =BD197+ABS($BJ$2) -> 14206.81517 | BF197: =ROUND(BE197/$BJ$4,0) -> 10 | BG197: 193 | BO197: 193 | BP197: 6115.79541 | BQ197: =Resultados!$K$60-M197-(Resultados!$D$88-VLOOKUP(M197,$AI$5:$AP$305,8,FALSE))*Resultados!$D$90*8760 -> 1816.22447 | BT197: 6115.79541 | BU197: 193 | BV197: 6115.79541
A198: 194 | B198: 52.97703307 | C198: 50.95933224 | D198: 45.79239734 | E198: 43.37796373 | F198: 38.68623648 | G198: 39.52527192 | H198: 40.99471207 | I198: 41.87246665 | J198: 72621.68003 | L198: 194 | M198: 77117.97049 | N198: 14600.11768 | O198: 10 | P198: 76920.16301 | AI198: =J198 -> 72621.68003 | AJ198: =B198 -> 52.97703307 | AK198: =C198 -> 50.95933224 | AL198: =D198 -> 45.79239734 | AM198: =E198 -> 43.37796373 | AN198: =F198 -> 38.68623648 | AO198: =G198 -> 39.52527192 | AP198: =H198 -> 40.99471207 | AQ198: =I198 -> 41.87246665 | AS198: =ROUND(AP198,0) -> 41 | BC198: 194 | BD198: =Resultados!$K$60-M198 -> 1786.352672 | BE198: 14204.50273 | BF198: 10 | BG198: 194 | BO198: 194 | BP198: 6082.403744 | BQ198: =Resultados!$K$60-M198-(Resultados!$D$88-VLOOKUP(M198,$AI$5:$AP$305,8,FALSE))*Resultados!$D$90*8760 -> 2794.038909 | BR198: =BP198+ABS($BX$2) ->  | BS198: =ROUND(BR198/$BJ$4,0) ->  | BT198: =IF(BV198=$BT$307,0,BV198) -> 6082.403744 | BU198: 194 | BV198: =ABS(BP198) -> 6082.403744
A199: 195 | B199: 51.99374862 | C199: 48.38119871 | D199: 50.55987545 | E199: 46.81866233 | F199: 45.0169788 | G199: 42.38511351 | H199: 43.20032675 | I199: 44.4649538 | J199: 77117.97049 | L199: 195 | M199: 77188.65806 | N199: 14670.80525 | O199: 10 | P199: 76920.16301 | AI199: 77117.97049 | AJ199: 51.99374862 | AK199: 48.38119871 | AL199: 50.55987545 | AM199: 46.81866233 | AN199: 45.0169788 | AO199: 42.38511351 | AP199: 43.20032675 | AQ199: 44.4649538 | AS199: 43 | BC199: 195 | BD199: =Resultados!$K$60-M199 -> 1715.665103 | BE199: 14133.81516 | BF199: 10 | BG199: 195 | BO199: 195 | BP199: 6022.755818 | BQ199: =Resultados!$K$60-M199-(Resultados!$D$88-VLOOKUP(M199,$AI$5:$AP$305,8,FALSE))*Resultados!$D$90*8760 -> 1943.849414 | BT199: 6022.755818 | BU199: 195 | BV199: 6022.755818
A200: 196 | B200: 58.47757531 | C200: 52.90934212 | D200: 47.98511801 | E200: 44.89740455 | F200: 35.90323721 | G200: 40.13772534 | H200: 42.26566846 | I200: 42.825614 | J200: 74274.77495 | L200: 196 | M200: 77214.44025 | N200: 14696.58744 | O200: 10 | P200: 76920.16301 | AI200: 74274.77495 | AJ200: 58.47757531 | AK200: 52.90934212 | AL200: 47.98511801 | AM200: 44.89740455 | AN200: 35.90323721 | AO200: 40.13772534 | AP200: 42.26566846 | AQ200: 42.825614 | AS200: 42 | BC200: 196 | BD200: =Resultados!$K$60-M200 -> 1689.88291 | BE200: 14108.03297 | BF200: 10 | BG200: 196 | BO200: 196 | BP200: 6011.182573 | BQ200: =Resultados!$K$60-M200-(Resultados!$D$88-VLOOKUP(M200,$AI$5:$AP$305,8,FALSE))*Resultados!$D$90*8760 -> 3029.402311 | BT200: 6011.182573 | BU200: 196 | BV200: 6011.182573
... 107 more rows

Sheet Hoja3
M2: 2014/2015 | N2: lognormal
B3: Hoy | L3: promedio | M3: 0 | N3: =M3-1/2*M4*M4 -> -0.0188454473 | P3: Casos | Q3: yt | R3: OMIP | T3: N(0,1)
L4: Desv.Est | M4: 0.1941414294 | N4: =M4 -> 0.1941414294 | P4: 1 | Q4: =LOG(M8,EXP(1)) -> 3.738859386 | R4: =EXP(Q4) -> 42.05 | T4: =NORMINV(RAND(),0,1) -> -0.7174926697
L5: delta T | M5: 0.001 | P5: 2 | Q5: =Q4+$N$3*$M$5+$N$4*T4*SQRT($M$5) -> 3.734435645 | R5: =EXP(Q5) -> 41.8643925 | T5: =NORMINV(RAND(),0,1) -> 0.5726730583
P6: 3 | Q6: =Q5+$N$3*$M$5+$N$4*T5*SQRT($M$5) -> 3.737932606 | R6: =EXP(Q6) -> 42.01104693 | T6: -0.4209976669
P7: 4 | Q7: 3.735329133 | R7: 41.90181457 | T7: -0.3457133192
L8: OMIP | M8: 42.05 | P8: 5 | Q8: 3.733187853 | R8: 41.81218704 | T8: -0.5361129166
L9: Hoy | M9: =TODAY() -> 2016-06-27 | P9: 6 | Q9: 3.729877654 | R9: 41.67400922 | T9: -1.32810393
L10: Fin cotización | M10: 2016-12-28 | P10: 7 | Q10: 3.721705192 | R10: 41.33481786 | T10: 0.9621902743
L11: Tiempo | M11: =ROUND((M10-M9)/7*5,0) -> 131 | P11: 8 | Q11: 3.727593513 | R11: 41.57892852 | T11: -0.05492491246
P12: 9 | Q12: 3.727237468 | R12: 41.56412717 | T12: -0.8244781446
P13: 10 | Q13: 3.722156911 | R13: 41.35349378 | T13: 0.5289547448
P14: 11 | Q14: 3.725385472 | R14: 41.48722184 | T14: -1.013277465
P15: 12 | Q15: 3.719145822 | R15: 41.22916201 | T15: 0.2621086446
P16: 13 | Q16: 3.720736138 | R16: 41.29478156 | T16: -1.729775729
P17: 14 | Q17: 3.710097695 | R17: 40.85779795 | T17: 0.6092790635
P18: 15 | Q18: 3.713819392 | R18: 41.01014157 | T18: -0.7476536352
P19: 16 | Q19: 3.709210483 | R19: 40.82156447 | T19: -0.7865215275
P20: 17 | Q20: 3.704362953 | R20: 40.62415956 | T20: 0.3852144765
P21: 18 | Q21: 3.706709051 | R21: 40.71957973 | T21: 0.7883743024
P22: 19 | Q22: 3.711530265 | R22: 40.91637153 | T22: 1.059790101
P23: 20 | Q23: 3.718017779 | R23: 41.18267999 | T23: 0.3229330369
P24: 21 | Q24: 3.719981514 | R24: 41.2636313 | T24: 0.4626011312
P25: 22 | Q25: 3.722802711 | R25: 41.38020852 | T25: -2.302773008
P26: 23 | Q26: 3.708646472 | R26: 40.79854717 | T26: -0.04529898101
P27: 24 | Q27: 3.708349523 | R27: 40.78643388 | T27: 0.1231848154
P28: 25 | Q28: 3.709086945 | R28: 40.81652178 | T28: -0.2553719169
P29: 26 | Q29: 3.707500297 | R29: 40.75181168 | T29: -1.436854639
P30: 27 | Q30: 3.698660183 | R30: 40.39314866 | T30: -0.7478795809
P31: 28 | Q31: 3.694049887 | R31: 40.20735291 | T31: -0.4492547782
P32: 29 | Q32: 3.691272936 | R32: 40.09585393 | T32: -0.810163861
P33: 30 | Q33: 3.686280259 | R33: 39.89616718 | T33: -0.3278233839
P34: 31 | Q34: 3.68424881 | R34: 39.81520243 | T34: -0.1427018346
P35: 32 | Q35: 3.683353876 | R35: 39.77958641 | T35: -0.9074506719
P36: 33 | Q36: 3.677763927 | R36: 39.55784089 | T36: -1.089282216
P37: 34 | Q37: 3.671057661 | R37: 39.29344304 | T37: -1.115996044
P38: 35 | Q38: 3.664187391 | R38: 39.02441169 | T38: -1.420746196
P39: 36 | Q39: 3.655446171 | R39: 38.6847773 | T39: 0.7438635033
P40: 37 | Q40: 3.65999412 | R40: 38.86111438 | T40: 0.1496617816
P41: 38 | Q41: 3.660894092 | R41: 38.89610403 | T41: -0.2304993378
P42: 39 | Q42: 3.659460144 | R42: 38.84036901 | T42: -2.437109785
P43: 40 | Q43: 3.644479172 | R43: 38.26283932 | T43: 0.956198046
P44: 41 | Q44: 3.650330705 | R44: 38.48739192 | T44: -0.468460165
P45: 42 | Q45: 3.647435846 | R45: 38.37613747 | T45: -0.6383440235
P46: 43 | Q46: 3.643498021 | R46: 38.2253161 | T46: -0.4857266226
P47: 44 | Q47: 3.640497159 | R47: 38.11077912 | T47: -0.5441349402
P48: 45 | Q48: 3.63713771 | R48: 37.98296275 | T48: 0.1311531725
P49: 46 | Q49: 3.637924052 | R49: 38.01284209 | T49: 0.0425852969
P50: 47 | Q50: 3.638166651 | R50: 38.02206506 | T50: -0.2003616525
P51: 48 | Q51: 3.636917727 | R51: 37.97460803 | T51: -0.2860574676
P52: 49 | Q52: 3.635142691 | R52: 37.90726154 | T52: -1.137626911
P53: 50 | Q53: 3.628139623 | R53: 37.64272178 | T53: 0.4006361411
P54: 51 | Q54: 3.630580399 | R54: 37.73471147 | T54: 0.6655667085
P55: 52 | Q55: 3.634647662 | R55: 37.88850097 | T55: 0.6798843549
P56: 53 | Q56: 3.638802824 | R56: 38.04626139 | T56: 0.2720352282
P57: 54 | Q57: 3.640454082 | R57: 38.10913748 | T57: -1.146732828
P58: 55 | Q58: 3.63339511 | R58: 37.84107338 | T58: 0.8398597049
P59: 56 | Q59: 3.638532408 | R59: 38.03597445 | T59: 0.3830555175
P60: 57 | Q60: 3.640865252 | R60: 38.12481002 | T60: -0.2153935131
P61: 58 | Q61: 3.639524043 | R61: 38.07371096 | T61: 0.08316549739
P62: 59 | Q62: 3.640015775 | R62: 38.09243761 | T62: 0.2592717654
P63: 60 | Q63: 3.641588674 | R63: 38.15240033 | T63: 1.000174804
P64: 61 | Q64: 3.647710193 | R64: 38.38666727 | T64: -0.02227331362
P65: 62 | Q65: 3.647554605 | R65: 38.38069523 | T65: 0.9455129478
P66: 63 | Q66: 3.653340539 | R66: 38.60340707 | T66: 0.673122688
P67: 64 | Q67: 3.657454189 | R67: 38.76253507 | T67: -0.9932672713
P68: 65 | Q68: 3.651337387 | R68: 38.52615599 | T68: -0.9274023772
P69: 66 | Q69: 3.645624948 | R69: =EXP(Q69) -> 38.30670509 | T69: =NORMINV(RAND(),0,1) -> 1.785689145
P70: 67 | Q70: =Q69+$N$3*$M$5+$N$4*T69*SQRT($M$5) -> 3.656568968 | R70: 38.72823685 | T70: 1.290512447
P71: 68 | Q71: 3.664472954 | R71: 39.03555722 | T71: -0.975310246
P72: 69 | Q72: 3.658466396 | R72: 38.80179062 | T72: -0.9792712368
P73: 70 | Q73: 3.652435519 | R73: 38.56848603 | T73: 1.438283125
P74: 71 | Q74: 3.661246712 | R74: 38.90982199 | T74: 0.2352759678
P75: 72 | Q75: 3.662672294 | R75: 38.9653307 | T75: -1.363511213
P76: 73 | Q76: 3.654282457 | R76: 38.63978545 | T76: -1.789502022
P77: 74 | Q77: 3.643277338 | R77: 38.21688133 | T77: 0.3701142733
P78: 75 | Q78: 3.645530731 | R78: 38.30309611 | T78: -1.420180425
P79: 76 | Q79: 3.636792985 | R79: 37.96987131 | T79: -1.457973886
P80: 77 | Q80: 3.627823213 | R80: 37.63081315 | T80: -0.771794798
P81: 78 | Q81: 3.623066095 | R81: 37.45222404 | T81: -2.017609513
P82: 79 | Q82: 3.610660558 | R82: 36.99047909 | T82: 0.3096586099
P83: 80 | Q83: 3.612542797 | R83: 37.06016957 | T83: 0.7017267512
P84: 81 | Q84: 3.616832056 | R84: 37.21947165 | T84: -0.8441139934
P85: 82 | Q85: 3.611630949 | R85: 37.02639175 | T85: -0.9647557971
P86: 83 | Q86: 3.605689187 | R86: 36.80704205 | T86: 0.4573274585
P87: 84 | Q87: 3.608478008 | R87: 36.90983356 | T87: -0.07070041179
P88: 85 | Q88: 3.608025112 | R88: 36.89312104 | T88: 0.7061860447
P89: 86 | Q89: 3.612341748 | R89: 37.05271944 | T89: -0.2237960793
P90: 87 | Q90: 3.610948953 | R90: 37.00114853 | T90: -0.9126650177
P91: 88 | Q91: 3.605326992 | R91: 36.79371313 | T91: 1.130691996
P92: 89 | Q92: 3.612249794 | R92: 37.04931243 | T92: 0.5939998081
P93: 90 | Q93: 3.615877686 | R93: 37.18396745 | T93: 1.63847871
P94: 91 | Q94: 3.625917938 | R94: 37.55918435 | T94: -0.2632463784
P95: 92 | Q95: 3.624282946 | R95: 37.49782557 | T95: 1.512999593
P96: 93 | Q96: 3.633552846 | R96: 37.84704274 | T96: -0.1930789364
P97: 94 | Q97: 3.632348633 | R97: 37.80149427 | T97: 0.001106280575
P98: 95 | Q98: 3.632336579 | R98: 37.80103862 | T98: -1.308666935
P99: 96 | Q99: 3.624283446 | R99: 37.49784431 | T99: -1.867882063
P100: 97 | Q100: 3.612797129 | R100: 37.06959639 | T100: -0.8828390656
P101: 98 | Q101: 3.607358278 | R101: 36.86852765 | T101: 0.4145501348
P102: 99 | Q102: 3.609884476 | R102: 36.96178261 | T102: 0.7260666323
P103: 100 | Q103: 3.614323165 | R103: 37.12620911 | T103: 1.126807998
P104: 101 | Q104: 3.621222122 | R104: 37.38322678 | T104: -0.4361100537
P105: 102 | Q105: 3.61852587 | R105: 37.28256794 | T105: 0.2292322386
P106: 103 | Q106: 3.619914348 | R106: 37.33436992 | T106: -0.737545656
P107: 104 | Q107: 3.615367495 | R107: 37.16500137 | T107: -0.1016453247
P108: 105 | Q108: 3.614724619 | R108: 37.14111658 | T108: 0.9704805685
P109: 106 | Q109: 3.620663837 | R109: 37.3623621 | T109: 0.3343774948
P110: 107 | Q110: 3.622697832 | R110: 37.43843431 | T110: -0.5021774187
P111: 108 | Q111: 3.619595973 | R111: 37.32248549 | T111: -0.9426651318
P112: 109 | Q112: 3.613789832 | R112: 37.10641376 | T112: 1.740400571
P113: 110 | Q113: 3.624455812 | R113: 37.50430823 | T113: -0.5235450171
P114: 111 | Q114: 3.621222772 | R114: 37.38325107 | T114: -1.19851556
P115: 112 | Q115: 3.61384589 | R115: 37.10849393 | T115: -0.3121441348
P116: 113 | Q116: 3.611910701 | R116: 37.03675142 | T116: -1.23774487
P117: 114 | Q117: 3.60429298 | R117: 36.75568766 | T117: -0.4484886255
P118: 115 | Q118: 3.601520732 | R118: 36.6539329 | T118: -0.2224351041
P119: 116 | Q119: 3.600136293 | R119: 36.60322286 | T119: -1.683124559
P120: 117 | Q120: 3.589784256 | R120: 36.22625948 | T120: -0.09614920402
P121: 118 | Q121: 3.589175122 | R121: 36.20419958 | T121: 1.385996555
P122: 119 | Q122: 3.597665313 | R122: 36.5128887 | T122: -2.560363811
P123: 120 | Q123: 3.581927649 | R123: 35.94275914 | T123: -1.780717538
P124: 121 | Q124: 3.570976461 | R124: 35.55129064 | T124: 0.6759940149
P125: 122 | Q125: 3.575107739 | R125: 35.69846673 | T125: -0.2543853949
P126: 123 | Q126: 3.573527148 | R126: 35.64208661 | T126: 1.073202144
P127: 124 | Q127: 3.580097003 | R127: 35.87702084 | T127: -1.099490983
P128: 125 | Q128: 3.573328062 | R128: 35.63499148 | T128: 1.793560471
P129: 126 | Q129: 3.584320406 | R129: 36.02886441 | T129: 2.548267389
P130: 127 | Q130: 3.599946116 | R130: 36.59626244 | T130: -0.03089175539
P131: 128 | Q131: 3.599737617 | R131: 36.58863295 | T131: 0.2115118312
P132: 129 | Q132: 3.601017304 | R132: 36.63548493 | T132: 0.9569057473
P133: 130 | Q133: =Q132+$N$3*$M$5+$N$4*T132*SQRT($M$5) -> 3.606873182 | R133: =EXP(Q133) -> 36.85064721 | T133: =NORMINV(RAND(),0,1) -> -0.1775557795
P134: 131 | Q134: =Q133+$N$3*$M$5+$N$4*T133*SQRT($M$5) -> 3.60576427 | R134: 36.80980573 | T134: 1.012776422
P135: 132 | Q135: =Q134+$N$3*$M$5+$N$4*T134*SQRT($M$5) -> 3.611963153 | R135: 37.03869413 | T135: 0.31832607
P136: 133 | Q136: =Q135+$N$3*$M$5+$N$4*T135*SQRT($M$5) -> 3.613898604 | R136: 37.11045012 | T136: -0.615710861
P137: 134 | Q137: 3.610099731 | R137: 36.96973965 | T137: -0.7746053748
P138: 135 | Q138: 3.605325357 | R138: 36.793653 | T138: -0.3280795421
P139: 136 | Q139: 3.603292336 | R139: 36.71892671 | T139: -1.357386168
P140: 137 | Q140: 3.594940102 | R140: 36.41351883 | T140: 0.6415564057
P141: 138 | Q141: 3.598859958 | R141: 36.5565347 | T141: -0.9151911632
P142: 139 | Q142: 3.593222488 | R142: 36.35102813 | T142: -0.7527653428
P143: 140 | Q143: 3.588582197 | R143: 36.18273954 | T143: -0.4384552759
P144: 141 | Q144: 3.585871547 | R144: 36.0847936 | T144: 1.184582266
P145: 142 | Q145: 3.593125197 | R145: 36.34749167 | T145: 0.3595940114
P146: 143 | Q146: 3.595314003 | R146: 36.42713644 | T146: 0.4103018948
P147: 144 | Q147: 3.597814121 | R147: 36.51832249 | T147: -1.192327705
P148: 145 | Q148: 3.590475228 | R148: 36.25129948 | T148: -1.359247166
P149: 146 | Q149: =Q148+$N$3*$M$5+$N$4*T148*SQRT($M$5) -> 3.582111569 | R149: 35.94937034 | T149: 1.015892802
P150: 147 | Q150: 3.588329585 | R150: 36.17360051 | T150: -0.7534687871
P151: 148 | Q151: 3.583684976 | R151: 36.00597783 | T151: 0.4976359966
P152: 149 | Q152: 3.586721262 | R152: 36.11546845 | T152: -0.6834754699
P153: 150 | Q153: 3.582506362 | R153: 35.9635657 | T153: -1.25023349
P154: 151 | Q154: 3.574811969 | R154: 35.68790976 | T154: 0.2473520078
P155: 152 | Q155: 3.57631169 | R155: 35.74147181 | T155: 1.640362344
P156: 153 | Q156: 3.586363506 | R156: 36.10255023 | T156: -0.5612423504
P157: 154 | Q157: 3.582899031 | R157: 35.97769024 | T157: -1.605800736
P158: 155 | Q158: 3.573021707 | R158: 35.62407621 | T158: -1.090695897
P159: 156 | Q159: 3.566306762 | R159: 35.38566385 | T159: 0.8446390319
P160: 157 | Q160: 3.571473402 | R160: 35.56896193 | T160: 0.1101288293
P161: 158 | Q161: 3.572130669 | R161: 35.59234793 | T161: -1.647621279
P162: 159 | Q162: 3.561996597 | R162: 35.23347401 | T162: -0.9375730716
P163: 160 | Q163: 3.556221718 | R163: 35.03059133 | T163: -0.4797948792
O164: * | P164: 161 | Q164: 3.553257272 | R164: 34.92689881 | T164: 0.5383115956
P165: 162 | Q165: 3.556543278 | R165: 35.04185758 | T165: -0.7052776181
P166: 163 | Q166: 3.552194528 | R166: 34.88980017 | T166: -0.5636845172
P167: 164 | Q167: 3.548715059 | R167: 34.76861316 | T167: -0.7561522648
P168: 165 | Q168: 3.544053975 | R168: 34.60693082 | T168: -0.5984195131
P169: 166 | Q169: 3.540361258 | R169: 34.47937288 | T169: 1.114030663
P170: 167 | Q170: 3.547181771 | R170: 34.7153437 | T170: 0.5287312296
P171: 168 | Q171: 3.55040896 | R171: 34.82755766 | T171: -0.1574363931
P172: 169 | Q172: 3.549423567 | R172: 34.79325573 | T172: 0.6213775159
P173: 170 | Q173: 3.553219539 | R173: 34.92558094 | T173: -0.484699754
P174: 171 | Q174: 3.550224981 | R174: 34.82115069 | T174: -0.926638398
P175: 172 | Q175: 3.544517232 | R175: 34.62296646 | T175: 0.552478825
P176: 173 | Q176: 3.547890215 | R176: 34.73994631 | T176: 0.9716240268
P177: 174 | Q177: 3.553836453 | R177: 34.94713365 | T177: -0.003460724434
P178: 175 | Q178: 3.553796361 | R178: 34.94573259 | T178: -0.1356427963
P179: 176 | Q179: 3.552944765 | R179: 34.91598561 | T179: -1.839750783
P180: 177 | Q180: 3.541631154 | R180: 34.52318591 | T180: -1.377998279
P181: 178 | Q181: 3.533152376 | R181: 34.23170891 | T181: -0.2486478322
P182: 179 | Q182: 3.531607009 | R182: 34.17884922 | T182: -0.2942747409
P183: 180 | Q183: 3.529781525 | R183: 34.1165132 | T183: -1.447590459
P184: 181 | Q184: 3.520875501 | R184: 33.8140197 | T184: 1.109646188
P185: 182 | Q185: 3.527669096 | R185: 34.04452055 | T185: -0.1930017766
P186: 183 | Q186: 3.526465356 | R186: 34.00356447 | T186: 1.766632685
P187: 184 | Q187: 3.537292383 | R187: 34.37372221 | T187: 0.1695438555
